Workbook

Sheet GUIA PARA PREENCHIMENTO
A1: GUIA PARA PREENCHIMENTO
A3: 1 - Preencher apenas as guias azuis:
A5: 2 - Recomendamos preencher somente as células com fundo azul claro. As demais possuem fórmulas e sugerimos não alterá-las.

Sheet MODELO_PROPOSTA
B2: MODELO DA PROPOSTA COMPLETA
B4: .
B5: I – FORMALIZAÇÃO
B7: PREGÃO ELETRÔNICO N. 147/2023
B8: OBJETO: Prestação de serviços continuados nas áreas de operação técnica, produção de conteúdo para as plataformas de comunicação da Câmara dos Deputados e assistência técnica em equipamentos de áudio e vídeo, pelo período de doze meses.
B9: LICITANTE: _____________________________________________________
B10: CNPJ: ________________________________________________________
B11: ENDEREÇO COMPLETO: _________________________________________
B12: TELEFONE:_____________________________________________________
B13: E-MAIL: ________________________________________________________
B15: Apresentamos nossa proposta para o item único da presente licitação, de acordo com as disposições do Edital.
B16: Decorre do conteúdo da presente proposta a explicitação do seguinte PREÇO DE JULGAMENTO (GLOBAL ANUAL) PARA O ITEM:
B17: =' RESUMO'!H269 -> 46064195.04
B18: =Extenso_Valor(B17) -> quarenta e seis milhões, sessenta e quatro mil, cento e noventa e cinco reais e quatro centavos
B20: (por extenso)
B22: No valor proposto estão incluídos todos os custos e todas as despesas, diretas e indiretas, para a execução dos serviços objeto da licitação, em conformidade com as especificações e demais condições e exigências constantes do Edital.
B23: Informamos que eventuais rubricas dispostas em Acordo ou Convenção Coletiva de Trabalho que não se relacionem ao custo direto da venda do serviço, tais como “Participação nos Resultados” e “Abono substitutivo de Participação nos Resultados”, serão consideradas nos custos indiretos da proposta.
B24: O prazo de validade da presente proposta é de ______ (por extenso) dias. (observado o disposto no Título 11 do Edital).
B26: Convenção coletiva de trabalho ou a norma coletiva a que estamos obrigados:
B27: Data-Base:
B28: Número do Registro SRT:
B29: Regime de tributação da empresa:
B30: Empresa é beneficiada pela desoneração da folha de pagamento instituída pela Lei n. 12.546, de 2001, alterada pela Lei n. 13.161, de 2015?
B31: Empresa adere ao PAT (Programa de Alimentação do Trabalhador)?
B32: (Se adere ao PAT): Os valores do auxílio-alimentação apresentados na presente proposta correspondem somente aos efetivamente pagos pela empresa aos empregados?
B34: DECLARAÇÕES
B36: Declaramos que seremos responsáveis pelo descarte ambientalmente responsável de qualquer resíduo do serviço a ser prestado – incluindo consumíveis, peças usadas, embalagens – e temos conhecimento da legislação ambiental sobre o descarte de materiais, em especial a Lei n. 9.605, de 1998 e a Lei n. 12.305, de 2010, além da NBR 10.004.
B42: A SEREM PRESTADAS SOMENTE NA HIPÓTESE DE LICITANTE MICROEMPRESA OU EMPRESA DE PEQUENO PORTE, EM CONFORMIDADE COM OS ARTIGOS 17, 18, 30 E 31 DA LEI COMPLEMENTAR N. 123, de 2006, E O ACÓRDÃO TCU 2798/2010-PLENÁRIO
B43: Declaramos que:
B44: a) em se tratando dos serviços vedados descritos no artigo 17 da Lei Complementar n. 123, de 2006, notadamente os descritos no inciso XII (cessão ou locação de mão de obra), ressalvados os serviços listados nos parágrafos 5o-B a 5o-E do artigo 18 da referida Lei, a proposta apresentada não contempla qualquer benefício tributário referente ao SIMPLES NACIONAL, conforme os subitens 5.7 e 5.8 do Edital;
B45: b) na hipótese de contratação desta Microempresa ou Empresa de Pequeno Porte inscrita no SIMPLES NACIONAL e executora de atividade vedada, ficamos sujeitos à exclusão obrigatória no SIMPLES NACIONAL a contar do mês seguinte ao da contratação, em consequência do que dispõem o artigo 17, inciso XII e o artigo 31, inciso II da Lei Complementar n, 123, de 2006, devendo entregar à Câmara dos Deputados, à título de comprovação, cópia de ofício – com comprovante de entrega e recebimento, que comunique a assinatura do contrato de prestação de serviços mediante cessão de mão de obra e encaminhado pela contratada à Receita Federal do Brasil até o último dia útil do mês subsequente ao da contratação, consoante artigo 30, § 1º, inciso II da Lei Complementar n. 123, de 2006.
B47: A SEREM PRESTADAS SOMENTE NA HIPÓTESE DE LICITANTE NÃO BENEFICIADA PELA DESONERAÇÃO DA FOLHA DE PAGAMENTO INSTITUÍDA PELA LEI N. 12.546, DE 2011, ALTERADA PELA LEI N. 13.161, DE 2015
B49: Declaramos, sob as penas da Lei, que:
B50: a) não recolhemos a contribuição previdenciária incidente sobre o valor da receita bruta, em substituição às contribuições previdenciárias incidentes sobre a folha de pagamento, previstas nos incisos I e III do caput do artigo 22 da Lei n. 8.212, de 1991, na forma do caput do artigo 7º (ou 8º) da Lei n. 12.546, de 2011;
B51: b) temos ciência que nossa manifestação, conforme alínea “a” anterior, será remetida à Receita Federal do Brasil e que, em caso de constatação de falsidade, estará sujeita às sanções administrativas cabíveis, sem prejuízo do encaminhamento dos documentos ao Ministério Público para apuração de eventual responsabilidade criminal desta declarante.
B52: A SEREM PRESTADAS SOMENTE PARA A LICITANTE QUE SEJA A ATUAL TITULAR DO CONTRATO QUE SERÁ SUCEDIDO PELA CONTRATAÇÃO DECORRENTE DO PREGÃO EM EPÍGRAFE, NA HIPÓTESE DE HAVER SALÁRIO(S) PRATICADO(S) NO CONTRATO VIGENTE SUPERIOR(ES) AOS MÍNIMOS FIXADOS NO EDITAL E QUE TENHA OPTADO POR TOMAR COMO BASE EM SEUS LANCES E NA PRESENTE PROPOSTA DE PREÇOS SALÁRIO(S) FIXADO(S) NESTE EDITAL:
B54: Declaramos que:
B55: a) estamos cientes de que deveremos apresentar à Câmara dos Deputados, no prazo improrrogável de 60 (sessenta) dias, contado da data de início da vigência do contrato, a convenção ou o acordo coletivo de trabalho, entabulado com a participação do sindicato dos trabalhadores, em que se autoriza a redução salarial, na forma do art. 7°, VI, da Constituição Federal, considerado, ainda, o disposto no subitem 10.11.2.1 Título 10 do Anexo n. 6 do Edital;
B56: b) estamos cientes de que, na hipótese de não cumprirmos o disposto no teor da declaração da alínea anterior (“a”) e não logrado êxito na contratação de remanescente, sendo necessária a realização de nova licitação, caso participemos do certame, deveremos tomar como base em nossos lances e em nossa proposta de preços o(s) salário(s) maior(es), absorvendo ou acrescentando eventual diferença no BDI, sob pena de desclassificação.
B58: É OBRIGATÓRIA A COMPROVAÇÃO A QUE SE REFERE O SUBITEM 5.9.4 DO TÍTULO 5 DO EDITAL.
B60: DADOS PARA ASSINATURA DO CONTRATO
B61: Nome do signatário
B62: Cargo
B63: Qualificação (CPF, naturalidade e domicílio)
B64: OBS.: O signatário deve possuir poderes de administração estabelecidos em contrato social e/ou possuir procuração com poderes para assinar contratos em nome da empresa. A documentação comprobatória deverá ser encaminhada quando da assinatura do contrato.
B67: Brasília, de de 2023.
B69: Assinatura do representante legal da empresa
B72: Nome do representante legal da empresa

Sheet RESUMO
B2: RESUMO LOTE 1 - TOTAIS MENSAIS - FATURA ORDINÁRIA (SEM O 13º E SEM OS ITENS SOB DEMANDA)
C5: ITEM | D5: POSTO DE TRABALHO | E5: QUANTIDADE | F5: PREÇO UNIT (SEM O 13º) | G5: DESTAQUE DO 13º | H5: PREÇO POR EMPREGADO | I5: PREÇO TOTAL (MENSAL)
C6: 1 | D6: =HLOOKUP(C6,'Dados Gerais'!$D$5:$BX$10,6) -> Almoxarife Técnico - 5 dias | E6: =HLOOKUP(C6,'Dados Gerais'!$D$5:$BX$14,10) -> 2 | F6: ='1'!$E$115 -> 12577.59976 | G6: 0 | H6: =G6+F6 -> 12577.59976 | I6: =H6*E6 -> 25155.19953
C7: 2 | D7: =HLOOKUP(C7,'Dados Gerais'!$D$5:$BX$10,6) -> Almoxarife Técnico - 4 dias | E7: =HLOOKUP(C7,'Dados Gerais'!$D$5:$BX$14,10) -> 2 | F7: ='2'!$E$115 -> 10101.40435 | G7: 0 | H7: 10101.40435 | I7: 20202.80871
C8: 3 | D8: =HLOOKUP(C8,'Dados Gerais'!$D$5:$BX$10,6) -> Assistente de operações audiovisuais - 5 dias | E8: =HLOOKUP(C8,'Dados Gerais'!$D$5:$BX$14,10) -> 8 | F8: ='3'!$E$115 -> 7465.498692 | G8: 0 | H8: 7465.498692 | I8: 59723.98954
C9: 4 | D9: =HLOOKUP(C9,'Dados Gerais'!$D$5:$BX$10,6) -> Assistente de operações audiovisuais - 3 dias | E9: =HLOOKUP(C9,'Dados Gerais'!$D$5:$BX$14,10) -> 2 | F9: ='4'!$E$115 -> 4660.676269 | G9: 0 | H9: 4660.676269 | I9: 9321.352538
C10: 5 | D10: =HLOOKUP(C10,'Dados Gerais'!$D$5:$BX$10,6) -> Assistente de operações audiovisuais UPJ - A - 4 dias | E10: =HLOOKUP(C10,'Dados Gerais'!$D$5:$BX$14,10) -> 2 | F10: ='5'!$E$115 -> 6963.970743 | G10: 0 | H10: 6963.970743 | I10: 13927.94149
C11: 6 | D11: =HLOOKUP(C11,'Dados Gerais'!$D$5:$BX$10,6) -> Assistente de operações audiovisuais UPJ - B - 5 dias | E11: =HLOOKUP(C11,'Dados Gerais'!$D$5:$BX$14,10) -> 7 | F11: ='6'!$E$115 -> 7465.498692 | G11: 0 | H11: 7465.498692 | I11: 52258.49084
C12: 7 | D12: =HLOOKUP(C12,'Dados Gerais'!$D$5:$BX$10,6) -> Assistente de operações audiovisuais UPJ - B - 4 dias | E12: =HLOOKUP(C12,'Dados Gerais'!$D$5:$BX$14,10) -> 3 | F12: ='7'!$E$115 -> 6063.056833 | G12: 0 | H12: 6063.056833 | I12: 18189.1705
C13: 8 | D13: =HLOOKUP(C13,'Dados Gerais'!$D$5:$BX$10,6) -> Assistente de operações audiovisuais UPJ - B - 3 dias | E13: =HLOOKUP(C13,'Dados Gerais'!$D$5:$BX$14,10) -> 3 | F13: ='8'!$E$115 -> 4660.676269 | G13: 0 | H13: 4660.676269 | I13: 13982.02881
C14: 9 | D14: =HLOOKUP(C14,'Dados Gerais'!$D$5:$BX$10,6) -> Diretor de imagens - 5 dias | E14: =HLOOKUP(C14,'Dados Gerais'!$D$5:$BX$14,10) -> 9 | F14: ='9'!$E$115 -> 11594.15827 | G14: 0 | H14: 11594.15827 | I14: 104347.4244
C15: 10 | D15: =HLOOKUP(C15,'Dados Gerais'!$D$5:$BX$10,6) -> Diretor de imagens - 3 dias | E15: =HLOOKUP(C15,'Dados Gerais'!$D$5:$BX$14,10) -> 2 | F15: ='10'!$E$115 -> 7035.10972 | G15: 0 | H15: 7035.10972 | I15: 14070.21944
C16: 11 | D16: =HLOOKUP(C16,'Dados Gerais'!$D$5:$BX$10,6) -> Gerente de projetos em TV digital - 5 dias | E16: =HLOOKUP(C16,'Dados Gerais'!$D$5:$BX$14,10) -> 4 | F16: ='11'!$E$115 -> 17107.8887 | G16: 0 | H16: 17107.8887 | I16: 68431.55478
C17: 12 | D17: =HLOOKUP(C17,'Dados Gerais'!$D$5:$BX$10,6) -> Iluminador - 5 dias | E17: =HLOOKUP(C17,'Dados Gerais'!$D$5:$BX$14,10) -> 2 | F17: ='12'!$E$115 -> 7915.342697 | G17: 0 | H17: 7915.342697 | I17: 15830.68539
C18: 13 | D18: =HLOOKUP(C18,'Dados Gerais'!$D$5:$BX$10,6) -> Iluminador - 4dias | E18: =HLOOKUP(C18,'Dados Gerais'!$D$5:$BX$14,10) -> 1 | F18: ='13'!$E$115 -> 6379.118371 | G18: 0 | H18: 6379.118371 | I18: 6379.118371
C19: 14 | D19: =HLOOKUP(C19,'Dados Gerais'!$D$5:$BX$10,6) -> Operador de mídia audiovisual - 5 dias | E19: =HLOOKUP(C19,'Dados Gerais'!$D$5:$BX$14,10) -> 7 | F19: ='14'!$E$115 -> 9872.418493 | G19: 0 | H19: 9872.418493 | I19: 69106.92945
C20: 15 | D20: =HLOOKUP(C20,'Dados Gerais'!$D$5:$BX$10,6) -> Operador de câmera - 5 dias | E20: =HLOOKUP(C20,'Dados Gerais'!$D$5:$BX$14,10) -> 11 | F20: ='15'!$E$115 -> 9245.824226 | G20: 0 | H20: 9245.824226 | I20: 101704.0665
C21: 16 | D21: =HLOOKUP(C21,'Dados Gerais'!$D$5:$BX$10,6) -> Operador de câmera - 3 dias | E21: =HLOOKUP(C21,'Dados Gerais'!$D$5:$BX$14,10) -> 4 | F21: ='16'!$E$115 -> 5728.888752 | G21: 0 | H21: 5728.888752 | I21: 22915.55501
C22: 17 | D22: =HLOOKUP(C22,'Dados Gerais'!$D$5:$BX$10,6) -> Operador de câmera UPE - 5 dias | E22: =HLOOKUP(C22,'Dados Gerais'!$D$5:$BX$14,10) -> 7 | F22: ='17'!$E$115 -> 11794.15159 | G22: 0 | H22: =G22+F22 -> 11794.15159 | I22: =H22*E22 -> 82559.06114
C23: 18 | D23: =HLOOKUP(C23,'Dados Gerais'!$D$5:$BX$10,6) -> Operador de câmera UPE - 4 dias | E23: =HLOOKUP(C23,'Dados Gerais'!$D$5:$BX$14,10) -> 3 | F23: ='18'!$E$115 -> 9518.476645 | G23: 0 | H23: 9518.476645 | I23: 28555.42993
C24: 19 | D24: =HLOOKUP(C24,'Dados Gerais'!$D$5:$BX$10,6) -> Operador de câmera UPE - 3 dias | E24: =HLOOKUP(C24,'Dados Gerais'!$D$5:$BX$14,10) -> 3 | F24: ='19'!$E$115 -> 7242.789439 | G24: 0 | H24: 7242.789439 | I24: 21728.36832
C25: 20 | D25: =HLOOKUP(C25,'Dados Gerais'!$D$5:$BX$10,6) -> Operador de controle mestre - rádio - 5 dias | E25: =HLOOKUP(C25,'Dados Gerais'!$D$5:$BX$14,10) -> 3 | F25: ='20'!$E$115 -> 10059.96893 | G25: 0 | H25: 10059.96893 | I25: 30179.9068
C26: 21 | D26: =HLOOKUP(C26,'Dados Gerais'!$D$5:$BX$10,6) -> Operador de controle mestre - rádio - 4 dias | E26: =HLOOKUP(C26,'Dados Gerais'!$D$5:$BX$14,10) -> 2 | F26: ='21'!$E$115 -> 8094.838975 | G26: 0 | H26: 8094.838975 | I26: 16189.67795
C27: 22 | D27: =HLOOKUP(C27,'Dados Gerais'!$D$5:$BX$10,6) -> Operador de máquina de caracteres - 5 dias | E27: =HLOOKUP(C27,'Dados Gerais'!$D$5:$BX$14,10) -> 6 | F27: ='22'!$E$115 -> 8211.48336 | G27: 0 | H27: 8211.48336 | I27: 49268.90016
C28: 23 | D28: =HLOOKUP(C28,'Dados Gerais'!$D$5:$BX$10,6) -> Operador de máquina de caracteres - 3 dias | E28: =HLOOKUP(C28,'Dados Gerais'!$D$5:$BX$14,10) -> 3 | F28: ='23'!$E$115 -> 5020.600509 | G28: 0 | H28: 5020.600509 | I28: 15061.80153
C29: 24 | D29: =HLOOKUP(C29,'Dados Gerais'!$D$5:$BX$10,6) -> Operador de videoteipe - 5 dias | E29: =HLOOKUP(C29,'Dados Gerais'!$D$5:$BX$14,10) -> 5 | F29: ='24'!$E$115 -> 7279.296741 | G29: 0 | H29: 7279.296741 | I29: 36396.4837
C30: 25 | D30: =HLOOKUP(C30,'Dados Gerais'!$D$5:$BX$10,6) -> Operador de videoteipe - 3 dias | E30: =HLOOKUP(C30,'Dados Gerais'!$D$5:$BX$14,10) -> 1 | F30: ='25'!$E$115 -> 4461.283634 | G30: 0 | H30: 4461.283634 | I30: 4461.283634
C31: 26 | D31: =HLOOKUP(C31,'Dados Gerais'!$D$5:$BX$10,6) -> Sonoplasta rádio - 5 dias | E31: =HLOOKUP(C31,'Dados Gerais'!$D$5:$BX$14,10) -> 8 | F31: ='26'!$E$115 -> 10259.58223 | G31: 0 | H31: 10259.58223 | I31: 82076.65785
C32: 27 | D32: =HLOOKUP(C32,'Dados Gerais'!$D$5:$BX$10,6) -> Sonoplasta TV - 5 dias | E32: =HLOOKUP(C32,'Dados Gerais'!$D$5:$BX$14,10) -> 2 | F32: ='27'!$E$115 -> 10259.58223 | G32: 0 | H32: 10259.58223 | I32: 20519.16446
C33: 28 | D33: =HLOOKUP(C33,'Dados Gerais'!$D$5:$BX$10,6) -> Supervisor de Operações - 5 dias | E33: =HLOOKUP(C33,'Dados Gerais'!$D$5:$BX$14,10) -> 4 | F33: ='28'!$E$115 -> 18816.74426 | G33: 0 | H33: 18816.74426 | I33: 75266.97704
C34: 29 | D34: =HLOOKUP(C34,'Dados Gerais'!$D$5:$BX$10,6) -> Supervisor técnico operacional - 5 dias | E34: =HLOOKUP(C34,'Dados Gerais'!$D$5:$BX$14,10) -> 1 | F34: ='29'!$E$115 -> 26757.9038 | G34: 0 | H34: 26757.9038 | I34: 26757.9038
C35: 30 | D35: =HLOOKUP(C35,'Dados Gerais'!$D$5:$BX$10,6) -> Técnico de sistemas audiovisuais - 5 dias | E35: =HLOOKUP(C35,'Dados Gerais'!$D$5:$BX$14,10) -> 3 | F35: ='30'!$E$115 -> 10111.30963 | G35: 0 | H35: 10111.30963 | I35: 30333.92888
C36: 31 | D36: =HLOOKUP(C36,'Dados Gerais'!$D$5:$BX$10,6) -> Técnico de sistemas audiovisuais - 4 dias | E36: =HLOOKUP(C36,'Dados Gerais'!$D$5:$BX$14,10) -> 3 | F36: ='31'!$E$115 -> 8135.894366 | G36: 0 | H36: 8135.894366 | I36: 24407.6831
C37: 32 | D37: =HLOOKUP(C37,'Dados Gerais'!$D$5:$BX$10,6) -> Técnico de sistemas audiovisuais - 3 dias | E37: =HLOOKUP(C37,'Dados Gerais'!$D$5:$BX$14,10) -> 2 | F37: ='32'!$E$115 -> 6160.503624 | G37: 0 | H37: 6160.503624 | I37: 12321.00725
C38: 33 | D38: =HLOOKUP(C38,'Dados Gerais'!$D$5:$BX$10,6) -> Arquivista de teipe - 5 dias | E38: =HLOOKUP(C38,'Dados Gerais'!$D$5:$BX$14,10) -> 8 | F38: ='33'!$E$115 -> 8694.132449 | G38: 0 | H38: 8694.132449 | I38: 69553.05959
C39: 34 | D39: =HLOOKUP(C39,'Dados Gerais'!$D$5:$BX$10,6) -> Auxiliar de informação, documentação e pesquisa audiovisual - 5 dias | E39: =HLOOKUP(C39,'Dados Gerais'!$D$5:$BX$14,10) -> 1 | F39: ='34'!$E$115 -> 7246.270995 | G39: 0 | H39: 7246.270995 | I39: 7246.270995
C40: 35 | D40: =HLOOKUP(C40,'Dados Gerais'!$D$5:$BX$10,6) -> Revisor especialista em informação, documentação e pesquisa audiovisual - 5 dias | E40: =HLOOKUP(C40,'Dados Gerais'!$D$5:$BX$14,10) -> 11 | F40: ='35'!$E$115 -> 11014.39338 | G40: 0 | H40: 11014.39338 | I40: 121158.3272
C41: 36 | D41: =HLOOKUP(C41,'Dados Gerais'!$D$5:$BX$10,6) -> Revisor especialista em informação, documentação e pesquisa audiovisual - 4 dias | E41: =HLOOKUP(C41,'Dados Gerais'!$D$5:$BX$14,10) -> 4 | F41: ='36'!$E$115 -> 8850.814728 | G41: 0 | H41: 8850.814728 | I41: 35403.25891
C42: 37 | D42: =HLOOKUP(C42,'Dados Gerais'!$D$5:$BX$10,6) -> Revisor especialista chefe - 5 dias | E42: =HLOOKUP(C42,'Dados Gerais'!$D$5:$BX$14,10) -> 2 | F42: ='37'!$E$115 -> 14939.79873 | G42: 0 | H42: 14939.79873 | I42: 29879.59747
C43: 38 | D43: =HLOOKUP(C43,'Dados Gerais'!$D$5:$BX$10,6) -> Supervisor técnico - 5 dias | E43: =HLOOKUP(C43,'Dados Gerais'!$D$5:$BX$14,10) -> 1 | F43: ='38'!$E$115 -> 19356.16478 | G43: 0 | H43: 19356.16478 | I43: 19356.16478
C44: 39 | D44: =HLOOKUP(C44,'Dados Gerais'!$D$5:$BX$10,6) -> Técnico de manutenção - 5 dias | E44: =HLOOKUP(C44,'Dados Gerais'!$D$5:$BX$14,10) -> 4 | F44: ='39'!$E$115 -> 13807.15295 | G44: 0 | H44: 13807.15295 | I44: 55228.61178
C45: 40 | D45: =HLOOKUP(C45,'Dados Gerais'!$D$5:$BX$10,6) -> Assistente de pesquisa e opinião - 5 dias | E45: =HLOOKUP(C45,'Dados Gerais'!$D$5:$BX$14,10) -> 1 | F45: ='40'!$E$115 -> 8754.520283 | G45: 0 | H45: 8754.520283 | I45: 8754.520283
C46: 41 | D46: =HLOOKUP(C46,'Dados Gerais'!$D$5:$BX$10,6) -> Arranjador - 5 dias | E46: =HLOOKUP(C46,'Dados Gerais'!$D$5:$BX$14,10) -> 1 | F46: ='41'!$E$115 -> 7335.295853 | G46: 0 | H46: 7335.295853 | I46: 7335.295853
C47: 42 | D47: =HLOOKUP(C47,'Dados Gerais'!$D$5:$BX$10,6) -> Comunicador - 5 dias | E47: =HLOOKUP(C47,'Dados Gerais'!$D$5:$BX$14,10) -> 6 | F47: ='42'!$E$115 -> 16088.07474 | G47: 0 | H47: 16088.07474 | I47: 96528.44847
C48: 43 | D48: =HLOOKUP(C48,'Dados Gerais'!$D$5:$BX$10,6) -> Controlador de programação - 5 dias | E48: =HLOOKUP(C48,'Dados Gerais'!$D$5:$BX$14,10) -> 9 | F48: ='43'!$E$115 -> 12577.59976 | G48: 0 | H48: 12577.59976 | I48: 113198.3979
C49: 44 | D49: =HLOOKUP(C49,'Dados Gerais'!$D$5:$BX$10,6) -> Coordenador de programação musical - 5 dias | E49: =HLOOKUP(C49,'Dados Gerais'!$D$5:$BX$14,10) -> 1 | F49: ='44'!$E$115 -> 12577.59976 | G49: 0 | H49: 12577.59976 | I49: 12577.59976
C50: 45 | D50: =HLOOKUP(C50,'Dados Gerais'!$D$5:$BX$10,6) -> Diretor de fotografia / operador de câmera - 4 dias | E50: =HLOOKUP(C50,'Dados Gerais'!$D$5:$BX$14,10) -> 2 | F50: ='45'!$E$115 -> 18149.71981 | G50: 0 | H50: 18149.71981 | I50: 36299.43962
C51: 46 | D51: =HLOOKUP(C51,'Dados Gerais'!$D$5:$BX$10,6) -> Diretor de programação - 5 dias | E51: =HLOOKUP(C51,'Dados Gerais'!$D$5:$BX$14,10) -> 3 | F51: ='46'!$E$115 -> 21948.12192 | G51: 0 | H51: 21948.12192 | I51: 65844.36577
C52: 47 | D52: =HLOOKUP(C52,'Dados Gerais'!$D$5:$BX$10,6) -> Intérprete de libras de TV - 5 dias | E52: =HLOOKUP(C52,'Dados Gerais'!$D$5:$BX$14,10) -> 4 | F52: ='47'!$E$115 -> 10426.03493 | G52: 0 | H52: =G52+F52 -> 10426.03493 | I52: =H52*E52 -> 41704.13973
C53: 48 | D53: =HLOOKUP(C53,'Dados Gerais'!$D$5:$BX$10,6) -> Intérprete de libras de TV - 4 dias | E53: =HLOOKUP(C53,'Dados Gerais'!$D$5:$BX$14,10) -> 2 | F53: ='48'!$E$115 -> 8390.329911 | G53: 0 | H53: 8390.329911 | I53: 16780.65982
C54: 49 | D54: =HLOOKUP(C54,'Dados Gerais'!$D$5:$BX$10,6) -> Locutor noticiarista - 5 dias | E54: =HLOOKUP(C54,'Dados Gerais'!$D$5:$BX$14,10) -> 3 | F54: ='49'!$E$115 -> 11969.92113 | G54: 0 | H54: 11969.92113 | I54: 35909.7634
C55: 50 | D55: =HLOOKUP(C55,'Dados Gerais'!$D$5:$BX$10,6) -> Operador de controle mestre - 5 dias | E55: =HLOOKUP(C55,'Dados Gerais'!$D$5:$BX$14,10) -> 3 | F55: ='50'!$E$115 -> 10059.96893 | G55: 0 | H55: 10059.96893 | I55: 30179.9068
C56: 51 | D56: =HLOOKUP(C56,'Dados Gerais'!$D$5:$BX$10,6) -> Videomaker A - 5 dias | E56: =HLOOKUP(C56,'Dados Gerais'!$D$5:$BX$14,10) -> 1 | F56: ='51'!$E$115 -> 11498.56994 | G56: 0 | H56: 11498.56994 | I56: 11498.56994
C57: 52 | D57: =HLOOKUP(C57,'Dados Gerais'!$D$5:$BX$10,6) -> Videomaker B - 5 dias | E57: =HLOOKUP(C57,'Dados Gerais'!$D$5:$BX$14,10) -> 1 | F57: ='52'!$E$115 -> 9865.976388 | G57: 0 | H57: 9865.976388 | I57: 9865.976388
C58: 53 | D58: =HLOOKUP(C58,'Dados Gerais'!$D$5:$BX$10,6) -> Diretor de artes - 5 dias | E58: =HLOOKUP(C58,'Dados Gerais'!$D$5:$BX$14,10) -> 1 | F58: ='53'!$E$115 -> 19609.76671 | G58: 0 | H58: 19609.76671 | I58: 19609.76671
C59: 54 | D59: =HLOOKUP(C59,'Dados Gerais'!$D$5:$BX$10,6) -> Editor de mídia audiovisual chefe - 5 dias | E59: =HLOOKUP(C59,'Dados Gerais'!$D$5:$BX$14,10) -> 2 | F59: ='54'!$E$115 -> 15982.59831 | G59: 0 | H59: 15982.59831 | I59: 31965.19662
C60: 55 | D60: =HLOOKUP(C60,'Dados Gerais'!$D$5:$BX$10,6) -> Editor de mídia audiovisual A - 5 dias | E60: =HLOOKUP(C60,'Dados Gerais'!$D$5:$BX$14,10) -> 3 | F60: ='55'!$E$115 -> 13870.89975 | G60: 0 | H60: 13870.89975 | I60: 41612.69924
C61: 56 | D61: =HLOOKUP(C61,'Dados Gerais'!$D$5:$BX$10,6) -> Editor de mídia audiovisual B - 5 dias | E61: =HLOOKUP(C61,'Dados Gerais'!$D$5:$BX$14,10) -> 17 | F61: ='56'!$E$115 -> 11759.23796 | G61: 0 | H61: 11759.23796 | I61: 199907.0453
C62: 57 | D62: =HLOOKUP(C62,'Dados Gerais'!$D$5:$BX$10,6) -> Editor de mídia audiovisual B - 3 dias | E62: =HLOOKUP(C62,'Dados Gerais'!$D$5:$BX$14,10) -> 1 | F62: ='57'!$E$115 -> 7134.137922 | G62: 0 | H62: 7134.137922 | I62: 7134.137922
C63: 58 | D63: =HLOOKUP(C63,'Dados Gerais'!$D$5:$BX$10,6) -> Diretor de produção - 5 dias | E63: =HLOOKUP(C63,'Dados Gerais'!$D$5:$BX$14,10) -> 4 | F63: ='58'!$E$115 -> 21948.12192 | G63: 0 | H63: 21948.12192 | I63: 87792.4877
C64: 59 | D64: =HLOOKUP(C64,'Dados Gerais'!$D$5:$BX$10,6) -> Diretor de programas - 5 dias | E64: =HLOOKUP(C64,'Dados Gerais'!$D$5:$BX$14,10) -> 10 | F64: ='59'!$E$115 -> 22167.34962 | G64: 0 | H64: 22167.34962 | I64: 221673.4962
C65: 60 | D65: =HLOOKUP(C65,'Dados Gerais'!$D$5:$BX$10,6) -> Diretor de programas - 3 dias | E65: =HLOOKUP(C65,'Dados Gerais'!$D$5:$BX$14,10) -> 2 | F65: ='60'!$E$115 -> 13466.70826 | G65: 0 | H65: 13466.70826 | I65: 26933.41651
C66: 61 | D66: =HLOOKUP(C66,'Dados Gerais'!$D$5:$BX$10,6) -> Maquilador - 5 dias | E66: =HLOOKUP(C66,'Dados Gerais'!$D$5:$BX$14,10) -> 2 | F66: ='61'!$E$115 -> 8762.500892 | G66: 0 | H66: 8762.500892 | I66: 17525.00178
C67: 62 | D67: =HLOOKUP(C67,'Dados Gerais'!$D$5:$BX$10,6) -> Produtor de rádio, TV e mídias digitais - 5 dias | E67: =HLOOKUP(C67,'Dados Gerais'!$D$5:$BX$14,10) -> 41 | F67: ='62'!$E$115 -> 16085.43906 | G67: 0 | H67: 16085.43906 | I67: 659503.0015
C68: 63 | D68: =HLOOKUP(C68,'Dados Gerais'!$D$5:$BX$10,6) -> Produtor de rádio, TV e mídias digitais - 4 dias | E68: =HLOOKUP(C68,'Dados Gerais'!$D$5:$BX$14,10) -> 10 | F68: ='63'!$E$115 -> 12951.49926 | G68: 0 | H68: 12951.49926 | I68: 129514.9926
C69: 64 | D69: =HLOOKUP(C69,'Dados Gerais'!$D$5:$BX$10,6) -> Produtor de rádio, TV e mídias digitais - 3 dias | E69: =HLOOKUP(C69,'Dados Gerais'!$D$5:$BX$14,10) -> 7 | F69: ='64'!$E$115 -> 9817.559468 | G69: 0 | H69: 9817.559468 | I69: 68722.91628
C70: 65 | D70: =HLOOKUP(C70,'Dados Gerais'!$D$5:$BX$10,6) -> Secretária de redação - 5 dias | E70: =HLOOKUP(C70,'Dados Gerais'!$D$5:$BX$14,10) -> 5 | F70: ='65'!$E$115 -> 7508.723926 | G70: 0 | H70: 7508.723926 | I70: 37543.61963
D72: TOTAL MENSAL - SALÁRIOS | I72: =SUM(I6:I71) -> 3545370.923
B75: RESUMO LOTE 1- TOTAIS MENSAIS - DESTAQUE DO 13º SALÁRIO
C78: ITEM | D78: POSTO DE TRABALHO | E78: QUANTIDADE | F78: PREÇO UNIT (SEM O 13º) | G78: DESTAQUE DO 13º | H78: PREÇO POR EMPREGADO | I78: PREÇO TOTAL (MENSAL)
C79: 1 | D79: =HLOOKUP(C79,'Dados Gerais'!$D$5:$BX$10,6) -> Almoxarife Técnico - 5 dias | E79: =HLOOKUP(C79,'Dados Gerais'!$D$5:$BX$14,10) -> 2 | F79: 0 | G79: ='1'!$E$116 -> 793.49 | H79: =G79+F79 -> 793.49 | I79: =H79*E79 -> 1586.98
C80: 2 | D80: =HLOOKUP(C80,'Dados Gerais'!$D$5:$BX$10,6) -> Almoxarife Técnico - 4 dias | E80: =HLOOKUP(C80,'Dados Gerais'!$D$5:$BX$14,10) -> 2 | F80: 0 | G80: ='2'!$E$116 -> 634.8 | H80: =G80+F80 -> 634.8 | I80: =H80*E80 -> 1269.6
C81: 3 | D81: =HLOOKUP(C81,'Dados Gerais'!$D$5:$BX$10,6) -> Assistente de operações audiovisuais - 5 dias | E81: =HLOOKUP(C81,'Dados Gerais'!$D$5:$BX$14,10) -> 8 | F81: 0 | G81: ='3'!$E$116 -> 410.69 | H81: 410.69 | I81: 3285.52
C82: 4 | D82: =HLOOKUP(C82,'Dados Gerais'!$D$5:$BX$10,6) -> Assistente de operações audiovisuais - 3 dias | E82: =HLOOKUP(C82,'Dados Gerais'!$D$5:$BX$14,10) -> 2 | F82: 0 | G82: ='4'!$E$116 -> 246.41 | H82: 246.41 | I82: 492.82
C83: 5 | D83: =HLOOKUP(C83,'Dados Gerais'!$D$5:$BX$10,6) -> Assistente de operações audiovisuais UPJ - A - 4 dias | E83: =HLOOKUP(C83,'Dados Gerais'!$D$5:$BX$14,10) -> 2 | F83: 0 | G83: ='5'!$E$116 -> 394.26 | H83: 394.26 | I83: 788.52
C84: 6 | D84: =HLOOKUP(C84,'Dados Gerais'!$D$5:$BX$10,6) -> Assistente de operações audiovisuais UPJ - B - 5 dias | E84: =HLOOKUP(C84,'Dados Gerais'!$D$5:$BX$14,10) -> 7 | F84: 0 | G84: ='6'!$E$116 -> 410.69 | H84: 410.69 | I84: 2874.83
C85: 7 | D85: =HLOOKUP(C85,'Dados Gerais'!$D$5:$BX$10,6) -> Assistente de operações audiovisuais UPJ - B - 4 dias | E85: =HLOOKUP(C85,'Dados Gerais'!$D$5:$BX$14,10) -> 3 | F85: 0 | G85: ='7'!$E$116 -> 328.55 | H85: 328.55 | I85: 985.65
C86: 8 | D86: =HLOOKUP(C86,'Dados Gerais'!$D$5:$BX$10,6) -> Assistente de operações audiovisuais UPJ - B - 3 dias | E86: =HLOOKUP(C86,'Dados Gerais'!$D$5:$BX$14,10) -> 3 | F86: 0 | G86: ='8'!$E$116 -> 246.41 | H86: 246.41 | I86: 739.23
C87: 9 | D87: =HLOOKUP(C87,'Dados Gerais'!$D$5:$BX$10,6) -> Diretor de imagens - 5 dias | E87: =HLOOKUP(C87,'Dados Gerais'!$D$5:$BX$14,10) -> 9 | F87: 0 | G87: ='9'!$E$116 -> 724.89 | H87: 724.89 | I87: 6524.01
C88: 10 | D88: =HLOOKUP(C88,'Dados Gerais'!$D$5:$BX$10,6) -> Diretor de imagens - 3 dias | E88: =HLOOKUP(C88,'Dados Gerais'!$D$5:$BX$14,10) -> 2 | F88: 0 | G88: ='10'!$E$116 -> 434.94 | H88: 434.94 | I88: 869.88
C89: 11 | D89: =HLOOKUP(C89,'Dados Gerais'!$D$5:$BX$10,6) -> Gerente de projetos em TV digital - 5 dias | E89: =HLOOKUP(C89,'Dados Gerais'!$D$5:$BX$14,10) -> 4 | F89: 0 | G89: ='11'!$E$116 -> 1109.45 | H89: 1109.45 | I89: 4437.8
C90: 12 | D90: =HLOOKUP(C90,'Dados Gerais'!$D$5:$BX$10,6) -> Iluminador - 5 dias | E90: =HLOOKUP(C90,'Dados Gerais'!$D$5:$BX$14,10) -> 2 | F90: 0 | G90: ='12'!$E$116 -> 459.49 | H90: 459.49 | I90: 918.98
C91: 13 | D91: =HLOOKUP(C91,'Dados Gerais'!$D$5:$BX$10,6) -> Iluminador - 4dias | E91: =HLOOKUP(C91,'Dados Gerais'!$D$5:$BX$14,10) -> 1 | F91: 0 | G91: ='13'!$E$116 -> 367.6 | H91: 367.6 | I91: 367.6
C92: 14 | D92: =HLOOKUP(C92,'Dados Gerais'!$D$5:$BX$10,6) -> Operador de mídia audiovisual - 5 dias | E92: =HLOOKUP(C92,'Dados Gerais'!$D$5:$BX$14,10) -> 7 | F92: 0 | G92: ='14'!$E$116 -> 602.24 | H92: 602.24 | I92: 4215.68
C93: 15 | D93: =HLOOKUP(C93,'Dados Gerais'!$D$5:$BX$10,6) -> Operador de câmera - 5 dias | E93: =HLOOKUP(C93,'Dados Gerais'!$D$5:$BX$14,10) -> 11 | F93: 0 | G93: ='15'!$E$116 -> 540.55 | H93: 540.55 | I93: 5946.05
C94: 16 | D94: =HLOOKUP(C94,'Dados Gerais'!$D$5:$BX$10,6) -> Operador de câmera - 3 dias | E94: =HLOOKUP(C94,'Dados Gerais'!$D$5:$BX$14,10) -> 4 | F94: 0 | G94: ='16'!$E$116 -> 324.34 | H94: 324.34 | I94: 1297.36
C95: 17 | D95: =HLOOKUP(C95,'Dados Gerais'!$D$5:$BX$10,6) -> Operador de câmera UPE - 5 dias | E95: =HLOOKUP(C95,'Dados Gerais'!$D$5:$BX$14,10) -> 7 | F95: 0 | G95: ='17'!$E$116 -> 723.55 | H95: 723.55 | I95: 5064.85
C96: 18 | D96: =HLOOKUP(C96,'Dados Gerais'!$D$5:$BX$10,6) -> Operador de câmera UPE - 4 dias | E96: =HLOOKUP(C96,'Dados Gerais'!$D$5:$BX$14,10) -> 3 | F96: 0 | G96: ='18'!$E$116 -> 578.83 | H96: 578.83 | I96: 1736.49
C97: 19 | D97: =HLOOKUP(C97,'Dados Gerais'!$D$5:$BX$10,6) -> Operador de câmera UPE - 3 dias | E97: =HLOOKUP(C97,'Dados Gerais'!$D$5:$BX$14,10) -> 3 | F97: 0 | G97: ='19'!$E$116 -> 434.14 | H97: 434.14 | I97: 1302.42
C98: 20 | D98: =HLOOKUP(C98,'Dados Gerais'!$D$5:$BX$10,6) -> Operador de controle mestre - rádio - 5 dias | E98: =HLOOKUP(C98,'Dados Gerais'!$D$5:$BX$14,10) -> 3 | F98: 0 | G98: ='20'!$E$116 -> 615.92 | H98: 615.92 | I98: 1847.76
C99: 21 | D99: =HLOOKUP(C99,'Dados Gerais'!$D$5:$BX$10,6) -> Operador de controle mestre - rádio - 4 dias | E99: =HLOOKUP(C99,'Dados Gerais'!$D$5:$BX$14,10) -> 2 | F99: 0 | G99: ='21'!$E$116 -> 492.74 | H99: 492.74 | I99: 985.48
C100: 22 | D100: =HLOOKUP(C100,'Dados Gerais'!$D$5:$BX$10,6) -> Operador de máquina de caracteres - 5 dias | E100: =HLOOKUP(C100,'Dados Gerais'!$D$5:$BX$14,10) -> 6 | F100: 0 | G100: ='22'!$E$116 -> 481.09 | H100: 481.09 | I100: 2886.54
C101: 23 | D101: =HLOOKUP(C101,'Dados Gerais'!$D$5:$BX$10,6) -> Operador de máquina de caracteres - 3 dias | E101: =HLOOKUP(C101,'Dados Gerais'!$D$5:$BX$14,10) -> 3 | F101: 0 | G101: ='23'!$E$116 -> 288.66 | H101: 288.66 | I101: 865.98
C102: 24 | D102: =HLOOKUP(C102,'Dados Gerais'!$D$5:$BX$10,6) -> Operador de videoteipe - 5 dias | E102: =HLOOKUP(C102,'Dados Gerais'!$D$5:$BX$14,10) -> 5 | F102: 0 | G102: ='24'!$E$116 -> 413.1 | H102: 413.1 | I102: 2065.5
C103: 25 | D103: =HLOOKUP(C103,'Dados Gerais'!$D$5:$BX$10,6) -> Operador de videoteipe - 3 dias | E103: =HLOOKUP(C103,'Dados Gerais'!$D$5:$BX$14,10) -> 1 | F103: 0 | G103: ='25'!$E$116 -> 247.86 | H103: 247.86 | I103: 247.86
C104: 26 | D104: =HLOOKUP(C104,'Dados Gerais'!$D$5:$BX$10,6) -> Sonoplasta rádio - 5 dias | E104: =HLOOKUP(C104,'Dados Gerais'!$D$5:$BX$14,10) -> 8 | F104: 0 | G104: ='26'!$E$116 -> 614.48 | H104: 614.48 | I104: 4915.84
C105: 27 | D105: =HLOOKUP(C105,'Dados Gerais'!$D$5:$BX$10,6) -> Sonoplasta TV - 5 dias | E105: =HLOOKUP(C105,'Dados Gerais'!$D$5:$BX$14,10) -> 2 | F105: 0 | G105: ='27'!$E$116 -> 614.48 | H105: 614.48 | I105: 1228.96
C106: 28 | D106: =HLOOKUP(C106,'Dados Gerais'!$D$5:$BX$10,6) -> Supervisor de Operações - 5 dias | E106: =HLOOKUP(C106,'Dados Gerais'!$D$5:$BX$14,10) -> 4 | F106: 0 | G106: ='28'!$E$116 -> 1213.35 | H106: 1213.35 | I106: 4853.4
C107: 29 | D107: =HLOOKUP(C107,'Dados Gerais'!$D$5:$BX$10,6) -> Supervisor técnico operacional - 5 dias | E107: =HLOOKUP(C107,'Dados Gerais'!$D$5:$BX$14,10) -> 1 | F107: 0 | G107: ='29'!$E$116 -> 1767.22 | H107: 1767.22 | I107: 1767.22
C108: 30 | D108: =HLOOKUP(C108,'Dados Gerais'!$D$5:$BX$10,6) -> Técnico de sistemas audiovisuais - 5 dias | E108: =HLOOKUP(C108,'Dados Gerais'!$D$5:$BX$14,10) -> 3 | F108: 0 | G108: ='30'!$E$116 -> 619.67 | H108: 619.67 | I108: 1859.01
C109: 31 | D109: =HLOOKUP(C109,'Dados Gerais'!$D$5:$BX$10,6) -> Técnico de sistemas audiovisuais - 4 dias | E109: =HLOOKUP(C109,'Dados Gerais'!$D$5:$BX$14,10) -> 3 | F109: 0 | G109: ='31'!$E$116 -> 495.73 | H109: 495.73 | I109: 1487.19
C110: 32 | D110: =HLOOKUP(C110,'Dados Gerais'!$D$5:$BX$10,6) -> Técnico de sistemas audiovisuais - 3 dias | E110: =HLOOKUP(C110,'Dados Gerais'!$D$5:$BX$14,10) -> 2 | F110: 0 | G110: ='32'!$E$116 -> 371.8 | H110: 371.8 | I110: 743.6
C111: 33 | D111: =HLOOKUP(C111,'Dados Gerais'!$D$5:$BX$10,6) -> Arquivista de teipe - 5 dias | E111: =HLOOKUP(C111,'Dados Gerais'!$D$5:$BX$14,10) -> 8 | F111: 0 | G111: ='33'!$E$116 -> 516.3 | H111: 516.3 | I111: 4130.4
C112: 34 | D112: =HLOOKUP(C112,'Dados Gerais'!$D$5:$BX$10,6) -> Auxiliar de informação, documentação e pesquisa audiovisual - 5 dias | E112: =HLOOKUP(C112,'Dados Gerais'!$D$5:$BX$14,10) -> 1 | F112: 0 | G112: ='34'!$E$116 -> 410.69 | H112: 410.69 | I112: 410.69
C113: 35 | D113: =HLOOKUP(C113,'Dados Gerais'!$D$5:$BX$10,6) -> Revisor especialista em informação, documentação e pesquisa audiovisual - 5 dias | E113: =HLOOKUP(C113,'Dados Gerais'!$D$5:$BX$14,10) -> 11 | F113: 0 | G113: ='35'!$E$116 -> 684.46 | H113: 684.46 | I113: 7529.06
C114: 36 | D114: =HLOOKUP(C114,'Dados Gerais'!$D$5:$BX$10,6) -> Revisor especialista em informação, documentação e pesquisa audiovisual - 4 dias | E114: =HLOOKUP(C114,'Dados Gerais'!$D$5:$BX$14,10) -> 4 | F114: 0 | G114: ='36'!$E$116 -> 547.56 | H114: 547.56 | I114: 2190.24
C115: 37 | D115: =HLOOKUP(C115,'Dados Gerais'!$D$5:$BX$10,6) -> Revisor especialista chefe - 5 dias | E115: =HLOOKUP(C115,'Dados Gerais'!$D$5:$BX$14,10) -> 2 | F115: 0 | G115: ='37'!$E$116 -> 958.24 | H115: 958.24 | I115: 1916.48
C116: 38 | D116: =HLOOKUP(C116,'Dados Gerais'!$D$5:$BX$10,6) -> Supervisor técnico - 5 dias | E116: =HLOOKUP(C116,'Dados Gerais'!$D$5:$BX$14,10) -> 1 | F116: 0 | G116: ='38'!$E$116 -> 1262.3 | H116: 1262.3 | I116: 1262.3
C117: 39 | D117: =HLOOKUP(C117,'Dados Gerais'!$D$5:$BX$10,6) -> Técnico de manutenção - 5 dias | E117: =HLOOKUP(C117,'Dados Gerais'!$D$5:$BX$14,10) -> 4 | F117: 0 | G117: ='39'!$E$116 -> 866.91 | H117: 866.91 | I117: 3467.64
C118: 40 | D118: =HLOOKUP(C118,'Dados Gerais'!$D$5:$BX$10,6) -> Assistente de pesquisa e opinião - 5 dias | E118: =HLOOKUP(C118,'Dados Gerais'!$D$5:$BX$14,10) -> 1 | F118: 0 | G118: ='40'!$E$116 -> 520.7 | H118: 520.7 | I118: 520.7
C119: 41 | D119: =HLOOKUP(C119,'Dados Gerais'!$D$5:$BX$10,6) -> Arranjador - 5 dias | E119: =HLOOKUP(C119,'Dados Gerais'!$D$5:$BX$14,10) -> 1 | F119: 0 | G119: ='41'!$E$116 -> 455.88 | H119: 455.88 | I119: 455.88
C120: 42 | D120: =HLOOKUP(C120,'Dados Gerais'!$D$5:$BX$10,6) -> Comunicador - 5 dias | E120: =HLOOKUP(C120,'Dados Gerais'!$D$5:$BX$14,10) -> 6 | F120: 0 | G120: ='42'!$E$116 -> 1023.04 | H120: 1023.04 | I120: 6138.24
C121: 43 | D121: =HLOOKUP(C121,'Dados Gerais'!$D$5:$BX$10,6) -> Controlador de programação - 5 dias | E121: =HLOOKUP(C121,'Dados Gerais'!$D$5:$BX$14,10) -> 9 | F121: 0 | G121: ='43'!$E$116 -> 793.49 | H121: 793.49 | I121: 7141.41
C122: 44 | D122: =HLOOKUP(C122,'Dados Gerais'!$D$5:$BX$10,6) -> Coordenador de programação musical - 5 dias | E122: =HLOOKUP(C122,'Dados Gerais'!$D$5:$BX$14,10) -> 1 | F122: 0 | G122: ='44'!$E$116 -> 793.49 | H122: 793.49 | I122: 793.49
C123: 45 | D123: =HLOOKUP(C123,'Dados Gerais'!$D$5:$BX$10,6) -> Diretor de fotografia / operador de câmera - 4 dias | E123: =HLOOKUP(C123,'Dados Gerais'!$D$5:$BX$14,10) -> 2 | F123: 0 | G123: ='45'!$E$116 -> 1180.84 | H123: 1180.84 | I123: 2361.68
C124: 46 | D124: =HLOOKUP(C124,'Dados Gerais'!$D$5:$BX$10,6) -> Diretor de programação - 5 dias | E124: =HLOOKUP(C124,'Dados Gerais'!$D$5:$BX$14,10) -> 3 | F124: 0 | G124: ='46'!$E$116 -> 1447.05 | H124: 1447.05 | I124: 4341.15
C125: 47 | D125: =HLOOKUP(C125,'Dados Gerais'!$D$5:$BX$10,6) -> Intérprete de libras de TV - 5 dias | E125: =HLOOKUP(C125,'Dados Gerais'!$D$5:$BX$14,10) -> 4 | F125: 0 | G125: ='47'!$E$116 -> 641.65 | H125: 641.65 | I125: 2566.6
C126: 48 | D126: =HLOOKUP(C126,'Dados Gerais'!$D$5:$BX$10,6) -> Intérprete de libras de TV - 4 dias | E126: =HLOOKUP(C126,'Dados Gerais'!$D$5:$BX$14,10) -> 2 | F126: 0 | G126: ='48'!$E$116 -> 513.31 | H126: 513.31 | I126: 1026.62
C127: 49 | D127: =HLOOKUP(C127,'Dados Gerais'!$D$5:$BX$10,6) -> Locutor noticiarista - 5 dias | E127: =HLOOKUP(C127,'Dados Gerais'!$D$5:$BX$14,10) -> 3 | F127: 0 | G127: ='49'!$E$116 -> 751.11 | H127: 751.11 | I127: 2253.33
C128: 50 | D128: =HLOOKUP(C128,'Dados Gerais'!$D$5:$BX$10,6) -> Operador de controle mestre - 5 dias | E128: =HLOOKUP(C128,'Dados Gerais'!$D$5:$BX$14,10) -> 3 | F128: 0 | G128: ='50'!$E$116 -> 615.92 | H128: 615.92 | I128: 1847.76
C129: 51 | D129: =HLOOKUP(C129,'Dados Gerais'!$D$5:$BX$10,6) -> Videomaker A - 5 dias | E129: =HLOOKUP(C129,'Dados Gerais'!$D$5:$BX$14,10) -> 1 | F129: 0 | G129: ='51'!$E$116 -> 702.93 | H129: 702.93 | I129: 702.93
C130: 52 | D130: =HLOOKUP(C130,'Dados Gerais'!$D$5:$BX$10,6) -> Videomaker B - 5 dias | E130: =HLOOKUP(C130,'Dados Gerais'!$D$5:$BX$14,10) -> 1 | F130: 0 | G130: ='52'!$E$116 -> 585.77 | H130: 585.77 | I130: 585.77
C131: 53 | D131: =HLOOKUP(C131,'Dados Gerais'!$D$5:$BX$10,6) -> Diretor de artes - 5 dias | E131: =HLOOKUP(C131,'Dados Gerais'!$D$5:$BX$14,10) -> 1 | F131: 0 | G131: ='53'!$E$116 -> 1283.95 | H131: 1283.95 | I131: 1283.95
C132: 54 | D132: =HLOOKUP(C132,'Dados Gerais'!$D$5:$BX$10,6) -> Editor de mídia audiovisual chefe - 5 dias | E132: =HLOOKUP(C132,'Dados Gerais'!$D$5:$BX$14,10) -> 2 | F132: 0 | G132: ='54'!$E$116 -> 1030.97 | H132: 1030.97 | I132: 2061.94
C133: 55 | D133: =HLOOKUP(C133,'Dados Gerais'!$D$5:$BX$10,6) -> Editor de mídia audiovisual A - 5 dias | E133: =HLOOKUP(C133,'Dados Gerais'!$D$5:$BX$14,10) -> 3 | F133: 0 | G133: ='55'!$E$116 -> 883.69 | H133: 883.69 | I133: 2651.07
C134: 56 | D134: =HLOOKUP(C134,'Dados Gerais'!$D$5:$BX$10,6) -> Editor de mídia audiovisual B - 5 dias | E134: =HLOOKUP(C134,'Dados Gerais'!$D$5:$BX$14,10) -> 17 | F134: 0 | G134: ='56'!$E$116 -> 736.4 | H134: 736.4 | I134: 12518.8
C135: 57 | D135: =HLOOKUP(C135,'Dados Gerais'!$D$5:$BX$10,6) -> Editor de mídia audiovisual B - 3 dias | E135: =HLOOKUP(C135,'Dados Gerais'!$D$5:$BX$14,10) -> 1 | F135: 0 | G135: ='57'!$E$116 -> 441.85 | H135: 441.85 | I135: 441.85
C136: 58 | D136: =HLOOKUP(C136,'Dados Gerais'!$D$5:$BX$10,6) -> Diretor de produção - 5 dias | E136: =HLOOKUP(C136,'Dados Gerais'!$D$5:$BX$14,10) -> 4 | F136: 0 | G136: ='58'!$E$116 -> 1447.05 | H136: 1447.05 | I136: 5788.2
C137: 59 | D137: =HLOOKUP(C137,'Dados Gerais'!$D$5:$BX$10,6) -> Diretor de programas - 5 dias | E137: =HLOOKUP(C137,'Dados Gerais'!$D$5:$BX$14,10) -> 10 | F137: 0 | G137: ='59'!$E$116 -> 1447.05 | H137: 1447.05 | I137: 14470.5
C138: 60 | D138: =HLOOKUP(C138,'Dados Gerais'!$D$5:$BX$10,6) -> Diretor de programas - 3 dias | E138: =HLOOKUP(C138,'Dados Gerais'!$D$5:$BX$14,10) -> 2 | F138: 0 | G138: ='60'!$E$116 -> 868.23 | H138: 868.23 | I138: 1736.46
C139: 61 | D139: =HLOOKUP(C139,'Dados Gerais'!$D$5:$BX$10,6) -> Maquilador - 5 dias | E139: =HLOOKUP(C139,'Dados Gerais'!$D$5:$BX$14,10) -> 2 | F139: 0 | G139: ='61'!$E$116 -> 521.29 | H139: 521.29 | I139: 1042.58
C140: 62 | D140: =HLOOKUP(C140,'Dados Gerais'!$D$5:$BX$10,6) -> Produtor de rádio, TV e mídias digitais - 5 dias | E140: =HLOOKUP(C140,'Dados Gerais'!$D$5:$BX$14,10) -> 41 | F140: 0 | G140: ='62'!$E$116 -> 1022.85 | H140: 1022.85 | I140: 41936.85
C141: 63 | D141: =HLOOKUP(C141,'Dados Gerais'!$D$5:$BX$10,6) -> Produtor de rádio, TV e mídias digitais - 4 dias | E141: =HLOOKUP(C141,'Dados Gerais'!$D$5:$BX$14,10) -> 10 | F141: 0 | G141: ='63'!$E$116 -> 818.28 | H141: 818.28 | I141: 8182.8
C142: 64 | D142: =HLOOKUP(C142,'Dados Gerais'!$D$5:$BX$10,6) -> Produtor de rádio, TV e mídias digitais - 3 dias | E142: =HLOOKUP(C142,'Dados Gerais'!$D$5:$BX$14,10) -> 7 | F142: 0 | G142: ='64'!$E$116 -> 613.71 | H142: 613.71 | I142: 4295.97
C143: 65 | D143: =HLOOKUP(C143,'Dados Gerais'!$D$5:$BX$10,6) -> Secretária de redação - 5 dias | E143: =HLOOKUP(C143,'Dados Gerais'!$D$5:$BX$14,10) -> 5 | F143: 0 | G143: ='65'!$E$116 -> 429.84 | H143: 429.84 | I143: 2149.2
D145: TOTAL MENSAL - DESTAQUE DO 13º | I145: =SUM(I79:I144) -> 220661.15
B148: RESUMO LOTE 1 - TOTAIS MENSAIS - FATURA ORDINÁRIA TOTAL
C151: ITEM | D151: POSTO DE TRABALHO | E151: QUANTIDADE | F151: PREÇO UNIT (SEM O 13º) | G151: DESTAQUE DO 13º | H151: PREÇO POR EMPREGADO | I151: PREÇO TOTAL (MENSAL)
C152: 1 | D152: =HLOOKUP(C152,'Dados Gerais'!$D$5:$BX$10,6) -> Almoxarife Técnico - 5 dias | E152: =HLOOKUP(C152,'Dados Gerais'!$D$5:$BX$14,10) -> 2 | F152: =F6 -> 12577.59976 | G152: =G79 -> 793.49 | H152: =G152+F152 -> 13371.08976 | I152: =H152*E152 -> 26742.17953 | K152: =I152/$I$218 -> 0.00710089001 | L152: =$I$230*K152 -> 515.8856695
C153: 2 | D153: =HLOOKUP(C153,'Dados Gerais'!$D$5:$BX$10,6) -> Almoxarife Técnico - 4 dias | E153: =HLOOKUP(C153,'Dados Gerais'!$D$5:$BX$14,10) -> 2 | F153: 10101.40435 | G153: 634.8 | H153: =G153+F153 -> 10736.20435 | I153: =H153*E153 -> 21472.40871 | K153: 0.005701600063 | L153: 414.2260705
C154: 3 | D154: =HLOOKUP(C154,'Dados Gerais'!$D$5:$BX$10,6) -> Assistente de operações audiovisuais - 5 dias | E154: =HLOOKUP(C154,'Dados Gerais'!$D$5:$BX$14,10) -> 8 | F154: 7465.498692 | G154: 410.69 | H154: 7876.188692 | I154: 63009.50954 | K154: 0.01673100715 | L154: 1215.52183
C155: 4 | D155: =HLOOKUP(C155,'Dados Gerais'!$D$5:$BX$10,6) -> Assistente de operações audiovisuais - 3 dias | E155: =HLOOKUP(C155,'Dados Gerais'!$D$5:$BX$14,10) -> 2 | F155: 4660.676269 | G155: 246.41 | H155: 4907.086269 | I155: 9814.172538 | K155: 0.002605971576 | L155: 189.3260407
C156: 5 | D156: =HLOOKUP(C156,'Dados Gerais'!$D$5:$BX$10,6) -> Assistente de operações audiovisuais UPJ - A - 4 dias | E156: =HLOOKUP(C156,'Dados Gerais'!$D$5:$BX$14,10) -> 2 | F156: 6963.970743 | G156: 394.26 | H156: 7358.230743 | I156: 14716.46149 | K156: 0.003907683525 | L156: 283.8965155
C157: 6 | D157: =HLOOKUP(C157,'Dados Gerais'!$D$5:$BX$10,6) -> Assistente de operações audiovisuais UPJ - B - 5 dias | E157: =HLOOKUP(C157,'Dados Gerais'!$D$5:$BX$14,10) -> 7 | F157: 7465.498692 | G157: 410.69 | H157: 7876.188692 | I157: 55133.32084 | K157: 0.01463963125 | L157: 1063.581602
C158: 7 | D158: =HLOOKUP(C158,'Dados Gerais'!$D$5:$BX$10,6) -> Assistente de operações audiovisuais UPJ - B - 4 dias | E158: =HLOOKUP(C158,'Dados Gerais'!$D$5:$BX$14,10) -> 3 | F158: 6063.056833 | G158: 328.55 | H158: 6391.606833 | I158: 19174.8205 | K158: 0.005091518109 | L158: 369.9031001
C159: 8 | D159: =HLOOKUP(C159,'Dados Gerais'!$D$5:$BX$10,6) -> Assistente de operações audiovisuais UPJ - B - 3 dias | E159: =HLOOKUP(C159,'Dados Gerais'!$D$5:$BX$14,10) -> 3 | F159: 4660.676269 | G159: 246.41 | H159: 4907.086269 | I159: 14721.25881 | K159: 0.003908957364 | L159: 283.9890611
C160: 9 | D160: =HLOOKUP(C160,'Dados Gerais'!$D$5:$BX$10,6) -> Diretor de imagens - 5 dias | E160: =HLOOKUP(C160,'Dados Gerais'!$D$5:$BX$14,10) -> 9 | F160: 11594.15827 | G160: 724.89 | H160: 12319.04827 | I160: 110871.4344 | K160: =I160/$I$218 -> 0.029439854 | L160: =$I$230*K160 -> 2138.830311
C161: 10 | D161: =HLOOKUP(C161,'Dados Gerais'!$D$5:$BX$10,6) -> Diretor de imagens - 3 dias | E161: =HLOOKUP(C161,'Dados Gerais'!$D$5:$BX$14,10) -> 2 | F161: 7035.10972 | G161: 434.94 | H161: 7470.04972 | I161: 14940.09944 | K161: 0.003967066437 | L161: 288.2107344
C162: 11 | D162: =HLOOKUP(C162,'Dados Gerais'!$D$5:$BX$10,6) -> Gerente de projetos em TV digital - 5 dias | E162: =HLOOKUP(C162,'Dados Gerais'!$D$5:$BX$14,10) -> 4 | F162: 17107.8887 | G162: 1109.45 | H162: 18217.3387 | I162: 72869.35478 | K162: 0.01934910627 | L162: 1405.728947
C163: 12 | D163: =HLOOKUP(C163,'Dados Gerais'!$D$5:$BX$10,6) -> Iluminador - 5 dias | E163: =HLOOKUP(C163,'Dados Gerais'!$D$5:$BX$14,10) -> 2 | F163: 7915.342697 | G163: 459.49 | H163: 8374.832697 | I163: 16749.66539 | K163: 0.00444756313 | L163: 323.1192258
C164: 13 | D164: =HLOOKUP(C164,'Dados Gerais'!$D$5:$BX$10,6) -> Iluminador - 4dias | E164: =HLOOKUP(C164,'Dados Gerais'!$D$5:$BX$14,10) -> 1 | F164: 6379.118371 | G164: 367.6 | H164: 6746.718371 | I164: 6746.718371 | K164: 0.001791465989 | L164: 130.1515204
C165: 14 | D165: =HLOOKUP(C165,'Dados Gerais'!$D$5:$BX$10,6) -> Operador de mídia audiovisual - 5 dias | E165: =HLOOKUP(C165,'Dados Gerais'!$D$5:$BX$14,10) -> 7 | F165: 9872.418493 | G165: 602.24 | H165: 10474.65849 | I165: 73322.60945 | K165: 0.01946945964 | L165: 1414.472722
C166: 15 | D166: =HLOOKUP(C166,'Dados Gerais'!$D$5:$BX$10,6) -> Operador de câmera - 5 dias | E166: =HLOOKUP(C166,'Dados Gerais'!$D$5:$BX$14,10) -> 11 | F166: 9245.824226 | G166: 540.55 | H166: 9786.374226 | I166: 107650.1165 | K166: 0.02858449275 | L166: 2076.687592
C167: 16 | D167: =HLOOKUP(C167,'Dados Gerais'!$D$5:$BX$10,6) -> Operador de câmera - 3 dias | E167: =HLOOKUP(C167,'Dados Gerais'!$D$5:$BX$14,10) -> 4 | F167: 5728.888752 | G167: 324.34 | H167: 6053.228752 | I167: 24212.91501 | K167: 0.006429290706 | L167: 467.0934116
C168: 17 | D168: =HLOOKUP(C168,'Dados Gerais'!$D$5:$BX$10,6) -> Operador de câmera UPE - 5 dias | E168: =HLOOKUP(C168,'Dados Gerais'!$D$5:$BX$14,10) -> 7 | F168: 11794.15159 | G168: 723.55 | H168: 12517.70159 | I168: 87623.91114 | K168: 0.02326690518 | L168: 1690.360354
C169: 18 | D169: =HLOOKUP(C169,'Dados Gerais'!$D$5:$BX$10,6) -> Operador de câmera UPE - 4 dias | E169: =HLOOKUP(C169,'Dados Gerais'!$D$5:$BX$14,10) -> 3 | F169: 9518.476645 | G169: 578.83 | H169: 10097.30664 | I169: 30291.91993 | K169: 0.008043457768 | L169: 584.3640149
C170: 19 | D170: =HLOOKUP(C170,'Dados Gerais'!$D$5:$BX$10,6) -> Operador de câmera UPE - 3 dias | E170: =HLOOKUP(C170,'Dados Gerais'!$D$5:$BX$14,10) -> 3 | F170: 7242.789439 | G170: 434.14 | H170: 7676.929439 | I170: 23030.78832 | K170: 0.006115398878 | L170: 444.2889046
C171: 20 | D171: =HLOOKUP(C171,'Dados Gerais'!$D$5:$BX$10,6) -> Operador de controle mestre - rádio - 5 dias | E171: =HLOOKUP(C171,'Dados Gerais'!$D$5:$BX$14,10) -> 3 | F171: 10059.96893 | G171: 615.92 | H171: 10675.88893 | I171: 32027.6668 | K171: 0.00850435317 | L171: 617.8484559
C172: 21 | D172: =HLOOKUP(C172,'Dados Gerais'!$D$5:$BX$10,6) -> Operador de controle mestre - rádio - 4 dias | E172: =HLOOKUP(C172,'Dados Gerais'!$D$5:$BX$14,10) -> 2 | F172: 8094.838975 | G172: 492.74 | H172: 8587.578975 | I172: 17175.15795 | K172: 0.00456054479 | L172: 331.327439
C173: 22 | D173: =HLOOKUP(C173,'Dados Gerais'!$D$5:$BX$10,6) -> Operador de máquina de caracteres - 5 dias | E173: =HLOOKUP(C173,'Dados Gerais'!$D$5:$BX$14,10) -> 6 | F173: 8211.48336 | G173: 481.09 | H173: 8692.57336 | I173: 52155.44016 | K173: 0.01384891024 | L173: 1006.135051
C174: 23 | D174: =HLOOKUP(C174,'Dados Gerais'!$D$5:$BX$10,6) -> Operador de máquina de caracteres - 3 dias | E174: =HLOOKUP(C174,'Dados Gerais'!$D$5:$BX$14,10) -> 3 | F174: 5020.600509 | G174: 288.66 | H174: 5309.260509 | I174: 15927.78153 | K174: 0.004229327105 | L174: 307.2641939
C175: 24 | D175: =HLOOKUP(C175,'Dados Gerais'!$D$5:$BX$10,6) -> Operador de videoteipe - 5 dias | E175: =HLOOKUP(C175,'Dados Gerais'!$D$5:$BX$14,10) -> 5 | F175: 7279.296741 | G175: 413.1 | H175: 7692.396741 | I175: 38461.9837 | K175: 0.01021286674 | L175: 741.9734129
C176: 25 | D176: =HLOOKUP(C176,'Dados Gerais'!$D$5:$BX$10,6) -> Operador de videoteipe - 3 dias | E176: =HLOOKUP(C176,'Dados Gerais'!$D$5:$BX$14,10) -> 1 | F176: 4461.283634 | G176: 247.86 | H176: 4709.143634 | I176: 4709.143634 | K176: 0.001250425791 | L176: 90.84449208
C177: 26 | D177: =HLOOKUP(C177,'Dados Gerais'!$D$5:$BX$10,6) -> Sonoplasta rádio - 5 dias | E177: =HLOOKUP(C177,'Dados Gerais'!$D$5:$BX$14,10) -> 8 | F177: 10259.58223 | G177: 614.48 | H177: 10874.06223 | I177: 86992.49785 | K177: 0.02309924508 | L177: 1678.179706
C178: 27 | D178: =HLOOKUP(C178,'Dados Gerais'!$D$5:$BX$10,6) -> Sonoplasta TV - 5 dias | E178: =HLOOKUP(C178,'Dados Gerais'!$D$5:$BX$14,10) -> 2 | F178: 10259.58223 | G178: 614.48 | H178: 10874.06223 | I178: 21748.12446 | K178: 0.005774811271 | L178: 419.5449266
C179: 28 | D179: =HLOOKUP(C179,'Dados Gerais'!$D$5:$BX$10,6) -> Supervisor de Operações - 5 dias | E179: =HLOOKUP(C179,'Dados Gerais'!$D$5:$BX$14,10) -> 4 | F179: 18816.74426 | G179: 1213.35 | H179: 20030.09426 | I179: 80120.37704 | K179: 0.0212744808 | L179: 1545.609037
C180: 29 | D180: =HLOOKUP(C180,'Dados Gerais'!$D$5:$BX$10,6) -> Supervisor técnico operacional - 5 dias | E180: =HLOOKUP(C180,'Dados Gerais'!$D$5:$BX$14,10) -> 1 | F180: 26757.9038 | G180: 1767.22 | H180: 28525.1238 | I180: 28525.1238 | K180: 0.007574317808 | L180: 550.2805997
C181: 30 | D181: =HLOOKUP(C181,'Dados Gerais'!$D$5:$BX$10,6) -> Técnico de sistemas audiovisuais - 5 dias | E181: =HLOOKUP(C181,'Dados Gerais'!$D$5:$BX$14,10) -> 3 | F181: 10111.30963 | G181: 619.67 | H181: 10730.97963 | I181: 32192.93888 | K181: 0.008548238106 | L181: 621.0367337
C182: 31 | D182: =HLOOKUP(C182,'Dados Gerais'!$D$5:$BX$10,6) -> Técnico de sistemas audiovisuais - 4 dias | E182: =HLOOKUP(C182,'Dados Gerais'!$D$5:$BX$14,10) -> 3 | F182: 8135.894366 | G182: 495.73 | H182: 8631.624366 | I182: 25894.8731 | K182: 0.006875903496 | L182: 499.5402088
C183: 32 | D183: =HLOOKUP(C183,'Dados Gerais'!$D$5:$BX$10,6) -> Técnico de sistemas audiovisuais - 3 dias | E183: =HLOOKUP(C183,'Dados Gerais'!$D$5:$BX$14,10) -> 2 | F183: 6160.503624 | G183: 371.8 | H183: 6532.303624 | I183: 13064.60725 | K183: 0.003469064255 | L183: 252.0304543
C184: 33 | D184: =HLOOKUP(C184,'Dados Gerais'!$D$5:$BX$10,6) -> Arquivista de teipe - 5 dias | E184: =HLOOKUP(C184,'Dados Gerais'!$D$5:$BX$14,10) -> 8 | F184: =F38 -> 8694.132449 | G184: =G111 -> 516.3 | H184: 9210.432449 | I184: 73683.45959 | K184: =I184/$I$218 -> 0.0195652767 | L184: =$I$230*K184 -> 1421.433913
C185: 34 | D185: =HLOOKUP(C185,'Dados Gerais'!$D$5:$BX$10,6) -> Auxiliar de informação, documentação e pesquisa audiovisual - 5 dias | E185: =HLOOKUP(C185,'Dados Gerais'!$D$5:$BX$14,10) -> 1 | F185: 7246.270995 | G185: 410.69 | H185: 7656.960995 | I185: 7656.960995 | K185: 0.002033164043 | L185: 147.7110886
C186: 35 | D186: =HLOOKUP(C186,'Dados Gerais'!$D$5:$BX$10,6) -> Revisor especialista em informação, documentação e pesquisa audiovisual - 5 dias | E186: =HLOOKUP(C186,'Dados Gerais'!$D$5:$BX$14,10) -> 11 | F186: 11014.39338 | G186: 684.46 | H186: 11698.85338 | I186: 128687.3872 | K186: 0.03417054998 | L186: 2482.519378
C187: 36 | D187: =HLOOKUP(C187,'Dados Gerais'!$D$5:$BX$10,6) -> Revisor especialista em informação, documentação e pesquisa audiovisual - 4 dias | E187: =HLOOKUP(C187,'Dados Gerais'!$D$5:$BX$14,10) -> 4 | F187: 8850.814728 | G187: 547.56 | H187: 9398.374728 | I187: 37593.49891 | K187: 0.009982256704 | L187: 725.2193986
C188: 37 | D188: =HLOOKUP(C188,'Dados Gerais'!$D$5:$BX$10,6) -> Revisor especialista chefe - 5 dias | E188: =HLOOKUP(C188,'Dados Gerais'!$D$5:$BX$14,10) -> 2 | F188: 14939.79873 | G188: 958.24 | H188: 15898.03873 | I188: 31796.07747 | K188: 0.008442858916 | L188: 613.3808463
C189: 38 | D189: =HLOOKUP(C189,'Dados Gerais'!$D$5:$BX$10,6) -> Supervisor técnico - 5 dias | E189: =HLOOKUP(C189,'Dados Gerais'!$D$5:$BX$14,10) -> 1 | F189: 19356.16478 | G189: 1262.3 | H189: 20618.46478 | I189: 20618.46478 | K189: 0.005474851084 | L189: 397.7525652
C190: 39 | D190: =HLOOKUP(C190,'Dados Gerais'!$D$5:$BX$10,6) -> Técnico de manutenção - 5 dias | E190: =HLOOKUP(C190,'Dados Gerais'!$D$5:$BX$14,10) -> 4 | F190: 13807.15295 | G190: 866.91 | H190: 14674.06295 | I190: 58696.25178 | K190: 0.01558570151 | L190: 1132.314407
C191: 40 | D191: =HLOOKUP(C191,'Dados Gerais'!$D$5:$BX$10,6) -> Assistente de pesquisa e opinião - 5 dias | E191: =HLOOKUP(C191,'Dados Gerais'!$D$5:$BX$14,10) -> 1 | F191: 8754.520283 | G191: 520.7 | H191: 9275.220283 | I191: 9275.220283 | K191: 0.002462862796 | L191: 178.9290667
C192: 41 | D192: =HLOOKUP(C192,'Dados Gerais'!$D$5:$BX$10,6) -> Arranjador - 5 dias | E192: =HLOOKUP(C192,'Dados Gerais'!$D$5:$BX$14,10) -> 1 | F192: 7335.295853 | G192: 455.88 | H192: 7791.175853 | I192: 7791.175853 | K192: 0.00206880231 | L192: 150.3002389
C193: 42 | D193: =HLOOKUP(C193,'Dados Gerais'!$D$5:$BX$10,6) -> Comunicador - 5 dias | E193: =HLOOKUP(C193,'Dados Gerais'!$D$5:$BX$14,10) -> 6 | F193: 16088.07474 | G193: 1023.04 | H193: 17111.11474 | I193: 102666.6885 | K193: 0.02726123582 | L193: 1980.551857
C194: 43 | D194: =HLOOKUP(C194,'Dados Gerais'!$D$5:$BX$10,6) -> Controlador de programação - 5 dias | E194: =HLOOKUP(C194,'Dados Gerais'!$D$5:$BX$14,10) -> 9 | F194: 12577.59976 | G194: 793.49 | H194: 13371.08976 | I194: 120339.8079 | K194: 0.03195400505 | L194: 2321.485513
C195: 44 | D195: =HLOOKUP(C195,'Dados Gerais'!$D$5:$BX$10,6) -> Coordenador de programação musical - 5 dias | E195: =HLOOKUP(C195,'Dados Gerais'!$D$5:$BX$14,10) -> 1 | F195: 12577.59976 | G195: 793.49 | H195: 13371.08976 | I195: 13371.08976 | K195: 0.003550445005 | L195: 257.9428347
C196: 45 | D196: =HLOOKUP(C196,'Dados Gerais'!$D$5:$BX$10,6) -> Diretor de fotografia / operador de câmera - 4 dias | E196: =HLOOKUP(C196,'Dados Gerais'!$D$5:$BX$14,10) -> 2 | F196: 18149.71981 | G196: 1180.84 | H196: 19330.55981 | I196: 38661.11962 | K196: 0.01026574359 | L196: 745.8149609
C197: 46 | D197: =HLOOKUP(C197,'Dados Gerais'!$D$5:$BX$10,6) -> Diretor de programação - 5 dias | E197: =HLOOKUP(C197,'Dados Gerais'!$D$5:$BX$14,10) -> 3 | F197: 21948.12192 | G197: 1447.05 | H197: 23395.17192 | I197: 70185.51577 | K197: 0.01863646257 | L197: 1353.95478
C198: 47 | D198: =HLOOKUP(C198,'Dados Gerais'!$D$5:$BX$10,6) -> Intérprete de libras de TV - 5 dias | E198: =HLOOKUP(C198,'Dados Gerais'!$D$5:$BX$14,10) -> 4 | F198: 10426.03493 | G198: 641.65 | H198: 11067.68493 | I198: 44270.73973 | K198: 0.01175527422 | L198: 854.0306216
C199: 48 | D199: =HLOOKUP(C199,'Dados Gerais'!$D$5:$BX$10,6) -> Intérprete de libras de TV - 4 dias | E199: =HLOOKUP(C199,'Dados Gerais'!$D$5:$BX$14,10) -> 2 | F199: 8390.329911 | G199: 513.31 | H199: 8903.639911 | I199: 17807.27982 | K199: 0.004728393034 | L199: 343.5217561
C200: 49 | D200: =HLOOKUP(C200,'Dados Gerais'!$D$5:$BX$10,6) -> Locutor noticiarista - 5 dias | E200: =HLOOKUP(C200,'Dados Gerais'!$D$5:$BX$14,10) -> 3 | F200: 11969.92113 | G200: 751.11 | H200: 12721.03113 | I200: 38163.0934 | K200: 0.01013350196 | L200: 736.2074945
C201: 50 | D201: =HLOOKUP(C201,'Dados Gerais'!$D$5:$BX$10,6) -> Operador de controle mestre - 5 dias | E201: =HLOOKUP(C201,'Dados Gerais'!$D$5:$BX$14,10) -> 3 | F201: 10059.96893 | G201: 615.92 | H201: 10675.88893 | I201: 32027.6668 | K201: 0.00850435317 | L201: 617.8484559
C202: 51 | D202: =HLOOKUP(C202,'Dados Gerais'!$D$5:$BX$10,6) -> Videomaker A - 5 dias | E202: =HLOOKUP(C202,'Dados Gerais'!$D$5:$BX$14,10) -> 1 | F202: 11498.56994 | G202: 702.93 | H202: 12201.49994 | I202: 12201.49994 | K202: 0.00323988211 | L202: 235.3801775
C203: 52 | D203: =HLOOKUP(C203,'Dados Gerais'!$D$5:$BX$10,6) -> Videomaker B - 5 dias | E203: =HLOOKUP(C203,'Dados Gerais'!$D$5:$BX$14,10) -> 1 | F203: 9865.976388 | G203: 585.77 | H203: 10451.74639 | I203: 10451.74639 | K203: 0.002775267492 | L203: 201.6255323
C204: 53 | D204: =HLOOKUP(C204,'Dados Gerais'!$D$5:$BX$10,6) -> Diretor de artes - 5 dias | E204: =HLOOKUP(C204,'Dados Gerais'!$D$5:$BX$14,10) -> 1 | F204: 19609.76671 | G204: 1283.95 | H204: 20893.71671 | I204: 20893.71671 | K204: 0.005547939132 | L204: 403.0624737
C205: 54 | D205: =HLOOKUP(C205,'Dados Gerais'!$D$5:$BX$10,6) -> Editor de mídia audiovisual chefe - 5 dias | E205: =HLOOKUP(C205,'Dados Gerais'!$D$5:$BX$14,10) -> 2 | F205: 15982.59831 | G205: 1030.97 | H205: 17013.56831 | I205: 34027.13662 | K205: 0.009035275313 | L205: 656.4203989
C206: 55 | D206: =HLOOKUP(C206,'Dados Gerais'!$D$5:$BX$10,6) -> Editor de mídia audiovisual A - 5 dias | E206: =HLOOKUP(C206,'Dados Gerais'!$D$5:$BX$14,10) -> 3 | F206: 13870.89975 | G206: 883.69 | H206: 14754.58975 | I206: 44263.76924 | K206: 0.01175342333 | L206: 853.8961532
C207: 56 | D207: =HLOOKUP(C207,'Dados Gerais'!$D$5:$BX$10,6) -> Editor de mídia audiovisual B - 5 dias | E207: =HLOOKUP(C207,'Dados Gerais'!$D$5:$BX$14,10) -> 17 | F207: 11759.23796 | G207: 736.4 | H207: 12495.63796 | I207: 212425.8453 | K207: 0.05640574514 | L207: 4097.925127
C208: 57 | D208: =HLOOKUP(C208,'Dados Gerais'!$D$5:$BX$10,6) -> Editor de mídia audiovisual B - 3 dias | E208: =HLOOKUP(C208,'Dados Gerais'!$D$5:$BX$14,10) -> 1 | F208: 7134.137922 | G208: 441.85 | H208: 7575.987922 | I208: 7575.987922 | K208: 0.002011663144 | L208: 146.1490301
C209: 58 | D209: =HLOOKUP(C209,'Dados Gerais'!$D$5:$BX$10,6) -> Diretor de produção - 5 dias | E209: =HLOOKUP(C209,'Dados Gerais'!$D$5:$BX$14,10) -> 4 | F209: 21948.12192 | G209: 1447.05 | H209: 23395.17192 | I209: 93580.6877 | K209: 0.02484861676 | L209: 1805.27304
C210: 59 | D210: =HLOOKUP(C210,'Dados Gerais'!$D$5:$BX$10,6) -> Diretor de programas - 5 dias | E210: =HLOOKUP(C210,'Dados Gerais'!$D$5:$BX$14,10) -> 10 | F210: 22167.34962 | G210: 1447.05 | H210: 23614.39962 | I210: 236143.9962 | K210: 0.06270366041 | L210: 4555.474001
C211: 60 | D211: =HLOOKUP(C211,'Dados Gerais'!$D$5:$BX$10,6) -> Diretor de programas - 3 dias | E211: =HLOOKUP(C211,'Dados Gerais'!$D$5:$BX$14,10) -> 2 | F211: 13466.70826 | G211: 868.23 | H211: 14334.93826 | I211: 28669.87651 | K211: 0.007612754208 | L211: 553.0730367
C212: 61 | D212: =HLOOKUP(C212,'Dados Gerais'!$D$5:$BX$10,6) -> Maquilador - 5 dias | E212: =HLOOKUP(C212,'Dados Gerais'!$D$5:$BX$14,10) -> 2 | F212: 8762.500892 | G212: 521.29 | H212: 9283.790892 | I212: 18567.58178 | K212: 0.004930277125 | L212: 358.1888062
C213: 62 | D213: =HLOOKUP(C213,'Dados Gerais'!$D$5:$BX$10,6) -> Produtor de rádio, TV e mídias digitais - 5 dias | E213: =HLOOKUP(C213,'Dados Gerais'!$D$5:$BX$14,10) -> 41 | F213: 16085.43906 | G213: 1022.85 | H213: 17108.28906 | I213: 701439.8515 | K213: 0.1862543488 | L213: 13531.53609
... 40 more rows

Sheet Dados Gerais
B3: INFORMAÇÕES DE ENTRADA
D5: 1 | E5: 2 | F5: 3 | G5: 4 | H5: 5 | I5: 6 | J5: 7 | K5: 8 | L5: 9 | M5: 10 | N5: 11 | O5: 12 | P5: 13 | Q5: 14 | R5: 15 | S5: 16 | T5: 17 | U5: 18 | V5: 19 | W5: 20 | X5: 21 | Y5: 22 | Z5: 23 | AA5: 24 | AB5: 25 | AC5: 26 | AD5: 27 | AE5: 28 | AF5: 29 | AG5: 30 | AH5: 31 | AI5: 32 | AJ5: 33 | AK5: 34 | AL5: 35 | AM5: 36 | AN5: 37 | AO5: 38 | AP5: 39 | AQ5: 40 | AR5: 41 | AS5: 42 | AT5: 43 | AU5: 44 | AV5: 45 | AW5: 46 | AX5: 47 | AY5: 48 | AZ5: 49 | BA5: 50 | BB5: 51 | BC5: 52 | BD5: 53 | BE5: 54 | BF5: 55 | BG5: 56 | BH5: 57 | BI5: 58 | BJ5: 59 | BK5: 60 | BL5: 61 | BM5: 62 | BN5: 63 | BO5: 64 | BP5: 65 | BQ5: 66 | BR5: 67 | BS5: 68 | BT5: 69 | BU5: 70 | BV5: 71 | BW5: 72 | BX5: 73
D6: CARGO 1 | E6: CARGO 2 | F6: CARGO 3 | G6: CARGO 4 | H6: CARGO 5 | I6: CARGO 6 | J6: CARGO 7 | K6: CARGO 8 | L6: CARGO 9 | M6: CARGO 10 | N6: CARGO 11 | O6: CARGO 12 | P6: CARGO 13 | Q6: CARGO 14 | R6: CARGO 15 | S6: CARGO 16 | T6: CARGO 17 | U6: CARGO 18 | V6: CARGO 19 | W6: CARGO 20 | X6: CARGO 21 | Y6: CARGO 22 | Z6: CARGO 23 | AA6: CARGO 24 | AB6: CARGO 25 | AC6: CARGO 26 | AD6: CARGO 27 | AE6: CARGO 28 | AF6: CARGO 29 | AG6: CARGO 30 | AH6: CARGO 31 | AI6: CARGO 32 | AJ6: CARGO 33 | AK6: CARGO 34 | AL6: CARGO 35 | AM6: CARGO 36 | AN6: CARGO 37 | AO6: CARGO 38 | AP6: CARGO 39 | AQ6: CARGO 40 | AR6: CARGO 41 | AS6: CARGO 42 | AT6: CARGO 43 | AU6: CARGO 44 | AV6: CARGO 45 | AW6: CARGO 46 | AX6: CARGO 47 | AY6: CARGO 48 | AZ6: CARGO 49 | BA6: CARGO 50 | BB6: CARGO 51 | BC6: CARGO 52 | BD6: CARGO 53 | BE6: CARGO 54 | BF6: CARGO 55 | BG6: CARGO 56 | BH6: CARGO 57 | BI6: CARGO 58 | BJ6: CARGO 59 | BK6: CARGO 60 | BL6: CARGO 61 | BM6: CARGO 62 | BN6: CARGO 63 | BO6: CARGO 64 | BP6: CARGO 65 | BQ6: CARGO 66 | BR6: CARGO 67 | BS6: CARGO 68 | BT6: CARGO 69 | BU6: CARGO 70 | BV6: CARGO 71 | BW6: CARGO 72 | BX6: CARGO 73
B7: INFORMAÇÕES BÁSICAS
B9: DESCRIÇÃO DOS POSTOS DE SERVIÇO
D10: Almoxarife Técnico - 5 dias | E10: Almoxarife Técnico - 4 dias | F10: Assistente de operações audiovisuais - 5 dias | G10: Assistente de operações audiovisuais - 3 dias | H10: Assistente de operações audiovisuais UPJ - A - 4 dias | I10: Assistente de operações audiovisuais UPJ - B - 5 dias | J10: Assistente de operações audiovisuais UPJ - B - 4 dias | K10: Assistente de operações audiovisuais UPJ - B - 3 dias | L10: Diretor de imagens - 5 dias | M10: Diretor de imagens - 3 dias | N10: Gerente de projetos em TV digital - 5 dias | O10: Iluminador - 5 dias | P10: Iluminador - 4dias | Q10: Operador de mídia audiovisual - 5 dias | R10: Operador de câmera - 5 dias | S10: Operador de câmera - 3 dias | T10: Operador de câmera UPE - 5 dias | U10: Operador de câmera UPE - 4 dias | V10: Operador de câmera UPE - 3 dias | W10: Operador de controle mestre - rádio - 5 dias | X10: Operador de controle mestre - rádio - 4 dias | Y10: Operador de máquina de caracteres - 5 dias | Z10: Operador de máquina de caracteres - 3 dias | AA10: Operador de videoteipe - 5 dias | AB10: Operador de videoteipe - 3 dias | AC10: Sonoplasta rádio - 5 dias | AD10: Sonoplasta TV - 5 dias | AE10: Supervisor de Operações - 5 dias | AF10: Supervisor técnico operacional - 5 dias | AG10: Técnico de sistemas audiovisuais - 5 dias | AH10: Técnico de sistemas audiovisuais - 4 dias | AI10: Técnico de sistemas audiovisuais - 3 dias | AJ10: Arquivista de teipe - 5 dias | AK10: Auxiliar de informação, documentação e pesquisa audiovisual - 5 dias | AL10: Revisor especialista em informação, documentação e pesquisa audiovisual - 5 dias | AM10: Revisor especialista em informação, documentação e pesquisa audiovisual - 4 dias | AN10: Revisor especialista chefe - 5 dias | AO10: Supervisor técnico - 5 dias | AP10: Técnico de manutenção - 5 dias | AQ10: Assistente de pesquisa e opinião - 5 dias | AR10: Arranjador - 5 dias | AS10: Comunicador - 5 dias | AT10: Controlador de programação - 5 dias | AU10: Coordenador de programação musical - 5 dias | AV10: Diretor de fotografia / operador de câmera - 4 dias | AW10: Diretor de programação - 5 dias | AX10: Intérprete de libras de TV - 5 dias | AY10: Intérprete de libras de TV - 4 dias | AZ10: Locutor noticiarista - 5 dias | BA10: Operador de controle mestre - 5 dias | BB10: Videomaker A - 5 dias | BC10: Videomaker B - 5 dias | BD10: Diretor de artes - 5 dias | BE10: Editor de mídia audiovisual chefe - 5 dias | BF10: Editor de mídia audiovisual A - 5 dias | BG10: Editor de mídia audiovisual B - 5 dias | BH10: Editor de mídia audiovisual B - 3 dias | BI10: Diretor de produção - 5 dias | BJ10: Diretor de programas - 5 dias | BK10: Diretor de programas - 3 dias | BL10: Maquilador - 5 dias | BM10: Produtor de rádio, TV e mídias digitais - 5 dias | BN10: Produtor de rádio, TV e mídias digitais - 4 dias | BO10: Produtor de rádio, TV e mídias digitais - 3 dias | BP10: Secretária de redação - 5 dias
B11: REMUNERAÇÕES
D12: 6768.58 | E12: 5414.86 | F12: 3503.27 | G12: 2101.96 | H12: 3363.14 | I12: 3503.27 | J12: 2802.61 | K12: 2101.96 | L12: 6183.47 | M12: 3710.08 | N12: 9463.85 | O12: 3919.56 | P12: 3135.65 | Q12: 5137.18 | R12: 4610.96 | S12: 2766.58 | T12: 6172.03 | U12: 4937.63 | V12: 3703.22 | W12: 5253.88 | X12: 4203.11 | Y12: 4103.82 | Z12: 2462.29 | AA12: 3523.83 | AB12: 2114.3 | AC12: 5241.68 | AD12: 5241.68 | AE12: 10350.08 | AF12: 15074.64 | AG12: 5285.84 | AH12: 4228.67 | AI12: 3171.51 | AJ12: 4404.1 | AK12: 3503.27 | AL12: 5838.54 | AM12: 4670.83 | AN12: 8173.96 | AO12: 10767.6 | AP12: 7394.88 | AQ12: 4441.67 | AR12: =ROUND(2333.2/3*5,2) -> 3888.67 | AS12: 8726.69 | AT12: 6768.58 | AU12: 6768.58 | AV12: 10072.74 | AW12: 12343.52 | AX12: 5473.32 | AY12: 4378.65 | AZ12: 6407.04 | BA12: 5253.88 | BB12: =BC12*1.2 -> 5996.166 | BC12: 4996.805 | BD12: 10952.32 | BE12: 8794.35 | BF12: 7538.01 | BG12: 6281.68 | BH12: 3769.01 | BI12: 12343.52 | BJ12: 12343.52 | BK12: 7406.11 | BL12: 4446.64 | BM12: 8725.11 | BN12: 6980.09 | BO12: 5235.07 | BP12: 3666.59
B13: QUANTIDADE DE POSTOS
D14: 2 | E14: 2 | F14: 8 | G14: 2 | H14: 2 | I14: 7 | J14: 3 | K14: 3 | L14: 9 | M14: 2 | N14: 4 | O14: 2 | P14: 1 | Q14: 7 | R14: 11 | S14: 4 | T14: 7 | U14: 3 | V14: 3 | W14: 3 | X14: 2 | Y14: 6 | Z14: 3 | AA14: 5 | AB14: 1 | AC14: 8 | AD14: 2 | AE14: 4 | AF14: 1 | AG14: 3 | AH14: 3 | AI14: 2 | AJ14: 8 | AK14: 1 | AL14: 11 | AM14: 4 | AN14: 2 | AO14: 1 | AP14: 4 | AQ14: 1 | AR14: 1 | AS14: 6 | AT14: 9 | AU14: 1 | AV14: 2 | AW14: 3 | AX14: 4 | AY14: 2 | AZ14: 3 | BA14: 3 | BB14: 1 | BC14: 1 | BD14: 1 | BE14: 2 | BF14: 3 | BG14: 17 | BH14: 1 | BI14: 4 | BJ14: 10 | BK14: 2 | BL14: 2 | BM14: 41 | BN14: 10 | BO14: 7 | BP14: 5
B15: JORNADA
C16: HORAS/SEMANA | D16: 30 | E16: 24 | F16: 30 | G16: 18 | H16: 24 | I16: 30 | J16: 24 | K16: 18 | L16: 30 | M16: 18 | N16: 40 | O16: 30 | P16: 24 | Q16: 30 | R16: 30 | S16: 18 | T16: 30 | U16: 24 | V16: 18 | W16: 30 | X16: 24 | Y16: 30 | Z16: 18 | AA16: 30 | AB16: 18 | AC16: 30 | AD16: 30 | AE16: 44 | AF16: 44 | AG16: 30 | AH16: 24 | AI16: 18 | AJ16: 30 | AK16: 30 | AL16: 30 | AM16: 24 | AN16: 30 | AO16: 44 | AP16: 30 | AQ16: 30 | AR16: 15 | AS16: 25 | AT16: 30 | AU16: 30 | AV16: 24 | AW16: 40 | AX16: 30 | AY16: 24 | AZ16: 25 | BA16: 30 | BB16: 40 | BC16: 40 | BD16: 40 | BE16: 30 | BF16: 30 | BG16: 30 | BH16: 18 | BI16: 40 | BJ16: 40 | BK16: 24 | BL16: 35 | BM16: 30 | BN16: 24 | BO16: 18 | BP16: 35
C17: HORAS/MÊS | D17: =D16*5 -> 150 | E17: =E16*5 -> 120 | F17: 150 | G17: 90 | H17: 120 | I17: 150 | J17: 120 | K17: 90 | L17: 150 | M17: 90 | N17: 200 | O17: 150 | P17: 120 | Q17: 150 | R17: 150 | S17: 90 | T17: 150 | U17: 120 | V17: 90 | W17: 150 | X17: 120 | Y17: 150 | Z17: 90 | AA17: 150 | AB17: 90 | AC17: 150 | AD17: 150 | AE17: 220 | AF17: 220 | AG17: 150 | AH17: 120 | AI17: 90 | AJ17: 150 | AK17: 150 | AL17: 150 | AM17: 120 | AN17: 150 | AO17: 220 | AP17: 150 | AQ17: 150 | AR17: 75 | AS17: 125 | AT17: 150 | AU17: 150 | AV17: 120 | AW17: 200 | AX17: 150 | AY17: 120 | AZ17: 125 | BA17: 150 | BB17: 200 | BC17: 200 | BD17: 200 | BE17: 150 | BF17: 150 | BG17: 150 | BH17: 90 | BI17: 200 | BJ17: 200 | BK17: 120 | BL17: 175 | BM17: 150 | BN17: 120 | BO17: 90 | BP17: 175
C18: DIAS/MÊS | D18: =30-8 -> 22 | E18: =30-8-4 -> 18 | F18: =30-8 -> 22 | G18: =30-8-4-4 -> 14 | H18: =30-8-4 -> 18 | I18: =30-8 -> 22 | J18: =30-8-4 -> 18 | K18: =30-8-4-4 -> 14 | L18: =30-8 -> 22 | M18: =30-8-4-4 -> 14 | N18: =30-8 -> 22 | O18: =30-8 -> 22 | P18: =30-8-4 -> 18 | Q18: =30-8 -> 22 | R18: =30-8 -> 22 | S18: =30-8-4-4 -> 14 | T18: =30-8 -> 22 | U18: =30-8-4 -> 18 | V18: =30-8-4-4 -> 14 | W18: =30-8 -> 22 | X18: =30-8-4 -> 18 | Y18: =30-8 -> 22 | Z18: =30-8-4-4 -> 14 | AA18: =30-8 -> 22 | AB18: =30-8-4-4 -> 14 | AC18: =30-8 -> 22 | AD18: =30-8 -> 22 | AE18: 22 | AF18: 22 | AG18: =30-8 -> 22 | AH18: =30-8-4 -> 18 | AI18: =30-8-4-4 -> 14 | AJ18: =30-8 -> 22 | AK18: =30-8 -> 22 | AL18: 22 | AM18: =30-8-4 -> 18 | AN18: =30-8 -> 22 | AO18: =30-8 -> 22 | AP18: =30-8 -> 22 | AQ18: 22 | AR18: =30-8-4-4 -> 14 | AS18: 22 | AT18: =30-8 -> 22 | AU18: =30-8 -> 22 | AV18: =30-8-4 -> 18 | AW18: =30-8 -> 22 | AX18: =30-8 -> 22 | AY18: =30-8-4 -> 18 | AZ18: =30-8 -> 22 | BA18: =30-8 -> 22 | BB18: 22 | BC18: =30-8 -> 22 | BD18: =30-8 -> 22 | BE18: =30-8 -> 22 | BF18: =30-8 -> 22 | BG18: =30-8 -> 22 | BH18: =30-8-4-4 -> 14 | BI18: =30-8 -> 22 | BJ18: =30-8 -> 22 | BK18: =30-8-4-4 -> 14 | BL18: =30-8 -> 22 | BM18: 22 | BN18: =30-8-4 -> 18 | BO18: =30-8-4-4 -> 14 | BP18: =30-8 -> 22
B19: CCT UTILIZADA
C20: SINDICATOS E REFERÊNCIA | D20: SINRAD/DF X SEAC/DF 2023/2023 Nº DF000111/2023 | E20: SINRAD/DF X SEAC/DF 2023/2023 Nº DF000111/2023 | F20: SINRAD/DF X SEAC/DF 2023/2023 Nº DF000111/2023 | G20: SINRAD/DF X SEAC/DF 2023/2023 Nº DF000111/2023 | H20: SINRAD/DF X SEAC/DF 2023/2023 Nº DF000111/2023 | I20: SINRAD/DF X SEAC/DF 2023/2023 Nº DF000111/2023 | J20: SINRAD/DF X SEAC/DF 2023/2023 Nº DF000111/2023 | K20: SINRAD/DF X SEAC/DF 2023/2023 Nº DF000111/2023 | L20: SINRAD/DF X SEAC/DF 2023/2023 Nº DF000111/2023 | M20: SINRAD/DF X SEAC/DF 2023/2023 Nº DF000111/2023 | N20: SINRAD/DF X SEAC/DF 2023/2023 Nº DF000111/2023 | O20: SINRAD/DF X SEAC/DF 2023/2023 Nº DF000111/2023 | P20: SINRAD/DF X SEAC/DF 2023/2023 Nº DF000111/2023 | Q20: SINRAD/DF X SEAC/DF 2023/2023 Nº DF000111/2023 | R20: SINRAD/DF X SEAC/DF 2023/2023 Nº DF000111/2023 | S20: SINRAD/DF X SEAC/DF 2023/2023 Nº DF000111/2023 | T20: SINRAD/DF X SEAC/DF 2023/2023 Nº DF000111/2023 | U20: SINRAD/DF X SEAC/DF 2023/2023 Nº DF000111/2023 | V20: SINRAD/DF X SEAC/DF 2023/2023 Nº DF000111/2023 | W20: SINRAD/DF X SEAC/DF 2023/2023 Nº DF000111/2023 | X20: SINRAD/DF X SEAC/DF 2023/2023 Nº DF000111/2023 | Y20: SINRAD/DF X SEAC/DF 2023/2023 Nº DF000111/2023 | Z20: SINRAD/DF X SEAC/DF 2023/2023 Nº DF000111/2023 | AA20: SINRAD/DF X SEAC/DF 2023/2023 Nº DF000111/2023 | AB20: SINRAD/DF X SEAC/DF 2023/2023 Nº DF000111/2023 | AC20: SINRAD/DF X SEAC/DF 2023/2023 Nº DF000111/2023 | AD20: SINRAD/DF X SEAC/DF 2023/2023 Nº DF000111/2023 | AE20: SINRAD/DF X SEAC/DF 2023/2023 Nº DF000111/2023 | AF20: SINRAD/DF X SEAC/DF 2023/2023 Nº DF000111/2023 | AG20: SINRAD/DF X SEAC/DF 2023/2023 Nº DF000111/2023 | AH20: SINRAD/DF X SEAC/DF 2023/2023 Nº DF000111/2023 | AI20: SINRAD/DF X SEAC/DF 2023/2023 Nº DF000111/2023 | AJ20: SINRAD/DF X SEAC/DF 2023/2023 Nº DF000111/2023 | AK20: SINRAD/DF X SEAC/DF 2023/2023 Nº DF000111/2023 | AL20: SINRAD/DF X SEAC/DF 2023/2023 Nº DF000111/2023 | AM20: SINRAD/DF X SEAC/DF 2023/2023 Nº DF000111/2023 | AN20: SINRAD/DF X SEAC/DF 2023/2023 Nº DF000111/2023 | AO20: SINRAD/DF X SEAC/DF 2023/2023 Nº DF000111/2023 | AP20: SINRAD/DF X SEAC/DF 2023/2023 Nº DF000111/2023 | AQ20: SINRAD/DF X SEAC/DF 2023/2023 Nº DF000111/2023 | AR20: SINRAD/DF X SEAC/DF 2023/2023 Nº DF000111/2023 | AS20: SINRAD/DF X SEAC/DF 2023/2023 Nº DF000111/2023 | AT20: SINRAD/DF X SEAC/DF 2023/2023 Nº DF000111/2023 | AU20: SINRAD/DF X SEAC/DF 2023/2023 Nº DF000111/2023 | AV20: SINRAD/DF X SEAC/DF 2023/2023 Nº DF000111/2023 | AW20: SINRAD/DF X SEAC/DF 2023/2023 Nº DF000111/2023 | AX20: SINRAD/DF X SEAC/DF 2023/2023 Nº DF000111/2023 | AY20: SINRAD/DF X SEAC/DF 2023/2023 Nº DF000111/2023 | AZ20: SINRAD/DF X SEAC/DF 2023/2023 Nº DF000111/2023 | BA20: SINRAD/DF X SEAC/DF 2023/2023 Nº DF000111/2023 | BB20: SINRAD/DF X SEAC/DF 2023/2023 Nº DF000111/2023 | BC20: SINRAD/DF X SEAC/DF 2023/2023 Nº DF000111/2023 | BD20: SINRAD/DF X SEAC/DF 2023/2023 Nº DF000111/2023 | BE20: SINRAD/DF X SEAC/DF 2023/2023 Nº DF000111/2023 | BF20: SINRAD/DF X SEAC/DF 2023/2023 Nº DF000111/2023 | BG20: SINRAD/DF X SEAC/DF 2023/2023 Nº DF000111/2023 | BH20: SINRAD/DF X SEAC/DF 2023/2023 Nº DF000111/2023 | BI20: SINRAD/DF X SEAC/DF 2023/2023 Nº DF000111/2023 | BJ20: SINRAD/DF X SEAC/DF 2023/2023 Nº DF000111/2023 | BK20: SINRAD/DF X SEAC/DF 2023/2023 Nº DF000111/2023 | BL20: SINRAD/DF X SEAC/DF 2023/2023 Nº DF000111/2023 | BM20: SINRAD/DF X SEAC/DF 2023/2023 Nº DF000111/2023 | BN20: SINRAD/DF X SEAC/DF 2023/2023 Nº DF000111/2023 | BO20: SINRAD/DF X SEAC/DF 2023/2023 Nº DF000111/2023 | BP20: SINRAD/DF X SEAC/DF 2023/2023 Nº DF000111/2023
C21: DATA-BASE | D21: 2023-01-01 | E21: =D21 -> 2023-01-01 | F21: =E21 -> 2023-01-01 | G21: 2023-01-01 | H21: 2023-01-01 | I21: 2023-01-01 | J21: 2023-01-01 | K21: 2023-01-01 | L21: 2023-01-01 | M21: 2023-01-01 | N21: 2023-01-01 | O21: 2023-01-01 | P21: 2023-01-01 | Q21: 2023-01-01 | R21: 2023-01-01 | S21: 2023-01-01 | T21: 2023-01-01 | U21: 2023-01-01 | V21: 2023-01-01 | W21: 2023-01-01 | X21: 2023-01-01 | Y21: 2023-01-01 | Z21: 2023-01-01 | AA21: 2023-01-01 | AB21: 2023-01-01 | AC21: 2023-01-01 | AD21: 2023-01-01 | AE21: 2023-01-01 | AF21: 2023-01-01 | AG21: 2023-01-01 | AH21: 2023-01-01 | AI21: 2023-01-01 | AJ21: 2023-01-01 | AK21: 2023-01-01 | AL21: 2023-01-01 | AM21: 2023-01-01 | AN21: 2023-01-01 | AO21: 2023-01-01 | AP21: 2023-01-01 | AQ21: 2023-01-01 | AR21: 2023-01-01 | AS21: 2023-01-01 | AT21: 2023-01-01 | AU21: 2023-01-01 | AV21: 2023-01-01 | AW21: 2023-01-01 | AX21: 2023-01-01 | AY21: 2023-01-01 | AZ21: 2023-01-01 | BA21: 2023-01-01 | BB21: 2023-01-01 | BC21: 2023-01-01 | BD21: 2023-01-01 | BE21: 2023-01-01 | BF21: 2023-01-01 | BG21: 2023-01-01 | BH21: 2023-01-01 | BI21: 2023-01-01 | BJ21: 2023-01-01 | BK21: 2023-01-01 | BL21: 2023-01-01 | BM21: 2023-01-01 | BN21: 2023-01-01 | BO21: 2023-01-01 | BP21: 2023-01-01
B23: ADICIONAIS LEGAIS E GRATIFICAÇÕES
B25: PERICULOSIDADE (PERCENTUAL)
D26: 0 | E26: 0 | F26: 0 | G26: 0 | H26: 0 | I26: 0 | J26: 0 | K26: 0 | L26: 0 | M26: 0 | N26: 0 | O26: 0 | P26: 0 | Q26: 0 | R26: 0 | S26: 0 | T26: 0 | U26: 0 | V26: 0 | W26: 0 | X26: 0 | Y26: 0 | Z26: 0 | AA26: 0 | AB26: 0 | AC26: 0 | AD26: 0 | AE26: 0 | AF26: 0 | AG26: 0 | AH26: 0 | AI26: 0 | AJ26: 0 | AK26: 0 | AL26: 0 | AM26: 0 | AN26: 0 | AO26: 0 | AP26: 0 | AQ26: 0 | AR26: 0 | AS26: 0 | AT26: 0 | AU26: 0 | AV26: 0 | AW26: 0 | AX26: 0 | AY26: 0 | AZ26: 0 | BA26: 0 | BB26: 0 | BC26: 0 | BD26: 0 | BE26: 0 | BF26: 0 | BG26: 0 | BH26: 0 | BI26: 0 | BJ26: 0 | BK26: 0 | BL26: 0 | BM26: 0 | BN26: 0 | BO26: 0 | BP26: 0
B27: BASE DE CÁLCULO DO ADICIONAL DE PERICULOSIDADE (SALÁRIO BÁSICO)
D28: =D12 -> 6768.58 | E28: =E12 -> 5414.86 | F28: =F12 -> 3503.27 | G28: 2101.96 | H28: 3363.14 | I28: 3503.27 | J28: 2802.61 | K28: 2101.96 | L28: 6183.47 | M28: 3710.08 | N28: 9463.85 | O28: 3919.56 | P28: 3135.65 | Q28: 5137.18 | R28: 4610.96 | S28: 2766.58 | T28: 6172.03 | U28: 4937.63 | V28: 3703.22 | W28: 5253.88 | X28: 4203.11 | Y28: =Y12 -> 4103.82 | Z28: 2462.29 | AA28: 3523.83 | AB28: =AB12 -> 2114.3 | AC28: 5241.68 | AD28: 5241.68 | AE28: 10350.08 | AF28: 15074.64 | AG28: 5285.84 | AH28: 4228.67 | AI28: 3171.51 | AJ28: 4404.1 | AK28: 3503.27 | AL28: 5838.54 | AM28: 4670.83 | AN28: 8173.96 | AO28: 10767.6 | AP28: 7394.88 | AQ28: 4441.67 | AR28: 3888.67 | AS28: 8726.69 | AT28: 6768.58 | AU28: 6768.58 | AV28: 10072.74 | AW28: 12343.52 | AX28: 5473.32 | AY28: 4378.65 | AZ28: 6407.04 | BA28: 5253.88 | BB28: 5996.166 | BC28: 4996.805 | BD28: 10952.32 | BE28: 8794.35 | BF28: 7538.01 | BG28: 6281.68 | BH28: 3769.01 | BI28: 12343.52 | BJ28: 12343.52 | BK28: 7406.11 | BL28: 4446.64 | BM28: 8725.11 | BN28: 6980.09 | BO28: 5235.07 | BP28: 3666.59
B29: VALOR MENSAL DO ADICIONAL DE PERICULOSIDADE
D30: =ROUND(D26*D12,2) -> 0 | E30: =ROUND(E26*E12,2) -> 0 | F30: =ROUND(F26*F12,2) -> 0 | G30: 0 | H30: 0 | I30: 0 | J30: 0 | K30: 0 | L30: 0 | M30: 0 | N30: 0 | O30: 0 | P30: 0 | Q30: 0 | R30: 0 | S30: 0 | T30: 0 | U30: 0 | V30: 0 | W30: 0 | X30: 0 | Y30: =ROUND(Y26*Y12,2) -> 0 | Z30: 0 | AA30: 0 | AB30: =ROUND(AB26*AB12,2) -> 0 | AC30: 0 | AD30: 0 | AE30: 0 | AF30: 0 | AG30: 0 | AH30: 0 | AI30: 0 | AJ30: 0 | AK30: 0 | AL30: 0 | AM30: 0 | AN30: 0 | AO30: 0 | AP30: 0 | AQ30: 0 | AR30: 0 | AS30: 0 | AT30: 0 | AU30: 0 | AV30: 0 | AW30: 0 | AX30: 0 | AY30: 0 | AZ30: 0 | BA30: 0 | BB30: 0 | BC30: 0 | BD30: 0 | BE30: 0 | BF30: 0 | BG30: 0 | BH30: 0 | BI30: 0 | BJ30: 0 | BK30: 0 | BL30: 0 | BM30: 0 | BN30: 0 | BO30: 0 | BP30: 0
B31: INSALUBRIDADE (PERCENTUAL)
D32: 0 | E32: 0 | F32: 0 | G32: 0 | H32: 0 | I32: 0 | J32: 0 | K32: 0 | L32: 0 | M32: 0 | N32: 0 | O32: 0 | P32: 0 | Q32: 0 | R32: 0 | S32: 0 | T32: 0 | U32: 0 | V32: 0 | W32: 0 | X32: 0 | Y32: 0 | Z32: 0 | AA32: 0 | AB32: 0 | AC32: 0 | AD32: 0 | AE32: 0 | AF32: 0 | AG32: 0 | AH32: 0 | AI32: 0 | AJ32: 0 | AK32: 0 | AL32: 0 | AM32: 0 | AN32: 0 | AO32: 0 | AP32: 0 | AQ32: 0 | AR32: 0 | AS32: 0 | AT32: 0 | AU32: 0 | AV32: 0 | AW32: 0 | AX32: 0 | AY32: 0 | AZ32: 0 | BA32: 0 | BB32: 0 | BC32: 0 | BD32: 0 | BE32: 0 | BF32: 0 | BG32: 0 | BH32: 0 | BI32: 0 | BJ32: 0 | BK32: 0 | BL32: 0 | BM32: 0 | BN32: 0 | BO32: 0 | BP32: 0
B33: BASE DE CÁLCULO DO ADICIONAL DE INSALUBRIDADE (SALÁRIO MÍNIMO LEGAL)
D34: 1320 | E34: =D34 -> 1320 | F34: =E34 -> 1320 | G34: 1320 | H34: 1320 | I34: 1320 | J34: 1320 | K34: 1320 | L34: 1320 | M34: 1320 | N34: 1320 | O34: 1320 | P34: 1320 | Q34: 1320 | R34: 1320 | S34: 1320 | T34: 1320 | U34: 1320 | V34: 1320 | W34: 1320 | X34: 1320 | Y34: 1320 | Z34: 1320 | AA34: 1320 | AB34: 1320 | AC34: 1320 | AD34: 1320 | AE34: 1320 | AF34: 1320 | AG34: 1320 | AH34: 1320 | AI34: 1320 | AJ34: 1320 | AK34: 1320 | AL34: 1320 | AM34: 1320 | AN34: 1320 | AO34: 1320 | AP34: 1320 | AQ34: 1320 | AR34: 1320 | AS34: 1320 | AT34: 1320 | AU34: 1320 | AV34: 1320 | AW34: 1320 | AX34: 1320 | AY34: 1320 | AZ34: 1320 | BA34: 1320 | BB34: 1320 | BC34: 1320 | BD34: 1320 | BE34: 1320 | BF34: 1320 | BG34: 1320 | BH34: 1320 | BI34: 1320 | BJ34: 1320 | BK34: 1320 | BL34: 1320 | BM34: 1320 | BN34: 1320 | BO34: 1320 | BP34: 1320
B35: VALOR MENSAL DO ADICIONAL DE INSALUBRIDADE
D36: =ROUND(D32*D12,2) -> 0 | E36: =ROUND(E32*E12,2) -> 0 | F36: =ROUND(F32*F12,2) -> 0 | G36: 0 | H36: 0 | I36: 0 | J36: 0 | K36: 0 | L36: 0 | M36: 0 | N36: 0 | O36: 0 | P36: 0 | Q36: 0 | R36: 0 | S36: 0 | T36: 0 | U36: 0 | V36: 0 | W36: 0 | X36: 0 | Y36: =ROUND(Y32*Y12,2) -> 0 | Z36: 0 | AA36: 0 | AB36: =ROUND(AB32*AB12,2) -> 0 | AC36: 0 | AD36: 0 | AE36: 0 | AF36: 0 | AG36: 0 | AH36: 0 | AI36: 0 | AJ36: 0 | AK36: 0 | AL36: 0 | AM36: 0 | AN36: 0 | AO36: 0 | AP36: 0 | AQ36: 0 | AR36: 0 | AS36: 0 | AT36: 0 | AU36: 0 | AV36: 0 | AW36: 0 | AX36: 0 | AY36: 0 | AZ36: 0 | BA36: 0 | BB36: 0 | BC36: 0 | BD36: 0 | BE36: 0 | BF36: 0 | BG36: 0 | BH36: 0 | BI36: 0 | BJ36: 0 | BK36: 0 | BL36: 0 | BM36: 0 | BN36: 0 | BO36: 0 | BP36: 0
B37: GRATIFICAÇÃO - VALOR MENSAL (R$)
D38: 0 | E38: 0 | F38: 0 | G38: 0 | H38: 0 | I38: 0 | J38: 0 | K38: 0 | L38: 0 | M38: 0 | N38: 0 | O38: 0 | P38: 0 | Q38: 0 | R38: 0 | S38: 0 | T38: 0 | U38: 0 | V38: 0 | W38: 0 | X38: 0 | Y38: 0 | Z38: 0 | AA38: 0 | AB38: 0 | AC38: 0 | AD38: 0 | AE38: 0 | AF38: 0 | AG38: 0 | AH38: 0 | AI38: 0 | AJ38: 0 | AK38: 0 | AL38: 0 | AM38: 0 | AN38: 0 | AO38: 0 | AP38: 0 | AQ38: 0 | AR38: 0 | AS38: 0 | AT38: 0 | AU38: 0 | AV38: 0 | AW38: 0 | AX38: 0 | AY38: 0 | AZ38: 0 | BA38: 0 | BB38: 0 | BC38: 0 | BD38: 0 | BE38: 0 | BF38: 0 | BG38: 0 | BH38: 0 | BI38: 0 | BJ38: 0 | BK38: 0 | BL38: 0 | BM38: 0 | BN38: 0 | BO38: 0 | BP38: 0
B40: ADICIONAL NOTURNO
B42: INCIDÊNCIA (PERCENTUAL)
D43: 0.4 | E43: 0.4 | F43: 0.4 | G43: 0.4 | H43: 0.4 | I43: 0.4 | J43: 0.4 | K43: 0.4 | L43: 0.4 | M43: 0.4 | N43: 0.4 | O43: 0.4 | P43: 0.4 | Q43: 0.4 | R43: 0.4 | S43: 0.4 | T43: 0.4 | U43: 0.4 | V43: 0.4 | W43: 0.4 | X43: 0.4 | Y43: 0.4 | Z43: 0.4 | AA43: 0.4 | AB43: 0.4 | AC43: 0.4 | AD43: 0.4 | AE43: 0.4 | AF43: 0.4 | AG43: 0.4 | AH43: 0.4 | AI43: 0.4 | AJ43: 0.4 | AK43: 0.4 | AL43: 0.4 | AM43: 0.4 | AN43: 0.4 | AO43: 0.4 | AP43: 0.4 | AQ43: 0.4 | AR43: 0.4 | AS43: 0.4 | AT43: 0.4 | AU43: 0.4 | AV43: 0.4 | AW43: 0.4 | AX43: 0.4 | AY43: 0.4 | AZ43: 0.4 | BA43: 0.4 | BB43: 0.4 | BC43: 0.4 | BD43: 0.4 | BE43: 0.4 | BF43: 0.4 | BG43: 0.4 | BH43: 0.4 | BI43: 0.4 | BJ43: 0.4 | BK43: 0.4 | BL43: 0.4 | BM43: 0.4 | BN43: 0.4 | BO43: 0.4 | BP43: 0.4
B44: HORAS REAIS POR DIA
D45: 0 | E45: 0 | F45: 0 | G45: 0 | H45: 0 | I45: 0 | J45: 0 | K45: 0 | L45: 0 | M45: 0 | N45: 0 | O45: 0 | P45: 0 | Q45: 0 | R45: 0 | S45: 0 | T45: 0 | U45: 0 | V45: 0 | W45: 0 | X45: 0 | Y45: 0 | Z45: 0 | AA45: 0 | AB45: 0 | AC45: 2 | AD45: 0 | AE45: 0 | AF45: 0 | AG45: 0 | AH45: 0 | AI45: 0 | AJ45: 0 | AK45: 0 | AL45: 0 | AM45: 0 | AN45: 0 | AO45: 0 | AP45: 0 | AQ45: 0 | AR45: 0 | AS45: 0 | AT45: 0 | AU45: 0 | AV45: 0 | AW45: 0 | AX45: 0 | AY45: 0 | AZ45: 0 | BA45: 0 | BB45: 0 | BC45: 0 | BD45: 0 | BE45: 0 | BF45: 0 | BG45: 0 | BH45: 0 | BI45: 0 | BJ45: 0 | BK45: 0 | BL45: 0 | BM45: 0 | BN45: 0 | BO45: 0 | BP45: 0
B46: HORAS FICTAS POR DIA
D47: =D45*8/7 -> 0 | E47: =E45*8/7 -> 0 | F47: =F45*8/7 -> 0 | G47: 0 | H47: 0 | I47: 0 | J47: 0 | K47: 0 | L47: 0 | M47: 0 | N47: 0 | O47: 0 | P47: 0 | Q47: 0 | R47: 0 | S47: 0 | T47: 0 | U47: 0 | V47: 0 | W47: 0 | X47: 0 | Y47: 0 | Z47: =Z45*8/7 -> 0 | AA47: 0 | AB47: 0 | AC47: 2.285714286 | AD47: 0 | AE47: 0 | AF47: 0 | AG47: 0 | AH47: 0 | AI47: 0 | AJ47: 0 | AK47: 0 | AL47: 0 | AM47: 0 | AN47: 0 | AO47: 0 | AP47: 0 | AQ47: 0 | AR47: 0 | AS47: 0 | AT47: 0 | AU47: 0 | AV47: 0 | AW47: 0 | AX47: 0 | AY47: 0 | AZ47: 0 | BA47: 0 | BB47: 0 | BC47: 0 | BD47: 0 | BE47: 0 | BF47: 0 | BG47: 0 | BH47: 0 | BI47: 0 | BJ47: 0 | BK47: 0 | BL47: 0 | BM47: 0 | BN47: 0 | BO47: 0 | BP47: 0
B48: BASE DE CÁLCULO DO ADICIONAL NOTURNO (INCLUINDO ADICIONAIS E GRATIFICAÇÕES)
D49: =D12+D30+D36+D38 -> 6768.58 | E49: =E12+E30+E36+E38 -> 5414.86 | F49: =F12+F30+F36+F38 -> 3503.27 | G49: 2101.96 | H49: 3363.14 | I49: 3503.27 | J49: 2802.61 | K49: 2101.96 | L49: 6183.47 | M49: 3710.08 | N49: 9463.85 | O49: 3919.56 | P49: 3135.65 | Q49: 5137.18 | R49: 4610.96 | S49: 2766.58 | T49: 6172.03 | U49: 4937.63 | V49: 3703.22 | W49: 5253.88 | X49: 4203.11 | Y49: =Y12+Y30+Y36+Y38 -> 4103.82 | Z49: 2462.29 | AA49: 3523.83 | AB49: =AB12+AB30+AB36+AB38 -> 2114.3 | AC49: 5241.68 | AD49: 5241.68 | AE49: 10350.08 | AF49: 15074.64 | AG49: 5285.84 | AH49: 4228.67 | AI49: 3171.51 | AJ49: 4404.1 | AK49: 3503.27 | AL49: 5838.54 | AM49: 4670.83 | AN49: 8173.96 | AO49: 10767.6 | AP49: 7394.88 | AQ49: 4441.67 | AR49: 3888.67 | AS49: 8726.69 | AT49: 6768.58 | AU49: 6768.58 | AV49: 10072.74 | AW49: 12343.52 | AX49: 5473.32 | AY49: 4378.65 | AZ49: 6407.04 | BA49: 5253.88 | BB49: 5996.166 | BC49: 4996.805 | BD49: 10952.32 | BE49: 8794.35 | BF49: 7538.01 | BG49: 6281.68 | BH49: 3769.01 | BI49: 12343.52 | BJ49: 12343.52 | BK49: 7406.11 | BL49: 4446.64 | BM49: 8725.11 | BN49: 6980.09 | BO49: 5235.07 | BP49: 3666.59
B50: VALOR MENSAL DO ADICIONAL NOTURNO (HORA NORMAL + HORA REDUZIDA) - POR POSTO
D51: =ROUND(D47*D18*D43*D49/D17,2) -> 0 | E51: 0 | F51: =ROUND(F47*F18*F43*F49/F17,2) -> 0 | G51: 0 | H51: 0 | I51: 0 | J51: 0 | K51: 0 | L51: 0 | M51: 0 | N51: 0 | O51: 0 | P51: 0 | Q51: 0 | R51: 0 | S51: 0 | T51: 0 | U51: 0 | V51: 0 | W51: 0 | X51: 0 | Y51: =ROUND(Y47*Y18*Y43*Y49/Y17,2) -> 0 | Z51: 0 | AA51: 0 | AB51: =ROUND(AB47*AB18*AB43*AB49/AB17,2) -> 0 | AC51: 702.88 | AD51: 0 | AE51: 0 | AF51: 0 | AG51: 0 | AH51: 0 | AI51: 0 | AJ51: 0 | AK51: 0 | AL51: 0 | AM51: 0 | AN51: 0 | AO51: 0 | AP51: 0 | AQ51: 0 | AR51: 0 | AS51: 0 | AT51: 0 | AU51: 0 | AV51: 0 | AW51: 0 | AX51: 0 | AY51: 0 | AZ51: 0 | BA51: 0 | BB51: 0 | BC51: 0 | BD51: 0 | BE51: 0 | BF51: 0 | BG51: 0 | BH51: 0 | BI51: 0 | BJ51: 0 | BK51: 0 | BL51: 0 | BM51: 0 | BN51: 0 | BO51: 0 | BP51: 0
B53: ADICIONAL DE HORA EXTRA
B55: INCIDÊNCIA (PERCENTUAL 1)
D56: 0.5 | E56: 0.5 | F56: 0.5 | G56: 0.5 | H56: 0.5 | I56: 0.5 | J56: 0.5 | K56: 0.5 | L56: 0.5 | M56: 0.5 | N56: 0.5 | O56: 0.5 | P56: 0.5 | Q56: 0.5 | R56: 0.5 | S56: 0.5 | T56: 0.5 | U56: 0.5 | V56: 0.5 | W56: 0.5 | X56: 0.5 | Y56: 0.5 | Z56: 0.5 | AA56: 0.5 | AB56: 0.5 | AC56: 0.5 | AD56: 0.5 | AE56: 0.5 | AF56: 0.5 | AG56: 0.5 | AH56: 0.5 | AI56: 0.5 | AJ56: 0.5 | AK56: 0.5 | AL56: 0.5 | AM56: 0.5 | AN56: 0.5 | AO56: 0.5 | AP56: 0.5 | AQ56: 0.5 | AR56: 0.5 | AS56: 0.5 | AT56: 0.5 | AU56: 0.5 | AV56: 0.5 | AW56: 0.5 | AX56: 0.5 | AY56: 0.5 | AZ56: 0.5 | BA56: 0.5 | BB56: 0.5 | BC56: 0.5 | BD56: 0.5 | BE56: 0.5 | BF56: 0.5 | BG56: 0.5 | BH56: 0.5 | BI56: 0.5 | BJ56: 0.5 | BK56: 0.5 | BL56: 0.5 | BM56: 0.5 | BN56: 0.5 | BO56: 0.5 | BP56: 0.5
B57: HORAS EXTRAS POR MÊS (PERCENTUAL 1)
D58: 0 | E58: 0 | F58: 0 | G58: 0 | H58: 0 | I58: 0 | J58: 0 | K58: 0 | L58: 0 | M58: 0 | N58: 0 | O58: 0 | P58: 0 | Q58: 0 | R58: 0 | S58: 0 | T58: 0 | U58: 0 | V58: 0 | W58: 0 | X58: 0 | Y58: 0 | Z58: 0 | AA58: 0 | AB58: 0 | AC58: 0 | AD58: 0 | AE58: 0 | AF58: 0 | AG58: 0 | AH58: 0 | AI58: 0 | AJ58: 0 | AK58: 0 | AL58: 0 | AM58: 0 | AN58: 0 | AO58: 0 | AP58: 0 | AQ58: 0 | AR58: 0 | AS58: 0 | AT58: 0 | AU58: 0 | AV58: 0 | AW58: 0 | AX58: 0 | AY58: 0 | AZ58: 0 | BA58: 0 | BB58: 0 | BC58: 0 | BD58: 0 | BE58: 0 | BF58: 0 | BG58: 0 | BH58: 0 | BI58: 0 | BJ58: 0 | BK58: 0 | BL58: 0 | BM58: 0 | BN58: 0 | BO58: 0 | BP58: 0
B59: VALOR MENSAL DO ADICIONAL DE HORAS EXTRAS (PERCENTUAL 1) - POR POSTO
D60: =ROUND(D58*D56*D12/D17,2) -> 0 | E60: =ROUND(E58*E56*E12/E17,2) -> 0 | F60: =ROUND(F58*F56*F12/F17,2) -> 0 | G60: 0 | H60: 0 | I60: 0 | J60: 0 | K60: 0 | L60: 0 | M60: 0 | N60: 0 | O60: 0 | P60: 0 | Q60: 0 | R60: 0 | S60: 0 | T60: 0 | U60: 0 | V60: 0 | W60: 0 | X60: 0 | Y60: 0 | Z60: 0 | AA60: 0 | AB60: 0 | AC60: 0 | AD60: 0 | AE60: 0 | AF60: 0 | AG60: 0 | AH60: 0 | AI60: 0 | AJ60: 0 | AK60: 0 | AL60: 0 | AM60: 0 | AN60: 0 | AO60: 0 | AP60: 0 | AQ60: 0 | AR60: 0 | AS60: 0 | AT60: 0 | AU60: 0 | AV60: 0 | AW60: 0 | AX60: 0 | AY60: 0 | AZ60: 0 | BA60: 0 | BB60: 0 | BC60: 0 | BD60: 0 | BE60: 0 | BF60: 0 | BG60: 0 | BH60: 0 | BI60: 0 | BJ60: 0 | BK60: 0 | BL60: 0 | BM60: 0 | BN60: 0 | BO60: 0 | BP60: 0
B61: INCIDÊNCIA (PERCENTUAL 2)
D62: 1 | E62: 1 | F62: 1 | G62: 1 | H62: 1 | I62: 1 | J62: 1 | K62: 1 | L62: 1 | M62: 1 | N62: 1 | O62: 1 | P62: 1 | Q62: 1 | R62: 1 | S62: 1 | T62: 1 | U62: 1 | V62: 1 | W62: 1 | X62: 1 | Y62: 1 | Z62: 1 | AA62: 1 | AB62: 1 | AC62: 1 | AD62: 1 | AE62: 1 | AF62: 1 | AG62: 1 | AH62: 1 | AI62: 1 | AJ62: 1 | AK62: 1 | AL62: 1 | AM62: 1 | AN62: 1 | AO62: 1 | AP62: 1 | AQ62: 1 | AR62: 1 | AS62: 1 | AT62: 1 | AU62: 1 | AV62: 1 | AW62: 1 | AX62: 1 | AY62: 1 | AZ62: 1 | BA62: 1 | BB62: 1 | BC62: 1 | BD62: 1 | BE62: 1 | BF62: 1 | BG62: 1 | BH62: 1 | BI62: 1 | BJ62: 1 | BK62: 1 | BL62: 1 | BM62: 1 | BN62: 1 | BO62: 1 | BP62: 1
B63: HORAS EXTRAS POR MÊS (PERCENTUAL 2)
D64: 0 | E64: 0 | F64: 0 | G64: 0 | H64: 0 | I64: 0 | J64: 0 | K64: 0 | L64: 0 | M64: 0 | N64: 0 | O64: 0 | P64: 0 | Q64: 0 | R64: 0 | S64: 0 | T64: 0 | U64: 0 | V64: 0 | W64: 0 | X64: 0 | Y64: 0 | Z64: 0 | AA64: 0 | AB64: 0 | AC64: 0 | AD64: 0 | AE64: 0 | AF64: 0 | AG64: 0 | AH64: 0 | AI64: 0 | AJ64: 0 | AK64: 0 | AL64: 0 | AM64: 0 | AN64: 0 | AO64: 0 | AP64: 0 | AQ64: 0 | AR64: 0 | AS64: 0 | AT64: 0 | AU64: 0 | AV64: 0 | AW64: 0 | AX64: 0 | AY64: 0 | AZ64: 0 | BA64: 0 | BB64: 0 | BC64: 0 | BD64: 0 | BE64: 0 | BF64: 0 | BG64: 0 | BH64: 0 | BI64: 0 | BJ64: 0 | BK64: 0 | BL64: 0 | BM64: 0 | BN64: 0 | BO64: 0 | BP64: 0
B65: VALOR MENSAL DO ADICIONAL DE HORAS EXTRAS (PERCENTUAL 2) - POR POSTO
D66: =ROUND(D64*D62*D12/D17,2) -> 0 | E66: =ROUND(E64*E62*E12/E17,2) -> 0 | F66: =ROUND(F64*F62*F12/F17,2) -> 0 | G66: 0 | H66: 0 | I66: 0 | J66: 0 | K66: 0 | L66: 0 | M66: 0 | N66: 0 | O66: 0 | P66: 0 | Q66: 0 | R66: 0 | S66: 0 | T66: 0 | U66: 0 | V66: 0 | W66: 0 | X66: 0 | Y66: 0 | Z66: 0 | AA66: 0 | AB66: 0 | AC66: 0 | AD66: 0 | AE66: 0 | AF66: 0 | AG66: 0 | AH66: 0 | AI66: 0 | AJ66: 0 | AK66: 0 | AL66: 0 | AM66: 0 | AN66: 0 | AO66: 0 | AP66: 0 | AQ66: 0 | AR66: 0 | AS66: 0 | AT66: 0 | AU66: 0 | AV66: 0 | AW66: 0 | AX66: 0 | AY66: 0 | AZ66: 0 | BA66: 0 | BB66: 0 | BC66: 0 | BD66: 0 | BE66: 0 | BF66: 0 | BG66: 0 | BH66: 0 | BI66: 0 | BJ66: 0 | BK66: 0 | BL66: 0 | BM66: 0 | BN66: 0 | BO66: 0 | BP66: 0
B67: TOTAL MENSAL DOS ADICIONAIS DE HORAS EXTRAS - POR POSTO
D68: =D66+D60 -> 0 | E68: =E66+E60 -> 0 | F68: =F66+F60 -> 0 | G68: 0 | H68: 0 | I68: 0 | J68: 0 | K68: 0 | L68: 0 | M68: 0 | N68: 0 | O68: 0 | P68: 0 | Q68: 0 | R68: 0 | S68: 0 | T68: 0 | U68: 0 | V68: 0 | W68: 0 | X68: 0 | Y68: 0 | Z68: 0 | AA68: 0 | AB68: 0 | AC68: 0 | AD68: 0 | AE68: 0 | AF68: 0 | AG68: 0 | AH68: 0 | AI68: 0 | AJ68: 0 | AK68: 0 | AL68: 0 | AM68: 0 | AN68: 0 | AO68: 0 | AP68: 0 | AQ68: 0 | AR68: 0 | AS68: 0 | AT68: 0 | AU68: 0 | AV68: 0 | AW68: 0 | AX68: 0 | AY68: 0 | AZ68: 0 | BA68: 0 | BB68: 0 | BC68: 0 | BD68: 0 | BE68: 0 | BF68: 0 | BG68: 0 | BH68: 0 | BI68: 0 | BJ68: 0 | BK68: 0 | BL68: 0 | BM68: 0 | BN68: 0 | BO68: 0 | BP68: 0
B70: BENEFÍCIOS COMUNS - AUXÍLIO TRANSPORTE
B72: DISTRIBUIÇÃO ESTIMADA DE PROCEDÊNCIA
C73: Cidade-satélite | D73: 0.68 | E73: =D73 -> 0.68 | F73: =E73 -> 0.68 | G73: 0.68 | H73: 0.68 | I73: 0.68 | J73: 0.68 | K73: 0.68 | L73: 0.68 | M73: 0.68 | N73: 0.68 | O73: 0.68 | P73: 0.68 | Q73: 0.68 | R73: 0.68 | S73: 0.68 | T73: 0.68 | U73: 0.68 | V73: 0.68 | W73: 0.68 | X73: 0.68 | Y73: 0.68 | Z73: 0.68 | AA73: 0.68 | AB73: 0.68 | AC73: 0.68 | AD73: 0.68 | AE73: 0.68 | AF73: 0.68 | AG73: 0.68 | AH73: 0.68 | AI73: 0.68 | AJ73: 0.68 | AK73: 0.68 | AL73: 0.68 | AM73: 0.68 | AN73: 0.68 | AO73: 0.68 | AP73: 0.68 | AQ73: 0.68 | AR73: 0.68 | AS73: 0.68 | AT73: 0.68 | AU73: 0.68 | AV73: 0.68 | AW73: 0.68 | AX73: 0.68 | AY73: 0.68 | AZ73: 0.68 | BA73: 0.68 | BB73: 0.68 | BC73: 0.68 | BD73: 0.68 | BE73: 0.68 | BF73: 0.68 | BG73: 0.68 | BH73: 0.68 | BI73: 0.68 | BJ73: 0.68 | BK73: 0.68 | BL73: 0.68 | BM73: 0.68 | BN73: 0.68 | BO73: 0.68 | BP73: 0.68
C74: Região do entorno | D74: 0.32 | E74: =D74 -> 0.32 | F74: =E74 -> 0.32 | G74: 0.32 | H74: 0.32 | I74: 0.32 | J74: 0.32 | K74: 0.32 | L74: 0.32 | M74: 0.32 | N74: 0.32 | O74: 0.32 | P74: 0.32 | Q74: 0.32 | R74: 0.32 | S74: 0.32 | T74: 0.32 | U74: 0.32 | V74: 0.32 | W74: 0.32 | X74: 0.32 | Y74: 0.32 | Z74: 0.32 | AA74: 0.32 | AB74: 0.32 | AC74: 0.32 | AD74: 0.32 | AE74: 0.32 | AF74: 0.32 | AG74: 0.32 | AH74: 0.32 | AI74: 0.32 | AJ74: 0.32 | AK74: 0.32 | AL74: 0.32 | AM74: 0.32 | AN74: 0.32 | AO74: 0.32 | AP74: 0.32 | AQ74: 0.32 | AR74: 0.32 | AS74: 0.32 | AT74: 0.32 | AU74: 0.32 | AV74: 0.32 | AW74: 0.32 | AX74: 0.32 | AY74: 0.32 | AZ74: 0.32 | BA74: 0.32 | BB74: 0.32 | BC74: 0.32 | BD74: 0.32 | BE74: 0.32 | BF74: 0.32 | BG74: 0.32 | BH74: 0.32 | BI74: 0.32 | BJ74: 0.32 | BK74: 0.32 | BL74: 0.32 | BM74: 0.32 | BN74: 0.32 | BO74: 0.32 | BP74: 0.32
C75: Esplanada - apenas para os que vêm do entorno | D75: =D74 -> 0.32 | E75: =D75 -> 0.32 | F75: =E75 -> 0.32 | G75: 0.32 | H75: 0.32 | I75: 0.32 | J75: 0.32 | K75: 0.32 | L75: 0.32 | M75: 0.32 | N75: 0.32 | O75: 0.32 | P75: 0.32 | Q75: 0.32 | R75: 0.32 | S75: 0.32 | T75: 0.32 | U75: 0.32 | V75: 0.32 | W75: 0.32 | X75: 0.32 | Y75: 0.32 | Z75: 0.32 | AA75: 0.32 | AB75: 0.32 | AC75: 0.32 | AD75: 0.32 | AE75: 0.32 | AF75: 0.32 | AG75: 0.32 | AH75: 0.32 | AI75: 0.32 | AJ75: 0.32 | AK75: 0.32 | AL75: 0.32 | AM75: 0.32 | AN75: 0.32 | AO75: 0.32 | AP75: 0.32 | AQ75: 0.32 | AR75: 0.32 | AS75: 0.32 | AT75: 0.32 | AU75: 0.32 | AV75: 0.32 | AW75: 0.32 | AX75: 0.32 | AY75: 0.32 | AZ75: 0.32 | BA75: 0.32 | BB75: 0.32 | BC75: 0.32 | BD75: 0.32 | BE75: 0.32 | BF75: 0.32 | BG75: 0.32 | BH75: 0.32 | BI75: 0.32 | BJ75: 0.32 | BK75: 0.32 | BL75: 0.32 | BM75: 0.32 | BN75: 0.32 | BO75: 0.32 | BP75: 0.32
B76: VALORES DOS VALES
C77: Cidade-satélite | D77: 5.5 | E77: =D77 -> 5.5 | F77: =E77 -> 5.5 | G77: 5.5 | H77: 5.5 | I77: 5.5 | J77: 5.5 | K77: 5.5 | L77: 5.5 | M77: 5.5 | N77: 5.5 | O77: 5.5 | P77: 5.5 | Q77: 5.5 | R77: 5.5 | S77: 5.5 | T77: 5.5 | U77: 5.5 | V77: 5.5 | W77: 5.5 | X77: 5.5 | Y77: 5.5 | Z77: 5.5 | AA77: 5.5 | AB77: 5.5 | AC77: 5.5 | AD77: 5.5 | AE77: 5.5 | AF77: 5.5 | AG77: 5.5 | AH77: 5.5 | AI77: 5.5 | AJ77: 5.5 | AK77: 5.5 | AL77: 5.5 | AM77: 5.5 | AN77: 5.5 | AO77: 5.5 | AP77: 5.5 | AQ77: 5.5 | AR77: 5.5 | AS77: 5.5 | AT77: 5.5 | AU77: 5.5 | AV77: 5.5 | AW77: 5.5 | AX77: 5.5 | AY77: 5.5 | AZ77: 5.5 | BA77: 5.5 | BB77: 5.5 | BC77: 5.5 | BD77: 5.5 | BE77: 5.5 | BF77: 5.5 | BG77: 5.5 | BH77: 5.5 | BI77: 5.5 | BJ77: 5.5 | BK77: 5.5 | BL77: 5.5 | BM77: 5.5 | BN77: 5.5 | BO77: 5.5 | BP77: 5.5
C78: Região do entorno | D78: 9.59 | E78: =D78 -> 9.59 | F78: =E78 -> 9.59 | G78: 9.59 | H78: 9.59 | I78: 9.59 | J78: 9.59 | K78: 9.59 | L78: 9.59 | M78: 9.59 | N78: 9.59 | O78: 9.59 | P78: 9.59 | Q78: 9.59 | R78: 9.59 | S78: 9.59 | T78: 9.59 | U78: 9.59 | V78: 9.59 | W78: 9.59 | X78: 9.59 | Y78: 9.59 | Z78: 9.59 | AA78: 9.59 | AB78: 9.59 | AC78: 9.59 | AD78: 9.59 | AE78: 9.59 | AF78: 9.59 | AG78: 9.59 | AH78: 9.59 | AI78: 9.59 | AJ78: 9.59 | AK78: 9.59 | AL78: 9.59 | AM78: 9.59 | AN78: 9.59 | AO78: 9.59 | AP78: 9.59 | AQ78: 9.59 | AR78: 9.59 | AS78: 9.59 | AT78: 9.59 | AU78: 9.59 | AV78: 9.59 | AW78: 9.59 | AX78: 9.59 | AY78: 9.59 | AZ78: 9.59 | BA78: 9.59 | BB78: 9.59 | BC78: 9.59 | BD78: 9.59 | BE78: 9.59 | BF78: 9.59 | BG78: 9.59 | BH78: 9.59 | BI78: 9.59 | BJ78: 9.59 | BK78: 9.59 | BL78: 9.59 | BM78: 9.59 | BN78: 9.59 | BO78: 9.59 | BP78: 9.59
C79: Esplanada | D79: 2.75 | E79: =D79 -> 2.75 | F79: =E79 -> 2.75 | G79: 2.75 | H79: 2.75 | I79: 2.75 | J79: 2.75 | K79: 2.75 | L79: 2.75 | M79: 2.75 | N79: 2.75 | O79: 2.75 | P79: 2.75 | Q79: 2.75 | R79: 2.75 | S79: 2.75 | T79: 2.75 | U79: 2.75 | V79: 2.75 | W79: 2.75 | X79: 2.75 | Y79: 2.75 | Z79: 2.75 | AA79: 2.75 | AB79: 2.75 | AC79: 2.75 | AD79: 2.75 | AE79: 2.75 | AF79: 2.75 | AG79: 2.75 | AH79: 2.75 | AI79: 2.75 | AJ79: 2.75 | AK79: 2.75 | AL79: 2.75 | AM79: 2.75 | AN79: 2.75 | AO79: 2.75 | AP79: 2.75 | AQ79: 2.75 | AR79: 2.75 | AS79: 2.75 | AT79: 2.75 | AU79: 2.75 | AV79: 2.75 | AW79: 2.75 | AX79: 2.75 | AY79: 2.75 | AZ79: 2.75 | BA79: 2.75 | BB79: 2.75 | BC79: 2.75 | BD79: 2.75 | BE79: 2.75 | BF79: 2.75 | BG79: 2.75 | BH79: 2.75 | BI79: 2.75 | BJ79: 2.75 | BK79: 2.75 | BL79: 2.75 | BM79: 2.75 | BN79: 2.75 | BO79: 2.75 | BP79: 2.75
B80: VALOR MENSAL BRUTO DE PAGAMENTO - POR POSTO
D81: =ROUND((D73*D77+D74*D78+D75*D79)*2*D18,2) -> 338.31 | E81: =ROUND((E73*E77+E74*E78+E75*E79)*2*E18,2) -> 276.8 | F81: =ROUND((F73*F77+F74*F78+F75*F79)*2*F18,2) -> 338.31 | G81: 215.29 | H81: 276.8 | I81: 338.31 | J81: 276.8 | K81: 215.29 | L81: 338.31 | M81: 215.29 | N81: 338.31 | O81: 338.31 | P81: 276.8 | Q81: 338.31 | R81: 338.31 | S81: 215.29 | T81: 338.31 | U81: 276.8 | V81: 215.29 | W81: 338.31 | X81: 276.8 | Y81: 338.31 | Z81: 215.29 | AA81: 338.31 | AB81: 215.29 | AC81: 338.31 | AD81: 338.31 | AE81: 338.31 | AF81: 338.31 | AG81: 338.31 | AH81: 276.8 | AI81: 215.29 | AJ81: 338.31 | AK81: 338.31 | AL81: 338.31 | AM81: 276.8 | AN81: 338.31 | AO81: 338.31 | AP81: 338.31 | AQ81: 338.31 | AR81: 215.29 | AS81: 338.31 | AT81: 338.31 | AU81: 338.31 | AV81: 276.8 | AW81: 338.31 | AX81: 338.31 | AY81: 276.8 | AZ81: 338.31 | BA81: 338.31 | BB81: 338.31 | BC81: 338.31 | BD81: 338.31 | BE81: 338.31 | BF81: 338.31 | BG81: 338.31 | BH81: 215.29 | BI81: 338.31 | BJ81: 338.31 | BK81: 215.29 | BL81: 338.31 | BM81: 338.31 | BN81: 276.8 | BO81: 215.29 | BP81: 338.31
B82: PERCENTUAL DE DESCONTO
D83: 0.06 | E83: 0.06 | F83: 0.06 | G83: 0.06 | H83: 0.06 | I83: 0.06 | J83: 0.06 | K83: 0.06 | L83: 0.06 | M83: 0.06 | N83: 0.06 | O83: 0.06 | P83: 0.06 | Q83: 0.06 | R83: 0.06 | S83: 0.06 | T83: 0.06 | U83: 0.06 | V83: 0.06 | W83: 0.06 | X83: 0.06 | Y83: 0.06 | Z83: 0.06 | AA83: 0.06 | AB83: 0.06 | AC83: 0.06 | AD83: 0.06 | AE83: 0.06 | AF83: 0.06 | AG83: 0.06 | AH83: 0.06 | AI83: 0.06 | AJ83: 0.06 | AK83: 0.06 | AL83: 0.06 | AM83: 0.06 | AN83: 0.06 | AO83: 0.06 | AP83: 0.06 | AQ83: 0.06 | AR83: 0.06 | AS83: 0.06 | AT83: 0.06 | AU83: 0.06 | AV83: 0.06 | AW83: 0.06 | AX83: 0.06 | AY83: 0.06 | AZ83: 0.06 | BA83: 0.06 | BB83: 0.06 | BC83: 0.06 | BD83: 0.06 | BE83: 0.06 | BF83: 0.06 | BG83: 0.06 | BH83: 0.06 | BI83: 0.06 | BJ83: 0.06 | BK83: 0.06 | BL83: 0.06 | BM83: 0.06 | BN83: 0.06 | BO83: 0.06 | BP83: 0.06
B84: VALOR MENSAL DO DESCONTO - POR POSTO
D85: =ROUND(D83*D12,2) -> 406.11 | E85: 324.89 | F85: =ROUND(F83*F12,2) -> 210.2 | G85: 126.12 | H85: 201.79 | I85: 210.2 | J85: 168.16 | K85: 126.12 | L85: 371.01 | M85: 222.6 | N85: 567.83 | O85: 235.17 | P85: 188.14 | Q85: 308.23 | R85: 276.66 | S85: 165.99 | T85: 370.32 | U85: 296.26 | V85: 222.19 | W85: 315.23 | X85: 252.19 | Y85: 246.23 | Z85: 147.74 | AA85: 211.43 | AB85: 126.86 | AC85: 314.5 | AD85: 314.5 | AE85: 621 | AF85: 904.48 | AG85: 317.15 | AH85: 253.72 | AI85: 190.29 | AJ85: 264.25 | AK85: 210.2 | AL85: 350.31 | AM85: 280.25 | AN85: 490.44 | AO85: 646.06 | AP85: 443.69 | AQ85: 266.5 | AR85: 233.32 | AS85: 523.6 | AT85: 406.11 | AU85: 406.11 | AV85: 604.36 | AW85: 740.61 | AX85: 328.4 | AY85: 262.72 | AZ85: 384.42 | BA85: 315.23 | BB85: 359.77 | BC85: 299.81 | BD85: 657.14 | BE85: 527.66 | BF85: 452.28 | BG85: 376.9 | BH85: 226.14 | BI85: 740.61 | BJ85: 740.61 | BK85: 444.37 | BL85: 266.8 | BM85: 523.51 | BN85: 418.81 | BO85: 314.1 | BP85: 220
B86: VALOR MENSAL LÍQUIDO DO VALE TRANSPORTE - POR POSTO
D87: =IF(D81>D85,D81-D85,0) -> 0 | E87: 0 | F87: =IF(F81>F85,F81-F85,0) -> 128.11 | G87: 89.17 | H87: 75.01 | I87: 128.11 | J87: 108.64 | K87: 89.17 | L87: 0 | M87: 0 | N87: 0 | O87: 103.14 | P87: 88.66 | Q87: 30.08 | R87: 61.65 | S87: 49.3 | T87: 0 | U87: 0 | V87: =IF(V81>V85,V81-V85,0) -> 0 | W87: 23.08 | X87: 24.61 | Y87: 92.08 | Z87: 67.55 | AA87: 126.88 | AB87: 88.43 | AC87: 23.81 | AD87: 23.81 | AE87: 0 | AF87: 0 | AG87: 21.16 | AH87: 23.08 | AI87: 25 | AJ87: 74.06 | AK87: 128.11 | AL87: 0 | AM87: 0 | AN87: 0 | AO87: 0 | AP87: 0 | AQ87: 71.81 | AR87: 0 | AS87: 0 | AT87: 0 | AU87: 0 | AV87: 0 | AW87: 0 | AX87: 9.91 | AY87: 14.08 | AZ87: 0 | BA87: 23.08 | BB87: 0 | BC87: 38.5 | BD87: 0 | BE87: 0 | BF87: 0 | BG87: 0 | BH87: 0 | BI87: 0 | BJ87: 0 | BK87: 0 | BL87: 71.51 | BM87: 0 | BN87: 0 | BO87: 0 | BP87: 118.31
D88: =D87*D14 -> 0 | E88: =E87*E14 -> 0 | F88: 2962.54 | G88: =G87*G14 -> 178.34 | H88: =H87*H14 -> 150.02 | I88: =I87*I14 -> 896.77 | J88: =J87*J14 -> 325.92
B89: BENEFÍCIOS COMUNS - AUXÍLIO ALIMENTAÇÃO
C91: VALOR CCT | D91: 40.96 | E91: =D91 -> 40.96 | F91: =E91 -> 40.96 | G91: 40.96 | H91: 40.96 | I91: 40.96 | J91: 40.96 | K91: 40.96 | L91: 40.96 | M91: 40.96 | N91: 40.96 | O91: 40.96 | P91: 40.96 | Q91: 40.96 | R91: 40.96 | S91: 40.96 | T91: 40.96 | U91: 40.96 | V91: 40.96 | W91: 40.96 | X91: 40.96 | Y91: 40.96 | Z91: 40.96 | AA91: 40.96 | AB91: 40.96 | AC91: 40.96 | AD91: 40.96 | AE91: 40.96 | AF91: 40.96 | AG91: 40.96 | AH91: 40.96 | AI91: 40.96 | AJ91: 40.96 | AK91: 40.96 | AL91: 40.96 | AM91: 40.96 | AN91: 40.96 | AO91: 40.96 | AP91: 40.96 | AQ91: 40.96 | AR91: 40.96 | AS91: 40.96 | AT91: 40.96 | AU91: 40.96 | AV91: 40.96 | AW91: 40.96 | AX91: 40.96 | AY91: 40.96 | AZ91: 40.96 | BA91: 40.96 | BB91: 40.96 | BC91: 40.96 | BD91: 40.96 | BE91: 40.96 | BF91: 40.96 | BG91: 40.96 | BH91: 40.96 | BI91: 40.96 | BJ91: 40.96 | BK91: 40.96 | BL91: 40.96 | BM91: 40.96 | BN91: 40.96 | BO91: 40.96 | BP91: 40.96
C92: VALOR CD | D92: 35 | E92: =D92 -> 35 | F92: =E92 -> 35 | G92: 35 | H92: 35 | I92: 35 | J92: 35 | K92: 35 | L92: 35 | M92: 35 | N92: 35 | O92: 35 | P92: 35 | Q92: 35 | R92: 35 | S92: 35 | T92: 35 | U92: 35 | V92: 35 | W92: 35 | X92: 35 | Y92: 35 | Z92: 35 | AA92: 35 | AB92: 35 | AC92: 35 | AD92: 35 | AE92: 35 | AF92: 35 | AG92: 35 | AH92: 35 | AI92: 35 | AJ92: 35 | AK92: 35 | AL92: 35 | AM92: 35 | AN92: 35 | AO92: 35 | AP92: 35 | AQ92: 35 | AR92: 35 | AS92: 35 | AT92: 35 | AU92: 35 | AV92: 35 | AW92: 35 | AX92: 35 | AY92: 35 | AZ92: 35 | BA92: 35 | BB92: 35 | BC92: 35 | BD92: 35 | BE92: 35 | BF92: 35 | BG92: 35 | BH92: 35 | BI92: 35 | BJ92: 35 | BK92: 35 | BL92: 35 | BM92: 35 | BN92: 35 | BO92: 35 | BP92: 35
B93: VALOR MENSAL DO AUXÍLIO ALIMENTAÇÃO - POR POSTO
D94: =ROUND(LARGE(D91:D92,1)*D18,2) -> 901.12 | E94: =ROUND(LARGE(E91:E92,1)*E18,2) -> 737.28 | F94: =ROUND(LARGE(F91:F92,1)*F18,2) -> 901.12 | G94: 573.44 | H94: 737.28 | I94: 901.12 | J94: 737.28 | K94: 573.44 | L94: 901.12 | M94: 573.44 | N94: 901.12 | O94: 901.12 | P94: 737.28 | Q94: 901.12 | R94: 901.12 | S94: 573.44 | T94: 901.12 | U94: 737.28 | V94: =ROUND(LARGE(V91:V92,1)*V18,2) -> 573.44 | W94: 901.12 | X94: 737.28 | Y94: 901.12 | Z94: 573.44 | AA94: 901.12 | AB94: 573.44 | AC94: 901.12 | AD94: 901.12 | AE94: 901.12 | AF94: 901.12 | AG94: 901.12 | AH94: 737.28 | AI94: 573.44 | AJ94: 901.12 | AK94: 901.12 | AL94: 901.12 | AM94: 737.28 | AN94: 901.12 | AO94: 901.12 | AP94: 901.12 | AQ94: 901.12 | AR94: 573.44 | AS94: 901.12 | AT94: 901.12 | AU94: 901.12 | AV94: 737.28 | AW94: 901.12 | AX94: 901.12 | AY94: 737.28 | AZ94: 901.12 | BA94: 901.12 | BB94: 901.12 | BC94: 901.12 | BD94: 901.12 | BE94: 901.12 | BF94: 901.12 | BG94: 901.12 | BH94: 573.44 | BI94: 901.12 | BJ94: 901.12 | BK94: 573.44 | BL94: 901.12 | BM94: 901.12 | BN94: 737.28 | BO94: 573.44 | BP94: 901.12
D95: =D94*D14 -> 1802.24 | E95: =E94*E14 -> 1474.56 | F95: 10339.56 | G95: =G94*G14 -> 1146.88 | H95: =H94*H14 -> 1474.56 | I95: =I94*I14 -> 6307.84 | J95: =J94*J14 -> 2211.84
B96: BENEFÍCIOS ESPECIAIS - ASSISTÊNCIA MÉDICA E FAMILIAR
C98: OBRIGAÇÃO DE PAGTO | D98: NÃO | E98: NÃO | F98: NÃO | G98: NÃO | H98: NÃO | I98: NÃO | J98: NÃO | K98: NÃO | L98: NÃO | M98: NÃO | N98: NÃO | O98: NÃO | P98: NÃO | Q98: NÃO | R98: NÃO | S98: NÃO | T98: NÃO | U98: NÃO | V98: NÃO | W98: NÃO | X98: NÃO | Y98: NÃO | Z98: NÃO | AA98: NÃO | AB98: NÃO | AC98: NÃO | AD98: NÃO | AE98: NÃO | AF98: NÃO | AG98: NÃO | AH98: NÃO | AI98: NÃO | AJ98: NÃO | AK98: NÃO | AL98: NÃO | AM98: NÃO | AN98: NÃO | AO98: NÃO | AP98: NÃO | AQ98: NÃO | AR98: NÃO | AS98: NÃO | AT98: NÃO | AU98: NÃO | AV98: NÃO | AW98: NÃO | AX98: NÃO | AY98: NÃO | AZ98: NÃO | BA98: NÃO | BB98: NÃO | BC98: NÃO | BD98: NÃO | BE98: NÃO | BF98: NÃO | BG98: NÃO | BH98: NÃO | BI98: NÃO | BJ98: NÃO | BK98: NÃO | BL98: NÃO | BM98: NÃO | BN98: NÃO | BO98: NÃO | BP98: NÃO
C99: VALOR CCT | D99: 234.73 | E99: =D99 -> 234.73 | F99: =E99 -> 234.73 | G99: 234.73 | H99: 234.73 | I99: 234.73 | J99: 234.73 | K99: 234.73 | L99: 234.73 | M99: 234.73 | N99: 234.73 | O99: 234.73 | P99: 234.73 | Q99: 234.73 | R99: 234.73 | S99: 234.73 | T99: 234.73 | U99: 234.73 | V99: 234.73 | W99: 234.73 | X99: 234.73 | Y99: 234.73 | Z99: 234.73 | AA99: 234.73 | AB99: 234.73 | AC99: 234.73 | AD99: 234.73 | AE99: 234.73 | AF99: 234.73 | AG99: 234.73 | AH99: 234.73 | AI99: 234.73 | AJ99: 234.73 | AK99: 234.73 | AL99: 234.73 | AM99: 234.73 | AN99: 234.73 | AO99: 234.73 | AP99: 234.73 | AQ99: 234.73 | AR99: 234.73 | AS99: 234.73 | AT99: 234.73 | AU99: 234.73 | AV99: 234.73 | AW99: 234.73 | AX99: 234.73 | AY99: 234.73 | AZ99: 234.73 | BA99: 234.73 | BB99: 234.73 | BC99: 234.73 | BD99: 234.73 | BE99: 234.73 | BF99: 234.73 | BG99: 234.73 | BH99: 234.73 | BI99: 234.73 | BJ99: 234.73 | BK99: 234.73 | BL99: 234.73 | BM99: 234.73 | BN99: 234.73 | BO99: 234.73 | BP99: 234.73
C100: VALOR MERCADO | D100: 0 | E100: 0 | F100: 0 | G100: 0 | H100: 0 | I100: 0 | J100: 0 | K100: 0 | L100: 0 | M100: 0 | N100: 0 | O100: 0 | P100: 0 | Q100: 0 | R100: 0 | S100: 0 | T100: 0 | U100: 0 | V100: 0 | W100: 0 | X100: 0 | Y100: 0 | Z100: 0 | AA100: 0 | AB100: 0 | AC100: 0 | AD100: 0 | AE100: 0 | AF100: 0 | AG100: 0 | AH100: 0 | AI100: 0 | AJ100: 0 | AK100: 0 | AL100: 0 | AM100: 0 | AN100: 0 | AO100: 0 | AP100: 0 | AQ100: 0 | AR100: 0 | AS100: 0 | AT100: 0 | AU100: 0 | AV100: 0 | AW100: 0 | AX100: 0 | AY100: 0 | AZ100: 0 | BA100: 0 | BB100: 0 | BC100: 0 | BD100: 0 | BE100: 0 | BF100: 0 | BG100: 0 | BH100: 0 | BI100: 0 | BJ100: 0 | BK100: 0 | BL100: 0 | BM100: 0 | BN100: 0 | BO100: 0 | BP100: 0
B101: VALOR MENSAL DO AUXÍLIO ESPECIAL - ASSISTÊNCIA MÉDICA E FAMILIAR - POR POSTO
D102: =IF(D98="SIM",ROUND(SMALL(D99:D100,1),2)*D18,0) -> 0 | E102: =IF(E98="SIM",ROUND(SMALL(E99:E100,1),2)*E18,0) -> 0 | F102: =IF(F98="SIM",ROUND(SMALL(F99:F100,1),2)*F18,0) -> 0 | G102: 0 | H102: 0 | I102: 0 | J102: 0 | K102: 0 | L102: 0 | M102: 0 | N102: 0 | O102: 0 | P102: 0 | Q102: 0 | R102: 0 | S102: 0 | T102: 0 | U102: 0 | V102: =IF(V98="SIM",ROUND(SMALL(V99:V100,1),2)*V18,0) -> 0 | W102: 0 | X102: 0 | Y102: 0 | Z102: 0 | AA102: 0 | AB102: 0 | AC102: 0 | AD102: 0 | AE102: 0 | AF102: 0 | AG102: 0 | AH102: 0 | AI102: 0 | AJ102: 0 | AK102: 0 | AL102: 0 | AM102: 0 | AN102: 0 | AO102: 0 | AP102: 0 | AQ102: 0 | AR102: 0 | AS102: 0 | AT102: 0 | AU102: 0 | AV102: 0 | AW102: 0 | AX102: 0 | AY102: 0 | AZ102: 0 | BA102: 0 | BB102: 0 | BC102: 0 | BD102: 0 | BE102: 0 | BF102: 0 | BG102: 0 | BH102: 0 | BI102: 0 | BJ102: 0 | BK102: 0 | BL102: 0 | BM102: 0 | BN102: 0 | BO102: 0 | BP102: 0
B104: BENEFÍCIOS ESPECIAIS - SEGURO DE VIDA E AUXÍLIO-FUNERAL, AUX ODONT, AUX CRECHE
B106: SEGURO DE VIDA E AUXÍLIO FUNERAL
C107: OBRIGAÇÃO DE PAGTO | D107: NÃO | E107: =D107 -> NÃO | F107: =E107 -> NÃO | G107: NÃO | H107: NÃO | I107: NÃO | J107: NÃO | K107: NÃO | L107: NÃO | M107: NÃO | N107: NÃO | O107: NÃO | P107: NÃO | Q107: NÃO | R107: NÃO | S107: NÃO | T107: NÃO | U107: NÃO | V107: NÃO | W107: NÃO | X107: NÃO | Y107: NÃO | Z107: NÃO | AA107: NÃO | AB107: NÃO | AC107: NÃO | AD107: NÃO | AE107: NÃO | AF107: NÃO | AG107: NÃO | AH107: NÃO | AI107: NÃO | AJ107: NÃO | AK107: NÃO | AL107: NÃO | AM107: NÃO | AN107: NÃO | AO107: NÃO | AP107: NÃO | AQ107: NÃO | AR107: NÃO | AS107: NÃO | AT107: NÃO | AU107: NÃO | AV107: NÃO | AW107: NÃO | AX107: NÃO | AY107: NÃO | AZ107: NÃO | BA107: NÃO | BB107: NÃO | BC107: NÃO | BD107: NÃO | BE107: NÃO | BF107: NÃO | BG107: NÃO | BH107: NÃO | BI107: NÃO | BJ107: NÃO | BK107: NÃO | BL107: NÃO | BM107: NÃO | BN107: NÃO | BO107: NÃO | BP107: NÃO
C108: VALOR CCT | D108: 3.25 | E108: =D108 -> 3.25 | F108: =E108 -> 3.25 | G108: 3.25 | H108: 3.25 | I108: 3.25 | J108: 3.25 | K108: 3.25 | L108: 3.25 | M108: 3.25 | N108: 3.25 | O108: 3.25 | P108: 3.25 | Q108: 3.25 | R108: 3.25 | S108: 3.25 | T108: 3.25 | U108: 3.25 | V108: 3.25 | W108: 3.25 | X108: 3.25 | Y108: 3.25 | Z108: 3.25 | AA108: 3.25 | AB108: 3.25 | AC108: 3.25 | AD108: 3.25 | AE108: 3.25 | AF108: 3.25 | AG108: 3.25 | AH108: 3.25 | AI108: 3.25 | AJ108: 3.25 | AK108: 3.25 | AL108: 3.25 | AM108: 3.25 | AN108: 3.25 | AO108: 3.25 | AP108: 3.25 | AQ108: 3.25 | AR108: 3.25 | AS108: 3.25 | AT108: 3.25 | AU108: 3.25 | AV108: 3.25 | AW108: 3.25 | AX108: 3.25 | AY108: 3.25 | AZ108: 3.25 | BA108: 3.25 | BB108: 3.25 | BC108: 3.25 | BD108: 3.25 | BE108: 3.25 | BF108: 3.25 | BG108: 3.25 | BH108: 3.25 | BI108: 3.25 | BJ108: 3.25 | BK108: 3.25 | BL108: 3.25 | BM108: 3.25 | BN108: 3.25 | BO108: 3.25 | BP108: 3.25
C109: VALOR MERCADO
B110: VALOR MENSAL DO AUXÍLIO ESPECIAL - SEGURO DE VIDA E AUXÍLIO FUNERAL - POR POSTO
D111: =IF(D107="SIM",ROUND(SMALL(D108:D109,1),2),0) -> 0 | E111: =IF(E107="SIM",ROUND(SMALL(E108:E109,1),2),0) -> 0 | F111: =IF(F107="SIM",ROUND(SMALL(F108:F109,1),2),0) -> 0 | G111: 0 | H111: 0 | I111: 0 | J111: 0 | K111: 0 | L111: 0 | M111: 0 | N111: 0 | O111: 0 | P111: 0 | Q111: 0 | R111: 0 | S111: 0 | T111: 0 | U111: 0 | V111: 0 | W111: 0 | X111: 0 | Y111: 0 | Z111: 0 | AA111: 0 | AB111: 0 | AC111: 0 | AD111: 0 | AE111: 0 | AF111: 0 | AG111: 0 | AH111: 0 | AI111: 0 | AJ111: 0 | AK111: 0 | AL111: 0 | AM111: 0 | AN111: 0 | AO111: 0 | AP111: 0 | AQ111: 0 | AR111: 0 | AS111: 0 | AT111: 0 | AU111: 0 | AV111: 0 | AW111: 0 | AX111: 0 | AY111: 0 | AZ111: 0 | BA111: 0 | BB111: 0 | BC111: 0 | BD111: 0 | BE111: 0 | BF111: 0 | BG111: 0 | BH111: 0 | BI111: 0 | BJ111: 0 | BK111: 0 | BL111: 0 | BM111: 0 | BN111: 0 | BO111: 0 | BP111: 0
B112: AUXÍLIO ODONTOLÓGICO
C113: OBRIGAÇÃO DE PAGTO | D113: NÃO | E113: NÃO | F113: NÃO | G113: NÃO | H113: NÃO | I113: NÃO | J113: NÃO | K113: NÃO | L113: NÃO | M113: NÃO | N113: NÃO | O113: NÃO | P113: NÃO | Q113: NÃO | R113: NÃO | S113: NÃO | T113: NÃO | U113: NÃO | V113: NÃO | W113: NÃO | X113: NÃO | Y113: NÃO | Z113: NÃO | AA113: NÃO | AB113: NÃO | AC113: NÃO | AD113: NÃO | AE113: NÃO | AF113: NÃO | AG113: NÃO | AH113: NÃO | AI113: NÃO | AJ113: NÃO | AK113: NÃO | AL113: NÃO | AM113: NÃO | AN113: NÃO | AO113: NÃO | AP113: NÃO | AQ113: NÃO | AR113: NÃO | AS113: NÃO | AT113: NÃO | AU113: NÃO | AV113: NÃO | AW113: NÃO | AX113: NÃO | AY113: NÃO | AZ113: NÃO | BA113: NÃO | BB113: NÃO | BC113: NÃO | BD113: NÃO | BE113: NÃO | BF113: NÃO | BG113: NÃO | BH113: NÃO | BI113: NÃO | BJ113: NÃO | BK113: NÃO | BL113: NÃO | BM113: NÃO | BN113: NÃO | BO113: NÃO | BP113: NÃO
C114: VALOR CCT | D114: 0 | E114: 0 | F114: 0 | G114: 0 | H114: 0 | I114: 0 | J114: 0 | K114: 0 | L114: 0 | M114: 0 | N114: 0 | O114: 0 | P114: 0 | Q114: 0 | R114: 0 | S114: 0 | T114: 0 | U114: 0 | V114: 0 | W114: 0 | X114: 0 | Y114: 0 | Z114: 0 | AA114: 0 | AB114: 0 | AC114: 0 | AD114: 0 | AE114: 0 | AF114: 0 | AG114: 0 | AH114: 0 | AI114: 0 | AJ114: 0 | AK114: 0 | AL114: 0 | AM114: 0 | AN114: 0 | AO114: 0 | AP114: 0 | AQ114: 0 | AR114: 0 | AS114: 0 | AT114: 0 | AU114: 0 | AV114: 0 | AW114: 0 | AX114: 0 | AY114: 0 | AZ114: 0 | BA114: 0 | BB114: 0 | BC114: 0 | BD114: 0 | BE114: 0 | BF114: 0 | BG114: 0 | BH114: 0 | BI114: 0 | BJ114: 0 | BK114: 0 | BL114: 0 | BM114: 0 | BN114: 0 | BO114: 0 | BP114: 0
C115: VALOR MERCADO | D115: 0 | E115: 0 | F115: 0 | G115: 0 | H115: 0 | I115: 0 | J115: 0 | K115: 0 | L115: 0 | M115: 0 | N115: 0 | O115: 0 | P115: 0 | Q115: 0 | R115: 0 | S115: 0 | T115: 0 | U115: 0 | V115: 0 | W115: 0 | X115: 0 | Y115: 0 | Z115: 0 | AA115: 0 | AB115: 0 | AC115: 0 | AD115: 0 | AE115: 0 | AF115: 0 | AG115: 0 | AH115: 0 | AI115: 0 | AJ115: 0 | AK115: 0 | AL115: 0 | AM115: 0 | AN115: 0 | AO115: 0 | AP115: 0 | AQ115: 0 | AR115: 0 | AS115: 0 | AT115: 0 | AU115: 0 | AV115: 0 | AW115: 0 | AX115: 0 | AY115: 0 | AZ115: 0 | BA115: 0 | BB115: 0 | BC115: 0 | BD115: 0 | BE115: 0 | BF115: 0 | BG115: 0 | BH115: 0 | BI115: 0 | BJ115: 0 | BK115: 0 | BL115: 0 | BM115: 0 | BN115: 0 | BO115: 0 | BP115: 0
B116: VALOR MENSAL DO AUXÍLIO ESPECIAL - SEGURO DE VIDA E AUX FUNERAL - POR POSTO
D117: =IF(D113="SIM",ROUND(SMALL(D114:D115,1),2)*D18,0) -> 0 | E117: =IF(E113="SIM",ROUND(SMALL(E114:E115,1),2)*E18,0) -> 0 | F117: 0 | G117: 0 | H117: 0 | I117: 0 | J117: 0 | K117: 0 | L117: 0 | M117: 0 | N117: 0 | O117: 0 | P117: 0 | Q117: 0 | R117: 0 | S117: 0 | T117: 0 | U117: 0 | V117: 0 | W117: 0 | X117: 0 | Y117: 0 | Z117: 0 | AA117: 0 | AB117: 0 | AC117: 0 | AD117: 0 | AE117: 0 | AF117: 0 | AG117: 0 | AH117: 0 | AI117: 0 | AJ117: 0 | AK117: =IF(AK113="SIM",ROUND(SMALL(AK114:AK115,1),2)*AK18,0) -> 0 | AL117: 0 | AM117: 0 | AN117: 0 | AO117: 0 | AP117: 0 | AQ117: 0 | AR117: 0 | AS117: 0 | AT117: 0 | AU117: 0 | AV117: 0 | AW117: 0 | AX117: 0 | AY117: 0 | AZ117: 0 | BA117: 0 | BB117: 0 | BC117: 0 | BD117: 0 | BE117: 0 | BF117: 0 | BG117: 0 | BH117: 0 | BI117: 0 | BJ117: 0 | BK117: 0 | BL117: 0 | BM117: 0 | BN117: 0 | BO117: 0 | BP117: 0
B118: AUXÍLIO CRECHE
C119: OBRIGAÇÃO DE PAGTO | D119: SIM | E119: =D119 -> SIM | F119: =E119 -> SIM | G119: SIM | H119: SIM | I119: SIM | J119: SIM | K119: SIM | L119: SIM | M119: SIM | N119: SIM | O119: SIM | P119: SIM | Q119: SIM | R119: SIM | S119: SIM | T119: SIM | U119: SIM | V119: SIM | W119: SIM | X119: SIM | Y119: SIM | Z119: SIM | AA119: SIM | AB119: SIM | AC119: SIM | AD119: SIM | AE119: SIM | AF119: SIM | AG119: SIM | AH119: SIM | AI119: SIM | AJ119: SIM | AK119: SIM | AL119: SIM | AM119: SIM | AN119: SIM | AO119: SIM | AP119: SIM | AQ119: SIM | AR119: SIM | AS119: SIM | AT119: SIM | AU119: SIM | AV119: SIM | AW119: SIM | AX119: SIM | AY119: SIM | AZ119: SIM | BA119: SIM | BB119: SIM | BC119: SIM | BD119: SIM | BE119: SIM | BF119: SIM | BG119: SIM | BH119: SIM | BI119: SIM | BJ119: SIM | BK119: SIM | BL119: SIM | BM119: SIM | BN119: SIM | BO119: SIM | BP119: SIM
C120: VALOR CCT | D120: 522.67 | E120: =D120 -> 522.67 | F120: =E120 -> 522.67 | G120: 522.67 | H120: 522.67 | I120: 522.67 | J120: 522.67 | K120: 522.67 | L120: 522.67 | M120: 522.67 | N120: 522.67 | O120: 522.67 | P120: 522.67 | Q120: 522.67 | R120: 522.67 | S120: 522.67 | T120: 522.67 | U120: 522.67 | V120: 522.67 | W120: 522.67 | X120: 522.67 | Y120: 522.67 | Z120: 522.67 | AA120: 522.67 | AB120: 522.67 | AC120: 522.67 | AD120: 522.67 | AE120: 522.67 | AF120: 522.67 | AG120: 522.67 | AH120: 522.67 | AI120: 522.67 | AJ120: 522.67 | AK120: 522.67 | AL120: 522.67 | AM120: 522.67 | AN120: 522.67 | AO120: 522.67 | AP120: 522.67 | AQ120: 522.67 | AR120: 522.67 | AS120: 522.67 | AT120: 522.67 | AU120: 522.67 | AV120: 522.67 | AW120: 522.67 | AX120: 522.67 | AY120: 522.67 | AZ120: 522.67 | BA120: 522.67 | BB120: 522.67 | BC120: 522.67 | BD120: 522.67 | BE120: 522.67 | BF120: 522.67 | BG120: 522.67 | BH120: 522.67 | BI120: 522.67 | BJ120: 522.67 | BK120: 522.67 | BL120: 522.67 | BM120: 522.67 | BN120: 522.67 | BO120: 522.67 | BP120: 522.67
C121: VALOR MERCADO | D121: 0 | E121: =D121 -> 0 | F121: =E121 -> 0 | G121: 0 | H121: 0 | I121: 0 | J121: 0 | K121: 0 | L121: 0 | M121: 0 | N121: 0 | O121: 0 | P121: 0 | Q121: 0 | R121: 0 | S121: 0 | T121: 0 | U121: 0 | V121: 0 | W121: 0 | X121: 0 | Y121: 0 | Z121: 0 | AA121: 0 | AB121: 0 | AC121: 0 | AD121: 0 | AE121: 0 | AF121: 0 | AG121: 0 | AH121: 0 | AI121: 0 | AJ121: 0 | AK121: 0 | AL121: 0 | AM121: 0 | AN121: 0 | AO121: 0 | AP121: 0 | AQ121: 0 | AR121: 0 | AS121: 0 | AT121: 0 | AU121: 0 | AV121: 0 | AW121: 0 | AX121: 0 | AY121: 0 | AZ121: 0 | BA121: 0 | BB121: 0 | BC121: 0 | BD121: 0 | BE121: 0 | BF121: 0 | BG121: 0 | BH121: 0 | BI121: 0 | BJ121: 0 | BK121: 0 | BL121: 0 | BM121: 0 | BN121: 0 | BO121: 0 | BP121: 0
C122: PERCENTUAL DE MULHERES COM FILHOS ATÉ 06 ANOS DE IDADE | D122: =0.5*0.3 -> 0.15 | E122: =D122 -> 0.15 | F122: =E122 -> 0.15 | G122: 0.15 | H122: 0.15 | I122: 0.15 | J122: 0.15 | K122: 0.15 | L122: 0.15 | M122: 0.15 | N122: 0.15 | O122: 0.15 | P122: 0.15 | Q122: 0.15 | R122: 0.15 | S122: 0.15 | T122: 0.15 | U122: 0.15 | V122: 0.15 | W122: 0.15 | X122: 0.15 | Y122: 0.15 | Z122: 0.15 | AA122: 0.15 | AB122: 0.15 | AC122: 0.15 | AD122: 0.15 | AE122: 0.15 | AF122: 0.15 | AG122: 0.15 | AH122: 0.15 | AI122: 0.15 | AJ122: 0.15 | AK122: 0.15 | AL122: 0.15 | AM122: 0.15 | AN122: 0.15 | AO122: 0.15 | AP122: 0.15 | AQ122: 0.15 | AR122: 0.15 | AS122: 0.15 | AT122: 0.15 | AU122: 0.15 | AV122: 0.15 | AW122: 0.15 | AX122: 0.15 | AY122: 0.15 | AZ122: 0.15 | BA122: 0.15 | BB122: 0.15 | BC122: 0.15 | BD122: 0.15 | BE122: 0.15 | BF122: 0.15 | BG122: 0.15 | BH122: 0.15 | BI122: 0.15 | BJ122: 0.15 | BK122: 0.15 | BL122: 0.15 | BM122: 0.15 | BN122: 0.15 | BO122: 0.15 | BP122: 0.15
B123: VALOR MENSAL DO AUXÍLIO ESPECIAL - CRECHE - POR POSTO
D124: =D122*D120 -> 78.4005 | E124: =E122*E120 -> 78.4005 | F124: 78.4005 | G124: 78.4005 | H124: =H122*H120 -> 78.4005 | I124: =I122*I120 -> 78.4005 | J124: 78.4005 | K124: 78.4005 | L124: 78.4005 | M124: 78.4005 | N124: 78.4005 | O124: 78.4005 | P124: 78.4005 | Q124: 78.4005 | R124: 78.4005 | S124: 78.4005 | T124: 78.4005 | U124: 78.4005 | V124: 78.4005 | W124: 78.4005 | X124: 78.4005 | Y124: 78.4005 | Z124: 78.4005 | AA124: 78.4005 | AB124: 78.4005 | AC124: 78.4005 | AD124: 78.4005 | AE124: 78.4005 | AF124: 78.4005 | AG124: 78.4005 | AH124: 78.4005 | AI124: 78.4005 | AJ124: 78.4005 | AK124: 78.4005 | AL124: 78.4005 | AM124: 78.4005 | AN124: 78.4005 | AO124: 78.4005 | AP124: 78.4005 | AQ124: 78.4005 | AR124: 78.4005 | AS124: 78.4005 | AT124: 78.4005 | AU124: 78.4005 | AV124: 78.4005 | AW124: 78.4005 | AX124: 78.4005 | AY124: 78.4005 | AZ124: 78.4005 | BA124: 78.4005 | BB124: 78.4005 | BC124: 78.4005 | BD124: 78.4005 | BE124: 78.4005 | BF124: 78.4005 | BG124: 78.4005 | BH124: 78.4005 | BI124: 78.4005 | BJ124: 78.4005 | BK124: 78.4005 | BL124: 78.4005 | BM124: 78.4005 | BN124: 78.4005 | BO124: 78.4005 | BP124: 78.4005
B125: AUXÍLIO VESTUÁRIO ESPECIAL
C126: OBRIGAÇÃO DE PAGTO | D126: NÃO | E126: NÃO | F126: SIM | G126: SIM | H126: SIM | I126: SIM | J126: SIM | K126: SIM | L126: NÃO | M126: NÃO | N126: NÃO | O126: NÃO | P126: NÃO | Q126: NÃO | R126: SIM | S126: SIM | T126: SIM | U126: SIM | V126: SIM | W126: NÃO | X126: NÃO | Y126: NÃO | Z126: NÃO | AA126: NÃO | AB126: NÃO | AC126: SIM | AD126: SIM | AE126: SIM | AF126: SIM | AG126: NÃO | AH126: NÃO | AI126: NÃO | AJ126: NÃO | AK126: NÃO | AL126: NÃO | AM126: NÃO | AN126: NÃO | AO126: NÃO | AP126: NÃO | AQ126: NÃO | AR126: NÃO | AS126: SIM | AT126: NÃO | AU126: NÃO | AV126: SIM | AW126: NÃO | AX126: NÃO | AY126: NÃO | AZ126: NÃO | BA126: NÃO | BB126: SIM | BC126: SIM | BD126: NÃO | BE126: NÃO | BF126: NÃO | BG126: NÃO | BH126: NÃO | BI126: NÃO | BJ126: SIM | BK126: SIM | BL126: NÃO | BM126: SIM | BN126: SIM | BO126: SIM | BP126: NÃO
C127: VALOR CCT | D127: =1072.97/6 -> 178.8283333 | E127: =D127 -> 178.8283333 | F127: =E127 -> 178.8283333 | G127: 178.8283333 | H127: 178.8283333 | I127: 178.8283333 | J127: 178.8283333 | K127: 178.8283333 | L127: 178.8283333 | M127: 178.8283333 | N127: 178.8283333 | O127: 178.8283333 | P127: 178.8283333 | Q127: 178.8283333 | R127: 178.8283333 | S127: 178.8283333 | T127: 178.8283333 | U127: 178.8283333 | V127: 178.8283333 | W127: 178.8283333 | X127: 178.8283333 | Y127: 178.8283333 | Z127: 178.8283333 | AA127: 178.8283333 | AB127: 178.8283333 | AC127: 178.8283333 | AD127: 178.8283333 | AE127: 178.8283333 | AF127: 178.8283333 | AG127: 178.8283333 | AH127: 178.8283333 | AI127: 178.8283333 | AJ127: 178.8283333 | AK127: 178.8283333 | AL127: 178.8283333 | AM127: 178.8283333 | AN127: 178.8283333 | AO127: 178.8283333 | AP127: 178.8283333 | AQ127: 178.8283333 | AR127: 178.8283333 | AS127: 178.8283333 | AT127: 178.8283333 | AU127: 178.8283333 | AV127: 178.8283333 | AW127: 178.8283333 | AX127: 178.8283333 | AY127: 178.8283333 | AZ127: 178.8283333 | BA127: 178.8283333 | BB127: 178.8283333 | BC127: 178.8283333 | BD127: 178.8283333 | BE127: 178.8283333 | BF127: 178.8283333 | BG127: 178.8283333 | BH127: 178.8283333 | BI127: 178.8283333 | BJ127: 178.8283333 | BK127: 178.8283333 | BL127: 178.8283333 | BM127: 178.8283333 | BN127: 178.8283333 | BO127: 178.8283333 | BP127: 178.8283333
C128: VALOR MERCADO
B129: VALOR MENSAL DO AUXÍLIO ESPECIAL - VESTUTUÁRIO - POR POSTO
D130: =IF(D126="SIM",ROUND(SMALL(D127:D128,1),2),0) -> 0 | E130: =IF(E126="SIM",ROUND(SMALL(E127:E128,1),2),0) -> 0 | F130: =IF(F126="SIM",ROUND(SMALL(F127:F128,1),2),0) -> 178.83 | G130: 178.83 | H130: 178.83 | I130: 178.83 | J130: 178.83 | K130: 178.83 | L130: 0 | M130: 0 | N130: 0 | O130: 0 | P130: 0 | Q130: 0 | R130: 178.83 | S130: 178.83 | T130: 178.83 | U130: 178.83 | V130: 178.83 | W130: 0 | X130: 0 | Y130: 0 | Z130: 0 | AA130: 0 | AB130: 0 | AC130: 178.83 | AD130: 178.83 | AE130: 178.83 | AF130: 178.83 | AG130: 0 | AH130: 0 | AI130: 0 | AJ130: 0 | AK130: 0 | AL130: 0 | AM130: 0 | AN130: 0 | AO130: 0 | AP130: 0 | AQ130: 0 | AR130: 0 | AS130: 178.83 | AT130: 0 | AU130: 0 | AV130: 178.83 | AW130: 0 | AX130: 0 | AY130: 0 | AZ130: 0 | BA130: 0 | BB130: 178.83 | BC130: 178.83 | BD130: 0 | BE130: 0 | BF130: 0 | BG130: 0 | BH130: 0 | BI130: 0 | BJ130: 178.83 | BK130: 178.83 | BL130: 0 | BM130: 178.83 | BN130: 178.83 | BO130: 178.83 | BP130: 0
B131: TOTAL MENSAL DOS AUXÍLIOS ESPECIAIS - POR POSTO
D132: =D117+D111+D124+D130 -> 78.4005 | E132: =E117+E111+E124+E130 -> 78.4005 | F132: =F117+F111+F124+F130 -> 257.2305 | G132: 257.2305 | H132: 257.2305 | I132: 257.2305 | J132: 257.2305 | K132: 257.2305 | L132: 78.4005 | M132: 78.4005 | N132: 78.4005 | O132: 78.4005 | P132: 78.4005 | Q132: 78.4005 | R132: 257.2305 | S132: 257.2305 | T132: 257.2305 | U132: 257.2305 | V132: 257.2305 | W132: 78.4005 | X132: 78.4005 | Y132: 78.4005 | Z132: 78.4005 | AA132: 78.4005 | AB132: 78.4005 | AC132: 257.2305 | AD132: 257.2305 | AE132: 257.2305 | AF132: 257.2305 | AG132: 78.4005 | AH132: 78.4005 | AI132: 78.4005 | AJ132: 78.4005 | AK132: 78.4005 | AL132: 78.4005 | AM132: =AM117+AM111+AM124+AM130 -> 78.4005 | AN132: 78.4005 | AO132: 78.4005 | AP132: 78.4005 | AQ132: 78.4005 | AR132: 78.4005 | AS132: 257.2305 | AT132: 78.4005 | AU132: 78.4005 | AV132: 257.2305 | AW132: 78.4005 | AX132: 78.4005 | AY132: 78.4005 | AZ132: 78.4005 | BA132: 78.4005 | BB132: 257.2305 | BC132: 257.2305 | BD132: 78.4005 | BE132: 78.4005 | BF132: 78.4005 | BG132: 78.4005 | BH132: 78.4005 | BI132: 78.4005 | BJ132: 257.2305 | BK132: 257.2305 | BL132: 78.4005 | BM132: 257.2305 | BN132: 257.2305 | BO132: 257.2305 | BP132: 78.4005

Sheet Encargos Sociais
B4: ENCARGOS SOCIAIS SOBRE A MÃO DE OBRA
E5: Percentuais
B7: Referência:
C8: SINAPI OUT/2018
B10: Categorias:
C11: TODAS
B13: GRUPO A: Encargos Sociais Básicos - Previdenciários (GPS), Fundo de Garantia por Tempo de Serviço (FGTS) e Outras Contribuições | E13: =ROUND(SUM(E14:E22),4) -> 0.148
C14: A | D14: INSS (art. 22, inciso I, Lei nº 8.212/91) | E14: 0
C15: B | D15: Salário Educação (art. 3º, inciso I, Decreto nº 87.043/82) | E15: 0.025
C16: C | D16: SAT/RAT (art. 22, II, Lei 8.212/91 e Anexo V, Decreto 6.042/07) - Enquadramento 5911-1/99 | E16: 0.01 | G16: (Conforme Decreto nº 6.042/2007 - Anexo 5: Atividade CNAE - 5911-1/99)
C17: D | D17: SESC ou SESI (art. 30, Lei nº 8.036/90 e art. 1º, Lei 8.154/90) | E17: 0.015
C18: E | D18: SENAI ou SENAC (Decreto nº 2.318/86) | E18: 0.01
C19: F | D19: SEBRAE (§ 3º, art. 8º, Lei 8.029/90, alterada pela Lei nº 8.154/90) | E19: 0.006 | G19: * Nota 1 - Os percentuais dos encargos previdenciários, do FGTS e demais contribuições são estabelecidos por legislação vigente.
C20: G | D20: INCRA (art. 1º, I, Decreto Lei 1.146/70 e Lei 7.787, de 30/06/89) | E20: 0.002 | G20: * Nota 2 - O SAT, a depender do grau de risco do serviço, irá variar entre 1%, para risco leve, de 2%, para risco médio, e de 3% para risco grave.
C21: H | D21: FGTS (Lei Complementar nº 110/01 e art. 30, Lei nº 8.036/90) | E21: 0.08 | G21: * Nota 3 - Os percentuais do Submódulo 2.2 incidem sobre o Módulo 1, o Submódulo 2.1, o Módulo 3, o Módulo 4 e o Módulo 6.
C22: I | D22: SECONCI (Convenções Coletivas de Trabalho da construção) | E22: 0
B24: GRUPO B: Encargos Sociais Relacionados ao Custo de Reposição do Profissional Ausente - Ausências Legais | E24: =ROUND(SUM(E25:E33),4) -> 0.2245
C25: A | D25: Férias (Arts. 129 e 130, inc. I, da CLT) | E25: =ROUND(1/11,4) -> 0.0909 | G25: * Nota 1 - As alíneas “A” a “F” referem-se ao custo que será pago pela empresa ao profissional ausente (férias e ausências legais)
C26: B | D26: Ausências Legais (Arts. 131 e 473 da CLT) | E26: =ROUND(2/252,4) -> 0.0079 | G26: * Nota 2 - Adotou-se a estimativa do SINAPI de 2 dias por ano. Em 252 dias úteis por ano.
C27: C | D27: Licença-Paternidade (Art. 7º, XIX, e art. 10, §1º, do ADCT, CF/1988 e Art. 1º, II, da Lei 11.770/2008) | E27: =ROUND((5/(30*12))*0.0596,4) -> 0.0008 | G27: * Nota 3 - Utilizada a proporção de 50% para homens, 5 dias de afastamento, e a probabilidade de um trabalhador requerer a Licença Paternidade em 5,96%, conforme SINAPI (Anuário Estatístico da Previdência Social - 2017)
C28: D | D28: Ausência por Acidente de Trabalho (Art. 131, III, da CLT) | E28: =ROUND(0.0205*15/360,4) -> 0.0009 | G28: * Nota 4 - Utilzada a estatística de 2,05% dos contribuintes beneficiados com a emissão do auxílio, conforme Anuário Estatístico da Previdência Social. Afastamento de 15 dias a cargo da empresa.
C29: E | D29: Afastamento Maternidade (Art. 71 da Lei nº 8.213/1991) | E29: =ROUND(0.0508*(120/360)*(30+30*4/3)/360,4) -> 0.0033 | G29: * Nota 5 - Utilizada a estimativa de 120 dias de afastamento, e a probabilidade de uma trabalhadora requerer a Licença Maternidade em 5,08%, conforme SINAPI (citando dados do IBGE 2017) - A própria previdência paga o benefício pelos 120 dias, contudo o empregador arca com o 13º e com as férias
C30: F | D30: Auxílio Enfermidade - Doença (Art. 59 da Lei nº 8.213/1991) | E30: =ROUND(((0.0376*15)+2)/360,4) -> 0.0071 | G30: * Nota 6 - Utilizada a estatística de 3,76% dos contribuintes beneficiados com o auxílio, conforme Anuário Estatístico da Previdência Social de 2016 (acrescidos de 2 dias ao ano, para os quais o trabalhador nem requer o benefício da Previdência - conforme SINAPI)
C31: G | D31: Adicional de Férias (componente do Submódulo 2.1) | E31: =ROUND(1/3*1/11,4) -> 0.0303 | G31: * Nota 7 - O adicional de férias contido no Submódulo 2.1 corresponde a 1/3 da remuneração que, por sua vez, é dividida por 11 contome Nota 1.
C32: H | D32: 13º Salário (destacado na planilha de custos) | E32: =ROUND(1/12,4) -> 0.0833 | G32: * Nota 8 - Provisiona-se, mensalmente, o proporcional a 1/12 dos valores referentes a gratificação natalina e adicional de férias.
C33: I | D33: Intervalo para repouso ou alimentação (componente do Submódulo 4.2) | E33: 0
B35: GRUPO C: Encargos Sociais Relacionados à Previsão para Rescisão Trabalhista | E35: =ROUND(SUM(E36:E41),4) -> 0.061
C36: A | D36: Aviso Prévio Indenizado (Art. 7º, inciso XXI, da CF/1988 e arts. 477, 487, §1º, e 491 da CLT) | E36: =ROUND(0.1*30/360,4) -> 0.0083 | G36: * Nota 1 - Considerou-se demissões de 10% por ano para substituições, a um prazo estimado de contrato de 3 anos. Aviso prévio - 1º ano 30 dias. Considerou-se os 10% demitidos sem justa causa e recebendo aviso indenizado.
C37: B | D37: Incidência do FGTS sobre o Aviso Prévio Indenizado (Súmula 305 TST) | E37: =ROUND(E21*E36,4) -> 0.0007
C38: C | D38: Multa do FGTS sobre o Aviso Prévio Indenizado (Art. 18, §1º, da Lei 8.036/1990) | E38: =ROUND((1+1/12+1/12+1/36)*0.4*E21*0.2*0.5,4) -> 0.0038 | G38: * Nota 2 - Incide sobre a Remuneração + 13º salário (1/12) + Férias (1/12) + Adicional de Férias (1/36) x 40% multa para o empregador x 8% FGTS x taxa de rotatividade estimada 20% ao ano, sendo 50% demitidos sem justa causa
C39: D | D39: Aviso Prévio Trabalhado (Art. 488, parágrafo único, CLT) | E39: =ROUND(((7+2*3)*100%/360)/3,4) -> 0.012 | G39: * Nota 3 - Considerou-se demissões de 100% ao final do contrato, com um prazo médio estimado de 3 anos. Assim, calcula-se 7 dias para o 1º ano de contrato e mais 3 dias para os 2 anos seguintes. Total 13 dias.
C40: E | D40: Incidência de GPS, FGTS e outras contribuições sobre o Aviso Prévio Trabalhado | E40: =ROUND(E39*E13,4) -> 0.0018
C41: F | D41: Multa do FGTS sobre o Aviso Prévio Trabalhado | E41: =ROUND((1+1/12+1/12+1/36)*0.4*E21*(1-0.2*0.5),4) -> 0.0344 | G41: * Nota 4 - Incide sobre a Remuneração + 13º salário (1/12) + Férias (1/12) + Adicional de Férias (1/36) x 40% multa para o empregador x 8% FGTS x (1- taxa de rotatividade estimada Nota2)
B43: GRUPO D: Reincidências | E43: =ROUND(SUM(E44:E44),4) -> 0.0332
C44: A | D44: Reincidência do Grupo A sobre o Grupo B | E44: =ROUND(E13*E24,4) -> 0.0332
D46: SOMATÓRIO - ENCARGOS SOCIAIS SOBRE A MÃO DE OBRA | E46: =E43+E35+E24+E13 -> 0.4667

Sheet BDI
B4: COMPOSIÇÃO DA TAXA DE CUSTOS INDIRETOS, TRIBUTOS E LUCRO - BDI
B5: APLICAÇÃO: MÃO DE OBRA, 13º, MATERIAIS, EPC E EQUIPAMENTO DE REGISTRO DE FREQUÊNCIA | E5: Percentuais
B7: Custos Indiretos da Contratada | E7: =SUM(E8:E9) -> 0.0227
C8: A | D8: Administração Central | E8: 0.0173 | G8: * Nota 1 - O Somatório da Administração Central com o Lucro deve ser inferior a 12%
C9: B | D9: Seguros, Garantias e Riscos | E9: =0.34%+0.2% -> 0.0054 | G9: * Nota 2 - O risco previsto para o porte do contrato majorado em mais 0,20% devido ao não pagamento dos insumos componentes do custo do posto quando da ausência do mesmo.
B11: Lucro | E11: =SUM(E12:E12) -> 0.0267
C12: A | D12: Lucro Real sobre os Custos Administrados | E12: 0.0267
B14: Despesas Financeiras | E14: =E15 -> 0.005251960574
C15: A | D15: Cálculo Baseado no Prazo para a Restituição dos Desembolsos Realizados pelo Contratado e na Taxa de Retorno Arbitrada | E15: =(1+E17)^(E16/252)-1 -> 0.005251960574 | G15: * Nota 1 - DF = [(1+TR)^(DU/252)]/100
C16: A.1 | D16: Dias Úteis Considerados | E16: 11 | G16: * Nota 2 - Diferença de dias entre o desembolso, pelo contratado, e o pagamento, pela Câmara
C17: A.2 | D17: Taxa de Retorno | E17: 0.1275 | G17: * Nota 3 - A taxa sugerida é a meta da SELIC
B19: Impostos - Tributos Federais | E19: =SUM(E20:E22) -> 0.089
C20: A | D20: Contribuição para o Financiamento da Seguridade Social - COFINS | E20: =0.8*7.6% -> 0.0608 | G20: * Nota 1 - Redução de 20% considerando as deduções permitidas em Lei, conforme SENGE, citado pelo TCU - Acórdão 2622/2013
C21: B | D21: Programa de Integração Social - PIS | E21: =0.8*1.65% -> 0.0132 | G21: * Nota 2 - Redução de 20% considerando as deduções permitidas em Lei, conforme SENGE, citado pelo TCU - Acórdão 2622/2013
C22: C | D22: Contribuição Previdenciária sobre a Receita Bruta - CPRB | E22: 0.015 | G22: * Nota 3 - Lei 12.546/2011 - Verificar atualizações e setores beneficiados
B24: Impostos - Tributos Distritais | E24: =SUM(E25:E25) -> 0.05
C25: A | D25: Imposto sobre Serviço de Qualquer Natureza - ISS | E25: 0.05
D27: TAXA DE BDI | E27: =ROUND((((1+E7)*(1+E11)*(1+E14)/(1-E19-E24))-1),4) -> 0.2259 | G27: * Nota 1 - [(1+AC+SGR)*(1+L)*(1+DF)/(1-CONFINS-PIS-CPRB-ISS)]-1

Sheet Uniformes
C1: CÂMARA DOS DEPUTADOS
C2: DEPARTAMENTO TÉCNICO
C3: Coordenação de Planejamento e Gestão
B7: UNIFORMES - AQUISIÇÃO | K7: 1 | M7: =K7+1 -> 2 | O7: =M7+1 -> 3 | Q7: =O7+1 -> 4 | S7: =Q7+1 -> 5 | U7: =S7+1 -> 6 | W7: =U7+1 -> 7 | Y7: =W7+1 -> 8 | AA7: =Y7+1 -> 9 | AC7: =AA7+1 -> 10 | AE7: =AC7+1 -> 11 | AG7: =AE7+1 -> 12 | AI7: =AG7+1 -> 13 | AK7: =AI7+1 -> 14 | AM7: =AK7+1 -> 15 | AO7: =AM7+1 -> 16 | AQ7: =AO7+1 -> 17 | AS7: =AQ7+1 -> 18 | AU7: =AS7+1 -> 19 | AW7: =AU7+1 -> 20 | AY7: =AW7+1 -> 21 | BA7: =AY7+1 -> 22 | BC7: =BA7+1 -> 23 | BE7: =BC7+1 -> 24 | BG7: =BE7+1 -> 25 | BI7: =BG7+1 -> 26 | BK7: =BI7+1 -> 27 | BM7: =BK7+1 -> 28 | BO7: =BM7+1 -> 29 | BQ7: =BO7+1 -> 30 | BS7: =BQ7+1 -> 31 | BU7: =BS7+1 -> 32 | BW7: =BU7+1 -> 33 | BY7: =BW7+1 -> 34 | CA7: =BY7+1 -> 35 | CC7: =CA7+1 -> 36 | CE7: =CC7+1 -> 37 | CG7: =CE7+1 -> 38 | CI7: =CG7+1 -> 39 | CK7: =CI7+1 -> 40 | CM7: =CK7+1 -> 41 | CO7: =CM7+1 -> 42 | CQ7: =CO7+1 -> 43 | CS7: =CQ7+1 -> 44 | CU7: =CS7+1 -> 45 | CW7: =CU7+1 -> 46 | CY7: =CW7+1 -> 47 | DA7: =CY7+1 -> 48 | DC7: =DA7+1 -> 49 | DE7: =DC7+1 -> 50 | DG7: =DE7+1 -> 51 | DI7: =DG7+1 -> 52 | DK7: =DI7+1 -> 53 | DM7: =DK7+1 -> 54 | DO7: =DM7+1 -> 55 | DQ7: =DO7+1 -> 56 | DS7: =DQ7+1 -> 57 | DU7: =DS7+1 -> 58 | DW7: =DU7+1 -> 59 | DY7: =DW7+1 -> 60 | EA7: =DY7+1 -> 61 | EC7: =EA7+1 -> 62 | EE7: =EC7+1 -> 63 | EG7: =EE7+1 -> 64 | EI7: =EG7+1 -> 65 | EK7: =EI7+1 -> 66 | EM7: =EK7+1 -> 67 | EO7: =EM7+1 -> 68 | EQ7: =EO7+1 -> 69 | ES7: =EQ7+1 -> 70 | EU7: =ES7+1 -> 71 | EW7: =EU7+1 -> 72 | EY7: =EW7+1 -> 73
K9: =ROUND(SUM(L8:L47),2) -> 0 | M9: =ROUND(SUM(N8:N47),2) -> 0 | O9: =ROUND(SUM(P8:P47),2) -> 0 | Q9: =ROUND(SUM(R8:R47),2) -> 0 | S9: =ROUND(SUM(T8:T47),2) -> 0 | U9: =ROUND(SUM(V8:V47),2) -> 0 | W9: =ROUND(SUM(X8:X47),2) -> 0 | Y9: =ROUND(SUM(Z8:Z47),2) -> 0 | AA9: =ROUND(SUM(AB8:AB47),2) -> 0 | AC9: =ROUND(SUM(AD8:AD47),2) -> 0 | AE9: =ROUND(SUM(AF8:AF47),2) -> 0 | AG9: =ROUND(SUM(AH8:AH47),2) -> 0 | AI9: =ROUND(SUM(AJ8:AJ47),2) -> 0 | AK9: =ROUND(SUM(AL8:AL47),2) -> 0 | AM9: =ROUND(SUM(AN8:AN47),2) -> 0 | AO9: =ROUND(SUM(AP8:AP47),2) -> 0 | AQ9: =ROUND(SUM(AR8:AR47),2) -> 0 | AS9: =ROUND(SUM(AT8:AT47),2) -> 0 | AU9: =ROUND(SUM(AV8:AV47),2) -> 0 | AW9: =ROUND(SUM(AX8:AX47),2) -> 0 | AY9: =ROUND(SUM(AZ8:AZ47),2) -> 0 | BA9: =ROUND(SUM(BB8:BB47),2) -> 0 | BC9: =ROUND(SUM(BD8:BD47),2) -> 0 | BE9: =ROUND(SUM(BF8:BF47),2) -> 0 | BG9: =ROUND(SUM(BH8:BH47),2) -> 0 | BI9: =ROUND(SUM(BJ8:BJ47),2) -> 0 | BK9: =ROUND(SUM(BL8:BL47),2) -> 0 | BM9: =ROUND(SUM(BN8:BN47),2) -> 0 | BO9: =ROUND(SUM(BP8:BP47),2) -> 0 | BQ9: =ROUND(SUM(BR8:BR47),2) -> 0 | BS9: =ROUND(SUM(BT8:BT47),2) -> 0 | BU9: =ROUND(SUM(BV8:BV47),2) -> 0 | BW9: =ROUND(SUM(BX8:BX47),2) -> 0 | BY9: =ROUND(SUM(BZ8:BZ47),2) -> 0 | CA9: =ROUND(SUM(CB8:CB47),2) -> 0 | CC9: =ROUND(SUM(CD8:CD47),2) -> 0 | CE9: =ROUND(SUM(CF8:CF47),2) -> 0 | CG9: =ROUND(SUM(CH8:CH47),2) -> 353.36 | CI9: =ROUND(SUM(CJ8:CJ47),2) -> 353.36 | CK9: =ROUND(SUM(CL8:CL47),2) -> 0 | CM9: =ROUND(SUM(CN8:CN47),2) -> 0 | CO9: =ROUND(SUM(CP8:CP47),2) -> 0 | CQ9: =ROUND(SUM(CR8:CR47),2) -> 0 | CS9: =ROUND(SUM(CT8:CT47),2) -> 0 | CU9: =ROUND(SUM(CV8:CV47),2) -> 0 | CW9: =ROUND(SUM(CX8:CX47),2) -> 0 | CY9: =ROUND(SUM(CZ8:CZ47),2) -> 131.08 | DA9: =ROUND(SUM(DB8:DB47),2) -> 131.08 | DC9: =ROUND(SUM(DD8:DD47),2) -> 0 | DE9: =ROUND(SUM(DF8:DF47),2) -> 0 | DG9: =ROUND(SUM(DH8:DH47),2) -> 0 | DI9: =ROUND(SUM(DJ8:DJ47),2) -> 0 | DK9: =ROUND(SUM(DL8:DL47),2) -> 0 | DM9: =ROUND(SUM(DN8:DN47),2) -> 0 | DO9: =ROUND(SUM(DP8:DP47),2) -> 0 | DQ9: =ROUND(SUM(DR8:DR47),2) -> 0 | DS9: =ROUND(SUM(DT8:DT47),2) -> 0 | DU9: =ROUND(SUM(DV8:DV47),2) -> 0 | DW9: =ROUND(SUM(DX8:DX47),2) -> 0 | DY9: =ROUND(SUM(DZ8:DZ47),2) -> 0 | EA9: =ROUND(SUM(EB8:EB47),2) -> 0 | EC9: =ROUND(SUM(ED8:ED47),2) -> 0 | EE9: =ROUND(SUM(EF8:EF47),2) -> 0 | EG9: =ROUND(SUM(EH8:EH47),2) -> 0 | EI9: =ROUND(SUM(EJ8:EJ47),2) -> 0 | EK9: =ROUND(SUM(EL8:EL47),2) -> 0 | EM9: =ROUND(SUM(EN8:EN47),2) -> 0 | EO9: =ROUND(SUM(EP8:EP47),2) -> 0 | EQ9: =ROUND(SUM(ER8:ER47),2) -> 0 | ES9: =ROUND(SUM(ET8:ET47),2) -> 0 | EU9: =ROUND(SUM(EV8:EV47),2) -> 0 | EW9: =ROUND(SUM(EX8:EX47),2) -> 0 | EY9: =ROUND(SUM(EZ8:EZ47),2) -> 0
C10: CATEGORIAS | H10: QUANTIDADE
C12: 38 | D12: =HLOOKUP($C12,'Dados Gerais'!$D$5:$BW$133,6) -> Supervisor técnico - 5 dias | H12: =HLOOKUP($C12,'Dados Gerais'!$D$5:$BK$14,10) -> 1 | K12: =IF($C12=K$7,1,0) -> 0 | M12: =IF($C12=M$7,1,0) -> 0 | O12: =IF($C12=O$7,1,0) -> 0 | Q12: =IF($C12=Q$7,1,0) -> 0 | S12: =IF($C12=S$7,1,0) -> 0 | U12: =IF($C12=U$7,1,0) -> 0 | W12: =IF($C12=W$7,1,0) -> 0 | Y12: =IF($C12=Y$7,1,0) -> 0 | AA12: =IF($C12=AA$7,1,0) -> 0 | AC12: =IF($C12=AC$7,1,0) -> 0 | AE12: =IF($C12=AE$7,1,0) -> 0 | AG12: =IF($C12=AG$7,1,0) -> 0 | AI12: =IF($C12=AI$7,1,0) -> 0 | AK12: =IF($C12=AK$7,1,0) -> 0 | AM12: =IF($C12=AM$7,1,0) -> 0 | AO12: =IF($C12=AO$7,1,0) -> 0 | AQ12: =IF($C12=AQ$7,1,0) -> 0 | AS12: =IF($C12=AS$7,1,0) -> 0 | AU12: =IF($C12=AU$7,1,0) -> 0 | AW12: =IF($C12=AW$7,1,0) -> 0 | AY12: =IF($C12=AY$7,1,0) -> 0 | BA12: =IF($C12=BA$7,1,0) -> 0 | BC12: =IF($C12=BC$7,1,0) -> 0 | BE12: =IF($C12=BE$7,1,0) -> 0 | BG12: =IF($C12=BG$7,1,0) -> 0 | BI12: =IF($C12=BI$7,1,0) -> 0 | BK12: =IF($C12=BK$7,1,0) -> 0 | BM12: =IF($C12=BM$7,1,0) -> 0 | BO12: =IF($C12=BO$7,1,0) -> 0 | BQ12: =IF($C12=BQ$7,1,0) -> 0 | BS12: =IF($C12=BS$7,1,0) -> 0 | BU12: =IF($C12=BU$7,1,0) -> 0 | BW12: =IF($C12=BW$7,1,0) -> 0 | BY12: =IF($C12=BY$7,1,0) -> 0 | CA12: =IF($C12=CA$7,1,0) -> 0 | CC12: =IF($C12=CC$7,1,0) -> 0 | CE12: =IF($C12=CE$7,1,0) -> 0 | CG12: =IF($C12=CG$7,1,0) -> 1 | CI12: =IF($C12=CI$7,1,0) -> 0 | CK12: =IF($C12=CK$7,1,0) -> 0 | CM12: =IF($C12=CM$7,1,0) -> 0 | CO12: =IF($C12=CO$7,1,0) -> 0 | CQ12: =IF($C12=CQ$7,1,0) -> 0 | CS12: =IF($C12=CS$7,1,0) -> 0 | CU12: =IF($C12=CU$7,1,0) -> 0 | CW12: =IF($C12=CW$7,1,0) -> 0 | CY12: =IF($C12=CY$7,1,0) -> 0 | DA12: =IF($C12=DA$7,1,0) -> 0 | DC12: =IF($C12=DC$7,1,0) -> 0 | DE12: =IF($C12=DE$7,1,0) -> 0 | DG12: =IF($C12=DG$7,1,0) -> 0 | DI12: =IF($C12=DI$7,1,0) -> 0 | DK12: =IF($C12=DK$7,1,0) -> 0 | DM12: =IF($C12=DM$7,1,0) -> 0 | DO12: =IF($C12=DO$7,1,0) -> 0 | DQ12: =IF($C12=DQ$7,1,0) -> 0 | DS12: =IF($C12=DS$7,1,0) -> 0 | DU12: =IF($C12=DU$7,1,0) -> 0 | DW12: =IF($C12=DW$7,1,0) -> 0 | DY12: =IF($C12=DY$7,1,0) -> 0 | EA12: 0 | EC12: 0 | EE12: 0 | EG12: 0 | EI12: 0 | EK12: 0 | EM12: 0 | EO12: 0 | EQ12: 0 | ES12: 0 | EU12: 0 | EW12: 0 | EY12: 0
C15: ITEM | D15: DESCRIÇÃO | E15: QUANT ANUAL POR POSTO | F15: Nº DE POSTOS | G15: QUANT ANUAL TOTAL | H15: VALOR
AV16: =IF(SUM(AU$11:AU$13)>0,$E16*$H16,0) -> 0 | AX16: =IF(SUM(AW$11:AW$13)>0,$E16*$H16,0) -> 0 | AZ16: =IF(SUM(AY$11:AY$13)>0,$E16*$H16,0) -> 0 | BB16: =IF(SUM(BA$11:BA$13)>0,$E16*$H16,0) -> 0 | BD16: =IF(SUM(BC$11:BC$13)>0,$E16*$H16,0) -> 0 | BF16: =IF(SUM(BE$11:BE$13)>0,$E16*$H16,0) -> 0 | BH16: =IF(SUM(BG$11:BG$13)>0,$E16*$H16,0) -> 0 | BJ16: =IF(SUM(BI$11:BI$13)>0,$E16*$H16,0) -> 0 | BL16: =IF(SUM(BK$11:BK$13)>0,$E16*$H16,0) -> 0 | BN16: =IF(SUM(BM$11:BM$13)>0,$E16*$H16,0) -> 0 | BP16: =IF(SUM(BO$11:BO$13)>0,$E16*$H16,0) -> 0 | BR16: =IF(SUM(BQ$11:BQ$13)>0,$E16*$H16,0) -> 0 | BT16: =IF(SUM(BS$11:BS$13)>0,$E16*$H16,0) -> 0 | BV16: =IF(SUM(BU$11:BU$13)>0,$E16*$H16,0) -> 0 | BX16: =IF(SUM(BW$11:BW$13)>0,$E16*$H16,0) -> 0 | BZ16: =IF(SUM(BY$11:BY$13)>0,$E16*$H16,0) -> 0 | CB16: =IF(SUM(CA$11:CA$13)>0,$E16*$H16,0) -> 0 | CD16: =IF(SUM(CC$11:CC$13)>0,$E16*$H16,0) -> 0 | CF16: =IF(SUM(CE$11:CE$13)>0,$E16*$H16,0) -> 0 | CH16: =IF(SUM(CG$11:CG$13)>0,$E16*$H16,0) -> 0 | CJ16: =IF(SUM(CI$11:CI$13)>0,$E16*$H16,0) -> 0 | CL16: =IF(SUM(CK$11:CK$13)>0,$E16*$H16,0) -> 0 | CN16: =IF(SUM(CM$11:CM$13)>0,$E16*$H16,0) -> 0 | CP16: =IF(SUM(CO$11:CO$13)>0,$E16*$H16,0) -> 0 | CR16: =IF(SUM(CQ$11:CQ$13)>0,$E16*$H16,0) -> 0 | CT16: =IF(SUM(CS$11:CS$13)>0,$E16*$H16,0) -> 0 | CV16: =IF(SUM(CU$11:CU$13)>0,$E16*$H16,0) -> 0 | CX16: =IF(SUM(CW$11:CW$13)>0,$E16*$H16,0) -> 0 | CZ16: =IF(SUM(CY$11:CY$13)>0,$E16*$H16,0) -> 0 | DB16: =IF(SUM(DA$11:DA$13)>0,$E16*$H16,0) -> 0 | DD16: =IF(SUM(DC$11:DC$13)>0,$E16*$H16,0) -> 0 | DF16: =IF(SUM(DE$11:DE$13)>0,$E16*$H16,0) -> 0 | DH16: =IF(SUM(DG$11:DG$13)>0,$E16*$H16,0) -> 0 | DJ16: =IF(SUM(DI$11:DI$13)>0,$E16*$H16,0) -> 0 | DL16: =IF(SUM(DK$11:DK$13)>0,$E16*$H16,0) -> 0 | DN16: =IF(SUM(DM$11:DM$13)>0,$E16*$H16,0) -> 0 | DP16: =IF(SUM(DO$11:DO$13)>0,$E16*$H16,0) -> 0 | DR16: =IF(SUM(DQ$11:DQ$13)>0,$E16*$H16,0) -> 0 | DT16: =IF(SUM(DS$11:DS$13)>0,$E16*$H16,0) -> 0 | DV16: =IF(SUM(DU$11:DU$13)>0,$E16*$H16,0) -> 0 | DX16: =IF(SUM(DW$11:DW$13)>0,$E16*$H16,0) -> 0 | DZ16: =IF(SUM(DY$11:DY$13)>0,$E16*$H16,0) -> 0 | EB16: =IF(SUM(EA$11:EA$13)>0,$E16*$H16,0) -> 0 | ED16: =IF(SUM(EC$11:EC$13)>0,$E16*$H16,0) -> 0 | EF16: =IF(SUM(EE$11:EE$13)>0,$E16*$H16,0) -> 0 | EH16: =IF(SUM(EG$11:EG$13)>0,$E16*$H16,0) -> 0 | EJ16: =IF(SUM(EI$11:EI$13)>0,$E16*$H16,0) -> 0 | EL16: =IF(SUM(EK$11:EK$13)>0,$E16*$H16,0) -> 0 | EN16: =IF(SUM(EM$11:EM$13)>0,$E16*$H16,0) -> 0 | EP16: =IF(SUM(EO$11:EO$13)>0,$E16*$H16,0) -> 0 | ER16: =IF(SUM(EQ$11:EQ$13)>0,$E16*$H16,0) -> 0 | ET16: =IF(SUM(ES$11:ES$13)>0,$E16*$H16,0) -> 0 | EV16: =IF(SUM(EU$11:EU$13)>0,$E16*$H16,0) -> 0 | EX16: =IF(SUM(EW$11:EW$13)>0,$E16*$H16,0) -> 0 | EZ16: =IF(SUM(EY$11:EY$13)>0,$E16*$H16,0) -> 0
D17: Jaleco, tipo guarda-pó, de tecido misto de algodão/poliéster, mangas curtas, azul escuro, 3 bolsos (2 inferiores) com logomarca | E17: 4 | F17: =SUM(H12:H12) -> 1 | G17: =F17*E17 -> 4 | H17: 88.34 | L17: =IF(SUM(K$11:K$13)>0,$E17*$H17,0) -> 0 | N17: =IF(SUM(M$11:M$13)>0,$E17*$H17,0) -> 0 | P17: =IF(SUM(O$11:O$13)>0,$E17*$H17,0) -> 0 | R17: =IF(SUM(Q$11:Q$13)>0,$E17*$H17,0) -> 0 | T17: =IF(SUM(S$11:S$13)>0,$E17*$H17,0) -> 0 | V17: =IF(SUM(U$11:U$13)>0,$E17*$H17,0) -> 0 | X17: =IF(SUM(W$11:W$13)>0,$E17*$H17,0) -> 0 | Z17: =IF(SUM(Y$11:Y$13)>0,$E17*$H17,0) -> 0 | AB17: =IF(SUM(AA$11:AA$13)>0,$E17*$H17,0) -> 0 | AD17: =IF(SUM(AC$11:AC$13)>0,$E17*$H17,0) -> 0 | AF17: =IF(SUM(AE$11:AE$13)>0,$E17*$H17,0) -> 0 | AH17: =IF(SUM(AG$11:AG$13)>0,$E17*$H17,0) -> 0 | AJ17: =IF(SUM(AI$11:AI$13)>0,$E17*$H17,0) -> 0 | AL17: =IF(SUM(AK$11:AK$13)>0,$E17*$H17,0) -> 0 | AN17: =IF(SUM(AM$11:AM$13)>0,$E17*$H17,0) -> 0 | AP17: =IF(SUM(AO$11:AO$13)>0,$E17*$H17,0) -> 0 | AR17: =IF(SUM(AQ$11:AQ$13)>0,$E17*$H17,0) -> 0 | AT17: =IF(SUM(AS$11:AS$13)>0,$E17*$H17,0) -> 0 | AV17: 0 | AX17: 0 | AZ17: 0 | BB17: 0 | BD17: 0 | BF17: 0 | BH17: 0 | BJ17: 0 | BL17: 0 | BN17: 0 | BP17: 0 | BR17: 0 | BT17: 0 | BV17: 0 | BX17: 0 | BZ17: 0 | CB17: 0 | CD17: 0 | CF17: 0 | CH17: 353.36 | CJ17: 0 | CL17: 0 | CN17: 0 | CP17: 0 | CR17: 0 | CT17: =IF(SUM(CS$11:CS$13)>0,$E17*$H17,0) -> 0 | CV17: =IF(SUM(CU$11:CU$13)>0,$E17*$H17,0) -> 0 | CX17: 0 | CZ17: 0 | DB17: 0 | DD17: 0 | DF17: 0 | DH17: 0 | DJ17: 0 | DL17: 0 | DN17: 0 | DP17: 0 | DR17: 0 | DT17: 0 | DV17: 0 | DX17: 0 | DZ17: 0 | EB17: 0 | ED17: 0 | EF17: 0 | EH17: 0 | EJ17: 0 | EL17: 0 | EN17: 0 | EP17: 0 | ER17: 0 | ET17: 0 | EV17: 0 | EX17: 0 | EZ17: 0
AV18: 0 | AX18: 0 | AZ18: 0 | BB18: 0 | BD18: 0 | BF18: 0 | BH18: 0 | BJ18: 0 | BL18: 0 | BN18: 0 | BP18: 0 | BR18: 0 | BT18: 0 | BV18: 0 | BX18: 0 | BZ18: 0 | CB18: 0 | CD18: 0 | CF18: 0 | CH18: 0 | CJ18: 0 | CL18: 0 | CN18: 0 | CP18: 0 | CR18: 0 | CT18: 0 | CV18: 0 | CX18: 0 | CZ18: 0 | DB18: 0 | DD18: 0 | DF18: 0 | DH18: 0 | DJ18: 0 | DL18: 0 | DN18: 0 | DP18: 0 | DR18: 0 | DT18: 0 | DV18: 0 | DX18: 0 | DZ18: 0 | EB18: 0 | ED18: 0 | EF18: 0 | EH18: 0 | EJ18: 0 | EL18: 0 | EN18: 0 | EP18: 0 | ER18: 0 | ET18: 0 | EV18: 0 | EX18: 0 | EZ18: 0
C20: CATEGORIAS | H20: QUANTIDADE
C22: 39 | D22: =HLOOKUP($C22,'Dados Gerais'!$D$5:$BW$133,6) -> Técnico de manutenção - 5 dias | H22: =HLOOKUP($C22,'Dados Gerais'!$D$5:$BK$14,10) -> 4 | K22: =IF($C22=K$7,1,0) -> 0 | M22: =IF($C22=M$7,1,0) -> 0 | O22: =IF($C22=O$7,1,0) -> 0 | Q22: =IF($C22=Q$7,1,0) -> 0 | S22: =IF($C22=S$7,1,0) -> 0 | U22: =IF($C22=U$7,1,0) -> 0 | W22: =IF($C22=W$7,1,0) -> 0 | Y22: =IF($C22=Y$7,1,0) -> 0 | AA22: =IF($C22=AA$7,1,0) -> 0 | AC22: =IF($C22=AC$7,1,0) -> 0 | AE22: =IF($C22=AE$7,1,0) -> 0 | AG22: =IF($C22=AG$7,1,0) -> 0 | AI22: =IF($C22=AI$7,1,0) -> 0 | AK22: =IF($C22=AK$7,1,0) -> 0 | AM22: =IF($C22=AM$7,1,0) -> 0 | AO22: =IF($C22=AO$7,1,0) -> 0 | AQ22: =IF($C22=AQ$7,1,0) -> 0 | AS22: =IF($C22=AS$7,1,0) -> 0 | AU22: =IF($C22=AU$7,1,0) -> 0 | AW22: =IF($C22=AW$7,1,0) -> 0 | AY22: =IF($C22=AY$7,1,0) -> 0 | BA22: =IF($C22=BA$7,1,0) -> 0 | BC22: =IF($C22=BC$7,1,0) -> 0 | BE22: =IF($C22=BE$7,1,0) -> 0 | BG22: =IF($C22=BG$7,1,0) -> 0 | BI22: =IF($C22=BI$7,1,0) -> 0 | BK22: =IF($C22=BK$7,1,0) -> 0 | BM22: =IF($C22=BM$7,1,0) -> 0 | BO22: =IF($C22=BO$7,1,0) -> 0 | BQ22: =IF($C22=BQ$7,1,0) -> 0 | BS22: =IF($C22=BS$7,1,0) -> 0 | BU22: =IF($C22=BU$7,1,0) -> 0 | BW22: =IF($C22=BW$7,1,0) -> 0 | BY22: =IF($C22=BY$7,1,0) -> 0 | CA22: =IF($C22=CA$7,1,0) -> 0 | CC22: =IF($C22=CC$7,1,0) -> 0 | CE22: =IF($C22=CE$7,1,0) -> 0 | CG22: =IF($C22=CG$7,1,0) -> 0 | CI22: =IF($C22=CI$7,1,0) -> 1 | CK22: =IF($C22=CK$7,1,0) -> 0 | CM22: =IF($C22=CM$7,1,0) -> 0 | CO22: =IF($C22=CO$7,1,0) -> 0 | CQ22: =IF($C22=CQ$7,1,0) -> 0 | CS22: =IF($C22=CS$7,1,0) -> 0 | CU22: =IF($C22=CU$7,1,0) -> 0 | CW22: =IF($C22=CW$7,1,0) -> 0 | CY22: =IF($C22=CY$7,1,0) -> 0 | DA22: =IF($C22=DA$7,1,0) -> 0 | DC22: =IF($C22=DC$7,1,0) -> 0 | DE22: =IF($C22=DE$7,1,0) -> 0 | DG22: =IF($C22=DG$7,1,0) -> 0 | DI22: =IF($C22=DI$7,1,0) -> 0 | DK22: =IF($C22=DK$7,1,0) -> 0 | DM22: =IF($C22=DM$7,1,0) -> 0 | DO22: =IF($C22=DO$7,1,0) -> 0 | DQ22: =IF($C22=DQ$7,1,0) -> 0 | DS22: =IF($C22=DS$7,1,0) -> 0 | DU22: =IF($C22=DU$7,1,0) -> 0 | DW22: =IF($C22=DW$7,1,0) -> 0 | DY22: =IF($C22=DY$7,1,0) -> 0 | EA22: =IF($C22=EA$7,1,0) -> 0 | EC22: =IF($C22=EC$7,1,0) -> 0 | EE22: =IF($C22=EE$7,1,0) -> 0 | EG22: =IF($C22=EG$7,1,0) -> 0 | EI22: =IF($C22=EI$7,1,0) -> 0 | EK22: =IF($C22=EK$7,1,0) -> 0 | EM22: =IF($C22=EM$7,1,0) -> 0 | EO22: =IF($C22=EO$7,1,0) -> 0 | EQ22: =IF($C22=EQ$7,1,0) -> 0 | ES22: =IF($C22=ES$7,1,0) -> 0 | EU22: =IF($C22=EU$7,1,0) -> 0 | EW22: =IF($C22=EW$7,1,0) -> 0 | EY22: 0
K23: 0 | M23: 0 | O23: 0 | Q23: 0 | S23: 0 | U23: 0 | W23: 0 | Y23: 0 | AA23: 0 | AC23: 0 | AE23: 0 | AG23: 0 | AI23: 0 | AK23: 0 | AM23: 0 | AO23: 0 | AQ23: 0 | AS23: 0 | AU23: 0 | AW23: 0 | AY23: 0 | BA23: 0 | BC23: 0 | BE23: 0 | BG23: 0 | BI23: 0 | BK23: 0 | BM23: 0 | BO23: 0 | BQ23: 0 | BS23: 0 | BU23: 0 | BW23: 0 | BY23: 0 | CA23: 0 | CC23: 0 | CE23: 0 | CG23: 0 | CI23: 0 | CK23: 0 | CM23: 0 | CO23: 0 | CQ23: 0
C25: ITEM | D25: DESCRIÇÃO | E25: QUANT ANUAL POR POSTO | F25: Nº DE POSTOS | G25: QUANT ANUAL TOTAL | H25: VALOR
AV26: =IF(SUM(AU$11:AU$13)>0,$E26*$H26,0) -> 0 | AX26: =IF(SUM(AW$11:AW$13)>0,$E26*$H26,0) -> 0 | AZ26: =IF(SUM(AY$11:AY$13)>0,$E26*$H26,0) -> 0 | BB26: =IF(SUM(BA$11:BA$13)>0,$E26*$H26,0) -> 0 | BD26: =IF(SUM(BC$11:BC$13)>0,$E26*$H26,0) -> 0 | BF26: =IF(SUM(BE$11:BE$13)>0,$E26*$H26,0) -> 0 | BH26: =IF(SUM(BG$11:BG$13)>0,$E26*$H26,0) -> 0 | BJ26: =IF(SUM(BI$11:BI$13)>0,$E26*$H26,0) -> 0 | BL26: =IF(SUM(BK$11:BK$13)>0,$E26*$H26,0) -> 0 | BN26: =IF(SUM(BM$11:BM$13)>0,$E26*$H26,0) -> 0 | BP26: =IF(SUM(BO$11:BO$13)>0,$E26*$H26,0) -> 0 | BR26: =IF(SUM(BQ$11:BQ$13)>0,$E26*$H26,0) -> 0 | BT26: =IF(SUM(BS$11:BS$13)>0,$E26*$H26,0) -> 0 | BV26: =IF(SUM(BU$11:BU$13)>0,$E26*$H26,0) -> 0 | BX26: =IF(SUM(BW$11:BW$13)>0,$E26*$H26,0) -> 0 | BZ26: =IF(SUM(BY$11:BY$13)>0,$E26*$H26,0) -> 0 | CB26: =IF(SUM(CA$11:CA$13)>0,$E26*$H26,0) -> 0 | CD26: =IF(SUM(CC$11:CC$13)>0,$E26*$H26,0) -> 0 | CF26: =IF(SUM(CE$11:CE$13)>0,$E26*$H26,0) -> 0 | CH26: =IF(SUM(CG$11:CG$13)>0,$E26*$H26,0) -> 0 | CJ26: =IF(SUM(CI$11:CI$13)>0,$E26*$H26,0) -> 0 | CL26: =IF(SUM(CK$11:CK$13)>0,$E26*$H26,0) -> 0 | CN26: =IF(SUM(CM$11:CM$13)>0,$E26*$H26,0) -> 0 | CP26: =IF(SUM(CO$11:CO$13)>0,$E26*$H26,0) -> 0 | CR26: =IF(SUM(CQ$11:CQ$13)>0,$E26*$H26,0) -> 0 | CT26: =IF(SUM(CS$11:CS$13)>0,$E26*$H26,0) -> 0 | CV26: =IF(SUM(CU$11:CU$13)>0,$E26*$H26,0) -> 0 | CX26: =IF(SUM(CW$11:CW$13)>0,$E26*$H26,0) -> 0 | CZ26: =IF(SUM(CY$11:CY$13)>0,$E26*$H26,0) -> 0 | DB26: =IF(SUM(DA$11:DA$13)>0,$E26*$H26,0) -> 0 | DD26: =IF(SUM(DC$11:DC$13)>0,$E26*$H26,0) -> 0 | DF26: =IF(SUM(DE$11:DE$13)>0,$E26*$H26,0) -> 0 | DH26: =IF(SUM(DG$11:DG$13)>0,$E26*$H26,0) -> 0 | DJ26: =IF(SUM(DI$11:DI$13)>0,$E26*$H26,0) -> 0 | DL26: =IF(SUM(DK$11:DK$13)>0,$E26*$H26,0) -> 0 | DN26: =IF(SUM(DM$11:DM$13)>0,$E26*$H26,0) -> 0 | DP26: =IF(SUM(DO$11:DO$13)>0,$E26*$H26,0) -> 0 | DR26: =IF(SUM(DQ$11:DQ$13)>0,$E26*$H26,0) -> 0 | DT26: =IF(SUM(DS$11:DS$13)>0,$E26*$H26,0) -> 0 | DV26: =IF(SUM(DU$11:DU$13)>0,$E26*$H26,0) -> 0 | DX26: =IF(SUM(DW$11:DW$13)>0,$E26*$H26,0) -> 0 | DZ26: =IF(SUM(DY$11:DY$13)>0,$E26*$H26,0) -> 0 | EB26: =IF(SUM(EA$11:EA$13)>0,$E26*$H26,0) -> 0 | ED26: =IF(SUM(EC$11:EC$13)>0,$E26*$H26,0) -> 0 | EF26: =IF(SUM(EE$11:EE$13)>0,$E26*$H26,0) -> 0 | EH26: =IF(SUM(EG$11:EG$13)>0,$E26*$H26,0) -> 0 | EJ26: =IF(SUM(EI$11:EI$13)>0,$E26*$H26,0) -> 0 | EL26: =IF(SUM(EK$11:EK$13)>0,$E26*$H26,0) -> 0 | EN26: =IF(SUM(EM$11:EM$13)>0,$E26*$H26,0) -> 0 | EP26: =IF(SUM(EO$11:EO$13)>0,$E26*$H26,0) -> 0 | ER26: =IF(SUM(EQ$11:EQ$13)>0,$E26*$H26,0) -> 0 | ET26: =IF(SUM(ES$11:ES$13)>0,$E26*$H26,0) -> 0 | EV26: =IF(SUM(EU$11:EU$13)>0,$E26*$H26,0) -> 0 | EX26: =IF(SUM(EW$11:EW$13)>0,$E26*$H26,0) -> 0 | EZ26: =IF(SUM(EY$11:EY$13)>0,$E26*$H26,0) -> 0
D27: Jaleco, tipo guarda-pó, de tecido misto de algodão/poliéster, mangas curtas, azul escuro, 3 bolsos (2 inferiores) com logomarca | E27: 4 | F27: =H22 -> 4 | G27: =F27*E27 -> 16 | H27: =H17 -> 88.34 | L27: =IF(SUM(K$21:K$23)>0,$E27*$H27,0) -> 0 | N27: =IF(SUM(M$21:M$23)>0,$E27*$H27,0) -> 0 | P27: =IF(SUM(O$21:O$23)>0,$E27*$H27,0) -> 0 | R27: =IF(SUM(Q$21:Q$23)>0,$E27*$H27,0) -> 0 | T27: =IF(SUM(S$21:S$23)>0,$E27*$H27,0) -> 0 | V27: =IF(SUM(U$21:U$23)>0,$E27*$H27,0) -> 0 | X27: =IF(SUM(W$21:W$23)>0,$E27*$H27,0) -> 0 | Z27: =IF(SUM(Y$21:Y$23)>0,$E27*$H27,0) -> 0 | AB27: =IF(SUM(AA$21:AA$23)>0,$E27*$H27,0) -> 0 | AD27: =IF(SUM(AC$21:AC$23)>0,$E27*$H27,0) -> 0 | AF27: =IF(SUM(AE$21:AE$23)>0,$E27*$H27,0) -> 0 | AH27: =IF(SUM(AG$21:AG$23)>0,$E27*$H27,0) -> 0 | AJ27: =IF(SUM(AI$21:AI$23)>0,$E27*$H27,0) -> 0 | AL27: =IF(SUM(AK$21:AK$23)>0,$E27*$H27,0) -> 0 | AN27: =IF(SUM(AM$21:AM$23)>0,$E27*$H27,0) -> 0 | AP27: =IF(SUM(AO$21:AO$23)>0,$E27*$H27,0) -> 0 | AR27: =IF(SUM(AQ$21:AQ$23)>0,$E27*$H27,0) -> 0 | AT27: =IF(SUM(AS$21:AS$23)>0,$E27*$H27,0) -> 0 | AV27: =IF(SUM(AU$21:AU$23)>0,$E27*$H27,0) -> 0 | AX27: =IF(SUM(AW$21:AW$23)>0,$E27*$H27,0) -> 0 | AZ27: =IF(SUM(AY$21:AY$23)>0,$E27*$H27,0) -> 0 | BB27: =IF(SUM(BA$21:BA$23)>0,$E27*$H27,0) -> 0 | BD27: =IF(SUM(BC$21:BC$23)>0,$E27*$H27,0) -> 0 | BF27: =IF(SUM(BE$21:BE$23)>0,$E27*$H27,0) -> 0 | BH27: =IF(SUM(BG$21:BG$23)>0,$E27*$H27,0) -> 0 | BJ27: =IF(SUM(BI$21:BI$23)>0,$E27*$H27,0) -> 0 | BL27: =IF(SUM(BK$21:BK$23)>0,$E27*$H27,0) -> 0 | BN27: =IF(SUM(BM$21:BM$23)>0,$E27*$H27,0) -> 0 | BP27: =IF(SUM(BO$21:BO$23)>0,$E27*$H27,0) -> 0 | BR27: =IF(SUM(BQ$21:BQ$23)>0,$E27*$H27,0) -> 0 | BT27: =IF(SUM(BS$21:BS$23)>0,$E27*$H27,0) -> 0 | BV27: =IF(SUM(BU$21:BU$23)>0,$E27*$H27,0) -> 0 | BX27: =IF(SUM(BW$21:BW$23)>0,$E27*$H27,0) -> 0 | BZ27: =IF(SUM(BY$21:BY$23)>0,$E27*$H27,0) -> 0 | CB27: =IF(SUM(CA$21:CA$23)>0,$E27*$H27,0) -> 0 | CD27: =IF(SUM(CC$21:CC$23)>0,$E27*$H27,0) -> 0 | CF27: =IF(SUM(CE$21:CE$23)>0,$E27*$H27,0) -> 0 | CH27: =IF(SUM(CG$21:CG$23)>0,$E27*$H27,0) -> 0 | CJ27: =IF(SUM(CI$21:CI$23)>0,$E27*$H27,0) -> 353.36 | CL27: =IF(SUM(CK$21:CK$23)>0,$E27*$H27,0) -> 0 | CN27: =IF(SUM(CM$21:CM$23)>0,$E27*$H27,0) -> 0 | CP27: =IF(SUM(CO$21:CO$23)>0,$E27*$H27,0) -> 0 | CR27: =IF(SUM(CQ$21:CQ$23)>0,$E27*$H27,0) -> 0 | CT27: =IF(SUM(CS$21:CS$23)>0,$E27*$H27,0) -> 0 | CV27: =IF(SUM(CU$21:CU$23)>0,$E27*$H27,0) -> 0 | CX27: =IF(SUM(CW$21:CW$23)>0,$E27*$H27,0) -> 0 | CZ27: =IF(SUM(CY$21:CY$23)>0,$E27*$H27,0) -> 0 | DB27: =IF(SUM(DA$21:DA$23)>0,$E27*$H27,0) -> 0 | DD27: =IF(SUM(DC$21:DC$23)>0,$E27*$H27,0) -> 0 | DF27: =IF(SUM(DE$21:DE$23)>0,$E27*$H27,0) -> 0 | DH27: =IF(SUM(DG$21:DG$23)>0,$E27*$H27,0) -> 0 | DJ27: =IF(SUM(DI$21:DI$23)>0,$E27*$H27,0) -> 0 | DL27: =IF(SUM(DK$21:DK$23)>0,$E27*$H27,0) -> 0 | DN27: =IF(SUM(DM$21:DM$23)>0,$E27*$H27,0) -> 0 | DP27: =IF(SUM(DO$21:DO$23)>0,$E27*$H27,0) -> 0 | DR27: =IF(SUM(DQ$21:DQ$23)>0,$E27*$H27,0) -> 0 | DT27: =IF(SUM(DS$21:DS$23)>0,$E27*$H27,0) -> 0 | DV27: =IF(SUM(DU$21:DU$23)>0,$E27*$H27,0) -> 0 | DX27: =IF(SUM(DW$21:DW$23)>0,$E27*$H27,0) -> 0 | DZ27: =IF(SUM(DY$21:DY$23)>0,$E27*$H27,0) -> 0 | EB27: =IF(SUM(EA$21:EA$23)>0,$E27*$H27,0) -> 0 | ED27: =IF(SUM(EC$21:EC$23)>0,$E27*$H27,0) -> 0 | EF27: =IF(SUM(EE$21:EE$23)>0,$E27*$H27,0) -> 0 | EH27: =IF(SUM(EG$21:EG$23)>0,$E27*$H27,0) -> 0 | EJ27: =IF(SUM(EI$21:EI$23)>0,$E27*$H27,0) -> 0 | EL27: =IF(SUM(EK$21:EK$23)>0,$E27*$H27,0) -> 0 | EN27: =IF(SUM(EM$21:EM$23)>0,$E27*$H27,0) -> 0 | EP27: =IF(SUM(EO$21:EO$23)>0,$E27*$H27,0) -> 0 | ER27: =IF(SUM(EQ$21:EQ$23)>0,$E27*$H27,0) -> 0 | ET27: =IF(SUM(ES$21:ES$23)>0,$E27*$H27,0) -> 0 | EV27: =IF(SUM(EU$21:EU$23)>0,$E27*$H27,0) -> 0 | EX27: =IF(SUM(EW$21:EW$23)>0,$E27*$H27,0) -> 0 | EZ27: =IF(SUM(EY$21:EY$23)>0,$E27*$H27,0) -> 0
L28: =IF(SUM(K$21:K$23)>0,$E28*$H28,0) -> 0 | N28: =IF(SUM(M$21:M$23)>0,$E28*$H28,0) -> 0 | P28: =IF(SUM(O$21:O$23)>0,$E28*$H28,0) -> 0 | R28: =IF(SUM(Q$21:Q$23)>0,$E28*$H28,0) -> 0 | T28: =IF(SUM(S$21:S$23)>0,$E28*$H28,0) -> 0 | V28: =IF(SUM(U$21:U$23)>0,$E28*$H28,0) -> 0 | X28: =IF(SUM(W$21:W$23)>0,$E28*$H28,0) -> 0 | Z28: =IF(SUM(Y$21:Y$23)>0,$E28*$H28,0) -> 0 | AB28: =IF(SUM(AA$21:AA$23)>0,$E28*$H28,0) -> 0 | AD28: =IF(SUM(AC$21:AC$23)>0,$E28*$H28,0) -> 0 | AF28: =IF(SUM(AE$21:AE$23)>0,$E28*$H28,0) -> 0 | AH28: =IF(SUM(AG$21:AG$23)>0,$E28*$H28,0) -> 0 | AJ28: =IF(SUM(AI$21:AI$23)>0,$E28*$H28,0) -> 0 | AL28: =IF(SUM(AK$21:AK$23)>0,$E28*$H28,0) -> 0 | AN28: =IF(SUM(AM$21:AM$23)>0,$E28*$H28,0) -> 0 | AP28: =IF(SUM(AO$21:AO$23)>0,$E28*$H28,0) -> 0 | AR28: =IF(SUM(AQ$21:AQ$23)>0,$E28*$H28,0) -> 0 | AT28: =IF(SUM(AS$21:AS$23)>0,$E28*$H28,0) -> 0 | AV28: =IF(SUM(AU$21:AU$23)>0,$E28*$H28,0) -> 0 | AX28: =IF(SUM(AW$21:AW$23)>0,$E28*$H28,0) -> 0 | AZ28: =IF(SUM(AY$21:AY$23)>0,$E28*$H28,0) -> 0 | BB28: =IF(SUM(BA$21:BA$23)>0,$E28*$H28,0) -> 0 | BD28: =IF(SUM(BC$21:BC$23)>0,$E28*$H28,0) -> 0 | BF28: =IF(SUM(BE$21:BE$23)>0,$E28*$H28,0) -> 0 | BH28: =IF(SUM(BG$21:BG$23)>0,$E28*$H28,0) -> 0 | BJ28: =IF(SUM(BI$21:BI$23)>0,$E28*$H28,0) -> 0 | BL28: =IF(SUM(BK$21:BK$23)>0,$E28*$H28,0) -> 0 | BN28: =IF(SUM(BM$21:BM$23)>0,$E28*$H28,0) -> 0 | BP28: =IF(SUM(BO$21:BO$23)>0,$E28*$H28,0) -> 0 | BR28: =IF(SUM(BQ$21:BQ$23)>0,$E28*$H28,0) -> 0 | BT28: =IF(SUM(BS$21:BS$23)>0,$E28*$H28,0) -> 0 | BV28: =IF(SUM(BU$21:BU$23)>0,$E28*$H28,0) -> 0 | BX28: =IF(SUM(BW$21:BW$23)>0,$E28*$H28,0) -> 0 | BZ28: =IF(SUM(BY$21:BY$23)>0,$E28*$H28,0) -> 0 | CB28: =IF(SUM(CA$21:CA$23)>0,$E28*$H28,0) -> 0 | CD28: =IF(SUM(CC$21:CC$23)>0,$E28*$H28,0) -> 0 | CF28: =IF(SUM(CE$21:CE$23)>0,$E28*$H28,0) -> 0 | CH28: =IF(SUM(CG$21:CG$23)>0,$E28*$H28,0) -> 0 | CJ28: =IF(SUM(CI$21:CI$23)>0,$E28*$H28,0) -> 0 | CL28: =IF(SUM(CK$21:CK$23)>0,$E28*$H28,0) -> 0 | CN28: =IF(SUM(CM$21:CM$23)>0,$E28*$H28,0) -> 0 | CP28: =IF(SUM(CO$21:CO$23)>0,$E28*$H28,0) -> 0 | CR28: =IF(SUM(CQ$21:CQ$23)>0,$E28*$H28,0) -> 0 | CT28: =IF(SUM(CS$21:CS$23)>0,$E28*$H28,0) -> 0 | CV28: =IF(SUM(CU$21:CU$23)>0,$E28*$H28,0) -> 0 | CX28: =IF(SUM(CW$21:CW$23)>0,$E28*$H28,0) -> 0 | CZ28: =IF(SUM(CY$21:CY$23)>0,$E28*$H28,0) -> 0 | DB28: =IF(SUM(DA$21:DA$23)>0,$E28*$H28,0) -> 0 | DD28: =IF(SUM(DC$21:DC$23)>0,$E28*$H28,0) -> 0 | DF28: =IF(SUM(DE$21:DE$23)>0,$E28*$H28,0) -> 0 | DH28: =IF(SUM(DG$21:DG$23)>0,$E28*$H28,0) -> 0 | DJ28: =IF(SUM(DI$21:DI$23)>0,$E28*$H28,0) -> 0 | DL28: =IF(SUM(DK$21:DK$23)>0,$E28*$H28,0) -> 0 | DN28: =IF(SUM(DM$21:DM$23)>0,$E28*$H28,0) -> 0 | DP28: =IF(SUM(DO$21:DO$23)>0,$E28*$H28,0) -> 0 | DR28: =IF(SUM(DQ$21:DQ$23)>0,$E28*$H28,0) -> 0 | DT28: =IF(SUM(DS$21:DS$23)>0,$E28*$H28,0) -> 0 | DV28: =IF(SUM(DU$21:DU$23)>0,$E28*$H28,0) -> 0 | DX28: =IF(SUM(DW$21:DW$23)>0,$E28*$H28,0) -> 0 | DZ28: =IF(SUM(DY$21:DY$23)>0,$E28*$H28,0) -> 0 | EB28: =IF(SUM(EA$21:EA$23)>0,$E28*$H28,0) -> 0 | ED28: =IF(SUM(EC$21:EC$23)>0,$E28*$H28,0) -> 0 | EF28: =IF(SUM(EE$21:EE$23)>0,$E28*$H28,0) -> 0 | EH28: =IF(SUM(EG$21:EG$23)>0,$E28*$H28,0) -> 0 | EJ28: =IF(SUM(EI$21:EI$23)>0,$E28*$H28,0) -> 0 | EL28: =IF(SUM(EK$21:EK$23)>0,$E28*$H28,0) -> 0 | EN28: =IF(SUM(EM$21:EM$23)>0,$E28*$H28,0) -> 0 | EP28: =IF(SUM(EO$21:EO$23)>0,$E28*$H28,0) -> 0 | ER28: =IF(SUM(EQ$21:EQ$23)>0,$E28*$H28,0) -> 0 | ET28: =IF(SUM(ES$21:ES$23)>0,$E28*$H28,0) -> 0 | EV28: =IF(SUM(EU$21:EU$23)>0,$E28*$H28,0) -> 0 | EX28: 0 | EZ28: 0
C29: CATEGORIAS | H29: QUANTIDADE
C31: 47 | D31: =HLOOKUP($C31,'Dados Gerais'!$D$5:$BW$133,6) -> Intérprete de libras de TV - 5 dias | H31: =HLOOKUP($C31,'Dados Gerais'!$D$5:$BX$14,10) -> 4 | K31: =IF($C31=K$7,1,0) -> 0 | M31: 0 | O31: 0 | Q31: 0 | S31: 0 | U31: 0 | W31: 0 | Y31: 0 | AA31: 0 | AC31: 0 | AE31: 0 | AG31: 0 | AI31: 0 | AK31: 0 | AM31: 0 | AO31: 0 | AQ31: 0 | AS31: 0 | AU31: 0 | AW31: 0 | AY31: 0 | BA31: 0 | BC31: 0 | BE31: 0 | BG31: 0 | BI31: 0 | BK31: 0 | BM31: 0 | BO31: 0 | BQ31: =IF($C31=BQ$7,1,0) -> 0 | BS31: =IF($C31=BS$7,1,0) -> 0 | BU31: =IF($C31=BU$7,1,0) -> 0 | BW31: =IF($C31=BW$7,1,0) -> 0 | BY31: =IF($C31=BY$7,1,0) -> 0 | CA31: =IF($C31=CA$7,1,0) -> 0 | CC31: =IF($C31=CC$7,1,0) -> 0 | CE31: =IF($C31=CE$7,1,0) -> 0 | CG31: =IF($C31=CG$7,1,0) -> 0 | CI31: =IF($C31=CI$7,1,0) -> 0 | CK31: =IF($C31=CK$7,1,0) -> 0 | CM31: =IF($C31=CM$7,1,0) -> 0 | CO31: =IF($C31=CO$7,1,0) -> 0 | CQ31: =IF($C31=CQ$7,1,0) -> 0 | CS31: =IF($C31=CS$7,1,0) -> 0 | CU31: =IF($C31=CU$7,1,0) -> 0 | CW31: =IF($C31=CW$7,1,0) -> 0 | CY31: =IF($C31=CY$7,1,0) -> 1 | DA31: =IF($C31=DA$7,1,0) -> 0 | DC31: =IF($C31=DC$7,1,0) -> 0 | DE31: =IF($C31=DE$7,1,0) -> 0 | DG31: =IF($C31=DG$7,1,0) -> 0 | DI31: =IF($C31=DI$7,1,0) -> 0 | DK31: =IF($C31=DK$7,1,0) -> 0 | DM31: =IF($C31=DM$7,1,0) -> 0 | DO31: =IF($C31=DO$7,1,0) -> 0 | DQ31: =IF($C31=DQ$7,1,0) -> 0 | DS31: =IF($C31=DS$7,1,0) -> 0 | DU31: =IF($C31=DU$7,1,0) -> 0 | DW31: =IF($C31=DW$7,1,0) -> 0 | DY31: =IF($C31=DY$7,1,0) -> 0 | EA31: 0 | EC31: 0 | EE31: 0 | EG31: 0 | EI31: 0 | EK31: 0 | EM31: 0 | EO31: 0 | EQ31: 0 | ES31: 0 | EU31: 0 | EW31: 0 | EY31: 0
C32: 48 | D32: =HLOOKUP($C32,'Dados Gerais'!$D$5:$BW$133,6) -> Intérprete de libras de TV - 4 dias | H32: =HLOOKUP($C32,'Dados Gerais'!$D$5:$BX$14,10) -> 2 | K32: 0 | M32: 0 | O32: 0 | Q32: 0 | S32: 0 | U32: 0 | W32: 0 | Y32: 0 | AA32: 0 | AC32: 0 | AE32: 0 | AG32: 0 | AI32: 0 | AK32: 0 | AM32: 0 | AO32: 0 | AQ32: 0 | AS32: 0 | AU32: 0 | AW32: 0 | AY32: 0 | BA32: 0 | BC32: 0 | BE32: 0 | BG32: 0 | BI32: 0 | BK32: 0 | BM32: 0 | BO32: 0 | BQ32: 0 | BS32: 0 | BU32: 0 | BW32: 0 | BY32: 0 | CA32: 0 | CC32: 0 | CE32: 0 | CG32: 0 | CI32: 0 | CK32: 0 | CM32: 0 | CO32: 0 | CQ32: 0 | CS32: 0 | CU32: 0 | CW32: 0 | CY32: 0 | DA32: 1 | DC32: 0 | DE32: 0 | DG32: 0 | DI32: 0 | DK32: 0 | DM32: 0 | DO32: 0 | DQ32: 0 | DS32: 0 | DU32: 0 | DW32: 0 | DY32: 0 | EA32: 0 | EC32: 0 | EE32: 0 | EG32: 0 | EI32: 0 | EK32: 0 | EM32: 0 | EO32: 0 | EQ32: 0 | ES32: 0 | EU32: 0 | EW32: 0 | EY32: 0
C35: ITEM | D35: DESCRIÇÃO | E35: QUANT ANUAL POR POSTO | F35: Nº DE POSTOS | G35: QUANT ANUAL TOTAL | H35: VALOR
BP36: =IF(SUM(BO$11:BO$13)>0,$E36*$H36,0) -> 0 | BR36: =IF(SUM(BQ$11:BQ$13)>0,$E36*$H36,0) -> 0 | BT36: =IF(SUM(BS$11:BS$13)>0,$E36*$H36,0) -> 0 | BV36: =IF(SUM(BU$11:BU$13)>0,$E36*$H36,0) -> 0 | BX36: =IF(SUM(BW$11:BW$13)>0,$E36*$H36,0) -> 0 | BZ36: =IF(SUM(BY$11:BY$13)>0,$E36*$H36,0) -> 0 | CB36: =IF(SUM(CA$11:CA$13)>0,$E36*$H36,0) -> 0 | CD36: =IF(SUM(CC$11:CC$13)>0,$E36*$H36,0) -> 0 | CF36: =IF(SUM(CE$11:CE$13)>0,$E36*$H36,0) -> 0 | CH36: =IF(SUM(CG$11:CG$13)>0,$E36*$H36,0) -> 0 | CJ36: =IF(SUM(CI$11:CI$13)>0,$E36*$H36,0) -> 0 | CL36: =IF(SUM(CK$11:CK$13)>0,$E36*$H36,0) -> 0 | CN36: =IF(SUM(CM$11:CM$13)>0,$E36*$H36,0) -> 0 | CP36: =IF(SUM(CO$11:CO$13)>0,$E36*$H36,0) -> 0 | CR36: =IF(SUM(CQ$11:CQ$13)>0,$E36*$H36,0) -> 0 | CT36: =IF(SUM(CS$11:CS$13)>0,$E36*$H36,0) -> 0 | CV36: =IF(SUM(CU$11:CU$13)>0,$E36*$H36,0) -> 0 | CX36: =IF(SUM(CW$11:CW$13)>0,$E36*$H36,0) -> 0 | CZ36: =IF(SUM(CY$11:CY$13)>0,$E36*$H36,0) -> 0 | DB36: =IF(SUM(DA$11:DA$13)>0,$E36*$H36,0) -> 0 | DD36: =IF(SUM(DC$11:DC$13)>0,$E36*$H36,0) -> 0 | DF36: =IF(SUM(DE$11:DE$13)>0,$E36*$H36,0) -> 0 | DH36: =IF(SUM(DG$11:DG$13)>0,$E36*$H36,0) -> 0 | DJ36: =IF(SUM(DI$11:DI$13)>0,$E36*$H36,0) -> 0 | DL36: =IF(SUM(DK$11:DK$13)>0,$E36*$H36,0) -> 0 | DN36: =IF(SUM(DM$11:DM$13)>0,$E36*$H36,0) -> 0 | DP36: =IF(SUM(DO$11:DO$13)>0,$E36*$H36,0) -> 0 | DR36: =IF(SUM(DQ$11:DQ$13)>0,$E36*$H36,0) -> 0 | DT36: =IF(SUM(DS$11:DS$13)>0,$E36*$H36,0) -> 0 | DV36: =IF(SUM(DU$11:DU$13)>0,$E36*$H36,0) -> 0 | DX36: =IF(SUM(DW$11:DW$13)>0,$E36*$H36,0) -> 0 | DZ36: =IF(SUM(DY$11:DY$13)>0,$E36*$H36,0) -> 0 | EB36: =IF(SUM(EA$11:EA$13)>0,$E36*$H36,0) -> 0 | ED36: =IF(SUM(EC$11:EC$13)>0,$E36*$H36,0) -> 0 | EF36: =IF(SUM(EE$11:EE$13)>0,$E36*$H36,0) -> 0 | EH36: =IF(SUM(EG$11:EG$13)>0,$E36*$H36,0) -> 0 | EJ36: =IF(SUM(EI$11:EI$13)>0,$E36*$H36,0) -> 0 | EL36: =IF(SUM(EK$11:EK$13)>0,$E36*$H36,0) -> 0 | EN36: =IF(SUM(EM$11:EM$13)>0,$E36*$H36,0) -> 0 | EP36: =IF(SUM(EO$11:EO$13)>0,$E36*$H36,0) -> 0 | ER36: =IF(SUM(EQ$11:EQ$13)>0,$E36*$H36,0) -> 0 | ET36: =IF(SUM(ES$11:ES$13)>0,$E36*$H36,0) -> 0 | EV36: =IF(SUM(EU$11:EU$13)>0,$E36*$H36,0) -> 0 | EX36: =IF(SUM(EW$11:EW$13)>0,$E36*$H36,0) -> 0 | EZ36: =IF(SUM(EY$11:EY$13)>0,$E36*$H36,0) -> 0
D37: Camiseta de malha (de algodão ou microfibra ou outro tecido leve), de manga 3/4 e gola redonda ou careca na cor preta (para intérpretes de pele clara) ou na cor branca ou bege (para intérpretes de pele escura) | E37: 4 | F37: =H31+H32 -> 6 | G37: =F37*E37 -> 24 | H37: 32.77 | L37: =IF(SUM(K$31:K$33)>0,$E37*$H37,0) -> 0 | N37: =IF(SUM(M$31:M$33)>0,$E37*$H37,0) -> 0 | P37: =IF(SUM(O$31:O$33)>0,$E37*$H37,0) -> 0 | R37: =IF(SUM(Q$31:Q$33)>0,$E37*$H37,0) -> 0 | T37: =IF(SUM(S$31:S$33)>0,$E37*$H37,0) -> 0 | V37: =IF(SUM(U$31:U$33)>0,$E37*$H37,0) -> 0 | X37: =IF(SUM(W$31:W$33)>0,$E37*$H37,0) -> 0 | Z37: =IF(SUM(Y$31:Y$33)>0,$E37*$H37,0) -> 0 | AB37: =IF(SUM(AA$31:AA$33)>0,$E37*$H37,0) -> 0 | AD37: =IF(SUM(AC$31:AC$33)>0,$E37*$H37,0) -> 0 | AF37: =IF(SUM(AE$31:AE$33)>0,$E37*$H37,0) -> 0 | AH37: =IF(SUM(AG$31:AG$33)>0,$E37*$H37,0) -> 0 | AJ37: =IF(SUM(AI$31:AI$33)>0,$E37*$H37,0) -> 0 | AL37: =IF(SUM(AK$31:AK$33)>0,$E37*$H37,0) -> 0 | AN37: =IF(SUM(AM$31:AM$33)>0,$E37*$H37,0) -> 0 | AP37: =IF(SUM(AO$31:AO$33)>0,$E37*$H37,0) -> 0 | AR37: =IF(SUM(AQ$31:AQ$33)>0,$E37*$H37,0) -> 0 | AT37: =IF(SUM(AS$31:AS$33)>0,$E37*$H37,0) -> 0 | AV37: =IF(SUM(AU$31:AU$33)>0,$E37*$H37,0) -> 0 | AX37: =IF(SUM(AW$31:AW$33)>0,$E37*$H37,0) -> 0 | AZ37: =IF(SUM(AY$31:AY$33)>0,$E37*$H37,0) -> 0 | BB37: =IF(SUM(BA$31:BA$33)>0,$E37*$H37,0) -> 0 | BD37: =IF(SUM(BC$31:BC$33)>0,$E37*$H37,0) -> 0 | BF37: =IF(SUM(BE$31:BE$33)>0,$E37*$H37,0) -> 0 | BH37: =IF(SUM(BG$31:BG$33)>0,$E37*$H37,0) -> 0 | BJ37: =IF(SUM(BI$31:BI$33)>0,$E37*$H37,0) -> 0 | BL37: =IF(SUM(BK$31:BK$33)>0,$E37*$H37,0) -> 0 | BN37: =IF(SUM(BM$31:BM$33)>0,$E37*$H37,0) -> 0 | BP37: =IF(SUM(BO$31:BO$33)>0,$E37*$H37,0) -> 0 | BR37: =IF(SUM(BQ$31:BQ$33)>0,$E37*$H37,0) -> 0 | BT37: =IF(SUM(BS$31:BS$33)>0,$E37*$H37,0) -> 0 | BV37: =IF(SUM(BU$31:BU$33)>0,$E37*$H37,0) -> 0 | BX37: =IF(SUM(BW$31:BW$33)>0,$E37*$H37,0) -> 0 | BZ37: =IF(SUM(BY$31:BY$33)>0,$E37*$H37,0) -> 0 | CB37: =IF(SUM(CA$31:CA$33)>0,$E37*$H37,0) -> 0 | CD37: =IF(SUM(CC$31:CC$33)>0,$E37*$H37,0) -> 0 | CF37: =IF(SUM(CE$31:CE$33)>0,$E37*$H37,0) -> 0 | CH37: =IF(SUM(CG$31:CG$33)>0,$E37*$H37,0) -> 0 | CJ37: =IF(SUM(CI$31:CI$33)>0,$E37*$H37,0) -> 0 | CL37: =IF(SUM(CK$31:CK$33)>0,$E37*$H37,0) -> 0 | CN37: =IF(SUM(CM$31:CM$33)>0,$E37*$H37,0) -> 0 | CP37: =IF(SUM(CO$31:CO$33)>0,$E37*$H37,0) -> 0 | CR37: =IF(SUM(CQ$31:CQ$33)>0,$E37*$H37,0) -> 0 | CT37: =IF(SUM(CS$31:CS$33)>0,$E37*$H37,0) -> 0 | CV37: =IF(SUM(CU$31:CU$33)>0,$E37*$H37,0) -> 0 | CX37: =IF(SUM(CW$31:CW$33)>0,$E37*$H37,0) -> 0 | CZ37: =IF(SUM(CY$31:CY$33)>0,$E37*$H37,0) -> 131.08 | DB37: =IF(SUM(DA$31:DA$33)>0,$E37*$H37,0) -> 131.08 | DD37: =IF(SUM(DC$31:DC$33)>0,$E37*$H37,0) -> 0 | DF37: =IF(SUM(DE$31:DE$33)>0,$E37*$H37,0) -> 0 | DH37: =IF(SUM(DG$31:DG$33)>0,$E37*$H37,0) -> 0 | DJ37: =IF(SUM(DI$31:DI$33)>0,$E37*$H37,0) -> 0 | DL37: =IF(SUM(DK$31:DK$33)>0,$E37*$H37,0) -> 0 | DN37: =IF(SUM(DM$31:DM$33)>0,$E37*$H37,0) -> 0 | DP37: =IF(SUM(DO$31:DO$33)>0,$E37*$H37,0) -> 0 | DR37: =IF(SUM(DQ$31:DQ$33)>0,$E37*$H37,0) -> 0 | DT37: =IF(SUM(DS$31:DS$33)>0,$E37*$H37,0) -> 0 | DV37: =IF(SUM(DU$31:DU$33)>0,$E37*$H37,0) -> 0 | DX37: =IF(SUM(DW$31:DW$33)>0,$E37*$H37,0) -> 0 | DZ37: =IF(SUM(DY$31:DY$33)>0,$E37*$H37,0) -> 0 | EB37: =IF(SUM(EA$31:EA$33)>0,$E37*$H37,0) -> 0 | ED37: =IF(SUM(EC$31:EC$33)>0,$E37*$H37,0) -> 0 | EF37: =IF(SUM(EE$31:EE$33)>0,$E37*$H37,0) -> 0 | EH37: =IF(SUM(EG$31:EG$33)>0,$E37*$H37,0) -> 0 | EJ37: =IF(SUM(EI$31:EI$33)>0,$E37*$H37,0) -> 0 | EL37: =IF(SUM(EK$31:EK$33)>0,$E37*$H37,0) -> 0 | EN37: =IF(SUM(EM$31:EM$33)>0,$E37*$H37,0) -> 0 | EP37: =IF(SUM(EO$31:EO$33)>0,$E37*$H37,0) -> 0 | ER37: =IF(SUM(EQ$31:EQ$33)>0,$E37*$H37,0) -> 0 | ET37: =IF(SUM(ES$31:ES$33)>0,$E37*$H37,0) -> 0 | EV37: =IF(SUM(EU$31:EU$33)>0,$E37*$H37,0) -> 0 | EX37: =IF(SUM(EW$31:EW$33)>0,$E37*$H37,0) -> 0 | EZ37: =IF(SUM(EY$31:EY$33)>0,$E37*$H37,0) -> 0

Sheet EPI
B4: EQUIPAMENTOS DE PROTEÇÃO INDIVIDUAL - AQUISIÇÃO | I4: 1 | K4: =I4+1 -> 2 | M4: =K4+1 -> 3 | O4: =M4+1 -> 4 | Q4: =O4+1 -> 5 | S4: =Q4+1 -> 6 | U4: =S4+1 -> 7 | W4: =U4+1 -> 8 | Y4: =W4+1 -> 9 | AA4: =Y4+1 -> 10 | AC4: =AA4+1 -> 11 | AE4: =AC4+1 -> 12 | AG4: =AE4+1 -> 13 | AI4: =AG4+1 -> 14 | AK4: =AI4+1 -> 15 | AM4: =AK4+1 -> 16 | AO4: =AM4+1 -> 17 | AQ4: =AO4+1 -> 18 | AS4: =AQ4+1 -> 19 | AU4: =AS4+1 -> 20 | AW4: =AU4+1 -> 21 | AY4: =AW4+1 -> 22 | BA4: =AY4+1 -> 23 | BC4: =BA4+1 -> 24 | BE4: =BC4+1 -> 25 | BG4: =BE4+1 -> 26 | BI4: =BG4+1 -> 27 | BK4: =BI4+1 -> 28 | BM4: =BK4+1 -> 29 | BO4: =BM4+1 -> 30 | BQ4: =BO4+1 -> 31 | BS4: =BQ4+1 -> 32 | BU4: =BS4+1 -> 33 | BW4: =BU4+1 -> 34 | BY4: =BW4+1 -> 35 | CA4: =BY4+1 -> 36 | CC4: =CA4+1 -> 37 | CE4: =CC4+1 -> 38 | CG4: =CE4+1 -> 39 | CI4: =CG4+1 -> 40 | CK4: =CI4+1 -> 41 | CM4: =CK4+1 -> 42 | CO4: =CM4+1 -> 43 | CQ4: =CO4+1 -> 44 | CS4: =CQ4+1 -> 45 | CU4: =CS4+1 -> 46 | CW4: =CU4+1 -> 47 | CY4: =CW4+1 -> 48 | DA4: =CY4+1 -> 49 | DC4: =DA4+1 -> 50 | DE4: =DC4+1 -> 51 | DG4: =DE4+1 -> 52 | DI4: =DG4+1 -> 53 | DK4: =DI4+1 -> 54 | DM4: =DK4+1 -> 55 | DO4: =DM4+1 -> 56 | DQ4: =DO4+1 -> 57 | DS4: =DQ4+1 -> 58 | DU4: =DS4+1 -> 59 | DW4: =DU4+1 -> 60
I6: =ROUND(SUM(J5:J67),2) -> 0 | K6: =ROUND(SUM(L5:L67),2) -> 0 | M6: =ROUND(SUM(N5:N67),2) -> 0 | O6: =ROUND(SUM(P5:P67),2) -> 0 | Q6: =ROUND(SUM(R5:R67),2) -> 0 | S6: =ROUND(SUM(T5:T67),2) -> 0 | U6: =ROUND(SUM(V5:V67),2) -> 0 | W6: =ROUND(SUM(X5:X67),2) -> 0 | Y6: =ROUND(SUM(Z5:Z67),2) -> 0 | AA6: =ROUND(SUM(AB5:AB67),2) -> 0 | AC6: =ROUND(SUM(AD5:AD67),2) -> 0 | AE6: =ROUND(SUM(AF5:AF67),2) -> 0 | AG6: =ROUND(SUM(AH5:AH67),2) -> 0 | AI6: =ROUND(SUM(AJ5:AJ67),2) -> 0 | AK6: =ROUND(SUM(AL5:AL67),2) -> 0 | AM6: =ROUND(SUM(AN5:AN67),2) -> 0 | AO6: =ROUND(SUM(AP5:AP67),2) -> 0 | AQ6: =ROUND(SUM(AR5:AR67),2) -> 0 | AS6: =ROUND(SUM(AT5:AT67),2) -> 0 | AU6: =ROUND(SUM(AV5:AV67),2) -> 0 | AW6: =ROUND(SUM(AX5:AX67),2) -> 0 | AY6: =ROUND(SUM(AZ5:AZ67),2) -> 0 | BA6: =ROUND(SUM(BB5:BB67),2) -> 0 | BC6: =ROUND(SUM(BD5:BD67),2) -> 0 | BE6: =ROUND(SUM(BF5:BF67),2) -> 0 | BG6: =ROUND(SUM(BH5:BH67),2) -> 0 | BI6: =ROUND(SUM(BJ5:BJ67),2) -> 0 | BK6: =ROUND(SUM(BL5:BL67),2) -> 0 | BM6: =ROUND(SUM(BN5:BN67),2) -> 0 | BO6: =ROUND(SUM(BP5:BP67),2) -> 0 | BQ6: =ROUND(SUM(BR5:BR67),2) -> 0 | BS6: =ROUND(SUM(BT5:BT67),2) -> 0 | BU6: =ROUND(SUM(BV5:BV67),2) -> 0 | BW6: =ROUND(SUM(BX5:BX67),2) -> 0 | BY6: =ROUND(SUM(BZ5:BZ67),2) -> 0 | CA6: =ROUND(SUM(CB5:CB67),2) -> 0 | CC6: =ROUND(SUM(CD5:CD67),2) -> 0 | CE6: =ROUND(SUM(CF5:CF67),2) -> 203.29 | CG6: =ROUND(SUM(CH5:CH67),2) -> 1377.44 | CI6: =ROUND(SUM(CJ5:CJ67),2) -> 0 | CK6: =ROUND(SUM(CL5:CL67),2) -> 0 | CM6: =ROUND(SUM(CN5:CN67),2) -> 0 | CO6: =ROUND(SUM(CP5:CP67),2) -> 0 | CQ6: =ROUND(SUM(CR5:CR67),2) -> 0 | CS6: =ROUND(SUM(CT5:CT67),2) -> 0 | CU6: =ROUND(SUM(CV5:CV67),2) -> 0 | CW6: =ROUND(SUM(CX5:CX67),2) -> 0 | CY6: =ROUND(SUM(CZ5:CZ67),2) -> 0 | DA6: =ROUND(SUM(DB5:DB67),2) -> 0 | DC6: =ROUND(SUM(DD5:DD67),2) -> 0 | DE6: =ROUND(SUM(DF5:DF67),2) -> 0 | DG6: =ROUND(SUM(DH5:DH67),2) -> 0 | DI6: =ROUND(SUM(DJ5:DJ67),2) -> 0 | DK6: =ROUND(SUM(DL5:DL67),2) -> 0 | DM6: =ROUND(SUM(DN5:DN67),2) -> 0 | DO6: =ROUND(SUM(DP5:DP67),2) -> 0 | DQ6: =ROUND(SUM(DR5:DR67),2) -> 0 | DS6: =ROUND(SUM(DT5:DT67),2) -> 0 | DU6: =ROUND(SUM(DV5:DV67),2) -> 0 | DW6: =ROUND(SUM(DX5:DX67),2) -> 0
C7: CATEGORIAS | F7: QUANTIDADE
I8: =IF($C8=I$4,1,0) -> 0 | K8: =IF($C8=K$4,1,0) -> 0 | M8: =IF($C8=M$4,1,0) -> 0 | O8: =IF($C8=O$4,1,0) -> 0 | Q8: =IF($C8=Q$4,1,0) -> 0 | S8: =IF($C8=S$4,1,0) -> 0 | U8: =IF($C8=U$4,1,0) -> 0 | W8: =IF($C8=W$4,1,0) -> 0 | Y8: =IF($C8=Y$4,1,0) -> 0 | AA8: =IF($C8=AA$4,1,0) -> 0 | AC8: =IF($C8=AC$4,1,0) -> 0 | AE8: =IF($C8=AE$4,1,0) -> 0 | AG8: =IF($C8=AG$4,1,0) -> 0 | AI8: =IF($C8=AI$4,1,0) -> 0 | AK8: =IF($C8=AK$4,1,0) -> 0 | AM8: =IF($C8=AM$4,1,0) -> 0 | AO8: =IF($C8=AO$4,1,0) -> 0 | AQ8: =IF($C8=AQ$4,1,0) -> 0 | AS8: =IF($C8=AS$4,1,0) -> 0
C9: 38 | D9: =HLOOKUP($C9,'Dados Gerais'!$D$5:$BK$10,6) -> Supervisor técnico - 5 dias | F9: =HLOOKUP($C9,'Dados Gerais'!$D$5:$BK$14,10) -> 1 | I9: =IF($C9=I$4,1,0) -> 0 | K9: 0 | M9: 0 | O9: 0 | Q9: 0 | S9: 0 | U9: 0 | W9: 0 | Y9: 0 | AA9: 0 | AC9: 0 | AE9: =IF($C9=AE$4,1,0) -> 0 | AG9: 0 | AI9: 0 | AK9: 0 | AM9: 0 | AO9: 0 | AQ9: 0 | AS9: 0 | AU9: =IF($C9=AU$4,1,0) -> 0 | AW9: =IF($C9=AW$4,1,0) -> 0 | AY9: =IF($C9=AY$4,1,0) -> 0 | BA9: =IF($C9=BA$4,1,0) -> 0 | BC9: =IF($C9=BC$4,1,0) -> 0 | BE9: =IF($C9=BE$4,1,0) -> 0 | BG9: =IF($C9=BG$4,1,0) -> 0 | BI9: =IF($C9=BI$4,1,0) -> 0 | BK9: =IF($C9=BK$4,1,0) -> 0 | BM9: =IF($C9=BM$4,1,0) -> 0 | BO9: =IF($C9=BO$4,1,0) -> 0 | BQ9: =IF($C9=BQ$4,1,0) -> 0 | BS9: =IF($C9=BS$4,1,0) -> 0 | BU9: =IF($C9=BU$4,1,0) -> 0 | BW9: =IF($C9=BW$4,1,0) -> 0 | BY9: =IF($C9=BY$4,1,0) -> 0 | CA9: =IF($C9=CA$4,1,0) -> 0 | CC9: =IF($C9=CC$4,1,0) -> 0 | CE9: =IF($C9=CE$4,1,0) -> 1 | CG9: =IF($C9=CG$4,1,0) -> 0 | CI9: =IF($C9=CI$4,1,0) -> 0 | CK9: =IF($C9=CK$4,1,0) -> 0 | CM9: =IF($C9=CM$4,1,0) -> 0 | CO9: =IF($C9=CO$4,1,0) -> 0 | CQ9: =IF($C9=CQ$4,1,0) -> 0 | CS9: =IF($C9=CS$4,1,0) -> 0 | CU9: =IF($C9=CU$4,1,0) -> 0 | CW9: =IF($C9=CW$4,1,0) -> 0 | CY9: =IF($C9=CY$4,1,0) -> 0 | DA9: =IF($C9=DA$4,1,0) -> 0 | DC9: =IF($C9=DC$4,1,0) -> 0 | DE9: =IF($C9=DE$4,1,0) -> 0 | DG9: =IF($C9=DG$4,1,0) -> 0 | DI9: =IF($C9=DI$4,1,0) -> 0 | DK9: =IF($C9=DK$4,1,0) -> 0 | DM9: =IF($C9=DM$4,1,0) -> 0 | DO9: =IF($C9=DO$4,1,0) -> 0 | DQ9: =IF($C9=DQ$4,1,0) -> 0 | DS9: =IF($C9=DS$4,1,0) -> 0 | DU9: =IF($C9=DU$4,1,0) -> 0 | DW9: =IF($C9=DW$4,1,0) -> 0
I10: =IF($C10=I$4,1,0) -> 0 | K10: 0 | M10: 0 | O10: 0 | Q10: 0 | S10: 0 | U10: 0 | W10: 0 | Y10: 0 | AA10: 0 | AC10: 0 | AE10: =IF($C10=AE$4,1,0) -> 0 | AG10: 0 | AI10: 0 | AK10: 0 | AM10: 0 | AO10: 0 | AQ10: 0 | AS10: 0
C12: ITEM | D12: DESCRIÇÃO | E12: QUANT ANUAL POR POSTO | F12: VALOR
J13: =IF(SUM(I$20:I$22)>0,$E13*$F13,0) -> 0 | L13: =IF(SUM(K$20:K$22)>0,$E13*$F13,0) -> 0 | N13: =IF(SUM(M$20:M$22)>0,$E13*$F13,0) -> 0 | P13: =IF(SUM(O$20:O$22)>0,$E13*$F13,0) -> 0 | R13: =IF(SUM(Q$20:Q$22)>0,$E13*$F13,0) -> 0 | T13: =IF(SUM(S$20:S$22)>0,$E13*$F13,0) -> 0 | V13: =IF(SUM(U$20:U$22)>0,$E13*$F13,0) -> 0 | X13: =IF(SUM(W$20:W$22)>0,$E13*$F13,0) -> 0 | Z13: =IF(SUM(Y$20:Y$22)>0,$E13*$F13,0) -> 0 | AB13: =IF(SUM(AA$20:AA$22)>0,$E13*$F13,0) -> 0 | AD13: =IF(SUM(AC$20:AC$22)>0,$E13*$F13,0) -> 0 | AF13: =IF(SUM(AE$20:AE$22)>0,$E13*$F13,0) -> 0 | AH13: =IF(SUM(AG$20:AG$22)>0,$E13*$F13,0) -> 0 | AJ13: =IF(SUM(AI$20:AI$22)>0,$E13*$F13,0) -> 0 | AL13: =IF(SUM(AK$20:AK$22)>0,$E13*$F13,0) -> 0 | AN13: =IF(SUM(AM$20:AM$22)>0,$E13*$F13,0) -> 0 | AP13: =IF(SUM(AO$20:AO$22)>0,$E13*$F13,0) -> 0 | AR13: =IF(SUM(AQ$20:AQ$22)>0,$E13*$F13,0) -> 0 | AT13: =IF(SUM(AS$20:AS$22)>0,$E13*$F13,0) -> 0 | AV13: =IF(SUM(AU$20:AU$22)>0,$E13*$F13,0) -> 0 | AX13: =IF(SUM(AW$20:AW$22)>0,$E13*$F13,0) -> 0 | AZ13: =IF(SUM(AY$20:AY$22)>0,$E13*$F13,0) -> 0 | BB13: =IF(SUM(BA$20:BA$22)>0,$E13*$F13,0) -> 0 | BD13: =IF(SUM(BC$20:BC$22)>0,$E13*$F13,0) -> 0 | BF13: =IF(SUM(BE$20:BE$22)>0,$E13*$F13,0) -> 0 | BH13: =IF(SUM(BG$20:BG$22)>0,$E13*$F13,0) -> 0 | BJ13: =IF(SUM(BI$20:BI$22)>0,$E13*$F13,0) -> 0 | BL13: =IF(SUM(BK$20:BK$22)>0,$E13*$F13,0) -> 0 | BN13: =IF(SUM(BM$20:BM$22)>0,$E13*$F13,0) -> 0 | BP13: =IF(SUM(BO$20:BO$22)>0,$E13*$F13,0) -> 0 | BR13: =IF(SUM(BQ$20:BQ$22)>0,$E13*$F13,0) -> 0 | BT13: =IF(SUM(BS$20:BS$22)>0,$E13*$F13,0) -> 0 | BV13: =IF(SUM(BU$20:BU$22)>0,$E13*$F13,0) -> 0 | BX13: =IF(SUM(BW$20:BW$22)>0,$E13*$F13,0) -> 0 | BZ13: =IF(SUM(BY$20:BY$22)>0,$E13*$F13,0) -> 0 | CB13: =IF(SUM(CA$20:CA$22)>0,$E13*$F13,0) -> 0 | CD13: =IF(SUM(CC$20:CC$22)>0,$E13*$F13,0) -> 0 | CF13: =IF(SUM(CE$20:CE$22)>0,$E13*$F13,0) -> 0 | CH13: =IF(SUM(CG$20:CG$22)>0,$E13*$F13,0) -> 0 | CJ13: =IF(SUM(CI$20:CI$22)>0,$E13*$F13,0) -> 0 | CL13: =IF(SUM(CK$20:CK$22)>0,$E13*$F13,0) -> 0 | CN13: =IF(SUM(CM$20:CM$22)>0,$E13*$F13,0) -> 0 | CP13: =IF(SUM(CO$20:CO$22)>0,$E13*$F13,0) -> 0 | CR13: =IF(SUM(CQ$20:CQ$22)>0,$E13*$F13,0) -> 0 | CT13: =IF(SUM(CS$20:CS$22)>0,$E13*$F13,0) -> 0 | CV13: =IF(SUM(CU$20:CU$22)>0,$E13*$F13,0) -> 0 | CX13: =IF(SUM(CW$20:CW$22)>0,$E13*$F13,0) -> 0 | CZ13: =IF(SUM(CY$20:CY$22)>0,$E13*$F13,0) -> 0 | DB13: =IF(SUM(DA$20:DA$22)>0,$E13*$F13,0) -> 0 | DD13: =IF(SUM(DC$20:DC$22)>0,$E13*$F13,0) -> 0 | DF13: =IF(SUM(DE$20:DE$22)>0,$E13*$F13,0) -> 0 | DH13: =IF(SUM(DG$20:DG$22)>0,$E13*$F13,0) -> 0 | DJ13: =IF(SUM(DI$20:DI$22)>0,$E13*$F13,0) -> 0 | DL13: =IF(SUM(DK$20:DK$22)>0,$E13*$F13,0) -> 0 | DN13: =IF(SUM(DM$20:DM$22)>0,$E13*$F13,0) -> 0 | DP13: =IF(SUM(DO$20:DO$22)>0,$E13*$F13,0) -> 0 | DR13: =IF(SUM(DQ$20:DQ$22)>0,$E13*$F13,0) -> 0 | DT13: =IF(SUM(DS$20:DS$22)>0,$E13*$F13,0) -> 0 | DV13: =IF(SUM(DU$20:DU$22)>0,$E13*$F13,0) -> 0 | DX13: =IF(SUM(DW$20:DW$22)>0,$E13*$F13,0) -> 0
C14: 1 | D14: Luvas multi tato, em poliuretano, cor preta, acabamento liso, com forro em poliamida, sem costura, punho tricotado c/ elástico. Tamanho P, M e G. Ref.: Promat modelo multitato 750 PT | E14: 4 | F14: 4.15 | J14: =IF(SUM(I$8:I$10)>0,$E14*$F14,0) -> 0 | L14: =IF(SUM(K$8:K$10)>0,$E14*$F14,0) -> 0 | N14: =IF(SUM(M$8:M$10)>0,$E14*$F14,0) -> 0 | P14: =IF(SUM(O$8:O$10)>0,$E14*$F14,0) -> 0 | R14: =IF(SUM(Q$8:Q$10)>0,$E14*$F14,0) -> 0 | T14: =IF(SUM(S$8:S$10)>0,$E14*$F14,0) -> 0 | V14: =IF(SUM(U$8:U$10)>0,$E14*$F14,0) -> 0 | X14: =IF(SUM(W$8:W$10)>0,$E14*$F14,0) -> 0 | Z14: =IF(SUM(Y$8:Y$10)>0,$E14*$F14,0) -> 0 | AB14: =IF(SUM(AA$8:AA$10)>0,$E14*$F14,0) -> 0 | AD14: =IF(SUM(AC$8:AC$10)>0,$E14*$F14,0) -> 0 | AF14: =IF(SUM(AE$8:AE$10)>0,$E14*$F14,0) -> 0 | AH14: =IF(SUM(AG$8:AG$10)>0,$E14*$F14,0) -> 0 | AJ14: =IF(SUM(AI$8:AI$10)>0,$E14*$F14,0) -> 0 | AL14: =IF(SUM(AK$8:AK$10)>0,$E14*$F14,0) -> 0 | AN14: =IF(SUM(AM$8:AM$10)>0,$E14*$F14,0) -> 0 | AP14: =IF(SUM(AO$8:AO$10)>0,$E14*$F14,0) -> 0 | AR14: =IF(SUM(AQ$8:AQ$10)>0,$E14*$F14,0) -> 0 | AT14: =IF(SUM(AS$8:AS$10)>0,$E14*$F14,0) -> 0 | AV14: =IF(SUM(AU$8:AU$10)>0,$E14*$F14,0) -> 0 | AX14: =IF(SUM(AW$8:AW$10)>0,$E14*$F14,0) -> 0 | AZ14: =IF(SUM(AY$8:AY$10)>0,$E14*$F14,0) -> 0 | BB14: =IF(SUM(BA$8:BA$10)>0,$E14*$F14,0) -> 0 | BD14: =IF(SUM(BC$8:BC$10)>0,$E14*$F14,0) -> 0 | BF14: =IF(SUM(BE$8:BE$10)>0,$E14*$F14,0) -> 0 | BH14: =IF(SUM(BG$8:BG$10)>0,$E14*$F14,0) -> 0 | BJ14: =IF(SUM(BI$8:BI$10)>0,$E14*$F14,0) -> 0 | BL14: =IF(SUM(BK$8:BK$10)>0,$E14*$F14,0) -> 0 | BN14: =IF(SUM(BM$8:BM$10)>0,$E14*$F14,0) -> 0 | BP14: =IF(SUM(BO$8:BO$10)>0,$E14*$F14,0) -> 0 | BR14: =IF(SUM(BQ$8:BQ$10)>0,$E14*$F14,0) -> 0 | BT14: =IF(SUM(BS$8:BS$10)>0,$E14*$F14,0) -> 0 | BV14: =IF(SUM(BU$8:BU$10)>0,$E14*$F14,0) -> 0 | BX14: =IF(SUM(BW$8:BW$10)>0,$E14*$F14,0) -> 0 | BZ14: =IF(SUM(BY$8:BY$10)>0,$E14*$F14,0) -> 0 | CB14: =IF(SUM(CA$8:CA$10)>0,$E14*$F14,0) -> 0 | CD14: =IF(SUM(CC$8:CC$10)>0,$E14*$F14,0) -> 0 | CF14: =IF(SUM(CE$8:CE$10)>0,$E14*$F14,0) -> 16.6 | CH14: =IF(SUM(CG$8:CG$10)>0,$E14*$F14,0) -> 0 | CJ14: =IF(SUM(CI$8:CI$10)>0,$E14*$F14,0) -> 0 | CL14: =IF(SUM(CK$8:CK$10)>0,$E14*$F14,0) -> 0 | CN14: =IF(SUM(CM$8:CM$10)>0,$E14*$F14,0) -> 0 | CP14: =IF(SUM(CO$8:CO$10)>0,$E14*$F14,0) -> 0 | CR14: =IF(SUM(CQ$8:CQ$10)>0,$E14*$F14,0) -> 0 | CT14: =IF(SUM(CS$8:CS$10)>0,$E14*$F14,0) -> 0 | CV14: =IF(SUM(CU$8:CU$10)>0,$E14*$F14,0) -> 0 | CX14: =IF(SUM(CW$8:CW$10)>0,$E14*$F14,0) -> 0 | CZ14: =IF(SUM(CY$8:CY$10)>0,$E14*$F14,0) -> 0 | DB14: =IF(SUM(DA$8:DA$10)>0,$E14*$F14,0) -> 0 | DD14: =IF(SUM(DC$8:DC$10)>0,$E14*$F14,0) -> 0 | DF14: =IF(SUM(DE$8:DE$10)>0,$E14*$F14,0) -> 0 | DH14: =IF(SUM(DG$8:DG$10)>0,$E14*$F14,0) -> 0 | DJ14: =IF(SUM(DI$8:DI$10)>0,$E14*$F14,0) -> 0 | DL14: =IF(SUM(DK$8:DK$10)>0,$E14*$F14,0) -> 0 | DN14: =IF(SUM(DM$8:DM$10)>0,$E14*$F14,0) -> 0 | DP14: =IF(SUM(DO$8:DO$10)>0,$E14*$F14,0) -> 0 | DR14: =IF(SUM(DQ$8:DQ$10)>0,$E14*$F14,0) -> 0 | DT14: =IF(SUM(DS$8:DS$10)>0,$E14*$F14,0) -> 0 | DV14: =IF(SUM(DU$8:DU$10)>0,$E14*$F14,0) -> 0 | DX14: =IF(SUM(DW$8:DW$10)>0,$E14*$F14,0) -> 0
C15: 2 | D15: Óculos de segurança constituídos de armação e visor confeccionados em uma única peça de policarbonato INCOLOR, anti-risco, apoio nasal de plástico maleável. Hastes emborrachadas. Ref.: 3M Virtua V4 | E15: 2 | F15: 15.46 | J15: =IF(SUM(I$8:I$10)>0,$E15*$F15,0) -> 0 | L15: 0 | N15: 0 | P15: 0 | R15: 0 | T15: 0 | V15: 0 | X15: 0 | Z15: 0 | AB15: 0 | AD15: 0 | AF15: 0 | AH15: 0 | AJ15: 0 | AL15: 0 | AN15: 0 | AP15: 0 | AR15: 0 | AT15: =IF(SUM(AS$8:AS$10)>0,$E15*$F15,0) -> 0 | AV15: =IF(SUM(AU$8:AU$10)>0,$E15*$F15,0) -> 0 | AX15: =IF(SUM(AW$8:AW$10)>0,$E15*$F15,0) -> 0 | AZ15: =IF(SUM(AY$8:AY$10)>0,$E15*$F15,0) -> 0 | BB15: =IF(SUM(BA$8:BA$10)>0,$E15*$F15,0) -> 0 | BD15: =IF(SUM(BC$8:BC$10)>0,$E15*$F15,0) -> 0 | BF15: =IF(SUM(BE$8:BE$10)>0,$E15*$F15,0) -> 0 | BH15: =IF(SUM(BG$8:BG$10)>0,$E15*$F15,0) -> 0 | BJ15: =IF(SUM(BI$8:BI$10)>0,$E15*$F15,0) -> 0 | BL15: =IF(SUM(BK$8:BK$10)>0,$E15*$F15,0) -> 0 | BN15: =IF(SUM(BM$8:BM$10)>0,$E15*$F15,0) -> 0 | BP15: =IF(SUM(BO$8:BO$10)>0,$E15*$F15,0) -> 0 | BR15: =IF(SUM(BQ$8:BQ$10)>0,$E15*$F15,0) -> 0 | BT15: =IF(SUM(BS$8:BS$10)>0,$E15*$F15,0) -> 0 | BV15: =IF(SUM(BU$8:BU$10)>0,$E15*$F15,0) -> 0 | BX15: =IF(SUM(BW$8:BW$10)>0,$E15*$F15,0) -> 0 | BZ15: =IF(SUM(BY$8:BY$10)>0,$E15*$F15,0) -> 0 | CB15: =IF(SUM(CA$8:CA$10)>0,$E15*$F15,0) -> 0 | CD15: =IF(SUM(CC$8:CC$10)>0,$E15*$F15,0) -> 0 | CF15: =IF(SUM(CE$8:CE$10)>0,$E15*$F15,0) -> 30.92 | CH15: =IF(SUM(CG$8:CG$10)>0,$E15*$F15,0) -> 0 | CJ15: =IF(SUM(CI$8:CI$10)>0,$E15*$F15,0) -> 0 | CL15: =IF(SUM(CK$8:CK$10)>0,$E15*$F15,0) -> 0 | CN15: =IF(SUM(CM$8:CM$10)>0,$E15*$F15,0) -> 0 | CP15: =IF(SUM(CO$8:CO$10)>0,$E15*$F15,0) -> 0 | CR15: =IF(SUM(CQ$8:CQ$10)>0,$E15*$F15,0) -> 0 | CT15: =IF(SUM(CS$8:CS$10)>0,$E15*$F15,0) -> 0 | CV15: =IF(SUM(CU$8:CU$10)>0,$E15*$F15,0) -> 0 | CX15: =IF(SUM(CW$8:CW$10)>0,$E15*$F15,0) -> 0 | CZ15: =IF(SUM(CY$8:CY$10)>0,$E15*$F15,0) -> 0 | DB15: =IF(SUM(DA$8:DA$10)>0,$E15*$F15,0) -> 0 | DD15: =IF(SUM(DC$8:DC$10)>0,$E15*$F15,0) -> 0 | DF15: =IF(SUM(DE$8:DE$10)>0,$E15*$F15,0) -> 0 | DH15: =IF(SUM(DG$8:DG$10)>0,$E15*$F15,0) -> 0 | DJ15: =IF(SUM(DI$8:DI$10)>0,$E15*$F15,0) -> 0 | DL15: =IF(SUM(DK$8:DK$10)>0,$E15*$F15,0) -> 0 | DN15: =IF(SUM(DM$8:DM$10)>0,$E15*$F15,0) -> 0 | DP15: =IF(SUM(DO$8:DO$10)>0,$E15*$F15,0) -> 0 | DR15: =IF(SUM(DQ$8:DQ$10)>0,$E15*$F15,0) -> 0 | DT15: =IF(SUM(DS$8:DS$10)>0,$E15*$F15,0) -> 0 | DV15: =IF(SUM(DU$8:DU$10)>0,$E15*$F15,0) -> 0 | DX15: =IF(SUM(DW$8:DW$10)>0,$E15*$F15,0) -> 0
C16: 3 | D16: Respirador purificador de ar tipo, peça semifacial filtrante para partículas (PFF2), com formato dobrável. Fita elástica branca fixada nas laterais externas do respirador, perfazendo uma alça na para fixação (superior da cabeça e a outra na parte inferior). Peça de material metálico moldável, utilizada para ajuste no septo nasal. Na face lateral do respirador existe um dispositivo de material plástico, dotado internamente de uma válvula de exalação. Deverá apresentar o selo de aprovação do INMETRO. Ref. 3M | E16: 12 | F16: 3.24 | J16: =IF(SUM(I$8:I$10)>0,$E16*$F16,0) -> 0 | L16: =IF(SUM(K$8:K$10)>0,$E16*$F16,0) -> 0 | N16: =IF(SUM(M$8:M$10)>0,$E16*$F16,0) -> 0 | P16: =IF(SUM(O$8:O$10)>0,$E16*$F16,0) -> 0 | R16: =IF(SUM(Q$8:Q$10)>0,$E16*$F16,0) -> 0 | T16: =IF(SUM(S$8:S$10)>0,$E16*$F16,0) -> 0 | V16: =IF(SUM(U$8:U$10)>0,$E16*$F16,0) -> 0 | X16: =IF(SUM(W$8:W$10)>0,$E16*$F16,0) -> 0 | Z16: =IF(SUM(Y$8:Y$10)>0,$E16*$F16,0) -> 0 | AB16: =IF(SUM(AA$8:AA$10)>0,$E16*$F16,0) -> 0 | AD16: =IF(SUM(AC$8:AC$10)>0,$E16*$F16,0) -> 0 | AF16: =IF(SUM(AE$8:AE$10)>0,$E16*$F16,0) -> 0 | AH16: =IF(SUM(AG$8:AG$10)>0,$E16*$F16,0) -> 0 | AJ16: =IF(SUM(AI$8:AI$10)>0,$E16*$F16,0) -> 0 | AL16: =IF(SUM(AK$8:AK$10)>0,$E16*$F16,0) -> 0 | AN16: =IF(SUM(AM$8:AM$10)>0,$E16*$F16,0) -> 0 | AP16: =IF(SUM(AO$8:AO$10)>0,$E16*$F16,0) -> 0 | AR16: =IF(SUM(AQ$8:AQ$10)>0,$E16*$F16,0) -> 0 | AT16: 0 | AV16: =IF(SUM(AU$8:AU$10)>0,$E16*$F16,0) -> 0 | AX16: =IF(SUM(AW$8:AW$10)>0,$E16*$F16,0) -> 0 | AZ16: =IF(SUM(AY$8:AY$10)>0,$E16*$F16,0) -> 0 | BB16: =IF(SUM(BA$8:BA$10)>0,$E16*$F16,0) -> 0 | BD16: =IF(SUM(BC$8:BC$10)>0,$E16*$F16,0) -> 0 | BF16: =IF(SUM(BE$8:BE$10)>0,$E16*$F16,0) -> 0 | BH16: =IF(SUM(BG$8:BG$10)>0,$E16*$F16,0) -> 0 | BJ16: =IF(SUM(BI$8:BI$10)>0,$E16*$F16,0) -> 0 | BL16: =IF(SUM(BK$8:BK$10)>0,$E16*$F16,0) -> 0 | BN16: =IF(SUM(BM$8:BM$10)>0,$E16*$F16,0) -> 0 | BP16: =IF(SUM(BO$8:BO$10)>0,$E16*$F16,0) -> 0 | BR16: =IF(SUM(BQ$8:BQ$10)>0,$E16*$F16,0) -> 0 | BT16: =IF(SUM(BS$8:BS$10)>0,$E16*$F16,0) -> 0 | BV16: =IF(SUM(BU$8:BU$10)>0,$E16*$F16,0) -> 0 | BX16: =IF(SUM(BW$8:BW$10)>0,$E16*$F16,0) -> 0 | BZ16: =IF(SUM(BY$8:BY$10)>0,$E16*$F16,0) -> 0 | CB16: =IF(SUM(CA$8:CA$10)>0,$E16*$F16,0) -> 0 | CD16: =IF(SUM(CC$8:CC$10)>0,$E16*$F16,0) -> 0 | CF16: =IF(SUM(CE$8:CE$10)>0,$E16*$F16,0) -> 38.88 | CH16: =IF(SUM(CG$8:CG$10)>0,$E16*$F16,0) -> 0 | CJ16: =IF(SUM(CI$8:CI$10)>0,$E16*$F16,0) -> 0 | CL16: =IF(SUM(CK$8:CK$10)>0,$E16*$F16,0) -> 0 | CN16: =IF(SUM(CM$8:CM$10)>0,$E16*$F16,0) -> 0 | CP16: =IF(SUM(CO$8:CO$10)>0,$E16*$F16,0) -> 0 | CR16: =IF(SUM(CQ$8:CQ$10)>0,$E16*$F16,0) -> 0 | CT16: =IF(SUM(CS$8:CS$10)>0,$E16*$F16,0) -> 0 | CV16: =IF(SUM(CU$8:CU$10)>0,$E16*$F16,0) -> 0 | CX16: =IF(SUM(CW$8:CW$10)>0,$E16*$F16,0) -> 0 | CZ16: =IF(SUM(CY$8:CY$10)>0,$E16*$F16,0) -> 0 | DB16: =IF(SUM(DA$8:DA$10)>0,$E16*$F16,0) -> 0 | DD16: =IF(SUM(DC$8:DC$10)>0,$E16*$F16,0) -> 0 | DF16: =IF(SUM(DE$8:DE$10)>0,$E16*$F16,0) -> 0 | DH16: =IF(SUM(DG$8:DG$10)>0,$E16*$F16,0) -> 0 | DJ16: =IF(SUM(DI$8:DI$10)>0,$E16*$F16,0) -> 0 | DL16: =IF(SUM(DK$8:DK$10)>0,$E16*$F16,0) -> 0 | DN16: =IF(SUM(DM$8:DM$10)>0,$E16*$F16,0) -> 0 | DP16: =IF(SUM(DO$8:DO$10)>0,$E16*$F16,0) -> 0 | DR16: =IF(SUM(DQ$8:DQ$10)>0,$E16*$F16,0) -> 0 | DT16: =IF(SUM(DS$8:DS$10)>0,$E16*$F16,0) -> 0 | DV16: =IF(SUM(DU$8:DU$10)>0,$E16*$F16,0) -> 0 | DX16: =IF(SUM(DW$8:DW$10)>0,$E16*$F16,0) -> 0
C17: 4 | D17: Botina de segurança, fechamento em elástico, sem componentes metálicos, confeccionada em couro curtido ao cromo, na cor preta, elásticos laterais, BIQUEIRA EM COMPOSITE ou POLIPROPILENO, solado de poliuretano bidensidade injetado diretamente ao cabedal, solado com perfil antiderrapante e sistemas de absorção de impacto. Com selo conforto. Em conformidade com as Normas de segurança da ABNT NBR ISO 20344 e 20347. Ref.: MARLUVAS. | E17: 1 | F17: 116.89 | J17: =IF(SUM(I$8:I$10)>0,$E17*$F17,0) -> 0 | L17: 0 | N17: 0 | P17: 0 | R17: 0 | T17: 0 | V17: 0 | X17: 0 | Z17: 0 | AB17: 0 | AD17: 0 | AF17: 0 | AH17: 0 | AJ17: 0 | AL17: 0 | AN17: 0 | AP17: 0 | AR17: 0 | AT17: =IF(SUM(AS$8:AS$10)>0,$E17*$F17,0) -> 0 | AV17: =IF(SUM(AU$8:AU$10)>0,$E17*$F17,0) -> 0 | AX17: =IF(SUM(AW$8:AW$10)>0,$E17*$F17,0) -> 0 | AZ17: =IF(SUM(AY$8:AY$10)>0,$E17*$F17,0) -> 0 | BB17: =IF(SUM(BA$8:BA$10)>0,$E17*$F17,0) -> 0 | BD17: =IF(SUM(BC$8:BC$10)>0,$E17*$F17,0) -> 0 | BF17: =IF(SUM(BE$8:BE$10)>0,$E17*$F17,0) -> 0 | BH17: =IF(SUM(BG$8:BG$10)>0,$E17*$F17,0) -> 0 | BJ17: =IF(SUM(BI$8:BI$10)>0,$E17*$F17,0) -> 0 | BL17: =IF(SUM(BK$8:BK$10)>0,$E17*$F17,0) -> 0 | BN17: =IF(SUM(BM$8:BM$10)>0,$E17*$F17,0) -> 0 | BP17: =IF(SUM(BO$8:BO$10)>0,$E17*$F17,0) -> 0 | BR17: =IF(SUM(BQ$8:BQ$10)>0,$E17*$F17,0) -> 0 | BT17: =IF(SUM(BS$8:BS$10)>0,$E17*$F17,0) -> 0 | BV17: =IF(SUM(BU$8:BU$10)>0,$E17*$F17,0) -> 0 | BX17: =IF(SUM(BW$8:BW$10)>0,$E17*$F17,0) -> 0 | BZ17: =IF(SUM(BY$8:BY$10)>0,$E17*$F17,0) -> 0 | CB17: =IF(SUM(CA$8:CA$10)>0,$E17*$F17,0) -> 0 | CD17: =IF(SUM(CC$8:CC$10)>0,$E17*$F17,0) -> 0 | CF17: =IF(SUM(CE$8:CE$10)>0,$E17*$F17,0) -> 116.89 | CH17: =IF(SUM(CG$8:CG$10)>0,$E17*$F17,0) -> 0 | CJ17: =IF(SUM(CI$8:CI$10)>0,$E17*$F17,0) -> 0 | CL17: =IF(SUM(CK$8:CK$10)>0,$E17*$F17,0) -> 0 | CN17: =IF(SUM(CM$8:CM$10)>0,$E17*$F17,0) -> 0 | CP17: =IF(SUM(CO$8:CO$10)>0,$E17*$F17,0) -> 0 | CR17: =IF(SUM(CQ$8:CQ$10)>0,$E17*$F17,0) -> 0 | CT17: =IF(SUM(CS$8:CS$10)>0,$E17*$F17,0) -> 0 | CV17: =IF(SUM(CU$8:CU$10)>0,$E17*$F17,0) -> 0 | CX17: =IF(SUM(CW$8:CW$10)>0,$E17*$F17,0) -> 0 | CZ17: =IF(SUM(CY$8:CY$10)>0,$E17*$F17,0) -> 0 | DB17: =IF(SUM(DA$8:DA$10)>0,$E17*$F17,0) -> 0 | DD17: =IF(SUM(DC$8:DC$10)>0,$E17*$F17,0) -> 0 | DF17: =IF(SUM(DE$8:DE$10)>0,$E17*$F17,0) -> 0 | DH17: =IF(SUM(DG$8:DG$10)>0,$E17*$F17,0) -> 0 | DJ17: =IF(SUM(DI$8:DI$10)>0,$E17*$F17,0) -> 0 | DL17: =IF(SUM(DK$8:DK$10)>0,$E17*$F17,0) -> 0 | DN17: =IF(SUM(DM$8:DM$10)>0,$E17*$F17,0) -> 0 | DP17: =IF(SUM(DO$8:DO$10)>0,$E17*$F17,0) -> 0 | DR17: =IF(SUM(DQ$8:DQ$10)>0,$E17*$F17,0) -> 0 | DT17: =IF(SUM(DS$8:DS$10)>0,$E17*$F17,0) -> 0 | DV17: =IF(SUM(DU$8:DU$10)>0,$E17*$F17,0) -> 0 | DX17: =IF(SUM(DW$8:DW$10)>0,$E17*$F17,0) -> 0
C19: CATEGORIAS | F19: QUANTIDADE
I20: =IF($C20=I$4,1,0) -> 0 | K20: =IF($C20=K$4,1,0) -> 0 | M20: =IF($C20=M$4,1,0) -> 0 | O20: =IF($C20=O$4,1,0) -> 0 | Q20: =IF($C20=Q$4,1,0) -> 0 | S20: =IF($C20=S$4,1,0) -> 0 | U20: =IF($C20=U$4,1,0) -> 0 | W20: =IF($C20=W$4,1,0) -> 0 | Y20: =IF($C20=Y$4,1,0) -> 0 | AA20: =IF($C20=AA$4,1,0) -> 0 | AC20: =IF($C20=AC$4,1,0) -> 0 | AE20: =IF($C20=AE$4,1,0) -> 0 | AG20: =IF($C20=AG$4,1,0) -> 0 | AI20: =IF($C20=AI$4,1,0) -> 0 | AK20: =IF($C20=AK$4,1,0) -> 0 | AM20: =IF($C20=AM$4,1,0) -> 0 | AO20: =IF($C20=AO$4,1,0) -> 0 | AQ20: =IF($C20=AQ$4,1,0) -> 0 | AS20: =IF($C20=AS$4,1,0) -> 0
C21: 39 | D21: =HLOOKUP($C21,'Dados Gerais'!$D$5:$BK$10,6) -> Técnico de manutenção - 5 dias | F21: =HLOOKUP($C21,'Dados Gerais'!$D$5:$BK$14,10) -> 4 | I21: =IF($C21=I$4,1,0) -> 0 | K21: 0 | M21: 0 | O21: 0 | Q21: 0 | S21: 0 | U21: 0 | W21: 0 | Y21: 0 | AA21: 0 | AC21: 0 | AE21: =IF($C21=AE$4,1,0) -> 0 | AG21: 0 | AI21: 0 | AK21: 0 | AM21: 0 | AO21: 0 | AQ21: 0 | AS21: 0 | AU21: =IF($C21=AU$4,1,0) -> 0 | AW21: =IF($C21=AW$4,1,0) -> 0 | AY21: =IF($C21=AY$4,1,0) -> 0 | BA21: =IF($C21=BA$4,1,0) -> 0 | BC21: =IF($C21=BC$4,1,0) -> 0 | BE21: =IF($C21=BE$4,1,0) -> 0 | BG21: =IF($C21=BG$4,1,0) -> 0 | BI21: =IF($C21=BI$4,1,0) -> 0 | BK21: =IF($C21=BK$4,1,0) -> 0 | BM21: =IF($C21=BM$4,1,0) -> 0 | BO21: =IF($C21=BO$4,1,0) -> 0 | BQ21: =IF($C21=BQ$4,1,0) -> 0 | BS21: =IF($C21=BS$4,1,0) -> 0 | BU21: =IF($C21=BU$4,1,0) -> 0 | BW21: =IF($C21=BW$4,1,0) -> 0 | BY21: =IF($C21=BY$4,1,0) -> 0 | CA21: =IF($C21=CA$4,1,0) -> 0 | CC21: =IF($C21=CC$4,1,0) -> 0 | CE21: =IF($C21=CE$4,1,0) -> 0 | CG21: =IF($C21=CG$4,1,0) -> 1 | CI21: =IF($C21=CI$4,1,0) -> 0 | CK21: =IF($C21=CK$4,1,0) -> 0 | CM21: =IF($C21=CM$4,1,0) -> 0 | CO21: =IF($C21=CO$4,1,0) -> 0 | CQ21: =IF($C21=CQ$4,1,0) -> 0 | CS21: =IF($C21=CS$4,1,0) -> 0 | CU21: =IF($C21=CU$4,1,0) -> 0 | CW21: =IF($C21=CW$4,1,0) -> 0 | CY21: =IF($C21=CY$4,1,0) -> 0 | DA21: =IF($C21=DA$4,1,0) -> 0 | DC21: =IF($C21=DC$4,1,0) -> 0 | DE21: =IF($C21=DE$4,1,0) -> 0 | DG21: =IF($C21=DG$4,1,0) -> 0 | DI21: =IF($C21=DI$4,1,0) -> 0 | DK21: =IF($C21=DK$4,1,0) -> 0 | DM21: =IF($C21=DM$4,1,0) -> 0 | DO21: =IF($C21=DO$4,1,0) -> 0 | DQ21: =IF($C21=DQ$4,1,0) -> 0 | DS21: =IF($C21=DS$4,1,0) -> 0 | DU21: =IF($C21=DU$4,1,0) -> 0 | DW21: =IF($C21=DW$4,1,0) -> 0
I22: =IF($C22=I$4,1,0) -> 0 | K22: 0 | M22: 0 | O22: 0 | Q22: 0 | S22: 0 | U22: 0 | W22: 0 | Y22: 0 | AA22: 0 | AC22: 0 | AE22: =IF($C22=AE$4,1,0) -> 0 | AG22: 0 | AI22: 0 | AK22: 0 | AM22: 0 | AO22: 0 | AQ22: 0 | AS22: 0
C24: ITEM | D24: DESCRIÇÃO | E24: QUANT ANUAL POR POSTO | F24: VALOR
J25: =IF(SUM(I$20:I$22)>0,$E25*$F25,0) -> 0 | L25: =IF(SUM(K$20:K$22)>0,$E25*$F25,0) -> 0 | N25: =IF(SUM(M$20:M$22)>0,$E25*$F25,0) -> 0 | P25: =IF(SUM(O$20:O$22)>0,$E25*$F25,0) -> 0 | R25: =IF(SUM(Q$20:Q$22)>0,$E25*$F25,0) -> 0 | T25: =IF(SUM(S$20:S$22)>0,$E25*$F25,0) -> 0 | V25: =IF(SUM(U$20:U$22)>0,$E25*$F25,0) -> 0 | X25: =IF(SUM(W$20:W$22)>0,$E25*$F25,0) -> 0 | Z25: =IF(SUM(Y$20:Y$22)>0,$E25*$F25,0) -> 0 | AB25: =IF(SUM(AA$20:AA$22)>0,$E25*$F25,0) -> 0 | AD25: =IF(SUM(AC$20:AC$22)>0,$E25*$F25,0) -> 0 | AF25: =IF(SUM(AE$20:AE$22)>0,$E25*$F25,0) -> 0 | AH25: =IF(SUM(AG$20:AG$22)>0,$E25*$F25,0) -> 0 | AJ25: =IF(SUM(AI$20:AI$22)>0,$E25*$F25,0) -> 0 | AL25: =IF(SUM(AK$20:AK$22)>0,$E25*$F25,0) -> 0 | AN25: =IF(SUM(AM$20:AM$22)>0,$E25*$F25,0) -> 0 | AP25: =IF(SUM(AO$20:AO$22)>0,$E25*$F25,0) -> 0 | AR25: =IF(SUM(AQ$20:AQ$22)>0,$E25*$F25,0) -> 0 | AT25: =IF(SUM(AS$20:AS$22)>0,$E25*$F25,0) -> 0 | AV25: =IF(SUM(AU$20:AU$22)>0,$E25*$F25,0) -> 0 | AX25: =IF(SUM(AW$20:AW$22)>0,$E25*$F25,0) -> 0 | AZ25: =IF(SUM(AY$20:AY$22)>0,$E25*$F25,0) -> 0 | BB25: =IF(SUM(BA$20:BA$22)>0,$E25*$F25,0) -> 0 | BD25: =IF(SUM(BC$20:BC$22)>0,$E25*$F25,0) -> 0 | BF25: =IF(SUM(BE$20:BE$22)>0,$E25*$F25,0) -> 0 | BH25: =IF(SUM(BG$20:BG$22)>0,$E25*$F25,0) -> 0 | BJ25: =IF(SUM(BI$20:BI$22)>0,$E25*$F25,0) -> 0 | BL25: =IF(SUM(BK$20:BK$22)>0,$E25*$F25,0) -> 0 | BN25: =IF(SUM(BM$20:BM$22)>0,$E25*$F25,0) -> 0 | BP25: =IF(SUM(BO$20:BO$22)>0,$E25*$F25,0) -> 0 | BR25: =IF(SUM(BQ$20:BQ$22)>0,$E25*$F25,0) -> 0 | BT25: =IF(SUM(BS$20:BS$22)>0,$E25*$F25,0) -> 0 | BV25: =IF(SUM(BU$20:BU$22)>0,$E25*$F25,0) -> 0 | BX25: =IF(SUM(BW$20:BW$22)>0,$E25*$F25,0) -> 0 | BZ25: =IF(SUM(BY$20:BY$22)>0,$E25*$F25,0) -> 0 | CB25: =IF(SUM(CA$20:CA$22)>0,$E25*$F25,0) -> 0 | CD25: =IF(SUM(CC$20:CC$22)>0,$E25*$F25,0) -> 0 | CF25: =IF(SUM(CE$20:CE$22)>0,$E25*$F25,0) -> 0 | CH25: =IF(SUM(CG$20:CG$22)>0,$E25*$F25,0) -> 0 | CJ25: =IF(SUM(CI$20:CI$22)>0,$E25*$F25,0) -> 0 | CL25: =IF(SUM(CK$20:CK$22)>0,$E25*$F25,0) -> 0 | CN25: =IF(SUM(CM$20:CM$22)>0,$E25*$F25,0) -> 0 | CP25: =IF(SUM(CO$20:CO$22)>0,$E25*$F25,0) -> 0 | CR25: =IF(SUM(CQ$20:CQ$22)>0,$E25*$F25,0) -> 0 | CT25: =IF(SUM(CS$20:CS$22)>0,$E25*$F25,0) -> 0 | CV25: =IF(SUM(CU$20:CU$22)>0,$E25*$F25,0) -> 0 | CX25: =IF(SUM(CW$20:CW$22)>0,$E25*$F25,0) -> 0 | CZ25: =IF(SUM(CY$20:CY$22)>0,$E25*$F25,0) -> 0 | DB25: =IF(SUM(DA$20:DA$22)>0,$E25*$F25,0) -> 0 | DD25: =IF(SUM(DC$20:DC$22)>0,$E25*$F25,0) -> 0 | DF25: =IF(SUM(DE$20:DE$22)>0,$E25*$F25,0) -> 0 | DH25: =IF(SUM(DG$20:DG$22)>0,$E25*$F25,0) -> 0 | DJ25: =IF(SUM(DI$20:DI$22)>0,$E25*$F25,0) -> 0 | DL25: =IF(SUM(DK$20:DK$22)>0,$E25*$F25,0) -> 0 | DN25: =IF(SUM(DM$20:DM$22)>0,$E25*$F25,0) -> 0 | DP25: =IF(SUM(DO$20:DO$22)>0,$E25*$F25,0) -> 0 | DR25: =IF(SUM(DQ$20:DQ$22)>0,$E25*$F25,0) -> 0 | DT25: =IF(SUM(DS$20:DS$22)>0,$E25*$F25,0) -> 0 | DV25: =IF(SUM(DU$20:DU$22)>0,$E25*$F25,0) -> 0 | DX25: =IF(SUM(DW$20:DW$22)>0,$E25*$F25,0) -> 0
C26: 1 | D26: Luva de malha tricotada em fios de algodão com acabamento em overloque e palmas pigmentadas em PVC. Ref. LEDAN | E26: 24 | F26: 2.87 | J26: 0 | L26: =IF(SUM(K$20:K$22)>0,$E26*$F26,0) -> 0 | N26: =IF(SUM(M$20:M$22)>0,$E26*$F26,0) -> 0 | P26: =IF(SUM(O$20:O$22)>0,$E26*$F26,0) -> 0 | R26: =IF(SUM(Q$20:Q$22)>0,$E26*$F26,0) -> 0 | T26: =IF(SUM(S$20:S$22)>0,$E26*$F26,0) -> 0 | V26: =IF(SUM(U$20:U$22)>0,$E26*$F26,0) -> 0 | X26: =IF(SUM(W$20:W$22)>0,$E26*$F26,0) -> 0 | Z26: =IF(SUM(Y$20:Y$22)>0,$E26*$F26,0) -> 0 | AB26: =IF(SUM(AA$20:AA$22)>0,$E26*$F26,0) -> 0 | AD26: 0 | AF26: 0 | AH26: =IF(SUM(AG$20:AG$22)>0,$E26*$F26,0) -> 0 | AJ26: =IF(SUM(AI$20:AI$22)>0,$E26*$F26,0) -> 0 | AL26: =IF(SUM(AK$20:AK$22)>0,$E26*$F26,0) -> 0 | AN26: =IF(SUM(AM$20:AM$22)>0,$E26*$F26,0) -> 0 | AP26: =IF(SUM(AO$20:AO$22)>0,$E26*$F26,0) -> 0 | AR26: =IF(SUM(AQ$20:AQ$22)>0,$E26*$F26,0) -> 0 | AT26: =IF(SUM(AS$20:AS$22)>0,$E26*$F26,0) -> 0 | AV26: =IF(SUM(AU$20:AU$22)>0,$E26*$F26,0) -> 0 | AX26: =IF(SUM(AW$20:AW$22)>0,$E26*$F26,0) -> 0 | AZ26: =IF(SUM(AY$20:AY$22)>0,$E26*$F26,0) -> 0 | BB26: =IF(SUM(BA$20:BA$22)>0,$E26*$F26,0) -> 0 | BD26: =IF(SUM(BC$20:BC$22)>0,$E26*$F26,0) -> 0 | BF26: =IF(SUM(BE$20:BE$22)>0,$E26*$F26,0) -> 0 | BH26: =IF(SUM(BG$20:BG$22)>0,$E26*$F26,0) -> 0 | BJ26: =IF(SUM(BI$20:BI$22)>0,$E26*$F26,0) -> 0 | BL26: =IF(SUM(BK$20:BK$22)>0,$E26*$F26,0) -> 0 | BN26: =IF(SUM(BM$20:BM$22)>0,$E26*$F26,0) -> 0 | BP26: =IF(SUM(BO$20:BO$22)>0,$E26*$F26,0) -> 0 | BR26: =IF(SUM(BQ$20:BQ$22)>0,$E26*$F26,0) -> 0 | BT26: =IF(SUM(BS$20:BS$22)>0,$E26*$F26,0) -> 0 | BV26: =IF(SUM(BU$20:BU$22)>0,$E26*$F26,0) -> 0 | BX26: =IF(SUM(BW$20:BW$22)>0,$E26*$F26,0) -> 0 | BZ26: =IF(SUM(BY$20:BY$22)>0,$E26*$F26,0) -> 0 | CB26: =IF(SUM(CA$20:CA$22)>0,$E26*$F26,0) -> 0 | CD26: =IF(SUM(CC$20:CC$22)>0,$E26*$F26,0) -> 0 | CF26: =IF(SUM(CE$20:CE$22)>0,$E26*$F26,0) -> 0 | CH26: =IF(SUM(CG$20:CG$22)>0,$E26*$F26,0) -> 68.88 | CJ26: =IF(SUM(CI$20:CI$22)>0,$E26*$F26,0) -> 0 | CL26: =IF(SUM(CK$20:CK$22)>0,$E26*$F26,0) -> 0 | CN26: =IF(SUM(CM$20:CM$22)>0,$E26*$F26,0) -> 0 | CP26: =IF(SUM(CO$20:CO$22)>0,$E26*$F26,0) -> 0 | CR26: =IF(SUM(CQ$20:CQ$22)>0,$E26*$F26,0) -> 0 | CT26: =IF(SUM(CS$20:CS$22)>0,$E26*$F26,0) -> 0 | CV26: =IF(SUM(CU$20:CU$22)>0,$E26*$F26,0) -> 0 | CX26: =IF(SUM(CW$20:CW$22)>0,$E26*$F26,0) -> 0 | CZ26: =IF(SUM(CY$20:CY$22)>0,$E26*$F26,0) -> 0 | DB26: =IF(SUM(DA$20:DA$22)>0,$E26*$F26,0) -> 0 | DD26: =IF(SUM(DC$20:DC$22)>0,$E26*$F26,0) -> 0 | DF26: =IF(SUM(DE$20:DE$22)>0,$E26*$F26,0) -> 0 | DH26: =IF(SUM(DG$20:DG$22)>0,$E26*$F26,0) -> 0 | DJ26: =IF(SUM(DI$20:DI$22)>0,$E26*$F26,0) -> 0 | DL26: =IF(SUM(DK$20:DK$22)>0,$E26*$F26,0) -> 0 | DN26: =IF(SUM(DM$20:DM$22)>0,$E26*$F26,0) -> 0 | DP26: =IF(SUM(DO$20:DO$22)>0,$E26*$F26,0) -> 0 | DR26: =IF(SUM(DQ$20:DQ$22)>0,$E26*$F26,0) -> 0 | DT26: =IF(SUM(DS$20:DS$22)>0,$E26*$F26,0) -> 0 | DV26: =IF(SUM(DU$20:DU$22)>0,$E26*$F26,0) -> 0 | DX26: =IF(SUM(DW$20:DW$22)>0,$E26*$F26,0) -> 0
C27: 2 | D27: Óculos de segurança constituídos de armação e visor confeccionados em uma única peça de policarbonato INCOLOR, anti-risco, apoio nasal de plástico maleável. Hastes emborrachadas. Ref.: 3M Virtua V4 | E27: 12 | F27: =F15 -> 15.46 | J27: 0 | L27: =IF(SUM(K$20:K$22)>0,$E27*$F27,0) -> 0 | N27: =IF(SUM(M$20:M$22)>0,$E27*$F27,0) -> 0 | P27: =IF(SUM(O$20:O$22)>0,$E27*$F27,0) -> 0 | R27: =IF(SUM(Q$20:Q$22)>0,$E27*$F27,0) -> 0 | T27: =IF(SUM(S$20:S$22)>0,$E27*$F27,0) -> 0 | V27: =IF(SUM(U$20:U$22)>0,$E27*$F27,0) -> 0 | X27: =IF(SUM(W$20:W$22)>0,$E27*$F27,0) -> 0 | Z27: =IF(SUM(Y$20:Y$22)>0,$E27*$F27,0) -> 0 | AB27: =IF(SUM(AA$20:AA$22)>0,$E27*$F27,0) -> 0 | AD27: =IF(SUM(AC$20:AC$22)>0,$E27*$F27,0) -> 0 | AF27: 0 | AH27: =IF(SUM(AG$20:AG$22)>0,$E27*$F27,0) -> 0 | AJ27: =IF(SUM(AI$20:AI$22)>0,$E27*$F27,0) -> 0 | AL27: =IF(SUM(AK$20:AK$22)>0,$E27*$F27,0) -> 0 | AN27: =IF(SUM(AM$20:AM$22)>0,$E27*$F27,0) -> 0 | AP27: =IF(SUM(AO$20:AO$22)>0,$E27*$F27,0) -> 0 | AR27: =IF(SUM(AQ$20:AQ$22)>0,$E27*$F27,0) -> 0 | AT27: =IF(SUM(AS$20:AS$22)>0,$E27*$F27,0) -> 0 | AV27: =IF(SUM(AU$20:AU$22)>0,$E27*$F27,0) -> 0 | AX27: =IF(SUM(AW$20:AW$22)>0,$E27*$F27,0) -> 0 | AZ27: =IF(SUM(AY$20:AY$22)>0,$E27*$F27,0) -> 0 | BB27: =IF(SUM(BA$20:BA$22)>0,$E27*$F27,0) -> 0 | BD27: =IF(SUM(BC$20:BC$22)>0,$E27*$F27,0) -> 0 | BF27: =IF(SUM(BE$20:BE$22)>0,$E27*$F27,0) -> 0 | BH27: =IF(SUM(BG$20:BG$22)>0,$E27*$F27,0) -> 0 | BJ27: =IF(SUM(BI$20:BI$22)>0,$E27*$F27,0) -> 0 | BL27: =IF(SUM(BK$20:BK$22)>0,$E27*$F27,0) -> 0 | BN27: =IF(SUM(BM$20:BM$22)>0,$E27*$F27,0) -> 0 | BP27: =IF(SUM(BO$20:BO$22)>0,$E27*$F27,0) -> 0 | BR27: =IF(SUM(BQ$20:BQ$22)>0,$E27*$F27,0) -> 0 | BT27: =IF(SUM(BS$20:BS$22)>0,$E27*$F27,0) -> 0 | BV27: =IF(SUM(BU$20:BU$22)>0,$E27*$F27,0) -> 0 | BX27: =IF(SUM(BW$20:BW$22)>0,$E27*$F27,0) -> 0 | BZ27: =IF(SUM(BY$20:BY$22)>0,$E27*$F27,0) -> 0 | CB27: =IF(SUM(CA$20:CA$22)>0,$E27*$F27,0) -> 0 | CD27: =IF(SUM(CC$20:CC$22)>0,$E27*$F27,0) -> 0 | CF27: =IF(SUM(CE$20:CE$22)>0,$E27*$F27,0) -> 0 | CH27: =IF(SUM(CG$20:CG$22)>0,$E27*$F27,0) -> 185.52 | CJ27: =IF(SUM(CI$20:CI$22)>0,$E27*$F27,0) -> 0 | CL27: =IF(SUM(CK$20:CK$22)>0,$E27*$F27,0) -> 0 | CN27: =IF(SUM(CM$20:CM$22)>0,$E27*$F27,0) -> 0 | CP27: =IF(SUM(CO$20:CO$22)>0,$E27*$F27,0) -> 0 | CR27: =IF(SUM(CQ$20:CQ$22)>0,$E27*$F27,0) -> 0 | CT27: =IF(SUM(CS$20:CS$22)>0,$E27*$F27,0) -> 0 | CV27: =IF(SUM(CU$20:CU$22)>0,$E27*$F27,0) -> 0 | CX27: =IF(SUM(CW$20:CW$22)>0,$E27*$F27,0) -> 0 | CZ27: =IF(SUM(CY$20:CY$22)>0,$E27*$F27,0) -> 0 | DB27: =IF(SUM(DA$20:DA$22)>0,$E27*$F27,0) -> 0 | DD27: =IF(SUM(DC$20:DC$22)>0,$E27*$F27,0) -> 0 | DF27: =IF(SUM(DE$20:DE$22)>0,$E27*$F27,0) -> 0 | DH27: =IF(SUM(DG$20:DG$22)>0,$E27*$F27,0) -> 0 | DJ27: =IF(SUM(DI$20:DI$22)>0,$E27*$F27,0) -> 0 | DL27: =IF(SUM(DK$20:DK$22)>0,$E27*$F27,0) -> 0 | DN27: =IF(SUM(DM$20:DM$22)>0,$E27*$F27,0) -> 0 | DP27: =IF(SUM(DO$20:DO$22)>0,$E27*$F27,0) -> 0 | DR27: =IF(SUM(DQ$20:DQ$22)>0,$E27*$F27,0) -> 0 | DT27: =IF(SUM(DS$20:DS$22)>0,$E27*$F27,0) -> 0 | DV27: =IF(SUM(DU$20:DU$22)>0,$E27*$F27,0) -> 0 | DX27: =IF(SUM(DW$20:DW$22)>0,$E27*$F27,0) -> 0
C28: 3 | D28: Respirador purificador de ar tipo, peça semifacial filtrante para partículas (PFF2), com formato dobrável. Fita elástica branca fixada nas laterais externas do respirador, perfazendo uma alça na para fixação (superior da cabeça e a outra na parte inferior). Peça de material metálico moldável, utilizada para ajuste no septo nasal. Na face lateral do respirador existe um dispositivo de material plástico, dotado internamente de uma válvula de exalação. Deverá apresentar o selo de aprovação do INMETRO. Ref. 3M | E28: 48 | F28: =F16 -> 3.24 | J28: 0 | L28: 0 | N28: 0 | P28: 0 | R28: 0 | T28: 0 | V28: 0 | X28: 0 | Z28: 0 | AB28: 0 | AD28: 0 | AF28: 0 | AH28: 0 | AJ28: 0 | AL28: 0 | AN28: 0 | AP28: 0 | AR28: 0 | AT28: 0 | AV28: 0 | AX28: 0 | AZ28: 0 | BB28: 0 | BD28: 0 | BF28: 0 | BH28: 0 | BJ28: 0 | BL28: 0 | BN28: 0 | BP28: 0 | BR28: 0 | BT28: 0 | BV28: 0 | BX28: 0 | BZ28: 0 | CB28: 0 | CD28: 0 | CF28: 0 | CH28: 155.52 | CJ28: 0 | CL28: 0 | CN28: 0 | CP28: 0 | CR28: 0 | CT28: 0 | CV28: 0 | CX28: 0 | CZ28: 0 | DB28: 0 | DD28: 0 | DF28: 0 | DH28: 0 | DJ28: 0 | DL28: 0 | DN28: 0 | DP28: 0 | DR28: 0 | DT28: 0 | DV28: 0 | DX28: 0
C29: 4 | D29: Botina de segurança, fechamento em elástico, sem componentes metálicos, confeccionada em couro curtido ao cromo, na cor preta, elásticos laterais, BIQUEIRA EM COMPOSITE ou POLIPROPILENO, solado de poliuretano bidensidade injetado diretamente ao cabedal, solado com perfil antiderrapante e sistemas de absorção de impacto. Com selo conforto. Em conformidade com as Normas de segurança da ABNT NBR ISO 20344 e 20347. Ref.: MARLUVAS. | E29: 8 | F29: =F17 -> 116.89 | J29: 0 | L29: 0 | N29: 0 | P29: 0 | R29: 0 | T29: 0 | V29: 0 | X29: 0 | Z29: 0 | AB29: 0 | AD29: 0 | AF29: 0 | AH29: 0 | AJ29: 0 | AL29: 0 | AN29: 0 | AP29: 0 | AR29: 0 | AT29: 0 | AV29: 0 | AX29: 0 | AZ29: 0 | BB29: 0 | BD29: 0 | BF29: 0 | BH29: 0 | BJ29: 0 | BL29: 0 | BN29: 0 | BP29: 0 | BR29: 0 | BT29: 0 | BV29: 0 | BX29: 0 | BZ29: 0 | CB29: 0 | CD29: 0 | CF29: 0 | CH29: 935.12 | CJ29: 0 | CL29: 0 | CN29: 0 | CP29: 0 | CR29: 0 | CT29: 0 | CV29: 0 | CX29: 0 | CZ29: 0 | DB29: 0 | DD29: 0 | DF29: 0 | DH29: 0 | DJ29: 0 | DL29: 0 | DN29: 0 | DP29: 0 | DR29: 0 | DT29: 0 | DV29: 0 | DX29: 0
C30: 4 | D30: Protetor auricular tipo plug em silicone, lavável com proteção mínima de 15 DB (A) de atenuação pelo método NRRsf. REFERÊNCIA: 3M; MSA; VONDER. | E30: 12 | F30: 2.7 | J30: 0 | L30: =IF(SUM(K$20:K$22)>0,$E30*$F30,0) -> 0 | N30: =IF(SUM(M$20:M$22)>0,$E30*$F30,0) -> 0 | P30: =IF(SUM(O$20:O$22)>0,$E30*$F30,0) -> 0 | R30: =IF(SUM(Q$20:Q$22)>0,$E30*$F30,0) -> 0 | T30: =IF(SUM(S$20:S$22)>0,$E30*$F30,0) -> 0 | V30: =IF(SUM(U$20:U$22)>0,$E30*$F30,0) -> 0 | X30: =IF(SUM(W$20:W$22)>0,$E30*$F30,0) -> 0 | Z30: =IF(SUM(Y$20:Y$22)>0,$E30*$F30,0) -> 0 | AB30: =IF(SUM(AA$20:AA$22)>0,$E30*$F30,0) -> 0 | AD30: =IF(SUM(AC$20:AC$22)>0,$E30*$F30,0) -> 0 | AF30: 0 | AH30: =IF(SUM(AG$20:AG$22)>0,$E30*$F30,0) -> 0 | AJ30: =IF(SUM(AI$20:AI$22)>0,$E30*$F30,0) -> 0 | AL30: =IF(SUM(AK$20:AK$22)>0,$E30*$F30,0) -> 0 | AN30: =IF(SUM(AM$20:AM$22)>0,$E30*$F30,0) -> 0 | AP30: =IF(SUM(AO$20:AO$22)>0,$E30*$F30,0) -> 0 | AR30: =IF(SUM(AQ$20:AQ$22)>0,$E30*$F30,0) -> 0 | AT30: =IF(SUM(AS$20:AS$22)>0,$E30*$F30,0) -> 0 | AV30: =IF(SUM(AU$20:AU$22)>0,$E30*$F30,0) -> 0 | AX30: =IF(SUM(AW$20:AW$22)>0,$E30*$F30,0) -> 0 | AZ30: =IF(SUM(AY$20:AY$22)>0,$E30*$F30,0) -> 0 | BB30: =IF(SUM(BA$20:BA$22)>0,$E30*$F30,0) -> 0 | BD30: =IF(SUM(BC$20:BC$22)>0,$E30*$F30,0) -> 0 | BF30: =IF(SUM(BE$20:BE$22)>0,$E30*$F30,0) -> 0 | BH30: =IF(SUM(BG$20:BG$22)>0,$E30*$F30,0) -> 0 | BJ30: =IF(SUM(BI$20:BI$22)>0,$E30*$F30,0) -> 0 | BL30: =IF(SUM(BK$20:BK$22)>0,$E30*$F30,0) -> 0 | BN30: =IF(SUM(BM$20:BM$22)>0,$E30*$F30,0) -> 0 | BP30: =IF(SUM(BO$20:BO$22)>0,$E30*$F30,0) -> 0 | BR30: =IF(SUM(BQ$20:BQ$22)>0,$E30*$F30,0) -> 0 | BT30: =IF(SUM(BS$20:BS$22)>0,$E30*$F30,0) -> 0 | BV30: =IF(SUM(BU$20:BU$22)>0,$E30*$F30,0) -> 0 | BX30: =IF(SUM(BW$20:BW$22)>0,$E30*$F30,0) -> 0 | BZ30: =IF(SUM(BY$20:BY$22)>0,$E30*$F30,0) -> 0 | CB30: =IF(SUM(CA$20:CA$22)>0,$E30*$F30,0) -> 0 | CD30: =IF(SUM(CC$20:CC$22)>0,$E30*$F30,0) -> 0 | CF30: =IF(SUM(CE$20:CE$22)>0,$E30*$F30,0) -> 0 | CH30: =IF(SUM(CG$20:CG$22)>0,$E30*$F30,0) -> 32.4 | CJ30: =IF(SUM(CI$20:CI$22)>0,$E30*$F30,0) -> 0 | CL30: =IF(SUM(CK$20:CK$22)>0,$E30*$F30,0) -> 0 | CN30: =IF(SUM(CM$20:CM$22)>0,$E30*$F30,0) -> 0 | CP30: =IF(SUM(CO$20:CO$22)>0,$E30*$F30,0) -> 0 | CR30: =IF(SUM(CQ$20:CQ$22)>0,$E30*$F30,0) -> 0 | CT30: =IF(SUM(CS$20:CS$22)>0,$E30*$F30,0) -> 0 | CV30: =IF(SUM(CU$20:CU$22)>0,$E30*$F30,0) -> 0 | CX30: =IF(SUM(CW$20:CW$22)>0,$E30*$F30,0) -> 0 | CZ30: =IF(SUM(CY$20:CY$22)>0,$E30*$F30,0) -> 0 | DB30: =IF(SUM(DA$20:DA$22)>0,$E30*$F30,0) -> 0 | DD30: =IF(SUM(DC$20:DC$22)>0,$E30*$F30,0) -> 0 | DF30: =IF(SUM(DE$20:DE$22)>0,$E30*$F30,0) -> 0 | DH30: =IF(SUM(DG$20:DG$22)>0,$E30*$F30,0) -> 0 | DJ30: =IF(SUM(DI$20:DI$22)>0,$E30*$F30,0) -> 0 | DL30: =IF(SUM(DK$20:DK$22)>0,$E30*$F30,0) -> 0 | DN30: =IF(SUM(DM$20:DM$22)>0,$E30*$F30,0) -> 0 | DP30: =IF(SUM(DO$20:DO$22)>0,$E30*$F30,0) -> 0 | DR30: =IF(SUM(DQ$20:DQ$22)>0,$E30*$F30,0) -> 0 | DT30: =IF(SUM(DS$20:DS$22)>0,$E30*$F30,0) -> 0 | DV30: =IF(SUM(DU$20:DU$22)>0,$E30*$F30,0) -> 0 | DX30: =IF(SUM(DW$20:DW$22)>0,$E30*$F30,0) -> 0

Sheet Não Rel - EPI
B4: EPIS NÃO RELACIONADOS DIRETAMENTE A UM POSTO DE TRABALHO - AQUISIÇÃO
D7: ITEM | E7: DESCRIÇÃO | F7: QUANT ANUAL | G7: UNIDADE | H7: CUSTO UNITÁRIO | I7: CUSTO ANUAL | J7: BDI (%) | K7: PREÇO TOTAL | L7: FONTE
D9: 1 | E9: Respirador purificador de ar tipo, peça semifacial filtrante para partículas (PFF2), com formato dobrável. Fita elástica branca fixada nas laterais externas do respirador, perfazendo uma alça na para fixação (superior da cabeça e a outra na parte inferior). Peça de material metálico moldável, utilizada para ajuste no septo nasal. Na face lateral do respirador existe um dispositivo de material plástico, dotado internamente de uma válvula de exalação. Deverá apresentar o selo de aprovação do INMETRO. Ref. 3M | F9: 30 | G9: UND | H9: 5.4 | I9: =H9*F9 -> 162 | J9: =BDI!E27 -> 0.2259 | K9: =ROUND(I9*(1+J9),2) -> 198.6 | L9: COTAÇÃO
J11: SOMATÓRIO TOTAL MENSAL | K11: =K12/12 -> 16.55
J12: SOMATÓRIO TOTAL ANUAL | K12: =SUM(K8:K10) -> 198.6 | N12: =SUM($I$9:$I$9) -> 162 | O12: por ano sem bdi

Sheet SREP
B4: SISTEMA DE REGISTRO ELETRÔNICO DE PRESENÇA - SREP
C7: PAGAMENTO DA DEPRECIAÇÃO
C8: ITEM | D8: DESCRIÇÃO | E8: QUANT ANUAL | F8: CONTA SIAFI | G8: VALOR DE AQ. | H8: % RESIDUAL | I8: VIDA ÚTIL | J8: DEP. MENSAL | K8: CUSTO TOTAL | L8: BDI (%) | M8: PREÇO TOTAL | N8: FONTE | O8: REFERÊNCIA
C10: 1 | D10: Equipamento de Registro Eletrônico de Ponto, de parede, com teclado externo e leitor biométrico, em conformidade com a Portaria 1.510/2009 do MT | E10: 4 | F10: 12311.01.24 (máquinas e equip eletrônicos) | G10: 1597 | H10: 0.1 | I10: 10 | J10: =G10*(1-H10)/(I10*12) -> 11.9775 | K10: =J10*E10 -> 47.91 | L10: =BDI!E27 -> 0.2259 | M10: =ROUND(K10*(1+L10),2) -> 58.73 | N10: COTAÇÃO
C13: PAGAMENTO DA MANUTENÇÃO
C14: ITEM | D14: DESCRIÇÃO | H14: K (calculado) | I14: MENSAL DEPR. | J14: % MAN X DEP | K14: MENSAL MAN. | L14: BDI (%) | M14: PREÇO TOTAL
C16: 2 | D16: Todos os itens | H16: =H23 -> 1.90003968 | I16: =K10 -> 47.91 | J16: =H16 -> 1.90003968 | K16: =I16*H16 -> 91.03090107 | L16: =L10 -> 0.2259 | M16: =ROUND(K16*(1+L16),2) -> 111.59
E18: K1 | F18: K2 | G18: K3 | H18: K4
E19: 0.85 | F19: 1 | G19: 0.8 | H19: 1.4
E20: K5 | F20: K6 | G20: K7 | H20: K8
E21: 1 | F21: 0.6 | G21: 1.6 | H21: 1.1
E22: K9 | F22: K10 | G22: K11 | H22: RESULTADO
D23: * a descrição de cada coeficiente segue abaixo | E23: 1.5 | F23: 0.9 | G23: 1.4 | H23: =E19*F19*G19*H19*E21*F21*G21*H21*E23*F23*G23 -> 1.90003968
C26: PAGAMENTO DO SOFTWARE
C27: ITEM | D27: DESCRIÇÃO | H27: QUANTIDADE | I27: UNIDADE | J27: VALOR DE AQ. | K27: UNIT. MENSAL | L27: BDI (%) | M27: PREÇO TOTAL
C29: 3 | D29: Software Ponto Secullum 4 - manutenção e suporte técnico com backup - Web Nuvem - Mensalidade 252 usuários | H29: 1 | I29: Licença/mês | J29: 106.77 | K29: =J29*H29 -> 106.77 | L29: =L35 -> 0.2259 | M29: =ROUND(K29*(1+L29),2) -> 130.89 | N29: COTAÇÃO
C32: MATERIAL DE CONSUMO ASSOCIADO
C33: ITEM | D33: DESCRIÇÃO | H33: QUANTID/ANO | I33: UNIDADE | J33: VALOR DE AQ. | K33: MENSAL MAT | L33: BDI (%) | M33: PREÇO TOTAL
C35: 4 | D35: Bobina térmica específica para o registrador eletrônico de ponto, com papel termossensível, superfície de impressão externa ao rolo, durabilidade de impressão mínima de 5 anos e comprimento mínimo de 300m | E35: * estimado um gasto anual de 45 bobinas por equipamento | H35: =ROUNDUP(252*4*22*12*0.05/300,0) -> 45 | I35: Bobina | J35: 36.7 | K35: =J35*H35/12 -> 137.625 | L35: =L16 -> 0.2259 | M35: =ROUND(K35*(1+L35),2) -> 168.71 | N35: COTAÇÃO
C38: MATERIAL DE CONSUMO ASSOCIADO
C39: ITEM | D39: DESCRIÇÃO | M39: PREÇO TOTAL
C41: 1 | D41: Componente DEPRECIAÇÃO | M41: =M10 -> 58.73
C42: 2 | D42: Componente MANUTENÇÃO | M42: =M16 -> 111.59
C43: 3 | D43: Componente SOFTWARE | M43: =M29 -> 130.89
C44: 4 | D44: Componente MATERIAL DE CONSUMO ASSOCIADO | M44: =M35 -> 168.71
L46: SOMATÓRIO TOTAL MENSAL | M46: =SUM(M40:M45) -> 469.92
L47: SOMATÓRIO TOTAL ANUAL | M47: =M46*12 -> 5639.04
C50: MATERIAL DE CONSUMO ASSOCIADO
C51: MEMÓRIA DE CÁLCULO DO COEFICIENTE DE CORRELAÇÃO MANUTENÇÃO X DEPRECIAÇÃO (K)
C53: JUSTIFICATIVAS | E53: TIPO | F53: K1 | H53: Condições de Trab | I53: K4 | K53: Tempo Vida (anos) | L53: K6 | N53: Temperatura | O53: K8
E54: Guindaste | F54: 0.5 | H54: Em espera | I54: 0.4 | K54: 1 | L54: 0.6 | N54: Muito quente (> 40º C) | O54: 1.3
C55: K1 | D55: Considerado o valor médio de 0,85 | E55: Caminhão-comum | F55: 0.8 | H55: Leves | I55: 0.8 | K55: 2 | L55: 0.7 | N55: Quente (30º a 40º C) | O55: 1.1
C56: K2 | D56: Considerado o operador médio | E56: Fora-de-estrada | F56: 1 | H56: Médias | I56: 1 | K56: 3 | L56: 0.8 | N56: Médio (10º a 30º C) | O56: 1
C57: K3 | D57: Consideradas ferramentas de primeira qualidade | E57: Carregadeira | F57: 1 | H57: Pesadas | I57: 1.4 | K57: 4 | L57: 0.9 | N57: Frio (< 10º C) | O57: 1.2
C58: K4 | D58: Há todo o tipo de trabalho, foi considerado condições pesadas | E58: Escavadeira | F58: 1.4 | H58: Severas | I58: 2 | K58: 5 | L58: 1
C59: K5 | D59: Considerando manutenção normal | E59: Motoescrêiper | F59: 1.1 | K59: 6 | L59: 1 | N59: Ritmo de Trabalho | O59: K9
C60: K6 | D60: Equipamentos novos | E60: Trator de esteira | F60: 1.2 | H60: Manutenção | I60: K5 | K60: 7 | L60: 1 | N60: Folgado | O60: 0.9
C61: K7 | D61: 44h por dia, 252 dias por ano | H61: Excelente | I61: 0.6 | K61: 8 | L61: 1.2 | N61: Médio | O61: 1
C62: K8 | D62: Clima quente, acima de 30º C | E62: Qualid do Operador | F62: K2 | H62: Boa | I62: 0.8 | K62: 9 | L62: 1.3 | N62: Com pressa | O62: 1.5
C63: K9 | D63: Ritmo de trabalho usualmente com pressa | E63: Excelente | F63: 0.8 | H63: Média | I63: 1 | K63: 10 | L63: 1.4
C64: K10 | D64: Considerado o operador médio | E64: Boa | F64: 0.9 | H64: Ruim | I64: 1.5 | K64: 11 | L64: 2 | N64: Conh do Serviço | O64: K10
C65: K11 | D65: Foi considerada a opção de aluguel a terceiros, ainda que a simulação seja dos custos do contratado, contudo a execução dos serviços é em local de terceiros | E65: Média | F65: 1 | H65: Inexistente | I65: 3 | K65: 15 | L65: 2 | N65: Grande | O65: 0.8
E66: Ruim | F66: 1.2 | N66: Médio | O66: 0.9
E67: Péssima | F67: 2 | H67: Horas de Uso | I67: K7 | J67: 6000 | K67: 1 | N67: Pouco | O67: 1
H68: 1000 | I68: 0.5 | J68: 8000 | K68: 1.3
E69: Qualidade do Equip | F69: K3 | H69: 2000 | I69: 0.5 | J69: 10000 | K69: 1.6 | N69: Tipo do Serviço | O69: K11
E70: De primeira | F70: 0.8 | H70: 3000 | I70: 0.6 | J70: 12000 | K70: 1.9 | N70: Mina ou Pedreira | O70: 0.8
E71: Média | F71: 1 | H71: 4000 | I71: 0.7 | J71: 15000 | K71: 2.3 | N71: Construção Geral | O71: 1
E72: Ruim | F72: 1.5 | H72: 5000 | I72: 0.9 | J72: 20000 | K72: 3 | N72: Aluguel a Terceiros | O72: 1.4
E74: Fonte:
E75: MATTOS, Aldo Dórea. Como preparar orçamentos de obras. São Paulo: Pini, 2006. 281 p., il

Sheet Not. Demanda
B3: ADICIONAL NOTURNO SOB DEMANDA
C6: CATEGORIAS | E6: QTDE DE POSTOS | F6: HORAS / MÊS (por posto) | G6: TOTAL HORAS / MÊS | H6: % NOTURNA
C8: 2 | D8: =HLOOKUP($C8,'Dados Gerais'!$D$5:$BX$10,6) -> Almoxarife Técnico - 4 dias | E8: 1 | F8: 18 | G8: =E8*F8 -> 18 | H8: 0.4
C9: 3 | D9: =HLOOKUP($C9,'Dados Gerais'!$D$5:$BX$10,6) -> Assistente de operações audiovisuais - 5 dias | E9: 1 | F9: =F8 -> 18 | G9: =E9*F9 -> 18 | H9: =H8 -> 0.4
C10: 4 | D10: =HLOOKUP($C10,'Dados Gerais'!$D$5:$BX$10,6) -> Assistente de operações audiovisuais - 3 dias | E10: 2 | F10: 18 | G10: 36 | H10: =H9 -> 0.4
C11: 6 | D11: =HLOOKUP($C11,'Dados Gerais'!$D$5:$BX$10,6) -> Assistente de operações audiovisuais UPJ - B - 5 dias | E11: 3 | F11: 18 | G11: 54 | H11: 0.4
C12: 9 | D12: =HLOOKUP($C12,'Dados Gerais'!$D$5:$BX$10,6) -> Diretor de imagens - 5 dias | E12: 3 | F12: 18 | G12: 54 | H12: 0.4
C13: 14 | D13: =HLOOKUP($C13,'Dados Gerais'!$D$5:$BX$10,6) -> Operador de mídia audiovisual - 5 dias | E13: 2 | F13: 18 | G13: 36 | H13: 0.4
C14: 15 | D14: =HLOOKUP($C14,'Dados Gerais'!$D$5:$BX$10,6) -> Operador de câmera - 5 dias | E14: 4 | F14: 18 | G14: 72 | H14: =H13 -> 0.4
C15: 17 | D15: =HLOOKUP($C15,'Dados Gerais'!$D$5:$BX$10,6) -> Operador de câmera UPE - 5 dias | E15: 3 | F15: 18 | G15: 54 | H15: 0.4
C16: 20 | D16: =HLOOKUP($C16,'Dados Gerais'!$D$5:$BX$10,6) -> Operador de controle mestre - rádio - 5 dias | E16: 1 | F16: 44 | G16: 44 | H16: 0.4
C17: 21 | D17: =HLOOKUP($C17,'Dados Gerais'!$D$5:$BX$10,6) -> Operador de controle mestre - rádio - 4 dias | E17: 2 | F17: 18 | G17: 36 | H17: 0.4
C18: 22 | D18: =HLOOKUP($C18,'Dados Gerais'!$D$5:$BX$10,6) -> Operador de máquina de caracteres - 5 dias | E18: 3 | F18: =F17 -> 18 | G18: 54 | H18: 0.4
C19: 24 | D19: =HLOOKUP($C19,'Dados Gerais'!$D$5:$BX$10,6) -> Operador de videoteipe - 5 dias | E19: 3 | F19: =F18 -> 18 | G19: 54 | H19: 0.4
C20: 26 | D20: =HLOOKUP($C20,'Dados Gerais'!$D$5:$BX$10,6) -> Sonoplasta rádio - 5 dias | E20: 2 | F20: =F19 -> 18 | G20: 36 | H20: 0.4
C21: 28 | D21: =HLOOKUP($C21,'Dados Gerais'!$D$5:$BX$10,6) -> Supervisor de Operações - 5 dias | E21: 2 | F21: =F20 -> 18 | G21: 36 | H21: 0.4
C22: 29 | D22: =HLOOKUP($C22,'Dados Gerais'!$D$5:$BX$10,6) -> Supervisor técnico operacional - 5 dias | E22: 1 | F22: =F21 -> 18 | G22: 18 | H22: =H21 -> 0.4
C23: 30 | D23: =HLOOKUP($C23,'Dados Gerais'!$D$5:$BX$10,6) -> Técnico de sistemas audiovisuais - 5 dias | E23: 1 | F23: 44 | G23: 44 | H23: 0.4
C24: 31 | D24: =HLOOKUP($C24,'Dados Gerais'!$D$5:$BX$10,6) -> Técnico de sistemas audiovisuais - 4 dias | E24: 2 | F24: 18 | G24: 36 | H24: 0.4
C25: 33 | D25: =HLOOKUP($C25,'Dados Gerais'!$D$5:$BX$10,6) -> Arquivista de teipe - 5 dias | E25: 2 | F25: =F24 -> 18 | G25: =E25*F25 -> 36 | H25: 0.4
C26: 38 | D26: =HLOOKUP($C26,'Dados Gerais'!$D$5:$BX$10,6) -> Supervisor técnico - 5 dias | E26: 1 | F26: 18 | G26: 18 | H26: 0.4
C27: 39 | D27: =HLOOKUP($C27,'Dados Gerais'!$D$5:$BX$10,6) -> Técnico de manutenção - 5 dias | E27: 1 | F27: 18 | G27: 18 | H27: 0.4
C28: 42 | D28: =HLOOKUP($C28,'Dados Gerais'!$D$5:$BX$10,6) -> Comunicador - 5 dias | E28: 4 | F28: 18 | G28: 72 | H28: 0.4
C29: 43 | D29: =HLOOKUP($C29,'Dados Gerais'!$D$5:$BX$10,6) -> Controlador de programação - 5 dias | E29: 4 | F29: 18 | G29: 72 | H29: 0.4
C30: 46 | D30: =HLOOKUP($C30,'Dados Gerais'!$D$5:$BX$10,6) -> Diretor de programação - 5 dias | E30: 1 | F30: 18 | G30: 18 | H30: 0.4
C31: 47 | D31: =HLOOKUP($C31,'Dados Gerais'!$D$5:$BX$10,6) -> Intérprete de libras de TV - 5 dias | E31: 3 | F31: 18 | G31: 54 | H31: 0.4
C32: 49 | D32: =HLOOKUP($C32,'Dados Gerais'!$D$5:$BX$10,6) -> Locutor noticiarista - 5 dias | E32: 2 | F32: 18 | G32: 36 | H32: 0.4
C33: 50 | D33: =HLOOKUP($C33,'Dados Gerais'!$D$5:$BX$10,6) -> Operador de controle mestre - 5 dias | E33: 1 | F33: 18 | G33: 18 | H33: 0.4
C34: 56 | D34: =HLOOKUP($C34,'Dados Gerais'!$D$5:$BX$10,6) -> Editor de mídia audiovisual B - 5 dias | E34: 3 | F34: 18 | G34: 54 | H34: 0.4
C35: 58 | D35: =HLOOKUP($C35,'Dados Gerais'!$D$5:$BX$10,6) -> Diretor de produção - 5 dias | E35: 2 | F35: 18 | G35: 36 | H35: 0.4
C36: 59 | D36: =HLOOKUP($C36,'Dados Gerais'!$D$5:$BX$10,6) -> Diretor de programas - 5 dias | E36: 3 | F36: 18 | G36: 54 | H36: 0.4
C37: 62 | D37: =HLOOKUP($C37,'Dados Gerais'!$D$5:$BX$10,6) -> Produtor de rádio, TV e mídias digitais - 5 dias | E37: 6 | F37: 18 | G37: 108 | H37: 0.4
C40: AJUSTE DE HORAS FICTAS | E40: AJUSTE H.NOT | F40: HORA NORMAL | G40: H.FICTAS/MÊS | H40: H.ÚTEIS/MÊS
C42: =C8 -> 2 | D42: =HLOOKUP($C42,'Dados Gerais'!$D$5:$BX$10,6) -> Almoxarife Técnico - 4 dias | E42: 60 | F42: 52.5 | G42: =G8*(E42/F42) -> 20.57142857 | H42: =HLOOKUP(C42,'Dados Gerais'!$D$5:$BX$17,13,0) -> 120
C43: =C9 -> 3 | D43: =HLOOKUP($C43,'Dados Gerais'!$D$5:$BX$10,6) -> Assistente de operações audiovisuais - 5 dias | E43: 60 | F43: =F42 -> 52.5 | G43: =G9*(E43/F43) -> 20.57142857 | H43: =HLOOKUP(C43,'Dados Gerais'!$D$5:$BX$17,13,0) -> 150
C44: 4 | D44: =HLOOKUP($C44,'Dados Gerais'!$D$5:$BX$10,6) -> Assistente de operações audiovisuais - 3 dias | E44: 60 | F44: =F43 -> 52.5 | G44: 41.14285714 | H44: =HLOOKUP(C44,'Dados Gerais'!$D$5:$BX$17,13,0) -> 90
C45: 6 | D45: =HLOOKUP($C45,'Dados Gerais'!$D$5:$BX$10,6) -> Assistente de operações audiovisuais UPJ - B - 5 dias | E45: 60 | F45: 52.5 | G45: 61.71428571 | H45: =HLOOKUP(C45,'Dados Gerais'!$D$5:$BX$17,13,0) -> 150
C46: 9 | D46: =HLOOKUP($C46,'Dados Gerais'!$D$5:$BX$10,6) -> Diretor de imagens - 5 dias | E46: 60 | F46: 52.5 | G46: 61.71428571 | H46: =HLOOKUP(C46,'Dados Gerais'!$D$5:$BX$17,13,0) -> 150
C47: 14 | D47: =HLOOKUP($C47,'Dados Gerais'!$D$5:$BX$10,6) -> Operador de mídia audiovisual - 5 dias | E47: 60 | F47: 52.5 | G47: 41.14285714 | H47: =HLOOKUP(C47,'Dados Gerais'!$D$5:$BX$17,13,0) -> 150
C48: 15 | D48: =HLOOKUP($C48,'Dados Gerais'!$D$5:$BX$10,6) -> Operador de câmera - 5 dias | E48: 60 | F48: 52.5 | G48: 82.28571429 | H48: =HLOOKUP(C48,'Dados Gerais'!$D$5:$BX$17,13,0) -> 150
C49: 17 | D49: =HLOOKUP($C49,'Dados Gerais'!$D$5:$BX$10,6) -> Operador de câmera UPE - 5 dias | E49: 60 | F49: 52.5 | G49: 61.71428571 | H49: =HLOOKUP(C49,'Dados Gerais'!$D$5:$BX$17,13,0) -> 150
C50: 20 | D50: =HLOOKUP($C50,'Dados Gerais'!$D$5:$BX$10,6) -> Operador de controle mestre - rádio - 5 dias | E50: 60 | F50: 52.5 | G50: 50.28571429 | H50: =HLOOKUP(C50,'Dados Gerais'!$D$5:$BX$17,13,0) -> 150
C51: 21 | D51: =HLOOKUP($C51,'Dados Gerais'!$D$5:$BX$10,6) -> Operador de controle mestre - rádio - 4 dias | E51: 60 | F51: 52.5 | G51: 41.14285714 | H51: =HLOOKUP(C51,'Dados Gerais'!$D$5:$BX$17,13,0) -> 120
C52: 22 | D52: =HLOOKUP($C52,'Dados Gerais'!$D$5:$BX$10,6) -> Operador de máquina de caracteres - 5 dias | E52: 60 | F52: 52.5 | G52: 61.71428571 | H52: =HLOOKUP(C52,'Dados Gerais'!$D$5:$BX$17,13,0) -> 150
C53: 24 | D53: =HLOOKUP($C53,'Dados Gerais'!$D$5:$BX$10,6) -> Operador de videoteipe - 5 dias | E53: 60 | F53: 52.5 | G53: 61.71428571 | H53: =HLOOKUP(C53,'Dados Gerais'!$D$5:$BX$17,13,0) -> 150
C54: 26 | D54: =HLOOKUP($C54,'Dados Gerais'!$D$5:$BX$10,6) -> Sonoplasta rádio - 5 dias | E54: 60 | F54: 52.5 | G54: 41.14285714 | H54: =HLOOKUP(C54,'Dados Gerais'!$D$5:$BX$17,13,0) -> 150
C55: 28 | D55: =HLOOKUP($C55,'Dados Gerais'!$D$5:$BX$10,6) -> Supervisor de Operações - 5 dias | E55: 60 | F55: 52.5 | G55: 41.14285714 | H55: =HLOOKUP(C55,'Dados Gerais'!$D$5:$BX$17,13,0) -> 220
C56: 29 | D56: =HLOOKUP($C56,'Dados Gerais'!$D$5:$BX$10,6) -> Supervisor técnico operacional - 5 dias | E56: 60 | F56: 52.5 | G56: 20.57142857 | H56: =HLOOKUP(C56,'Dados Gerais'!$D$5:$BX$17,13,0) -> 220
C57: 30 | D57: =HLOOKUP($C57,'Dados Gerais'!$D$5:$BX$10,6) -> Técnico de sistemas audiovisuais - 5 dias | E57: 60 | F57: 52.5 | G57: 50.28571429 | H57: =HLOOKUP(C57,'Dados Gerais'!$D$5:$BX$17,13,0) -> 150
C58: 31 | D58: =HLOOKUP($C58,'Dados Gerais'!$D$5:$BX$10,6) -> Técnico de sistemas audiovisuais - 4 dias | E58: 60 | F58: 52.5 | G58: 41.14285714 | H58: =HLOOKUP(C58,'Dados Gerais'!$D$5:$BX$17,13,0) -> 120
C59: 33 | D59: =HLOOKUP($C59,'Dados Gerais'!$D$5:$BX$10,6) -> Arquivista de teipe - 5 dias | E59: 60 | F59: 52.5 | G59: 41.14285714 | H59: =HLOOKUP(C59,'Dados Gerais'!$D$5:$BX$17,13,0) -> 150
C60: 38 | D60: =HLOOKUP($C60,'Dados Gerais'!$D$5:$BX$10,6) -> Supervisor técnico - 5 dias | E60: 60 | F60: 52.5 | G60: 20.57142857 | H60: =HLOOKUP(C60,'Dados Gerais'!$D$5:$BX$17,13,0) -> 220
C61: 39 | D61: =HLOOKUP($C61,'Dados Gerais'!$D$5:$BX$10,6) -> Técnico de manutenção - 5 dias | E61: 60 | F61: 52.5 | G61: 20.57142857 | H61: =HLOOKUP(C61,'Dados Gerais'!$D$5:$BX$17,13,0) -> 150
C62: 42 | D62: =HLOOKUP($C62,'Dados Gerais'!$D$5:$BX$10,6) -> Comunicador - 5 dias | E62: 60 | F62: 52.5 | G62: 82.28571429 | H62: =HLOOKUP(C62,'Dados Gerais'!$D$5:$BX$17,13,0) -> 125
C63: 43 | D63: =HLOOKUP($C63,'Dados Gerais'!$D$5:$BX$10,6) -> Controlador de programação - 5 dias | E63: 60 | F63: 52.5 | G63: 82.28571429 | H63: =HLOOKUP(C63,'Dados Gerais'!$D$5:$BX$17,13,0) -> 150
C64: 46 | D64: =HLOOKUP($C64,'Dados Gerais'!$D$5:$BX$10,6) -> Diretor de programação - 5 dias | E64: 60 | F64: 52.5 | G64: 20.57142857 | H64: =HLOOKUP(C64,'Dados Gerais'!$D$5:$BX$17,13,0) -> 200
C65: 47 | D65: =HLOOKUP($C65,'Dados Gerais'!$D$5:$BX$10,6) -> Intérprete de libras de TV - 5 dias | E65: 60 | F65: 52.5 | G65: 61.71428571 | H65: =HLOOKUP(C65,'Dados Gerais'!$D$5:$BX$17,13,0) -> 150
C66: 49 | D66: =HLOOKUP($C66,'Dados Gerais'!$D$5:$BX$10,6) -> Locutor noticiarista - 5 dias | E66: 60 | F66: 52.5 | G66: 41.14285714 | H66: =HLOOKUP(C66,'Dados Gerais'!$D$5:$BX$17,13,0) -> 125
C67: 50 | D67: =HLOOKUP($C67,'Dados Gerais'!$D$5:$BX$10,6) -> Operador de controle mestre - 5 dias | E67: 60 | F67: 52.5 | G67: 20.57142857 | H67: =HLOOKUP(C67,'Dados Gerais'!$D$5:$BX$17,13,0) -> 150
C68: 56 | D68: =HLOOKUP($C68,'Dados Gerais'!$D$5:$BX$10,6) -> Editor de mídia audiovisual B - 5 dias | E68: 60 | F68: 52.5 | G68: 61.71428571 | H68: =HLOOKUP(C68,'Dados Gerais'!$D$5:$BX$17,13,0) -> 150
C69: 58 | D69: =HLOOKUP($C69,'Dados Gerais'!$D$5:$BX$10,6) -> Diretor de produção - 5 dias | E69: 60 | F69: 52.5 | G69: =G35*(E69/F69) -> 41.14285714 | H69: =HLOOKUP(C69,'Dados Gerais'!$D$5:$BX$17,13,0) -> 200
C70: 59 | D70: =HLOOKUP($C70,'Dados Gerais'!$D$5:$BX$10,6) -> Diretor de programas - 5 dias | E70: 60 | F70: 52.5 | G70: 61.71428571 | H70: =HLOOKUP(C70,'Dados Gerais'!$D$5:$BX$17,13,0) -> 200
C71: 62 | D71: =HLOOKUP($C71,'Dados Gerais'!$D$5:$BX$10,6) -> Produtor de rádio, TV e mídias digitais - 5 dias | E71: 60 | F71: 52.5 | G71: 123.4285714 | H71: =HLOOKUP(C71,'Dados Gerais'!$D$5:$BX$17,13,0) -> 150
C74: VALOR DO ADICIONAL NOTURNO | F74: SALÁRIO MÊS | G74: VL.H.NORMAL | H74: ADIC.H.FICTAS
C76: =C42 -> 2 | D76: =HLOOKUP($C76,'Dados Gerais'!$D$5:$BX$10,6) -> Almoxarife Técnico - 4 dias | F76: =HLOOKUP(C76,'Dados Gerais'!$D$5:$BX$12,8,0) -> 5414.86 | G76: =F76/H42 -> 45.12383333 | H76: =G76*(H8) -> 18.04953333
C77: =C43 -> 3 | D77: =HLOOKUP($C77,'Dados Gerais'!$D$5:$BX$10,6) -> Assistente de operações audiovisuais - 5 dias | F77: =HLOOKUP(C77,'Dados Gerais'!$D$5:$BX$12,8,0) -> 3503.27 | G77: 23.35513333 | H77: 9.342053333
C78: 4 | D78: =HLOOKUP($C78,'Dados Gerais'!$D$5:$BX$10,6) -> Assistente de operações audiovisuais - 3 dias | F78: =HLOOKUP(C78,'Dados Gerais'!$D$5:$BX$12,8,0) -> 2101.96 | G78: 23.35511111 | H78: 9.342044444
C79: 6 | D79: =HLOOKUP($C79,'Dados Gerais'!$D$5:$BX$10,6) -> Assistente de operações audiovisuais UPJ - B - 5 dias | F79: =HLOOKUP(C79,'Dados Gerais'!$D$5:$BX$12,8,0) -> 3503.27 | G79: 23.35513333 | H79: 9.342053333
C80: 9 | D80: =HLOOKUP($C80,'Dados Gerais'!$D$5:$BX$10,6) -> Diretor de imagens - 5 dias | F80: =HLOOKUP(C80,'Dados Gerais'!$D$5:$BX$12,8,0) -> 6183.47 | G80: 41.22313333 | H80: 16.48925333
C81: 14 | D81: =HLOOKUP($C81,'Dados Gerais'!$D$5:$BX$10,6) -> Operador de mídia audiovisual - 5 dias | F81: =HLOOKUP(C81,'Dados Gerais'!$D$5:$BX$12,8,0) -> 5137.18 | G81: 34.24786667 | H81: 13.69914667
C82: 15 | D82: =HLOOKUP($C82,'Dados Gerais'!$D$5:$BX$10,6) -> Operador de câmera - 5 dias | F82: =HLOOKUP(C82,'Dados Gerais'!$D$5:$BX$12,8,0) -> 4610.96 | G82: 30.73973333 | H82: 12.29589333
C83: 17 | D83: =HLOOKUP($C83,'Dados Gerais'!$D$5:$BX$10,6) -> Operador de câmera UPE - 5 dias | F83: =HLOOKUP(C83,'Dados Gerais'!$D$5:$BX$12,8,0) -> 6172.03 | G83: 41.14686667 | H83: 16.45874667
C84: 20 | D84: =HLOOKUP($C84,'Dados Gerais'!$D$5:$BX$10,6) -> Operador de controle mestre - rádio - 5 dias | F84: =HLOOKUP(C84,'Dados Gerais'!$D$5:$BX$12,8,0) -> 5253.88 | G84: 35.02586667 | H84: 14.01034667
C85: 21 | D85: =HLOOKUP($C85,'Dados Gerais'!$D$5:$BX$10,6) -> Operador de controle mestre - rádio - 4 dias | F85: =HLOOKUP(C85,'Dados Gerais'!$D$5:$BX$12,8,0) -> 4203.11 | G85: 35.02591667 | H85: 14.01036667
C86: 22 | D86: =HLOOKUP($C86,'Dados Gerais'!$D$5:$BX$10,6) -> Operador de máquina de caracteres - 5 dias | F86: =HLOOKUP(C86,'Dados Gerais'!$D$5:$BX$12,8,0) -> 4103.82 | G86: 27.3588 | H86: 10.94352
C87: 24 | D87: =HLOOKUP($C87,'Dados Gerais'!$D$5:$BX$10,6) -> Operador de videoteipe - 5 dias | F87: =HLOOKUP(C87,'Dados Gerais'!$D$5:$BX$12,8,0) -> 3523.83 | G87: 23.4922 | H87: 9.39688
C88: 26 | D88: =HLOOKUP($C88,'Dados Gerais'!$D$5:$BX$10,6) -> Sonoplasta rádio - 5 dias | F88: =HLOOKUP(C88,'Dados Gerais'!$D$5:$BX$12,8,0) -> 5241.68 | G88: 34.94453333 | H88: 13.97781333
C89: 28 | D89: =HLOOKUP($C89,'Dados Gerais'!$D$5:$BX$10,6) -> Supervisor de Operações - 5 dias | F89: =HLOOKUP(C89,'Dados Gerais'!$D$5:$BX$12,8,0) -> 10350.08 | G89: 47.04581818 | H89: 18.81832727
C90: 29 | D90: =HLOOKUP($C90,'Dados Gerais'!$D$5:$BX$10,6) -> Supervisor técnico operacional - 5 dias | F90: =HLOOKUP(C90,'Dados Gerais'!$D$5:$BX$12,8,0) -> 15074.64 | G90: 68.52109091 | H90: 27.40843636
C91: 30 | D91: =HLOOKUP($C91,'Dados Gerais'!$D$5:$BX$10,6) -> Técnico de sistemas audiovisuais - 5 dias | F91: =HLOOKUP(C91,'Dados Gerais'!$D$5:$BX$12,8,0) -> 5285.84 | G91: 35.23893333 | H91: 14.09557333
C92: 31 | D92: =HLOOKUP($C92,'Dados Gerais'!$D$5:$BX$10,6) -> Técnico de sistemas audiovisuais - 4 dias | F92: =HLOOKUP(C92,'Dados Gerais'!$D$5:$BX$12,8,0) -> 4228.67 | G92: 35.23891667 | H92: 14.09556667
C93: 33 | D93: =HLOOKUP($C93,'Dados Gerais'!$D$5:$BX$10,6) -> Arquivista de teipe - 5 dias | F93: =HLOOKUP(C93,'Dados Gerais'!$D$5:$BX$12,8,0) -> 4404.1 | G93: 29.36066667 | H93: 11.74426667
C94: 38 | D94: =HLOOKUP($C94,'Dados Gerais'!$D$5:$BX$10,6) -> Supervisor técnico - 5 dias | F94: =HLOOKUP(C94,'Dados Gerais'!$D$5:$BX$12,8,0) -> 10767.6 | G94: 48.94363636 | H94: 19.57745455
C95: 39 | D95: =HLOOKUP($C95,'Dados Gerais'!$D$5:$BX$10,6) -> Técnico de manutenção - 5 dias | F95: =HLOOKUP(C95,'Dados Gerais'!$D$5:$BX$12,8,0) -> 7394.88 | G95: 49.2992 | H95: 19.71968
C96: 42 | D96: =HLOOKUP($C96,'Dados Gerais'!$D$5:$BX$10,6) -> Comunicador - 5 dias | F96: =HLOOKUP(C96,'Dados Gerais'!$D$5:$BX$12,8,0) -> 8726.69 | G96: 69.81352 | H96: 27.925408
C97: 43 | D97: =HLOOKUP($C97,'Dados Gerais'!$D$5:$BX$10,6) -> Controlador de programação - 5 dias | F97: =HLOOKUP(C97,'Dados Gerais'!$D$5:$BX$12,8,0) -> 6768.58 | G97: 45.12386667 | H97: 18.04954667
C98: 46 | D98: =HLOOKUP($C98,'Dados Gerais'!$D$5:$BX$10,6) -> Diretor de programação - 5 dias | F98: =HLOOKUP(C98,'Dados Gerais'!$D$5:$BX$12,8,0) -> 12343.52 | G98: 61.7176 | H98: 24.68704
C99: 47 | D99: =HLOOKUP($C99,'Dados Gerais'!$D$5:$BX$10,6) -> Intérprete de libras de TV - 5 dias | F99: =HLOOKUP(C99,'Dados Gerais'!$D$5:$BX$12,8,0) -> 5473.32 | G99: 36.4888 | H99: 14.59552
C100: 49 | D100: =HLOOKUP($C100,'Dados Gerais'!$D$5:$BX$10,6) -> Locutor noticiarista - 5 dias | F100: =HLOOKUP(C100,'Dados Gerais'!$D$5:$BX$12,8,0) -> 6407.04 | G100: 51.25632 | H100: 20.502528
C101: 50 | D101: =HLOOKUP($C101,'Dados Gerais'!$D$5:$BX$10,6) -> Operador de controle mestre - 5 dias | F101: =HLOOKUP(C101,'Dados Gerais'!$D$5:$BX$12,8,0) -> 5253.88 | G101: 35.02586667 | H101: 14.01034667
C102: 56 | D102: =HLOOKUP($C102,'Dados Gerais'!$D$5:$BX$10,6) -> Editor de mídia audiovisual B - 5 dias | F102: =HLOOKUP(C102,'Dados Gerais'!$D$5:$BX$12,8,0) -> 6281.68 | G102: 41.87786667 | H102: 16.75114667
C103: 58 | D103: =HLOOKUP($C103,'Dados Gerais'!$D$5:$BX$10,6) -> Diretor de produção - 5 dias | F103: =HLOOKUP(C103,'Dados Gerais'!$D$5:$BX$12,8,0) -> 12343.52 | G103: 61.7176 | H103: 24.68704
C104: 59 | D104: =HLOOKUP($C104,'Dados Gerais'!$D$5:$BX$10,6) -> Diretor de programas - 5 dias | F104: =HLOOKUP(C104,'Dados Gerais'!$D$5:$BX$12,8,0) -> 12343.52 | G104: 61.7176 | H104: 24.68704
C105: 62 | D105: =HLOOKUP($C105,'Dados Gerais'!$D$5:$BX$10,6) -> Produtor de rádio, TV e mídias digitais - 5 dias | F105: =HLOOKUP(C105,'Dados Gerais'!$D$5:$BX$12,8,0) -> 8725.11 | G105: 58.1674 | H105: 23.26696
C108: RESUMO DO ADICIONAL NOTURNO SOB DEMANDA
C109: TOTAIS MENSAIS | G109: PREÇO MENSAL
C111: =C76 -> 2 | D111: =HLOOKUP($C111,'Dados Gerais'!$D$5:$BX$10,6) -> Almoxarife Técnico - 4 dias | G111: =H76*G42 -> 371.3046857
C112: =C77 -> 3 | D112: =HLOOKUP($C112,'Dados Gerais'!$D$5:$BX$10,6) -> Assistente de operações audiovisuais - 5 dias | G112: 192.1793829
C113: 4 | D113: =HLOOKUP($C113,'Dados Gerais'!$D$5:$BX$10,6) -> Assistente de operações audiovisuais - 3 dias | G113: 384.3584
C114: 6 | D114: =HLOOKUP($C114,'Dados Gerais'!$D$5:$BX$10,6) -> Assistente de operações audiovisuais UPJ - B - 5 dias | G114: 576.5381486
C115: 9 | D115: =HLOOKUP($C115,'Dados Gerais'!$D$5:$BX$10,6) -> Diretor de imagens - 5 dias | G115: 1017.622491
C116: 14 | D116: =HLOOKUP($C116,'Dados Gerais'!$D$5:$BX$10,6) -> Operador de mídia audiovisual - 5 dias | G116: 563.6220343
C117: 15 | D117: =HLOOKUP($C117,'Dados Gerais'!$D$5:$BX$10,6) -> Operador de câmera - 5 dias | G117: 1011.776366
C118: 17 | D118: =HLOOKUP($C118,'Dados Gerais'!$D$5:$BX$10,6) -> Operador de câmera UPE - 5 dias | G118: 1015.739794
C119: 20 | D119: =HLOOKUP($C119,'Dados Gerais'!$D$5:$BX$10,6) -> Operador de controle mestre - rádio - 5 dias | G119: 704.5202895
C120: 21 | D120: =HLOOKUP($C120,'Dados Gerais'!$D$5:$BX$10,6) -> Operador de controle mestre - rádio - 4 dias | G120: 576.4265143
C121: 22 | D121: =HLOOKUP($C121,'Dados Gerais'!$D$5:$BX$10,6) -> Operador de máquina de caracteres - 5 dias | G121: 675.37152
C122: 24 | D122: =HLOOKUP($C122,'Dados Gerais'!$D$5:$BX$10,6) -> Operador de videoteipe - 5 dias | G122: 579.9217371
C123: 26 | D123: =HLOOKUP($C123,'Dados Gerais'!$D$5:$BX$10,6) -> Sonoplasta rádio - 5 dias | G123: 575.0871771
C124: 28 | D124: =HLOOKUP($C124,'Dados Gerais'!$D$5:$BX$10,6) -> Supervisor de Operações - 5 dias | G124: 774.2397506
C125: 29 | D125: =HLOOKUP($C125,'Dados Gerais'!$D$5:$BX$10,6) -> Supervisor técnico operacional - 5 dias | G125: 563.8306909
C126: 30 | D126: =HLOOKUP($C126,'Dados Gerais'!$D$5:$BX$10,6) -> Técnico de sistemas audiovisuais - 5 dias | G126: 708.8059733
C127: 31 | D127: =HLOOKUP($C127,'Dados Gerais'!$D$5:$BX$10,6) -> Técnico de sistemas audiovisuais - 4 dias | G127: 579.9318857
C128: 33 | D128: =HLOOKUP($C128,'Dados Gerais'!$D$5:$BX$10,6) -> Arquivista de teipe - 5 dias | G128: 483.1926857
C129: 38 | D129: =HLOOKUP($C129,'Dados Gerais'!$D$5:$BX$10,6) -> Supervisor técnico - 5 dias | G129: 402.7362078
C130: 39 | D130: =HLOOKUP($C130,'Dados Gerais'!$D$5:$BX$10,6) -> Técnico de manutenção - 5 dias | G130: 405.6619886
C131: 42 | D131: =HLOOKUP($C131,'Dados Gerais'!$D$5:$BX$10,6) -> Comunicador - 5 dias | G131: 2297.862144
C132: 43 | D132: =HLOOKUP($C132,'Dados Gerais'!$D$5:$BX$10,6) -> Controlador de programação - 5 dias | G132: 1485.21984
C133: 46 | D133: =HLOOKUP($C133,'Dados Gerais'!$D$5:$BX$10,6) -> Diretor de programação - 5 dias | G133: 507.84768
C134: 47 | D134: =HLOOKUP($C134,'Dados Gerais'!$D$5:$BX$10,6) -> Intérprete de libras de TV - 5 dias | G134: 900.7520914
C135: 49 | D135: =HLOOKUP($C135,'Dados Gerais'!$D$5:$BX$10,6) -> Locutor noticiarista - 5 dias | G135: 843.5325806
C136: 50 | D136: =HLOOKUP($C136,'Dados Gerais'!$D$5:$BX$10,6) -> Operador de controle mestre - 5 dias | G136: 288.2128457
C137: 56 | D137: =HLOOKUP($C137,'Dados Gerais'!$D$5:$BX$10,6) -> Editor de mídia audiovisual B - 5 dias | G137: 1033.785051
C138: 58 | D138: =HLOOKUP($C138,'Dados Gerais'!$D$5:$BX$10,6) -> Diretor de produção - 5 dias | G138: 1015.69536
C139: 59 | D139: =HLOOKUP($C139,'Dados Gerais'!$D$5:$BX$10,6) -> Diretor de programas - 5 dias | G139: 1523.54304
C140: 62 | D140: =HLOOKUP($C140,'Dados Gerais'!$D$5:$BX$10,6) -> Produtor de rádio, TV e mídias digitais - 5 dias | G140: 2871.807634
F142: SOMATÓRIO TOTAL MENSAL | G142: =SUM(G111:G140) -> 24931.12599
F143: SOMATÓRIO TOTAL ANUAL | G143: =G142*12 -> 299173.5119
C146: ENCARGOS SOCIAIS E BDI SOBRE ADICIONAL NOTURNO SOB DEMANDA
C147: TOTAIS MENSAIS | F147: PERCENTUAIS | G147: PREÇO MENSAL
D149: ENCARGOS SOCIAIS | F149: ='[1]Encargos Sociais'!$E$53 -> 0.4704 | G149: =F149*G142 -> 11727.60167
D150: BDI | F150: =[1]BDI!$E$34 -> 0.2445 | G150: =F150*(G142+G149) -> 8963.058912
F152: SOMATÓRIO TOTAL MENSAL | G152: =SUM(G149:G151) -> 20690.66058
F153: SOMATÓRIO TOTAL ANUAL | G153: =G152*12 -> 248287.9269
C156: VALOR TOTAL ADICIONAL NOTURNO SOB DEMANDA (COM ENCARGOS SOCIAIS E BDI INCLUSOS)
F160: SOMATÓRIO TOTAL MENSAL | G160: =G142+G152 -> 45621.78657
F161: SOMATÓRIO TOTAL ANUAL | G161: =G160*12 -> 547461.4388

Sheet H. Extras Demanda
B4: HORAS EXTRAS SOB DEMANDA
C7: RESUMO DAS HORAS EXTRAS SOB DEMANDA
C8: TOTAL ESTIMADO ANUAL | G8: PREÇO ANUAL
D10: Valor estimado conforme hisórico | G10: 120000
F12: SOMATÓRIO TOTAL MENSAL | G12: =G13/12 -> 10000
F13: SOMATÓRIO TOTAL ANUAL | G13: =G10 -> 120000
C16: ENCARGOS SOCIAIS E BDI SOBRE HORAS EXTRAS SOB DEMANDA
C17: TOTAIS MENSAIS | F17: PERCENTUAIS | G17: PREÇO MENSAL
D19: ENCARGOS SOCIAIS | F19: ='[1]Encargos Sociais'!$E$53 -> 0.4704 | G19: =F19*G12 -> 4704
D20: BDI | F20: =[1]BDI!$E$34 -> 0.2445 | G20: =F20*(G12+G19) -> 3595.128
F22: SOMATÓRIO TOTAL MENSAL | G22: =SUM(G19:G21) -> 8299.128
F23: SOMATÓRIO TOTAL ANUAL | G23: =G22*12 -> 99589.536
C26: VALOR TOTAL HORAS EXTRAS SOB DEMANDA (COM ENCARGOS SOCIAIS E BDI INCLUSOS)
F30: SOMATÓRIO TOTAL MENSAL | G30: =G12+G22 -> 18299.128
F31: SOMATÓRIO TOTAL ANUAL | G31: =G30*12 -> 219589.536

Sheet Viagens
B4: DESPESAS DE VIAGENS - SOB DEMANDA
C7: DIÁRIAS E ADICIONAL DE EMBARQUE/DESEMBARQUE | E7: QTDE VIAGENS | F7: DURAÇÃO (DIAS) | G7: QTDE PESSOAS | H7: VALOR | I7: VALOR TOTAL ANUAL
C9: 1 | D9: Diárias | E9: 5 | F9: 5 | G9: 4 | H9: 349 | I9: =E9*F9*G9*H9 -> 34900
C10: 2 | D10: Adicional de embarque/desembarque | E10: =E9 -> 5 | G10: 4 | H10: 279 | I10: =E10*G10*H10 -> 5580
C13: RESUMO DESPESAS DE VIAGENS
C14: TOTAIS MENSAIS | G14: PREÇO MENSAL
C16: 1 | D16: Diárias | G16: =I9/12 -> 2908.333333
C17: 2 | D17: Adicional de embarque/desembarque | G17: =I10/12 -> 465
F19: SOMATÓRIO TOTAL MENSAL | G19: =SUM(G16:G17) -> 3373.333333
F20: SOMATÓRIO TOTAL ANUAL | G20: =G19*12 -> 40480
C23: BDI SOBRE DESPESAS DE VIAGENS
C24: TOTAIS MENSAIS | F24: PERCENTUAIS | G24: PREÇO MENSAL
D26: BDI | F26: =BDI!$E$27 -> 0.2259 | G26: =F26*G19 -> 762.036
F28: SOMATÓRIO TOTAL MENSAL | G28: =SUM(G26:G27) -> 762.036
F29: SOMATÓRIO TOTAL ANUAL | G29: =G28*12 -> 9144.432
C32: VALOR TOTAL DESPESAS DE VIAGENS SOB DEMANDA (COM BDI INCLUSO)
F36: SOMATÓRIO TOTAL MENSAL | G36: =G19+G28 -> 4135.369333
F37: SOMATÓRIO TOTAL ANUAL | G37: =G36*12 -> 49624.432

Sheet Audiolivros
B4: HORAS DE NARRAÇÃO DE LIVROS SOB DEMANDA
C7: RESUMO DAS DE NARRAÇÃO DE LIVROS SOB DEMANDA
C8: TOTAL ESTIMADO ANUAL | D8: QUANT. HORAS POR ANO | E8: VALOR MÉDIO POR HORA | G8: PREÇO ANUAL
C10: Valor estimado | D10: 40 | F10: 200 | G10: =F10*D10 -> 8000
F12: SOMATÓRIO TOTAL MENSAL | G12: =G13/12 -> 666.6666667
F13: SOMATÓRIO TOTAL ANUAL | G13: =G10 -> 8000
C16: ENCARGOS SOCIAIS E BDI SOBRE HORAS DE NARRAÇÃO DE LIVROS SOB DEMANDA
C17: TOTAIS MENSAIS | F17: PERCENTUAIS | G17: PREÇO MENSAL
C19: ENCARGOS SOCIAIS | F19: ='[1]Encargos Sociais'!$E$53 -> 0.4704 | G19: =ROUND(F19*G12,2) -> 313.6
D20: BDI | F20: =[1]BDI!$E$34 -> 0.2445 | G20: =ROUND(F20*(G12+G19),2) -> 239.68
F22: SOMATÓRIO TOTAL MENSAL | G22: =SUM(G19:G21) -> 553.28
F23: SOMATÓRIO TOTAL ANUAL | G23: =G22*12 -> 6639.36
C26: VALOR TOTAL HORAS DE NARRAÇÃO DE LIVROS SOB DEMANDA (COM ENCARGOS SOCIAIS E BDI INCLUSOS)
F30: SOMATÓRIO TOTAL MENSAL | G30: =G12+G22 -> 1219.946667
F31: SOMATÓRIO TOTAL ANUAL | G31: =G30*12 -> 14639.36

Sheet Não Rel - Depr
B4: FERRAMENTAS NÃO RELACIONADAS DIRETAMENTE A UM POSTO DE TRABALHO - PAGAMENTO DA DEPRECIAÇÃO / MANUTENÇÃO
C7: PAGAMENTO DA DEPRECIAÇÃO
C8: ITEM | D8: DESCRIÇÃO | E8: QUANT ANUAL | F8: CONTA SIAFI | G8: VALOR DE AQ. | H8: % RESIDUAL | I8: VIDA ÚTIL | J8: DEP. MENSAL | K8: CUSTO TOTAL | L8: BDI (%) | M8: PREÇO TOTAL | N8: FONTE | O8: REFERÊNCIA
C10: 1 | D10: Estilete grande reforçado | E10: 20 | F10: 12311.01.25 | G10: 48.625 | H10: 0.1 | I10: 10 | J10: =G10*(1-H10)/(I10*12) -> 0.3646875 | K10: =J10*E10 -> 7.29375 | L10: =BDI!$E$27 -> 0.2259 | M10: =ROUND(K10*(1+L10),2) -> 8.94 | N10: COTAÇÃO
C11: =C10+1 -> 2 | D11: Alicate de corte de 4" | E11: 24 | F11: 12311.01.25 | G11: 31.475 | H11: 0.1 | I11: 10 | J11: 0.2360625 | K11: 5.6655 | L11: =BDI!$E$27 -> 0.2259 | M11: 6.95 | N11: COTAÇÃO
C12: =C11+1 -> 3 | D12: Alicate de bico reto 7 1/2" | E12: 3 | F12: 12311.01.25 | G12: 65.785 | H12: 0.1 | I12: 10 | J12: 0.4933875 | K12: 1.4801625 | L12: =BDI!$E$27 -> 0.2259 | M12: 1.81 | N12: COTAÇÃO
C13: 4 | D13: Alicate de bico curvo 7 1/2" | E13: 3 | F13: 12311.01.25 | G13: 29.26 | H13: 0.1 | I13: 10 | J13: 0.21945 | K13: 0.65835 | L13: =BDI!$E$27 -> 0.2259 | M13: 0.81 | N13: COTAÇÃO
C14: 5 | D14: Alicate de corte de 6" | E14: 3 | F14: 12311.01.25 | G14: 35.795 | H14: 0.1 | I14: 10 | J14: 0.2684625 | K14: 0.8053875 | L14: =BDI!$E$27 -> 0.2259 | M14: 0.99 | N14: COTAÇÃO
C15: 6 | D15: Alicate universal 8" | E15: 3 | F15: 12311.01.25 | G15: 48.64 | H15: 0.1 | I15: 10 | J15: 0.3648 | K15: 1.0944 | L15: =BDI!$E$27 -> 0.2259 | M15: 1.34 | N15: COTAÇÃO
C16: 7 | D16: Ferro de solda 110 Volts/ 40 watts ponta fina | E16: 3 | F16: 12311.01.25 | G16: 48.145 | H16: 0.1 | I16: 10 | J16: 0.3610875 | K16: 1.0832625 | L16: =BDI!$E$27 -> 0.2259 | M16: 1.33 | N16: COTAÇÃO
C17: 8 | D17: Ferro de solda 220 Volts/ 40 watts ponta fina | E17: 2 | F17: 12311.01.25 | G17: 41.995 | H17: 0.1 | I17: 10 | J17: 0.3149625 | K17: 0.629925 | L17: =BDI!$E$27 -> 0.2259 | M17: 0.77 | N17: COTAÇÃO
C18: 9 | D18: Chave de fenda 1/8 x 4" | E18: 3 | F18: 12311.01.25 | G18: 7.025 | H18: 0.1 | I18: 10 | J18: 0.0526875 | K18: 0.1580625 | L18: =BDI!$E$27 -> 0.2259 | M18: 0.19 | N18: COTAÇÃO
C19: 10 | D19: Chave de fenda 3/16 x 4" | E19: 3 | F19: 12311.01.25 | G19: 7.63 | H19: 0.1 | I19: 10 | J19: 0.057225 | K19: 0.171675 | L19: =BDI!$E$27 -> 0.2259 | M19: 0.21 | N19: COTAÇÃO
C20: 11 | D20: Chave de fenda 3/16 x 6" | E20: 3 | F20: 12311.01.25 | G20: 8.995 | H20: 0.1 | I20: 10 | J20: 0.0674625 | K20: 0.2023875 | L20: =BDI!$E$27 -> 0.2259 | M20: 0.25 | N20: COTAÇÃO
C21: 12 | D21: Chave de fenda 1/8 x 5" | E21: 3 | F21: 12311.01.25 | G21: 6.785 | H21: 0.1 | I21: 10 | J21: 0.0508875 | K21: 0.1526625 | L21: =BDI!$E$27 -> 0.2259 | M21: 0.19 | N21: COTAÇÃO
C22: 13 | D22: Chave philips 1/4 x 1 1/2" | E22: 3 | F22: 12311.01.25 | G22: 11.635 | H22: 0.1 | I22: 10 | J22: 0.0872625 | K22: 0.2617875 | L22: =BDI!$E$27 -> 0.2259 | M22: 0.32 | N22: COTAÇÃO
C23: 14 | D23: Chave philips 1/8 x 4" | E23: 3 | F23: 12311.01.25 | G23: 6.765 | H23: 0.1 | I23: 10 | J23: 0.0507375 | K23: 0.1522125 | L23: =BDI!$E$27 -> 0.2259 | M23: 0.19 | N23: COTAÇÃO
C24: 15 | D24: Chave philips 3/16 x 5" | E24: 3 | F24: 12311.01.25 | G24: 8.345 | H24: 0.1 | I24: 10 | J24: 0.0625875 | K24: 0.1877625 | L24: =BDI!$E$27 -> 0.2259 | M24: 0.23 | N24: COTAÇÃO
C25: 16 | D25: Chave philips 3/16 x 4" cabo longo | E25: 3 | F25: 12311.01.25 | G25: 12.305 | H25: 0.1 | I25: 10 | J25: 0.0922875 | K25: 0.2768625 | L25: =BDI!$E$27 -> 0.2259 | M25: 0.34 | N25: COTAÇÃO
C26: 17 | D26: Chave philips 3/16 x 6" | E26: 3 | F26: 12311.01.25 | G26: 10.705 | H26: 0.1 | I26: 10 | J26: 0.0802875 | K26: 0.2408625 | L26: =BDI!$E$27 -> 0.2259 | M26: 0.3 | N26: COTAÇÃO
C27: 18 | D27: Chave philips 1/4 x 5" | E27: 3 | F27: 12311.01.25 | G27: 11.815 | H27: 0.1 | I27: 10 | J27: 0.0886125 | K27: 0.2658375 | L27: =BDI!$E$27 -> 0.2259 | M27: 0.33 | N27: COTAÇÃO
C28: 19 | D28: Chave philips 3/16 x 10" | E28: 3 | F28: 12311.01.25 | G28: 12.19 | H28: 0.1 | I28: 10 | J28: 0.091425 | K28: 0.274275 | L28: =BDI!$E$27 -> 0.2259 | M28: 0.34 | N28: COTAÇÃO
C29: 20 | D29: Chave philips 5/16 x 6" | E29: 3 | F29: 12311.01.25 | G29: 15.02 | H29: 0.1 | I29: 10 | J29: 0.11265 | K29: 0.33795 | L29: =BDI!$E$27 -> 0.2259 | M29: 0.41 | N29: COTAÇÃO
C30: 21 | D30: Comprensor de Ar de pequeno porte, com reservatório de, no mínimo, 24 litros | E30: 1 | F30: 12311.01.25 | G30: 1203.95 | H30: 0.1 | I30: 10 | J30: 9.029625 | K30: 9.029625 | L30: =BDI!$E$27 -> 0.2259 | M30: 11.07 | N30: COTAÇÃO
C31: 22 | D31: Estação de solda e retrabalho com ar quente e display para controle de temperatura | E31: 1 | F31: 12311.01.25 | G31: 638.75 | H31: 0.1 | I31: 10 | J31: 4.790625 | K31: 4.790625 | L31: =BDI!$E$27 -> 0.2259 | M31: 5.87 | N31: COTAÇÃO
C32: 23 | D32: Jogo de limas (redonda, reta fina, reta grossa e triângulo fina) | E32: 3 | F32: 12311.01.25 | G32: 98.16 | H32: 0.1 | I32: 10 | J32: 0.7362 | K32: 2.2086 | L32: =BDI!$E$27 -> 0.2259 | M32: 2.71 | N32: COTAÇÃO
C33: 24 | D33: Jogo de chaves Torx 31 pç | E33: 3 | F33: 12311.01.25 | G33: 270.11 | H33: 0.1 | I33: 10 | J33: 2.025825 | K33: 6.077475 | L33: =BDI!$E$27 -> 0.2259 | M33: 7.45 | N33: COTAÇÃO
C34: 25 | D34: Esmeril 1/2CV | E34: 1 | F34: 12311.01.25 | G34: 240.3733333 | H34: 0.1 | I34: 10 | J34: 1.8028 | K34: 1.8028 | L34: =BDI!$E$27 -> 0.2259 | M34: 2.21 | N34: COTAÇÃO
C35: 26 | D35: Morsa nº 4 | E35: 1 | F35: 12311.01.25 | G35: 212.77 | H35: 0.1 | I35: 10 | J35: 1.595775 | K35: 1.595775 | L35: =BDI!$E$27 -> 0.2259 | M35: 1.96 | N35: COTAÇÃO
C36: 27 | D36: Furadeira de uso profissional de médio porte | E36: 1 | F36: 12311.01.25 | G36: 559.9395 | H36: 0.1 | I36: 10 | J36: 4.19954625 | K36: 4.19954625 | L36: =BDI!$E$27 -> 0.2259 | M36: 5.15 | N36: COTAÇÃO
C37: 28 | D37: Furadeira de uso profissional de bancada mandril 13mm | E37: 1 | F37: 12311.01.25 | G37: 921.665 | H37: 0.1 | I37: 10 | J37: =G37*(1-H37)/(I37*12) -> 6.9124875 | K37: =J37*E37 -> 6.9124875 | L37: =BDI!$E$27 -> 0.2259 | M37: =ROUND(K37*(1+L37),2) -> 8.47 | N37: COTAÇÃO
C38: 29 | D38: Parafusadeira/Furadeira de Impacto, recarregável, de ½' Gsb 180-Li 18V Com 2 Baterias e 1 Carregador Bivolt E 1 Maleta | E38: 1 | F38: 12311.01.25 | G38: 849.16 | H38: 0.1 | I38: 10 | J38: 6.3687 | K38: 6.3687 | L38: =BDI!$E$27 -> 0.2259 | M38: 7.81 | N38: COTAÇÃO
C39: 30 | D39: Arco de serra | E39: 2 | F39: 12311.01.25 | G39: 38.76 | H39: 0.1 | I39: 10 | J39: 0.2907 | K39: 0.5814 | L39: =BDI!$E$27 -> 0.2259 | M39: 0.71 | N39: COTAÇÃO
C40: 31 | D40: Multímetro analógico de uso profissional | E40: 3 | F40: 12311.01.25 | G40: 257.66 | H40: 0.1 | I40: 10 | J40: 1.93245 | K40: 5.79735 | L40: =BDI!$E$27 -> 0.2259 | M40: 7.11 | N40: COTAÇÃO
C41: 32 | D41: Multímetro digital TRUE RMS de uso profissional | E41: 3 | F41: 12311.01.25 | G41: 203.295 | H41: 0.1 | I41: 10 | J41: 1.5247125 | K41: 4.5741375 | L41: =BDI!$E$27 -> 0.2259 | M41: 5.61 | N41: COTAÇÃO
C42: 33 | D42: Osciloscópio de 2 canais e banda de, no mínimo, 100MHz | E42: 1 | F42: 12311.01.25 | G42: 5473.495 | H42: 0.1 | I42: 10 | J42: 41.0512125 | K42: 41.0512125 | L42: =BDI!$E$27 -> 0.2259 | M42: 50.32 | N42: COTAÇÃO
C43: 34 | D43: Fonte de bancada ajustável digital – 0 a 30 volts, 0 a 10 amperes | E43: 1 | F43: 12311.01.25 | G43: 835.105 | H43: 0.1 | I43: 10 | J43: 6.2632875 | K43: 6.2632875 | L43: =BDI!$E$27 -> 0.2259 | M43: 7.68 | N43: COTAÇÃO
C44: 35 | D44: Lupa de bancada com braço articulado, lente com zoom de 10X, iluminação a led, bi-volt e lente de 120mm de diâmetro | E44: 1 | F44: 12311.01.25 | G44: 492.7633333 | H44: 0.1 | I44: 10 | J44: 3.695725 | K44: 3.695725 | L44: =BDI!$E$27 -> 0.2259 | M44: 4.53 | N44: COTAÇÃO
C45: 36 | D45: Rotulador Brother PT80; (rotulador eletrônico para identificação de cabos) | E45: 1 | F45: 12311.01.25 | G45: 235.95 | H45: 0.1 | I45: 10 | J45: 1.769625 | K45: 1.769625 | L45: =BDI!$E$27 -> 0.2259 | M45: 2.17 | N45: COTAÇÃO
C46: 37 | D46: Tesoura Multiuso Corte Supercort Aço Inox 8 Polegadas | E46: 1 | F46: 12311.01.25 | G46: 43.785 | H46: 0.1 | I46: 10 | J46: 0.3283875 | K46: 0.3283875 | L46: =BDI!$E$27 -> 0.2259 | M46: 0.4 | N46: COTAÇÃO
C47: 38 | D47: Pinceis tipo trincha de cédulas Gris sendo nos seguintes tamanho: 1/2", 3/4" e 1” | E47: 3 | F47: 12311.01.25 | G47: 14.995 | H47: 0.1 | I47: 10 | J47: =G47*(1-H47)/(I47*12) -> 0.1124625 | K47: =J47*E47 -> 0.3373875 | L47: =BDI!$E$27 -> 0.2259 | M47: =ROUND(K47*(1+L47),2) -> 0.41 | N47: COTAÇÃO
C48: 39 | D48: testador de cabo de rede RJ-45 | E48: 1 | F48: 12311.01.25 | G48: 148.845 | H48: 0.1 | I48: 10 | J48: 1.1163375 | K48: 1.1163375 | L48: =BDI!$E$27 -> 0.2259 | M48: 1.37 | N48: COTAÇÃO
C49: 40 | D49: Kit de chaves de precisão contendo pelo menos 30 peças, sendo elas: 9 hexalobular (T3, T4, T5, T6, T7, T8, T10, T15 e T20); 7 allen (H1.0, H1.3, H1.5, H2.0, H2.5, H3.0, H4.0); 5 fenda (1.5, 2.0, 2.5, 3.0, 3.5) ; 4 phillips (PH00, PH0, PH1, PH2) ; 1 triangular (2.3) ; 1 spanner (2.6) ; 1 pentalobe (2.0) ; 1 agulha (1.0) ; 1 redonda | E49: 1 | F49: 12311.01.25 | G49: 39.61666667 | H49: 0.1 | I49: 10 | J49: 0.297125 | K49: 0.297125 | L49: =BDI!$E$27 -> 0.2259 | M49: 0.36 | N49: COTAÇÃO
C50: 41 | D50: kit de pinça anti estástica contendo: Ponta reta EDS-10, EDS-11, EDS-12, EDS-14, EDS-16; Cabeça redonda plana EDS-13; EDS-15 Ponta curva a 45 ° EDS-17 Ponta curvada a 30 ° Cabeça chata EDS34A-as | E50: 1 | F50: 12311.01.25 | G50: 32.445 | H50: 0.1 | I50: 10 | J50: 0.2433375 | K50: 0.2433375 | L50: =BDI!$E$27 -> 0.2259 | M50: 0.3 | N50: COTAÇÃO
C51: 42 | D51: Soprador e Aspirador de Pó com controle de velocidade de, no mínimo, 600w | E51: 1 | F51: 12311.01.25 | G51: 345.945 | H51: 0.1 | I51: 10 | J51: 2.5945875 | K51: 2.5945875 | L51: =BDI!$E$27 -> 0.2259 | M51: 3.18 | N51: COTAÇÃO
C52: 43 | D52: Soprador térmico com controle de temperatura de, no mínimo, 1000w | E52: 1 | F52: 12311.01.25 | G52: 191.61 | H52: 0.1 | I52: 10 | J52: 1.437075 | K52: 1.437075 | L52: =BDI!$E$27 -> 0.2259 | M52: 1.76 | N52: COTAÇÃO
C53: 44 | D53: Lanterna SWAT | E53: 1 | F53: 12311.01.25 | G53: 98.27 | H53: 0.1 | I53: 10 | J53: 0.737025 | K53: 0.737025 | L53: =BDI!$E$27 -> 0.2259 | M53: 0.9 | N53: COTAÇÃO
C54: 45 | D54: Jogo chaves ALLEN | E54: 1 | F54: 12311.01.25 | G54: 51.77 | H54: 0.1 | I54: 10 | J54: 0.388275 | K54: 0.388275 | L54: =BDI!$E$27 -> 0.2259 | M54: 0.48 | N54: COTAÇÃO
C55: 46 | D55: Jogo de chave catraca cachimbo | E55: 1 | F55: 12311.01.25 | G55: 337.765 | H55: 0.1 | I55: 10 | J55: 2.5332375 | K55: 2.5332375 | L55: =BDI!$E$27 -> 0.2259 | M55: 3.11 | N55: COTAÇÃO
C56: 47 | D56: Estação digital de solda HK939 PRO | E56: 1 | F56: 12311.01.25 | G56: 1429.033333 | H56: 0.1 | I56: 10 | J56: 10.71775 | K56: 10.71775 | L56: =BDI!$E$27 -> 0.2259 | M56: 13.14 | N56: COTAÇÃO
C57: 48 | D57: Sugador de solda | E57: 2 | F57: 12311.01.25 | G57: 38.84333333 | H57: 0.1 | I57: 10 | J57: 0.291325 | K57: 0.58265 | L57: =BDI!$E$27 -> 0.2259 | M57: 0.71 | N57: COTAÇÃO
C58: 49 | D58: Jogo de chave combinada com 15 peças | E58: 1 | F58: 12311.01.25 | G58: 319.94 | H58: 0.1 | I58: 10 | J58: 2.39955 | K58: 2.39955 | L58: =BDI!$E$27 -> 0.2259 | M58: 2.94 | N58: COTAÇÃO
C59: 50 | D59: Chave inglesa | E59: 1 | F59: 12311.01.25 | G59: 86.91 | H59: 0.1 | I59: 10 | J59: 0.651825 | K59: 0.651825 | L59: =BDI!$E$27 -> 0.2259 | M59: 0.8 | N59: COTAÇÃO
C60: 51 | D60: Escada com 04 degraus tipo tesoura; acesso duplo; com 4 (quatro) degraus e 1 (um) patamar; degraus estruturados; com trava de segurança; capacidade mínima de carga de 110 kgf; a fabricação deverá respeitar as normas de segurança; deverá possuir resistência à corrosão química e não poderá conduzir eletricidade. Estrutura em fibra de vidro; pés emborrachados. Comprimento entre 1,40 a 1,55m. | E60: 2 | F60: 12311.01.25 | G60: 499.245 | H60: 0.1 | I60: 10 | J60: 3.7443375 | K60: 7.488675 | L60: =BDI!$E$27 -> 0.2259 | M60: 9.18 | N60: COTAÇÃO
C61: 52 | D61: Escova para cabelos – grande. Características Técnicas: - Redonda, escova de cabelo profissional de cerâmica, cabo de madeira com borracha e alumínio revestido com cerâmica; cerda natural de javali e náilon; - Tamanho: 65 mm, com tolerância de variação de 5%. | E61: 4 | F61: 12311.01.25 | G61: 54.87 | H61: 0.1 | I61: 10 | J61: 0.411525 | K61: 1.6461 | L61: =BDI!$E$27 -> 0.2259 | M61: 2.02 | N61: COTAÇÃO
C62: 53 | D62: Escova para cabelos – média. Características Técnicas: - Redonda, escova de cabelo profissional de cerâmica, cabo de madeira com borracha e alumínio revestido com cerâmica; cerda natural de javali e náilon; - Tamanho: 55 mm, com tolerância de variação de 5%. | E62: 4 | F62: 12311.01.25 | G62: 44.44 | H62: 0.1 | I62: 10 | J62: =G62*(1-H62)/(I62*12) -> 0.3333 | K62: =J62*E62 -> 1.3332 | L62: =BDI!$E$27 -> 0.2259 | M62: =ROUND(K62*(1+L62),2) -> 1.63 | N62: COTAÇÃO
C63: 54 | D63: Escova para cabelos – pequena. Características Técnicas: - Redonda, escova de cabelo profissional de cerâmica, cabo de madeira com borracha e alumínio revestido com cerâmica; cerda natural de javali e náilon; - Tamanho: 45 mm, com tolerância de variação de 5%. | E63: 2 | F63: 12311.01.25 | G63: 35.46 | H63: 0.1 | I63: 10 | J63: 0.26595 | K63: 0.5319 | L63: =BDI!$E$27 -> 0.2259 | M63: 0.65 | N63: COTAÇÃO
C64: 55 | D64: Pincel para pó Características Técnicas: - Ponta com cerdas naturais ultra macias; - Ponta com formato de raquete amplo, com ponta volumosa e densa; - Ponta com tamanho extra grande; - Para aplicar e esfumar produtos em pó. Ref: pincel Macrilan my01 oval | E64: 6 | F64: 12311.01.25 | G64: 32.475 | H64: 0.1 | I64: 10 | J64: 0.2435625 | K64: 1.461375 | L64: =BDI!$E$27 -> 0.2259 | M64: 1.79 | N64: COTAÇÃO
C65: 56 | D65: Pincel para batom Características Técnicas: - Ponta com cerdas sintéticas e firmes; - Ponta achatada e estrita. Ref: pincel m111 profissional para batom – Macrilan | E65: 6 | F65: 12311.01.25 | G65: 10.6 | H65: 0.1 | I65: 10 | J65: 0.0795 | K65: 0.477 | L65: =BDI!$E$27 -> 0.2259 | M65: 0.58 | N65: COTAÇÃO
C66: 57 | D66: Pincel para base líquida Características Técnicas: - Ponta com cerdas sintéticas firmes; - Modelo tipo "escovinha"; - Ponta com tamanho grande e densa. Ref: Pincel para |Base m148 profissional Kabuki angular – Macrilan | E66: 6 | F66: 12311.01.25 | G66: 20.395 | H66: 0.1 | I66: 10 | J66: 0.1529625 | K66: 0.917775 | L66: =BDI!$E$27 -> 0.2259 | M66: 1.13 | N66: COTAÇÃO
C67: 58 | D67: Pincel para blush Características Técnicas: - Ponta com cerdas naturais macias firmemente agrupadas; - Ponta retangular, angulada e volumosa; - Ponta com tamanho grande e denso; - Para esculpir e esfumar produtos em pó. Ref: Pincel blush m102 – Macrilan | E67: 6 | F67: 12311.01.25 | G67: 21.125 | H67: 0.1 | I67: 10 | J67: 0.1584375 | K67: 0.950625 | L67: =BDI!$E$27 -> 0.2259 | M67: 1.17 | N67: COTAÇÃO
C68: 59 | D68: Pincel para sombra Características Técnicas: - Ponta com cerdas naturais macias e extra finas;- Ponta com formato estreito com ponta arredondada;- Para colorir e esfumar a linha do côncavo com sombras em pó.4 de cada modelo Ref: M906: para aplicar sombra na parte interna do olho e fazer a parte mais iluminada abaixo da sobrancelhaW509: para esfumaçar no canto externo do olhoMy11: para esfumaçar sombra ou lápis, para fazer delineador esfumado ou parte inferior dos olhos.BT11 para esfumaçar pequenos olhos.Kit pincéis profissionais Macrilan | E68: 20 | F68: 12311.01.25 | G68: 17.575 | H68: 0.1 | I68: 10 | J68: 0.1318125 | K68: 2.63625 | L68: =BDI!$E$27 -> 0.2259 | M68: 3.23 | N68: COTAÇÃO
C69: 60 | D69: Pote de armazenamento de pincéis de maquiagem. Características técnicas: -indicado para facilitação do manuseio dos pincéis, Pote de Pincéis De Cosméticos, Redondos Pote De Armazenamento De Diversos | E69: 4 | F69: 12311.01.25 | G69: 39.4 | H69: 0.1 | I69: 10 | J69: 0.2955 | K69: 1.182 | L69: =BDI!$E$27 -> 0.2259 | M69: 1.45 | N69: COTAÇÃO
C70: 61 | D70: Escova raquete - média; Características Técnicas: - Base Almofadada, cerdas em nylon com pontas arredondadas e cabo emborrachado. - Tamanho: Nc-29 | E70: 2 | F70: 12311.01.25 | G70: 81.445 | H70: 0.1 | I70: 10 | J70: 0.6108375 | K70: 1.221675 | L70: =BDI!$E$27 -> 0.2259 | M70: 1.5 | N70: COTAÇÃO
C73: PAGAMENTO DA MANUTENÇÃO
C74: ITEM | D74: DESCRIÇÃO | H74: K (calculado) | I74: MENSAL DEPR. | J74: % MAN X DEP | K74: MENSAL MAN. | L74: BDI (%) | M74: PREÇO TOTAL
H76: =H83 -> 0.424116 | I76: =SUM(M10:M70) -> 211.26 | J76: =H76 -> 0.424116 | K76: =I76*H76 -> 89.59874616 | L76: =BDI!E27 -> 0.2259 | M76: =ROUND(K76*(1+L76),2) -> 109.84
E78: K1 | F78: K2 | G78: K3 | H78: K4
E79: 0.85 | F79: 1 | G79: 0.8 | H79: 1
E80: K5 | F80: K6 | G80: K7 | H80: K8
E81: 1 | F81: 0.6 | G81: 0.5 | H81: 1.1
E82: K9 | F82: K10 | G82: K11 | H82: RESULTADO
D83: * a descrição de cada coeficiente segue abaixo | E83: 1.5 | F83: 0.9 | G83: 1.4 | H83: =E79*F79*G79*H79*E81*F81*G81*H81*E83*F83*G83 -> 0.424116
C86: MATERIAL DE CONSUMO ASSOCIADO
C87: ITEM | D87: DESCRIÇÃO | H87: QUANTID/ANO | I87: UNIDADE | J87: VALOR DE AQ. | K87: MENSAL MAT | L87: BDI (%) | M87: PREÇO TOTAL
K89: =J89*H89/12 -> 0 | L89: =BDI!E27 -> 0.2259 | M89: =ROUND(K89*(1+L89),2) -> 0
C92: RESUMO
C93: ITEM | D93: DESCRIÇÃO | M93: PREÇO TOTAL
C95: 1 | D95: Componente DEPRECIAÇÃO | M95: =I76 -> 211.26
C96: 2 | D96: Componente MANUTENÇÃO | M96: =M76 -> 109.84
C97: 3 | D97: Componente MATERIAL DE CONSUMO ASSOCIADO | M97: =M89 -> 0
L99: SOMATÓRIO TOTAL MENSAL | M99: =SUM(M94:M98) -> 321.1
L100: SOMATÓRIO TOTAL ANUAL | M100: =M99*12 -> 3853.2
C103: MEMÓRIA
C104: MEMÓRIA DE CÁLCULO DO COEFICIENTE DE CORRELAÇÃO MANUTENÇÃO X DEPRECIAÇÃO (K)
C106: JUSTIFICATIVAS | E106: TIPO | F106: K1 | H106: Condições de Trab | I106: K4 | K106: Tempo Vida (anos) | L106: K6 | N106: Temperatura | O106: K8
E107: Guindaste | F107: 0.5 | H107: Em espera | I107: 0.4 | K107: 1 | L107: 0.6 | N107: Muito quente (> 40º C) | O107: 1.3
C108: K1 | D108: Considerado o valor médio de 0,85 | E108: Caminhão-comum | F108: 0.8 | H108: Leves | I108: 0.8 | K108: 2 | L108: 0.7 | N108: Quente (30º a 40º C) | O108: 1.1
C109: K2 | D109: Considerado o operador médio | E109: Fora-de-estrada | F109: 1 | H109: Médias | I109: 1 | K109: 3 | L109: 0.8 | N109: Médio (10º a 30º C) | O109: 1
C110: K3 | D110: Consideradas ferramentas de primeira qualidade | E110: Carregadeira | F110: 1 | H110: Pesadas | I110: 1.4 | K110: 4 | L110: 0.9 | N110: Frio (< 10º C) | O110: 1.2
C111: K4 | D111: Há todo o tipo de trabalho, foi considerado o valor médio | E111: Escavadeira | F111: 1.4 | H111: Severas | I111: 2 | K111: 5 | L111: 1
C112: K5 | D112: Considerando manutenção normal | E112: Motoescrêiper | F112: 1.1 | K112: 6 | L112: 1 | N112: Ritmo de Trabalho | O112: K9
C113: K6 | D113: Equipamentos novos | E113: Trator de esteira | F113: 1.2 | H113: Manutenção | I113: K5 | K113: 7 | L113: 1 | N113: Folgado | O113: 0.9
C114: K7 | D114: 220h por mês, 252 dias por ano | H114: Excelente | I114: 0.6 | K114: 8 | L114: 1.2 | N114: Médio | O114: 1
C115: K8 | D115: Clima quente, acima de 30º C | E115: Qualid do Operador | F115: K2 | H115: Boa | I115: 0.8 | K115: 9 | L115: 1.3 | N115: Com pressa | O115: 1.5
C116: K9 | D116: Ritmo de trabalho usualmente com pressa | E116: Excelente | F116: 0.8 | H116: Média | I116: 1 | K116: 10 | L116: 1.4
C117: K10 | D117: Considerado o operador médio | E117: Boa | F117: 0.9 | H117: Ruim | I117: 1.5 | K117: 11 | L117: 2 | N117: Conh do Serviço | O117: K10
C118: K11 | D118: Foi considerada a opção de aluguel a terceiros, ainda que a simulação seja dos custos do contratado, contudo a execução dos serviços é em local de terceiros | E118: Média | F118: 1 | H118: Inexistente | I118: 3 | K118: 15 | L118: 2 | N118: Grande | O118: 0.8
E119: Ruim | F119: 1.2 | N119: Médio | O119: 0.9
E120: Péssima | F120: 2 | H120: Horas de Uso | I120: K7 | J120: 6000 | K120: 1 | N120: Pouco | O120: 1
H121: 1000 | I121: 0.5 | J121: 8000 | K121: 1.3
E122: Qualidade do Equip | F122: K3 | H122: 2000 | I122: 0.5 | J122: 10000 | K122: 1.6 | N122: Tipo do Serviço | O122: K11
E123: De primeira | F123: 0.8 | H123: 3000 | I123: 0.6 | J123: 12000 | K123: 1.9 | N123: Mina ou Pedreira | O123: 0.8
E124: Média | F124: 1 | H124: 4000 | I124: 0.7 | J124: 15000 | K124: 2.3 | N124: Construção Geral | O124: 1
E125: Ruim | F125: 1.5 | H125: 5000 | I125: 0.9 | J125: 20000 | K125: 3 | N125: Aluguel a Terceiros | O125: 1.4
E127: Fonte:
E128: MATTOS, Aldo Dórea. Como preparar orçamentos de obras. São Paulo: Pini, 2006. 281 p., il

Sheet Não Rel - Mat Cons
B4: MATERIAIS DE CONSUMO NÃO RELACIONADOS DIRETAMENTE A UM POSTO DE TRABALHO - AQUISIÇÃO SOB DEMANDA
C7: ITEM | D7: CÓDIGO | E7: DESCRIÇÃO | F7: QUANT ANUAL | G7: UNIDADE | H7: CUSTO UNITÁRIO | I7: CUSTO TOTAL | J7: BDI (%) | K7: PREÇO TOTAL | L7: FONTE | M7: REFERÊNCIA
C9: 1 | E9: Solda estanhada média (carretel 0,5 Kg com espessura de 0,5 mm) | F9: 20 | G9: Rolo | H9: 163.555 | I9: =H9*F9 -> 3271.1 | J9: =BDI!E27 -> 0.2259 | K9: =ROUND(I9*(1+J9),2) -> 4010.04 | L9: Cotação
C10: =C9+1 -> 2 | E10: Solda estanhada média (carretel 0,5 Kg com espessura de 1 mm) | F10: 24 | G10: Rolo | H10: 147.45 | I10: =H10*F10 -> 3538.8 | J10: =J9 -> 0.2259 | K10: =ROUND(I10*(1+J10),2) -> 4338.21 | L10: Cotação
C11: =C10+1 -> 3 | E11: Espaguete termo retrátil: 4 mm (rolo com 10 metros) | F11: 2 | G11: Rolo | H11: 12.975 | I11: 25.95 | J11: =J10 -> 0.2259 | K11: 31.81 | L11: Cotação
C12: 4 | E12: Espaguete termo retrátil: 5mm (rolo com 10 metros) | F12: 2 | G12: Rolo | H12: 14.925 | I12: 29.85 | J12: 0.2259 | K12: 36.59 | L12: Cotação
C13: 5 | E13: Espaguete termo retrátil: 7mm (rolo com 10 metros) | F13: 2 | G13: Rolo | H13: 23.75 | I13: 47.5 | J13: 0.2259 | K13: 58.23 | L13: Cotação
C14: 6 | E14: Adesivo de éster cianoacrilato (“cola instantânea”) 5 gramas | F14: 12 | G14: Frasco | H14: 12.2 | I14: 146.4 | J14: 0.2259 | K14: 179.47 | L14: Cotação
C15: 7 | E15: Freon em spray (desingripante) 350 ml | F15: 2 | G15: Lata | H15: 24.81666667 | I15: 49.63333333 | J15: 0.2259 | K15: 60.85 | L15: Cotação
C16: 8 | E16: Freon em spray (limpa contato) 350 ml | F16: 4 | G16: Lata | H16: 22.675 | I16: 90.7 | J16: 0.2259 | K16: 111.19 | L16: Cotação
C17: 9 | E17: Algodão higrófilo 500 gramas | F17: 3 | G17: Pacote | H17: 26.915 | I17: 80.745 | J17: 0.2259 | K17: 98.99 | L17: Cotação
C18: 10 | E18: Cotonete caixa com 100 unidades | F18: 4 | G18: Caixa | H18: 2.93 | I18: 11.72 | J18: 0.2259 | K18: 14.37 | L18: Cotação
C19: 11 | E19: Álcool isopropílico 1 litro | F19: 4 | G19: Frasco | H19: 36.995 | I19: 147.98 | J19: 0.2259 | K19: 181.41 | L19: Cotação
C20: 12 | E20: Adesivo époxi bi componente em gel 40 gramas | F20: 6 | G20: Caixa | H20: 25.02 | I20: 150.12 | J20: 0.2259 | K20: 184.03 | L20: Cotação
C21: 13 | E21: Fita de auto fusão (rolo com 10 metros) | F21: 10 | G21: Rolo | H21: 36.62 | I21: 366.2 | J21: 0.2259 | K21: 448.92 | L21: Cotação
C22: 14 | E22: Fita isolante (19x20) | F22: 10 | G22: Rolo | H22: 9.215 | I22: 92.15 | J22: 0.2259 | K22: 112.97 | L22: Cotação
C23: 15 | E23: Removedor de solda líquido para circuito integrado (embalagem com 400 ml) | F23: 2 | G23: Kit | H23: 18.895 | I23: 37.79 | J23: 0.2259 | K23: 46.33 | L23: Cotação
C24: 16 | E24: Brocas finas para ferro (caixa com 13 peças de 1,5 a 6,5) | F24: 4 | G24: Kit | H24: 29.09 | I24: 116.36 | J24: 0.2259 | K24: 142.65 | L24: Cotação
C25: 17 | E25: Lâminas para estilete grande (caixa com 10 unidades) | F25: 2 | G25: Caixa | H25: 35.895 | I25: 71.79 | J25: 0.2259 | K25: 88.01 | L25: Cotação
C26: 18 | E26: Serras para arco de serra (caixa com 5 unidades) | F26: 2 | G26: Caixa | H26: 48.375 | I26: 96.75 | J26: 0.2259 | K26: 118.61 | L26: Cotação
C27: 19 | E27: Massa adesiva plástica cinza 400 mg | F27: 2 | G27: Unidade | H27: 17.255 | I27: 34.51 | J27: 0.2259 | K27: 42.31 | L27: Cotação
C28: 20 | E28: Abraçadeira Cinta Plástica Reutilizávll 30cm Pct 100unids | F28: 3 | G28: Unidade | H28: 19.95 | I28: 59.85 | J28: 0.2259 | K28: 73.37 | L28: Cotação
C29: 21 | E29: Abraçadeira plástica de 15 cm x 3,6 mm pacote com 50 unidades | F29: 3 | G29: Unidade | H29: 4.0225 | I29: 12.0675 | J29: 0.2259 | K29: 14.79 | L29: Cotação
C30: 22 | E30: Abraçadeira plástica de 30 cm x 3,6 mm pacote com 50 unidades | F30: 2 | G30: Unidade | H30: 9.745 | I30: 19.49 | J30: 0.2259 | K30: 23.89 | L30: Cotação
C31: 23 | E31: Rolos de velcro dupla face organizador de cabos 5 metros | F31: 10 | G31: Rolo | H31: 33.5 | I31: 335 | J31: 0.2259 | K31: 410.68 | L31: Cotação
C32: 24 | E32: Fitas para rotuladora Brother PT 80; (fita para rotulador eletrônico para identificação de cabos) | F32: 20 | G32: Unidade | H32: 49.945 | I32: 998.9 | J32: 0.2259 | K32: 1224.55 | L32: Cotação
C33: 25 | E33: Fitas dupla face 9,5 mm x 20 metros extra forte | F33: 3 | G33: Unidade | H33: 49.93666667 | I33: 149.81 | J33: 0.2259 | K33: 183.65 | L33: Cotação
C34: 26 | E34: Saco de lixo para aspirador/soprador | F34: 5 | G34: Unidade | H34: 69.4 | I34: 347 | J34: 0.2259 | K34: 425.39 | L34: Cotação
C35: 27 | E35: Álcool isopropílico 99,8%; | F35: 12 | G35: Litros | H35: 47.16 | I35: 565.92 | J35: 0.2259 | K35: 693.76 | L35: Cotação
C36: 28 | E36: Pó compacto Tom Claro Características Técnicas: - pó compacto HD; alta definição; com fina textura; retira o brilho excessivo; ajuda a dissimular imperfeições; confere à pele uma aparência uniforme e aveludada. - Embalagem de, no mínimo, 7,5g REF: Base em pó mineral Mary Key cores: - Ivory 2 | F36: 12 | G36: Unidade | H36: 57.9 | I36: 694.8 | J36: 0.2259 | K36: 851.76 | L36: Cotação
C37: 29 | E37: Pó compacto Tom Médio Características Técnicas: - pó compacto HD; alta definição; com fina textura; retira o brilho excessivo; ajuda a dissimular imperfeições; confere à pele uma aparência uniforme e aveludada. - Embalagem de, no mínimo, 7,5g REF: Base em pó mineral Mary Key cores: -Beige 1 | F37: 20 | G37: Unidade | H37: 57.9 | I37: =H37*F37 -> 1158 | J37: 0.2259 | K37: =ROUND(I37*(1+J37),2) -> 1419.59 | L37: Cotação
C38: 30 | E38: Pó compacto Tom Escuro Características Técnicas: - pó compacto HD; alta definição; com fina textura; retira o brilho excessivo; ajuda a dissimular imperfeições; confere à pele uma aparência uniforme e aveludada. - Embalagem de, no mínimo, 7,5g REF: Base em pó mineral Mary Key cores: - Bronze 1 | F38: 12 | G38: Unidade | H38: 57.9 | I38: 694.8 | J38: 0.2259 | K38: 851.76 | L38: Cotação
C39: 31 | E39: Base 3D acabamento mate YVORY C110 Características técnicas: -Utilizado para Uniformização da pele, sua visando imperfeições, textura oil-free, sem cheiro, efeito mate. -Embalagem com conteúdo mínimo de 30 ml REF: Base em pó mineral Mary kay cores - Bronze 1, Bronze 2 | F39: 10 | G39: Unidade | H39: 58.4 | I39: 584 | J39: 0.2259 | K39: 715.93 | L39: Cotação
C40: 32 | E40: Base 3D acabamento mate BEIGE N210 Características técnicas: -Utilizado para Uniformização da pele, sua visando imperfeições, textura oil-free, sem cheiro, efeito mate. -Embalagem com conteúdo mínimo de 30 ml REF: Base Mary kay Timewise cor : base 3D acabamento mate YVORY C110 | F40: 12 | G40: Unidade | H40: 51.45 | I40: 617.4 | J40: 0.2259 | K40: 756.87 | L40: Cotação
C41: 33 | E41: Base 3D acabamento mate Médio cor : BEIGE C140, Bronze W120 Características técnicas: -Utilizado para Uniformização da pele, sua visando imperfeições, textura oil-free, sem cheiro, efeito mate. -Embalagem com conteúdo mínimo de 30 ml REF: Base Mary kay Timewise cor : base 3D acabamento mate BEIGE C140, Bronze W120 | F41: 15 | G41: Unidade | H41: 51.45 | I41: 771.75 | J41: 0.2259 | K41: 946.09 | L41: Cotação
C42: 34 | E42: Base 3D acabamento mate Escura BRONZE C160, BONZE C170 Características técnicas: -Utilizado para Uniformização da pele, sua visando imperfeições, textura oil-free, sem cheiro, efeito mate. -Embalagem com conteúdo mínimo de 30 ml REF: Base Mary kay Timewise cor : base 3D acabamento mate BRONZE C160, BONZE C 170 | F42: 12 | G42: Unidade | H42: 51.45 | I42: 617.4 | J42: 0.2259 | K42: 756.87 | L42: Cotação
C43: 35 | E43: Blush tom claro Características técnicas:-Textura fina, com acabamento natural e boa durabilidade na pele,sem brilho, sem cheiro em forma de pó compacto tonalidade laranja Embalagem de 2g REF: Blush compacto Laranjado 2 g da Quem Disse Berenice | F43: 7 | G43: Unidade | H43: 58.4 | I43: 408.8 | J43: 0.2259 | K43: 501.15 | L43: Cotação
C44: 36 | E44: Blush Tom Médio Características Técnicas: - Textura fina, com acabamento natural e boa durabilidade na pele; sem brilho; sem cheiro; em forma de pó compacto; tonalidade pêssego. - Embalagem de, no mínimo, 2g. REF: Blush compacto Marselete 2g da Quem Disse Berenice (QDB). | F44: 7 | G44: Unidade | H44: 62.4 | I44: 436.8 | J44: 0.2259 | K44: 535.47 | L44: Cotação
C45: 37 | E45: Blush Tom Escuro Características Técnicas: - Textura fina, com acabamento natural e boa durabilidade na pele; sem brilho; sem cheiro; em forma de pó compacto; tonalidade marrom claro - Embalagem de, no mínimo, 2g. REF: Blush compacto Bronzissimo 2g da Quem Disse Berenice (QDB). | F45: 7 | G45: Unidade | H45: 58.4 | I45: 408.8 | J45: 0.2259 | K45: 501.15 | L45: Cotação
C46: 38 | E46: Prendedores de cabelo (pct com 6 unid) Características Técnicas: - Em resina plástica ou acrílico; pacotes com 6 unidades; tamanho grande ou médio. | F46: 5 | G46: pacote | H46: 16.825 | I46: 84.125 | J46: 0.2259 | K46: 103.13 | L46: Cotação
C47: 39 | E47: Batom sem brilho Características Técnicas: - Batom em forma de bastão (não-líquido); com vitamina E e agentes hidratantes; cores em tons suaves e neutros, mate, sem brilho. 03 unidades de cada cor. REF: Batons Quem Disse Berenice (QDB) Cores: Nude Passione, favorito Nude, belíssimo Nude, Delicato Nude, Essenziale Nude, Red amoré, Shell e Toffe. Malvelita , Goiabalê e volumão Teracotelê | F47: 33 | G47: Unidade | H47: 43.9 | I47: 1448.7 | J47: 0.2259 | K47: 1775.96 | L47: Cotação
C48: 40 | E48: Delineador preto para olhos - caneta Características Técnicas: - Em forma de caneta, com ponta fina e firme; com excelente cobertura, traço preciso, cor intensa, alta fixação e resistente à água. REF: Delineador liquido super slim infalible preto L”óréal | F48: 12 | G48: Unidade | H48: 33.665 | I48: 403.98 | J48: 0.2259 | K48: 495.24 | L48: Cotação
C49: 41 | E49: Delineador marrom para olhos - caneta Características Técnicas: - Em forma de caneta, com ponta fina e firme; com excelente cobertura, traço preciso, cor intensa, alta fixação e resistente à água. REF: Delineador em gel marrom da Quem Disse Berenice | F49: 10 | G49: Unidade | H49: 38.065 | I49: 380.65 | J49: 0.2259 | K49: 466.64 | L49: Cotação
C50: 42 | E50: Lápis de olho cor preta Características Técnicas: - Utilizado para delinear os olhos; resistente ao calor e à água. REF: Lápis de olho QDB Pretucho (preto) 1,2g | F50: 8 | G50: Unidade | H50: 39.4 | I50: 315.2 | J50: 0.2259 | K50: 386.4 | L50: Cotação
C51: 43 | E51: Lápis de olho cor marrom Características Técnicas: - Utilizado para delinear os olhos; resistente ao calor e à água. REF: Lápis de Olho QDB Marronlito (marron) 1,2g | F51: 4 | G51: Unidade | H51: 39.4 | I51: 157.6 | J51: 0.2259 | K51: 193.2 | L51: Cotação
C52: 44 | E52: Rímel cor preta Características Técnicas: - Usada para definição de cílios; base cremosa; solúvel em água; longa duração. REF: Máscara para cílios Maybelline Volum Express Colossal lavável preto | F52: 10 | G52: Unidade | H52: 38.89 | I52: 388.9 | J52: 0.2259 | K52: 476.75 | L52: Cotação
C53: 45 | E53: Rímel cor preta Características Técnicas: - Usada para definição de cílios; base cremosa; à prova d'água; longa duração. REF: Máscara para cílios Maybelline Volum Express Colossal à prova d'água preto | F53: 10 | G53: Unidade | H53: 41.45 | I53: =H53*F53 -> 414.5 | J53: 0.2259 | K53: =ROUND(I53*(1+J53),2) -> 508.14 | L53: Cotação
C54: 46 | E54: Haste flexível (tipo cotonete) – Características Técnicas: - Haste em plástico flexível com pontas cobertas por algodão hidrófilo. Caixa com 75 unidades. | F54: 30 | G54: Embalagem | H54: 2.93 | I54: 87.9 | J54: 0.2259 | K54: 107.76 | L54: Cotação
C55: 47 | E55: Demaquilante líquido Características Técnicas: - Sem óleo e sem cheiro; hipoalergênico. REF: Água Micelar L’Óreal Paris efeito matte 300ml | F55: 6 | G55: Unidade | H55: 45.945 | I55: 275.67 | J55: =J38 -> 0.2259 | K55: 337.94 | L55: Cotação
C56: 48 | E56: Corretivo para maquiagem tom claro Características Técnicas: - Tom claro (amarelado e rosado); cobertura média; acabamento mate; líquido ou cremoso; hipoalergênico, sem cheiro. REF: Corretivo líquido Matte Tracta 4g Claro | F56: 7 | G56: Unidade | H56: 27.89 | I56: 195.23 | J56: 0.2259 | K56: 239.33 | L56: Cotação
C57: 49 | E57: Corretivo para maquiagem tom laranja Características Técnicas: - Tom médio, cobertura média, efeito mate, líquido ou cremoso, hipoalergênico, sem cheiro. REF: Corretivo líquido Matte Tracta 4g laranja | F57: 7 | G57: Unidade | H57: 34.395 | I57: 240.765 | J57: 0.2259 | K57: 295.15 | L57: Cotação
C58: 50 | E58: Corretivo para maquiagem tom médio Características Técnicas: - Tom médio, cobertura média, efeito mate, líquido ou cremoso, hipoalergênico, sem cheiro. REF: Corretivo líquido Matte Tracta 4g Médio | F58: 7 | G58: Unidade | H58: 29.845 | I58: 208.915 | J58: 0.2259 | K58: 256.11 | L58: Cotação
C59: 51 | E59: Fixador para maquiagem Características Técnicas: - Produto a ser utilizado na fixação da maquiagem. - Embalagem de, no mínimo, 50 ml. REF: Fixador de maquiagem 75ml QDB | F59: 2 | G59: Unidade | H59: 68.9 | I59: 137.8 | J59: 0.2259 | K59: 168.93 | L59: Cotação
C60: 52 | E60: Algodão Hidrófilo Rolo 500g Características Técnicas: - Indicado para facilitar a higienização e assepsia da pele e remoção da maquiagem. - Embalagem de, no mínimo, 500g. | F60: 10 | G60: Embalagem | H60: 23.97 | I60: 239.7 | J60: 0.2259 | K60: 293.85 | L60: Cotação
C61: 53 | E61: Pinça para sobrancelha Características Técnicas: - Ponta reta em aço inox. | F61: 2 | G61: Unidade | H61: 17.365 | I61: 34.73 | J61: 0.2259 | K61: 42.58 | L61: Cotação
C62: 54 | E62: Esponja para aplicação de maquiagem Características Técnicas: - Modelo tipo "queijinho", tamanho GRANDE. | F62: 8 | G62: Unidade | H62: 15.56333333 | I62: 124.5066667 | J62: 0.2259 | K62: 152.63 | L62: Cotação
C63: 55 | E63: Sombras - cores neutras/opacas - quintetos Características Técnicas: - Sombra, em pó compacto, para os olhos;- Textura Fina;- Tons neutros. 2 de cada cor.. REF: sombras opacas avulsas QDB Cores sugeridas: - QDB: Refil nas cores: Marronzaço, Marronlito, Marrone, Nudete, Begito, Marronterra, Vinhê (peles negras), Rosalês e preto | F63: 18 | G63: Unidade | H63: 30.4 | I63: 547.2 | J63: 0.2259 | K63: 670.81 | L63: Cotação
C64: 56 | E64: Grampo para cabelo Características Técnicas: - Produto em metal com cabeça arredondada, com proteção nas pontas; - Tamanho pequeno n. 05; - Caixa com, no mínimo, 100 unidades. | F64: 6 | G64: Caixa | H64: 9.665 | I64: 57.99 | J64: 0.2259 | K64: 71.09 | L64: Cotação
C65: 57 | E65: Capa para maquiagem Características Técnicas: - capa de náilon ou cetim com mangas para corte de cabelo. | F65: 4 | G65: Unidade | H65: 31.53 | I65: 126.12 | J65: 0.2259 | K65: 154.61 | L65: Cotação
C66: 58 | E66: Borrifador de água Características Técnicas: - em plástico ou alumínio, com válvula "spray"; - recipiente com 350 ml, aproximadamente. | F66: 4 | G66: Unidade | H66: 11.57 | I66: 46.28 | J66: 0.2259 | K66: 56.73 | L66: Cotação
C67: 59 | E67: Hidratante corporal;Características Técnicas:- Ação desodorante, rápida absorção, com vitamina E, que neutraliza a ação dos radicais livres e aumenta a hidratação.Embalagem de, no mínimo, 400ml. REF: Hidratante Nívea Soft - Suave, leve e refrescante, serve para todos os tipos de pele | F67: 2 | G67: Embalagem | H67: 17.81333333 | I67: 35.62666667 | J67: 0.2259 | K67: 43.67 | L67: Cotação
C68: 60 | E68: Máscara Higiênica para maquiador. Referência: M5 Higimask | F68: 20 | G68: Unidade | H68: 21.65 | I68: 433 | J68: 0.2259 | K68: 530.81 | L68: Cotação
C69: 61 | E69: Luva de látex tamanho M | F69: 400 | G69: Unidade | H69: 0.26345 | I69: 105.38 | J69: 0.2259 | K69: 129.19 | L69: Cotação
C70: 62 | E70: Toalhas de papel 22x21 pacote com no mínimo 1200 folhas para dispensador | F70: 20 | G70: Pacote | H70: 49.05 | I70: 981 | J70: 0.2259 | K70: 1202.61 | L70: Cotação
C71: 63 | E71: Sabonete líquido neutro frasco de 500ml | F71: 20 | G71: Unidade | H71: 18.5 | I71: 370 | J71: 0.2259 | K71: 453.58 | L71: Cotação
J73: SOMATÓRIO TOTAL MENSAL | K73: =K74/12 -> 2567.045833
J74: SOMATÓRIO TOTAL ANUAL | K74: =SUM(K8:K72) -> 30804.55

Sheet 1
B2: PLANILHA DE ESTIMATIVA DE CUSTOS
B3: Padrão IN 05/2017 e IN 07/2018 - MPDG
B5: 1 | D5: =HLOOKUP($B$5,'Dados Gerais'!$D$5:$BW$133,6) -> Almoxarife Técnico - 5 dias | E5: QUANTIDADE | F5: =HLOOKUP($B$5,'Dados Gerais'!$D$5:$BW$133,10) -> 2
B6: CCT | D6: =HLOOKUP($B$5,'Dados Gerais'!$D$5:$BW$133,16) -> SINRAD/DF X SEAC/DF 2023/2023 Nº DF000111/2023 | E6: DATA-BASE | F6: =HLOOKUP($B$5,'Dados Gerais'!$D$5:$BX$133,17) -> 2023-01-01
B8: MÓDULO 1 - COMPOSIÇÃO DA REMUNERAÇÃO | F8: Valor
C9: A | D9: Salário-Base | F9: =HLOOKUP($B$5,'Dados Gerais'!$D$5:$BW$133,8) -> 6768.58
C10: B | D10: Adicional de Periculosidade | F10: =HLOOKUP($B$5,'Dados Gerais'!$D$5:$BW$133,25) -> 0
C11: C | D11: Adicional de Insalubridade | F11: =HLOOKUP($B$5,'Dados Gerais'!$D$5:$BW$133,31) -> 0
C12: D | D12: Adicional Noturno | F12: =HLOOKUP($B$5,'Dados Gerais'!$D$5:$BW$133,46) -> 0 | H12: * Nota 1 - O Módulo 1 refere-se ao valor mensal devido ao empregado pela prestação do serviço no período de 12 meses.
C13: E | D13: Adicional de Hora Extra | F13: =HLOOKUP($B$5,'Dados Gerais'!$D$5:$BW$133,63) -> 0 | H13: * Nota 2 - O adicional de hora extra no feriado trabalhado foi suprimido pela Lei 13.467/17
C14: F | D14: Outros (especificar) | F14: =HLOOKUP($B$5,'Dados Gerais'!$D$5:$BW$133,33) -> 0 | H14: * Nota 3 - ART. 7º, § 2º, DA LEI Nº 605/49.Sendo mensalista o obreiro, o adicional noturno pago de forma fixa já é considerado integrado para os efeitos do pagamento do repouso semanal remunerado, nos termos do art. 7º, § 2º, da Lei nº 605/49.
D16: TOTAL DA REMUNERAÇÃO | F16: =SUM(F9:F14) -> 6768.58
B18: MÓDULO 2 - ENCARGOS E BENEFÍCIOS ANUAIS, MENSAIS E DIÁRIOS | E18: Percentuais | F18: Valor
B19: Submódulo 2.1 - 13º Salário, Férias e Adicional de Férias
C20: A | D20: 13º Salário - Calculado no Módulo 7 - Destacado | E20: 0 | F20: =ROUND(E20*F$16,2) -> 0
C21: B | D21: Férias e Adicional de Férias | E21: ='Encargos Sociais'!E25+'Encargos Sociais'!E31 -> 0.1212 | F21: =ROUND(E21*F$16,2) -> 820.35 | H21: * Nota 1 - Provisiona-se, mensalmente, o proporcional a 1/12 dos valores referentes a gratificação natalina, férias e adicional de férias.
H22: * Nota 2 - O adicional de férias contido no Submódulo 2.1 corresponde a 1/3 da remuneração que, por sua vez, é dividida por 12 contome Nota 1.
B23: Submódulo 2.2 - Encargos Previdenciários (GPS), Fundo de Garantia por Tempo de Serviço (FGTS) e Outras Contribuições
C24: A | D24: INSS (art. 22, inciso I, Lei nº 8.212/91) | E24: ='Encargos Sociais'!E14 -> 0 | F24: =ROUND(E24*($F$16+$F$41+$F$73),2) -> 0
C25: B | D25: Salário Educação (art. 3º, inciso I, Decreto nº 87.043/82) | E25: ='Encargos Sociais'!E15 -> 0.025 | F25: =ROUND(E25*($F$16+$F$41+$F$73),2) -> 193.11
C26: C | D26: SAT/RAT (art. 22, II, Lei 8.212/91 e Anexo V, Decreto 6.042/07) - Enquadramento 8211-3/00 | E26: ='Encargos Sociais'!E16 -> 0.01 | F26: 77.24
C27: D | D27: SESC ou SESI (art. 30, Lei nº 8.036/90 e art. 1º, Lei 8.154/90) | E27: ='Encargos Sociais'!E17 -> 0.015 | F27: 115.86
C28: E | D28: SENAI ou SENAC (Decreto nº 2.318/86) | E28: ='Encargos Sociais'!E18 -> 0.01 | F28: 77.24
C29: F | D29: SEBRAE (§ 3º, art. 8º, Lei 8.029/90, alterada pela Lei nº 8.154/90) | E29: ='Encargos Sociais'!E19 -> 0.006 | F29: 46.35
C30: G | D30: INCRA (art. 1º, I, Decreto Lei 1.146/70 e Lei 7.787, de 30/06/89) | E30: ='Encargos Sociais'!E20 -> 0.002 | F30: 15.45 | H30: * Nota 1 - Os percentuais dos encargos previdenciários, do FGTS e demais contribuições são estabelecidos por legislação vigente.
C31: H | D31: FGTS (Lei Complementar nº 110/01 e art. 30, Lei nº 8.036/90) | E31: ='Encargos Sociais'!E21 -> 0.08 | F31: 617.94 | H31: * Nota 2 - O SAT, a depender do grau de risco do serviço, irá variar entre 1%, para risco leve, de 2%, para risco médio, e de 3% para risco grave.
C32: I | D32: SECONCI (Convenções Coletivas de Trabalho da construção) | E32: ='Encargos Sociais'!E22 -> 0 | F32: 0 | H32: * Nota 3 - Os percentuais do Submódulo 2.2 incidem sobre o Módulo 1 e o Submódulo 2.1.
B34: Submódulo 2.3 - Benefícios Mensais e Diários
C35: A | D35: Auxílio Transporte | F35: =HLOOKUP($B$5,'Dados Gerais'!$D$5:$BW$133,83) -> 0
C36: B | D36: Auxílio Alimentação | F36: =HLOOKUP($B$5,'Dados Gerais'!$D$5:$BW$133,90) -> 901.12
C37: C | D37: Assistência Médica e Familiar | F37: =HLOOKUP($B$5,'Dados Gerais'!$D$5:$BW$133,98) -> 0
C38: D | D38: Outros (auxílio creche e auxílio vestuário especial, quando aplicável) | F38: =HLOOKUP($B$5,'Dados Gerais'!$D$5:$BW$133,128) -> 78.4005 | H38: * Nota 1 - O valor informado deverá ser o custo real do benefício (descontado o valor eventualmente pago pelo empregado).
H39: * Nota 2 - Observar a previsão dos benefícios contidos em Acordos, Convenções e Dissídios Coletivos de Trabalho e o disposto no art. 6º da IN 5/2017
D40: QUADRO-RESUMO DO MÓDULO 2
D41: 2.1 - 13º Salário, Férias e Adicional de Férias - 13º Destacado - Calculado no Módulo 7 | E41: =SUM(E20:E21) -> 0.1212 | F41: =F20+F21 -> 820.35
D42: 2.2 - Encargos Previdenciários (GPS), Fundo de Garantia por Tempo de Serviço (FGTS) e Contribuições | E42: =SUM(E24:E32) -> 0.148 | F42: =SUM(F24:F32) -> 1143.19
D43: 2.3 - Benefícios Mensais e Diários | F43: =SUM(F35:F38) -> 979.5205
D45: TOTAL DOS ENCARGOS E BENEFÍCIOS | F45: =SUM(F41:F43) -> 2943.0605
B47: MÓDULO 3 - PREVISÃO PARA RESCISÃO | E47: Percentuais | F47: Valor
C48: A | D48: Aviso Prévio Indenizado (Art. 7º, inciso XXI, da CF/1988 e arts. 477, 487, §1º, e 491 da CLT) | E48: ='Encargos Sociais'!E36 -> 0.0083 | F48: =ROUND(E48*$F$16,2) -> 56.18
C49: B | D49: Incidência do FGTS sobre o Aviso Prévio Indenizado (Súmula 305 TST) | E49: ='Encargos Sociais'!E37 -> 0.0007 | F49: 4.74 | H49: * Nota 1 - Adotou-se os parâmetros do estudo do STF (http://www.stf.jus.br/arquivo/cms/sobrestfestudosci/anexo/encargos_sociais_03102007.pdf), onde 5% do pessoal é demitido pelo empregador no decurso do contrato (para estes, considerou-se o aviso prévio indenizado). Desprezou-se as demissões por justa causa e os pedidos de demissão.
C50: C | D50: Multa do FGTS e Contribuição Social sobre o Aviso Prévio Indenizado (Art. 18, §1º, da Lei 8.036/1990 e art. 1º da LC nº 110/2001) | E50: ='Encargos Sociais'!E38 -> 0.0038 | F50: 25.72 | H50: * Nota 2 - No cálculo do percentual, considerou-se 36 dias, correspondendo à metade da duração média dos contratos (2 anos)
C51: D | D51: Aviso Prévio Trabalhado (Art. 488, parágrafo único, CLT) | E51: ='Encargos Sociais'!E39 -> 0.012 | F51: 81.22 | H51: * Nota 3 - Incide sobre a Remuneração + 13º salário (1/12) + Férias (1/12) + Adicional de Férias (1/36) x 50% multa (40% para o empregado e 10% de contribuição social) x 8% FGTS
C52: E | D52: Incidência de GPS, FGTS e outras contribuições sobre o Aviso Prévio Trabalhado | E52: ='Encargos Sociais'!E40 -> 0.0018 | F52: 12.18 | H52: * Nota 4 - Os 95% restantes do cálculo, a um prazo médio de contrato de 4 anos. Assim, calcula-se 7 dias para o 1º ano de contrato e mais 3 dias para os 3 anos seguintes.
C53: F | D53: Multa do FGTS e Contribuição Social sobre o Aviso Prévio Trabalhado | E53: ='Encargos Sociais'!E41 -> 0.0344 | F53: 232.84
D55: TOTAL DE PREVISÃO PARA RESCISÃO | F55: =SUM(F48:F53) -> 412.88
B57: MÓDULO 4 - CUSTO DO PROFISSIONAL AUSENTE | E57: Percentuais | F57: Valor
B58: Submódulo 4.1 - Ausências Legais
C59: A | D59: Férias (Arts. 129 e 130, inc. I, da CLT) - Calculado no Submódulo 2.1 | E59: 0 | F59: =ROUND(E59*$F$16,2) -> 0 | H59: * Nota 1 - As alíneas “A” a “F” referem-se somente ao custo que será pago ao repositor pelos dias trabalhados quando da necessidade de substituir a mão de obra alocada na prestação do serviço.
C60: B | D60: Ausências Legais (Arts. 131 e 473 da CLT) | E60: ='Encargos Sociais'!E26 -> 0.0079 | F60: 53.47 | H60: * Nota 2 - Adotou-se a estimativa do SINAPI de 2 dias por ano.
C61: C | D61: Licença-Paternidade (Art. 7º, XIX, e art. 10, §1º, do ADCT, CF/1988 e Art. 1º, II, da Lei 11.770/2008) | E61: ='Encargos Sociais'!E27 -> 0.0008 | F61: 5.41 | H61: * Nota 3 - Utilizada a proporção de 50% para homens, 5 dias de afastamento, e a probabilidade de um trabalhador requerer a Licença Paternidade em 5,22%, conforme SINAPI (citando dados da PNAD 2015)
C62: D | D62: Ausência por Acidente de Trabalho (Art. 131, III, da CLT) | E62: ='Encargos Sociais'!E28 -> 0.0009 | F62: 6.09 | H62: * Nota 4 - Utilzada a estatística de 1,96% dos contribuintes beneficiados com a emissão do auxílio, conforme Anuário Estatístico da Previdência Social. Afastamento de 15 dias a cargo da empresa.
C63: E | D63: Afastamento Maternidade (Art. 71 da Lei nº 8.213/1991) | E63: ='Encargos Sociais'!E29 -> 0.0033 | F63: 22.34 | H63: * Nota 5 - Utilizada a proporção de 50% para mulheres, 180 dias de afastamento, e a probabilidade de uma trabalhadora requerer a Licença Maternidade em 4,91%, conforme SINAPI (citando dados do IBGE 2016)
C64: F | D64: Auxílio Enfermidade - Doença (Art. 59 da Lei nº 8.213/1991) | E64: ='Encargos Sociais'!E30 -> 0.0071 | F64: 48.06 | H64: * Nota 6 - Utilizada a estatística de 3,37% dos contribuintes beneficiados com o auxílio, conforme Anuário Estatístico da Previdência Social de 2015 (acrescidos de 2 dias ao ano, para os quais o trabalhador nem requer o benefício da Previdência - conforme SINAPI)
B66: Submódulo 4.2 - Intrajornada
C67: A | D67: Intervalo para repouso ou alimentação | E67: ='Encargos Sociais'!E33 -> 0 | F67: =ROUND(E67*$F$16,2) -> 0
D69: QUADRO-RESUMO DO MÓDULO 4 | F69: Valor
D70: 4.1 - Ausências Legais | E70: =SUM(E59:E64) -> 0.02 | F70: =ROUND(E70*$F$16,2) -> 135.37
D71: 4.2 - Intrajornada | E71: =E67 -> 0 | F71: =ROUND(E71*$F$16,2) -> 0
D73: TOTAL DE PREVISÃO PARA RESCISÃO E INTERVALO INTRAJORNADA | F73: =SUM(F70:F71) -> 135.37
B75: MÓDULO 5 - INSUMOS DIVERSOS | F75: Valor
C76: A | D76: Uniformes - aquisição | F76: =ROUND(HLOOKUP($B$5,Uniformes!K7:EX40,3)/12,2) -> 0
C77: B | D77: Materiais de consumo relacionados ao posto - aquisição | F77: =ROUND(HLOOKUP(B5,'Mat Cons'!I11:DX13,3)/12,2) -> 0
C78: C | D78: Materiais permanentes relacionados ao posto - remuneração da sua depreciação / manutenção | F78: =HLOOKUP(B5,'Mat Perm'!Q11:EF13,3) -> 0
C79: D | D79: Equipamentos relacionados ao posto - remuneração da sua depreciação / manutenção | F79: =HLOOKUP(B5,'Equip Rel'!Q11:EF13,3) -> 0
C80: E | D80: Equipamentos de Proteção Individual - EPI - aquisição | F80: =ROUND(HLOOKUP(B5,EPI!I4:DX31,3)/12,2) -> 0
D82: TOTAL DE INSUMOS DIVERSOS | F82: =SUM(F76:F81) -> 0 | H82: * Nota - Valores mensais por empregado
B84: MÓDULO 6 - CUSTOS INDIRETOS, TRIBUTOS E LUCRO - BDI | E84: Percentuais | F84: Valor
C85: A | D85: Custos Indiretos | E85: =BDI!E7 -> 0.0227
C86: A.1 | D86: Administração Central | E86: =BDI!E8 -> 0.0173
C87: A.2 | D87: Seguros, Garantias e Riscos | E87: =BDI!E9 -> 0.0054
C88: B | D88: Lucro | E88: =BDI!E11 -> 0.0267
C89: C | D89: Tributos | E89: =SUM(E90:E91) -> 0.139
C90: C.1 | D90: Tributos Federais (COFINS, PIS e CPRB) | E90: =BDI!E19 -> 0.089
C91: C.2 | D91: Tributos Distritais (ISS) | E91: =BDI!E24 -> 0.05 | H91: * Nota - Utilizou-se o indicado pelo Sindicato da Arquitetura e da Engenharia (Sinaenco, 2008, p. 22), que adota um percentual redutor de 20% no cálculo dos custos tributários relativos às contribuições PIS e COFINS
C92: D | D92: Despesas Financeiras | E92: =BDI!E14 -> 0.005251960574
D94: TOTAL DE BDI | E94: =BDI!E27 -> 0.2259 | F94: =E94*E102 -> 2317.709264
D96: QUADRO-RESUMO DO CUSTO MENSAL POR EMPREGADO - SEM O 13º | E96: Valor
D97: Módulo 1 - Composição da Remuneração | E97: =F16 -> 6768.58
D98: Módulo 2 - Encargos e Benefícios Anuais, Mensais e Diários | E98: =F45 -> 2943.0605
D99: Módulo 3 - Provisão para Rescisão | E99: =F55 -> 412.88
D100: Módulo 4 - Custo de Reposição do Profissional Ausente | E100: =F73 -> 135.37
D101: Módulo 5 - Insumos Diversos | E101: =F82 -> 0
D102: SUBTOTAL (A+B+C+D+E) | E102: =SUM(E97:E101) -> 10259.8905
D103: Módulo 6 - Custos Indiretos, Tributos e Lucro | E103: =F94 -> 2317.709264
D105: TOTAL DO POSTO | E105: =SUM(E102:E103) -> 12577.59976
B107: MÓDULO 7 - DESTAQUE DO MÓDULO 2 - 13º SALÁRIO | E107: Percentuais | F107: Valor
C108: A | D108: 13º Salário | E108: ='Encargos Sociais'!E32 -> 0.0833 | F108: =ROUND(E108*F$16,2) -> 563.82
C109: B | D109: Encargos Sociais sobre o 13º Salário - Taxa calculada no SUBMÓDULO 2.2 | E109: =SUM($E$24:$E$32) -> 0.148 | F109: =ROUND(E109*$F$108,2) -> 83.45 | H109: * Nota 1 - Provisiona-se, mensalmente, o proporcional a 1/12 dos valores referentes a gratificação natalina e adicional de férias.
C110: C | D110: BDI sobre o 13º Salário - Taxa calculada no MÓDULO 6 | E110: =E94 -> 0.2259 | F110: =ROUND(E110*($F$108+$F$109),2) -> 146.22
D112: TOTAL DO DESTAQUE DO 13º SALÁRIO | F112: =SUM(F108:F110) -> 793.49
D114: QUADRO-RESUMO DO CUSTO MENSAL POR EMPREGADO | E114: Valor
D115: Custo total - sem o 13º Salário | E115: =E105 -> 12577.59976
D116: Destaque do 13º Salário (valor mensal) | E116: =F112 -> 793.49
D118: TOTAL DO POSTO | E118: =E115+E116 -> 13371.08976

Sheet 2
B2: PLANILHA DE ESTIMATIVA DE CUSTOS
B3: Padrão IN 05/2017 e IN 07/2018 - MPDG
B5: 2 | D5: =HLOOKUP($B$5,'Dados Gerais'!$D$5:$BX$133,6) -> Almoxarife Técnico - 4 dias | E5: QUANTIDADE | F5: =HLOOKUP($B$5,'Dados Gerais'!$D$5:$BX$133,10) -> 2
B6: CCT | D6: =HLOOKUP($B$5,'Dados Gerais'!$D$5:$BW$133,16) -> SINRAD/DF X SEAC/DF 2023/2023 Nº DF000111/2023 | E6: DATA-BASE | F6: =HLOOKUP($B$5,'Dados Gerais'!$D$5:$BX$133,17) -> 2023-01-01
B8: MÓDULO 1 - COMPOSIÇÃO DA REMUNERAÇÃO | F8: Valor
C9: A | D9: Salário-Base | F9: =HLOOKUP($B$5,'Dados Gerais'!$D$5:$BX$133,8) -> 5414.86
C10: B | D10: Adicional de Periculosidade | F10: =HLOOKUP($B$5,'Dados Gerais'!$D$5:$BX$133,25) -> 0
C11: C | D11: Adicional de Insalubridade | F11: =HLOOKUP($B$5,'Dados Gerais'!$D$5:$BX$133,31) -> 0
C12: D | D12: Adicional Noturno | F12: =HLOOKUP($B$5,'Dados Gerais'!$D$5:$BX$133,46) -> 0 | H12: * Nota 1 - O Módulo 1 refere-se ao valor mensal devido ao empregado pela prestação do serviço no período de 12 meses.
C13: E | D13: Adicional de Hora Extra | F13: =HLOOKUP($B$5,'Dados Gerais'!$D$5:$BX$133,63) -> 0 | H13: * Nota 2 - O adicional de hora extra no feriado trabalhado foi suprimido pela Lei 13.467/17
C14: F | D14: Outros (especificar) | F14: =HLOOKUP($B$5,'Dados Gerais'!$D$5:$BX$133,33) -> 0 | H14: * Nota 3 - ART. 7º, § 2º, DA LEI Nº 605/49.Sendo mensalista o obreiro, o adicional noturno pago de forma fixa já é considerado integrado para os efeitos do pagamento do repouso semanal remunerado, nos termos do art. 7º, § 2º, da Lei nº 605/49.
D16: TOTAL DA REMUNERAÇÃO | F16: =SUM(F9:F14) -> 5414.86
B18: MÓDULO 2 - ENCARGOS E BENEFÍCIOS ANUAIS, MENSAIS E DIÁRIOS | E18: Percentuais | F18: Valor
B19: Submódulo 2.1 - 13º Salário, Férias e Adicional de Férias
C20: A | D20: 13º Salário - Calculado no Módulo 7 - Destacado | E20: 0 | F20: =ROUND(E20*F$16,2) -> 0
C21: B | D21: Férias e Adicional de Férias | E21: ='Encargos Sociais'!E25+'Encargos Sociais'!E31 -> 0.1212 | F21: =ROUND(E21*F$16,2) -> 656.28 | H21: * Nota 1 - Provisiona-se, mensalmente, o proporcional a 1/12 dos valores referentes a gratificação natalina, férias e adicional de férias.
H22: * Nota 2 - O adicional de férias contido no Submódulo 2.1 corresponde a 1/3 da remuneração que, por sua vez, é dividida por 12 contome Nota 1.
B23: Submódulo 2.2 - Encargos Previdenciários (GPS), Fundo de Garantia por Tempo de Serviço (FGTS) e Outras Contribuições
C24: A | D24: INSS (art. 22, inciso I, Lei nº 8.212/91) | E24: ='Encargos Sociais'!E14 -> 0 | F24: =ROUND(E24*($F$16+$F$41+$F$73),2) -> 0
C25: B | D25: Salário Educação (art. 3º, inciso I, Decreto nº 87.043/82) | E25: ='Encargos Sociais'!E15 -> 0.025 | F25: =ROUND(E25*($F$16+$F$41+$F$73),2) -> 154.49
C26: C | D26: SAT/RAT (art. 22, II, Lei 8.212/91 e Anexo V, Decreto 6.042/07) - Enquadramento 8211-3/00 | E26: ='Encargos Sociais'!E16 -> 0.01 | F26: 61.79
C27: D | D27: SESC ou SESI (art. 30, Lei nº 8.036/90 e art. 1º, Lei 8.154/90) | E27: ='Encargos Sociais'!E17 -> 0.015 | F27: 92.69
C28: E | D28: SENAI ou SENAC (Decreto nº 2.318/86) | E28: ='Encargos Sociais'!E18 -> 0.01 | F28: 61.79
C29: F | D29: SEBRAE (§ 3º, art. 8º, Lei 8.029/90, alterada pela Lei nº 8.154/90) | E29: ='Encargos Sociais'!E19 -> 0.006 | F29: 37.08
C30: G | D30: INCRA (art. 1º, I, Decreto Lei 1.146/70 e Lei 7.787, de 30/06/89) | E30: ='Encargos Sociais'!E20 -> 0.002 | F30: 12.36 | H30: * Nota 1 - Os percentuais dos encargos previdenciários, do FGTS e demais contribuições são estabelecidos por legislação vigente.
C31: H | D31: FGTS (Lei Complementar nº 110/01 e art. 30, Lei nº 8.036/90) | E31: ='Encargos Sociais'!E21 -> 0.08 | F31: 494.36 | H31: * Nota 2 - O SAT, a depender do grau de risco do serviço, irá variar entre 1%, para risco leve, de 2%, para risco médio, e de 3% para risco grave.
C32: I | D32: SECONCI (Convenções Coletivas de Trabalho da construção) | E32: ='Encargos Sociais'!E22 -> 0 | F32: 0 | H32: * Nota 3 - Os percentuais do Submódulo 2.2 incidem sobre o Módulo 1 e o Submódulo 2.1.
B34: Submódulo 2.3 - Benefícios Mensais e Diários
C35: A | D35: Auxílio Transporte | F35: =HLOOKUP($B$5,'Dados Gerais'!$D$5:$BW$133,83) -> 0
C36: B | D36: Auxílio Alimentação | F36: =HLOOKUP($B$5,'Dados Gerais'!$D$5:$BW$133,90) -> 737.28
C37: C | D37: Assistência Médica e Familiar | F37: =HLOOKUP($B$5,'Dados Gerais'!$D$5:$BW$133,98) -> 0
C38: D | D38: Outros (auxílio creche e auxílio vestuário especial, quando aplicável) | F38: =HLOOKUP($B$5,'Dados Gerais'!$D$5:$BW$133,128) -> 78.4005 | H38: * Nota 1 - O valor informado deverá ser o custo real do benefício (descontado o valor eventualmente pago pelo empregado).
H39: * Nota 2 - Observar a previsão dos benefícios contidos em Acordos, Convenções e Dissídios Coletivos de Trabalho e o disposto no art. 6º da IN 5/2017
D40: QUADRO-RESUMO DO MÓDULO 2
D41: 2.1 - 13º Salário, Férias e Adicional de Férias - 13º Destacado - Calculado no Módulo 7 | E41: =SUM(E20:E21) -> 0.1212 | F41: =F20+F21 -> 656.28
D42: 2.2 - Encargos Previdenciários (GPS), Fundo de Garantia por Tempo de Serviço (FGTS) e Contribuições | E42: =SUM(E24:E32) -> 0.148 | F42: =SUM(F24:F32) -> 914.56
D43: 2.3 - Benefícios Mensais e Diários | F43: =SUM(F35:F38) -> 815.6805
D45: TOTAL DOS ENCARGOS E BENEFÍCIOS | F45: =SUM(F41:F43) -> 2386.5205
B47: MÓDULO 3 - PREVISÃO PARA RESCISÃO | E47: Percentuais | F47: Valor
C48: A | D48: Aviso Prévio Indenizado (Art. 7º, inciso XXI, da CF/1988 e arts. 477, 487, §1º, e 491 da CLT) | E48: ='Encargos Sociais'!E36 -> 0.0083 | F48: =ROUND(E48*$F$16,2) -> 44.94
C49: B | D49: Incidência do FGTS sobre o Aviso Prévio Indenizado (Súmula 305 TST) | E49: ='Encargos Sociais'!E37 -> 0.0007 | F49: 3.79 | H49: * Nota 1 - Adotou-se os parâmetros do estudo do STF (http://www.stf.jus.br/arquivo/cms/sobrestfestudosci/anexo/encargos_sociais_03102007.pdf), onde 5% do pessoal é demitido pelo empregador no decurso do contrato (para estes, considerou-se o aviso prévio indenizado). Desprezou-se as demissões por justa causa e os pedidos de demissão.
C50: C | D50: Multa do FGTS e Contribuição Social sobre o Aviso Prévio Indenizado (Art. 18, §1º, da Lei 8.036/1990 e art. 1º da LC nº 110/2001) | E50: ='Encargos Sociais'!E38 -> 0.0038 | F50: 20.58 | H50: * Nota 2 - No cálculo do percentual, considerou-se 36 dias, correspondendo à metade da duração média dos contratos (2 anos)
C51: D | D51: Aviso Prévio Trabalhado (Art. 488, parágrafo único, CLT) | E51: ='Encargos Sociais'!E39 -> 0.012 | F51: 64.98 | H51: * Nota 3 - Incide sobre a Remuneração + 13º salário (1/12) + Férias (1/12) + Adicional de Férias (1/36) x 50% multa (40% para o empregado e 10% de contribuição social) x 8% FGTS
C52: E | D52: Incidência de GPS, FGTS e outras contribuições sobre o Aviso Prévio Trabalhado | E52: ='Encargos Sociais'!E40 -> 0.0018 | F52: 9.75 | H52: * Nota 4 - Os 95% restantes do cálculo, a um prazo médio de contrato de 4 anos. Assim, calcula-se 7 dias para o 1º ano de contrato e mais 3 dias para os 3 anos seguintes.
C53: F | D53: Multa do FGTS e Contribuição Social sobre o Aviso Prévio Trabalhado | E53: ='Encargos Sociais'!E41 -> 0.0344 | F53: 186.27
D55: TOTAL DE PREVISÃO PARA RESCISÃO | F55: =SUM(F48:F53) -> 330.31
B57: MÓDULO 4 - CUSTO DO PROFISSIONAL AUSENTE | E57: Percentuais | F57: Valor
B58: Submódulo 4.1 - Ausências Legais
C59: A | D59: Férias (Arts. 129 e 130, inc. I, da CLT) - Calculado no Submódulo 2.1 | E59: 0 | F59: =ROUND(E59*$F$16,2) -> 0 | H59: * Nota 1 - As alíneas “A” a “F” referem-se somente ao custo que será pago ao repositor pelos dias trabalhados quando da necessidade de substituir a mão de obra alocada na prestação do serviço.
C60: B | D60: Ausências Legais (Arts. 131 e 473 da CLT) | E60: ='Encargos Sociais'!E26 -> 0.0079 | F60: 42.78 | H60: * Nota 2 - Adotou-se a estimativa do SINAPI de 2 dias por ano.
C61: C | D61: Licença-Paternidade (Art. 7º, XIX, e art. 10, §1º, do ADCT, CF/1988 e Art. 1º, II, da Lei 11.770/2008) | E61: ='Encargos Sociais'!E27 -> 0.0008 | F61: 4.33 | H61: * Nota 3 - Utilizada a proporção de 50% para homens, 5 dias de afastamento, e a probabilidade de um trabalhador requerer a Licença Paternidade em 5,22%, conforme SINAPI (citando dados da PNAD 2015)
C62: D | D62: Ausência por Acidente de Trabalho (Art. 131, III, da CLT) | E62: ='Encargos Sociais'!E28 -> 0.0009 | F62: 4.87 | H62: * Nota 4 - Utilzada a estatística de 1,96% dos contribuintes beneficiados com a emissão do auxílio, conforme Anuário Estatístico da Previdência Social. Afastamento de 15 dias a cargo da empresa.
C63: E | D63: Afastamento Maternidade (Art. 71 da Lei nº 8.213/1991) | E63: ='Encargos Sociais'!E29 -> 0.0033 | F63: 17.87 | H63: * Nota 5 - Utilizada a proporção de 50% para mulheres, 180 dias de afastamento, e a probabilidade de uma trabalhadora requerer a Licença Maternidade em 4,91%, conforme SINAPI (citando dados do IBGE 2016)
C64: F | D64: Auxílio Enfermidade - Doença (Art. 59 da Lei nº 8.213/1991) | E64: ='Encargos Sociais'!E30 -> 0.0071 | F64: 38.45 | H64: * Nota 6 - Utilizada a estatística de 3,37% dos contribuintes beneficiados com o auxílio, conforme Anuário Estatístico da Previdência Social de 2015 (acrescidos de 2 dias ao ano, para os quais o trabalhador nem requer o benefício da Previdência - conforme SINAPI)
B66: Submódulo 4.2 - Intrajornada
C67: A | D67: Intervalo para repouso ou alimentação | E67: ='Encargos Sociais'!E33 -> 0 | F67: =ROUND(E67*$F$16,2) -> 0
D69: QUADRO-RESUMO DO MÓDULO 4 | F69: Valor
D70: 4.1 - Ausências Legais | E70: =SUM(E59:E64) -> 0.02 | F70: =ROUND(E70*$F$16,2) -> 108.3
D71: 4.2 - Intrajornada | E71: =E67 -> 0 | F71: =ROUND(E71*$F$16,2) -> 0
D73: TOTAL DE PREVISÃO PARA RESCISÃO E INTERVALO INTRAJORNADA | F73: =SUM(F70:F71) -> 108.3
B75: MÓDULO 5 - INSUMOS DIVERSOS | F75: Valor
C76: A | D76: Uniformes - aquisição | F76: =ROUND(HLOOKUP($B$5,Uniformes!K7:EX40,3)/12,2) -> 0
C77: B | D77: Materiais de consumo relacionados ao posto - aquisição | F77: =ROUND(HLOOKUP(B5,'Mat Cons'!I11:DX13,3)/12,2) -> 0
C78: C | D78: Materiais permanentes relacionados ao posto - remuneração da sua depreciação / manutenção | F78: =HLOOKUP(B5,'Mat Perm'!Q11:EF13,3) -> 0
C79: D | D79: Equipamentos relacionados ao posto - remuneração da sua depreciação / manutenção | F79: =HLOOKUP(B5,'Equip Rel'!Q11:EF13,3) -> 0
C80: E | D80: Equipamentos de Proteção Individual - EPI - aquisição | F80: =ROUND(HLOOKUP(B5,EPI!I4:DX31,3)/12,2) -> 0
D82: TOTAL DE INSUMOS DIVERSOS | F82: =SUM(F76:F81) -> 0 | H82: * Nota - Valores mensais por empregado
B84: MÓDULO 6 - CUSTOS INDIRETOS, TRIBUTOS E LUCRO - BDI | E84: Percentuais | F84: Valor
C85: A | D85: Custos Indiretos | E85: =BDI!E7 -> 0.0227
C86: A.1 | D86: Administração Central | E86: =BDI!E8 -> 0.0173
C87: A.2 | D87: Seguros, Garantias e Riscos | E87: =BDI!E9 -> 0.0054
C88: B | D88: Lucro | E88: =BDI!E11 -> 0.0267
C89: C | D89: Tributos | E89: =SUM(E90:E91) -> 0.139
C90: C.1 | D90: Tributos Federais (COFINS, PIS e CPRB) | E90: =BDI!E19 -> 0.089
C91: C.2 | D91: Tributos Distritais (ISS) | E91: =BDI!E24 -> 0.05 | H91: * Nota - Utilizou-se o indicado pelo Sindicato da Arquitetura e da Engenharia (Sinaenco, 2008, p. 22), que adota um percentual redutor de 20% no cálculo dos custos tributários relativos às contribuições PIS e COFINS
C92: D | D92: Despesas Financeiras | E92: =BDI!E14 -> 0.005251960574
D94: TOTAL DE BDI | E94: =BDI!E27 -> 0.2259 | F94: =E94*E102 -> 1861.413854
D96: QUADRO-RESUMO DO CUSTO MENSAL POR EMPREGADO - SEM O 13º | E96: Valor
D97: Módulo 1 - Composição da Remuneração | E97: =F16 -> 5414.86
D98: Módulo 2 - Encargos e Benefícios Anuais, Mensais e Diários | E98: =F45 -> 2386.5205
D99: Módulo 3 - Provisão para Rescisão | E99: =F55 -> 330.31
D100: Módulo 4 - Custo de Reposição do Profissional Ausente | E100: =F73 -> 108.3
D101: Módulo 5 - Insumos Diversos | E101: =F82 -> 0
D102: SUBTOTAL (A+B+C+D+E) | E102: =SUM(E97:E101) -> 8239.9905
D103: Módulo 6 - Custos Indiretos, Tributos e Lucro | E103: =F94 -> 1861.413854
D105: TOTAL DO POSTO | E105: =SUM(E102:E103) -> 10101.40435
B107: MÓDULO 7 - DESTAQUE DO MÓDULO 2 - 13º SALÁRIO | E107: Percentuais | F107: Valor
C108: A | D108: 13º Salário | E108: ='Encargos Sociais'!E32 -> 0.0833 | F108: =ROUND(E108*F$16,2) -> 451.06
C109: B | D109: Encargos Sociais sobre o 13º Salário - Taxa calculada no SUBMÓDULO 2.2 | E109: =SUM($E$24:$E$32) -> 0.148 | F109: =ROUND(E109*$F$108,2) -> 66.76 | H109: * Nota 1 - Provisiona-se, mensalmente, o proporcional a 1/12 dos valores referentes a gratificação natalina e adicional de férias.
C110: C | D110: BDI sobre o 13º Salário - Taxa calculada no MÓDULO 6 | E110: =E94 -> 0.2259 | F110: =ROUND(E110*($F$108+$F$109),2) -> 116.98
D112: TOTAL DO DESTAQUE DO 13º SALÁRIO | F112: =SUM(F108:F110) -> 634.8
D114: QUADRO-RESUMO DO CUSTO MENSAL POR EMPREGADO | E114: Valor
D115: Custo total - sem o 13º Salário | E115: =E105 -> 10101.40435
D116: Destaque do 13º Salário (valor mensal) | E116: =F112 -> 634.8
D118: TOTAL DO POSTO | E118: =E115+E116 -> 10736.20435

Sheet 3
B2: PLANILHA DE ESTIMATIVA DE CUSTOS
B3: Padrão IN 05/2017 e IN 07/2018 - MPDG
B5: 3 | D5: =HLOOKUP($B$5,'Dados Gerais'!$D$5:$BX$133,6) -> Assistente de operações audiovisuais - 5 dias | E5: QUANTIDADE | F5: =HLOOKUP($B$5,'Dados Gerais'!$D$5:$BX$133,10) -> 8
B6: CCT | D6: =HLOOKUP($B$5,'Dados Gerais'!$D$5:$BW$133,16) -> SINRAD/DF X SEAC/DF 2023/2023 Nº DF000111/2023 | E6: DATA-BASE | F6: =HLOOKUP($B$5,'Dados Gerais'!$D$5:$BX$133,17) -> 2023-01-01
B8: MÓDULO 1 - COMPOSIÇÃO DA REMUNERAÇÃO | F8: Valor
C9: A | D9: Salário-Base | F9: =HLOOKUP($B$5,'Dados Gerais'!$D$5:$BX$133,8) -> 3503.27
C10: B | D10: Adicional de Periculosidade | F10: =HLOOKUP($B$5,'Dados Gerais'!$D$5:$BX$133,25) -> 0
C11: C | D11: Adicional de Insalubridade | F11: =HLOOKUP($B$5,'Dados Gerais'!$D$5:$BX$133,31) -> 0
C12: D | D12: Adicional Noturno | F12: =HLOOKUP($B$5,'Dados Gerais'!$D$5:$BX$133,46) -> 0 | H12: * Nota 1 - O Módulo 1 refere-se ao valor mensal devido ao empregado pela prestação do serviço no período de 12 meses.
C13: E | D13: Adicional de Hora Extra | F13: =HLOOKUP($B$5,'Dados Gerais'!$D$5:$BX$133,63) -> 0 | H13: * Nota 2 - O adicional de hora extra no feriado trabalhado foi suprimido pela Lei 13.467/17
C14: F | D14: Outros (especificar) | F14: =HLOOKUP($B$5,'Dados Gerais'!$D$5:$BX$133,33) -> 0 | H14: * Nota 3 - ART. 7º, § 2º, DA LEI Nº 605/49.Sendo mensalista o obreiro, o adicional noturno pago de forma fixa já é considerado integrado para os efeitos do pagamento do repouso semanal remunerado, nos termos do art. 7º, § 2º, da Lei nº 605/49.
D16: TOTAL DA REMUNERAÇÃO | F16: =SUM(F9:F14) -> 3503.27
B18: MÓDULO 2 - ENCARGOS E BENEFÍCIOS ANUAIS, MENSAIS E DIÁRIOS | E18: Percentuais | F18: Valor
B19: Submódulo 2.1 - 13º Salário, Férias e Adicional de Férias
C20: A | D20: 13º Salário - Calculado no Módulo 7 - Destacado | E20: 0 | F20: =ROUND(E20*F$16,2) -> 0
C21: B | D21: Férias e Adicional de Férias | E21: ='Encargos Sociais'!E25+'Encargos Sociais'!E31 -> 0.1212 | F21: =ROUND(E21*F$16,2) -> 424.6 | H21: * Nota 1 - Provisiona-se, mensalmente, o proporcional a 1/12 dos valores referentes a gratificação natalina, férias e adicional de férias.
H22: * Nota 2 - O adicional de férias contido no Submódulo 2.1 corresponde a 1/3 da remuneração que, por sua vez, é dividida por 12 contome Nota 1.
B23: Submódulo 2.2 - Encargos Previdenciários (GPS), Fundo de Garantia por Tempo de Serviço (FGTS) e Outras Contribuições
C24: A | D24: INSS (art. 22, inciso I, Lei nº 8.212/91) | E24: ='Encargos Sociais'!E14 -> 0 | F24: =ROUND(E24*($F$16+$F$41+$F$73),2) -> 0
C25: B | D25: Salário Educação (art. 3º, inciso I, Decreto nº 87.043/82) | E25: ='Encargos Sociais'!E15 -> 0.025 | F25: =ROUND(E25*($F$16+$F$41+$F$73),2) -> 99.95
C26: C | D26: SAT/RAT (art. 22, II, Lei 8.212/91 e Anexo V, Decreto 6.042/07) - Enquadramento 8211-3/00 | E26: ='Encargos Sociais'!E16 -> 0.01 | F26: 39.98
C27: D | D27: SESC ou SESI (art. 30, Lei nº 8.036/90 e art. 1º, Lei 8.154/90) | E27: ='Encargos Sociais'!E17 -> 0.015 | F27: 59.97
C28: E | D28: SENAI ou SENAC (Decreto nº 2.318/86) | E28: ='Encargos Sociais'!E18 -> 0.01 | F28: 39.98
C29: F | D29: SEBRAE (§ 3º, art. 8º, Lei 8.029/90, alterada pela Lei nº 8.154/90) | E29: ='Encargos Sociais'!E19 -> 0.006 | F29: 23.99
C30: G | D30: INCRA (art. 1º, I, Decreto Lei 1.146/70 e Lei 7.787, de 30/06/89) | E30: ='Encargos Sociais'!E20 -> 0.002 | F30: 8 | H30: * Nota 1 - Os percentuais dos encargos previdenciários, do FGTS e demais contribuições são estabelecidos por legislação vigente.
C31: H | D31: FGTS (Lei Complementar nº 110/01 e art. 30, Lei nº 8.036/90) | E31: ='Encargos Sociais'!E21 -> 0.08 | F31: 319.84 | H31: * Nota 2 - O SAT, a depender do grau de risco do serviço, irá variar entre 1%, para risco leve, de 2%, para risco médio, e de 3% para risco grave.
C32: I | D32: SECONCI (Convenções Coletivas de Trabalho da construção) | E32: ='Encargos Sociais'!E22 -> 0 | F32: 0 | H32: * Nota 3 - Os percentuais do Submódulo 2.2 incidem sobre o Módulo 1 e o Submódulo 2.1.
B34: Submódulo 2.3 - Benefícios Mensais e Diários
C35: A | D35: Auxílio Transporte | F35: =HLOOKUP($B$5,'Dados Gerais'!$D$5:$BW$133,83) -> 128.11
C36: B | D36: Auxílio Alimentação | F36: =HLOOKUP($B$5,'Dados Gerais'!$D$5:$BW$133,90) -> 901.12
C37: C | D37: Assistência Médica e Familiar | F37: =HLOOKUP($B$5,'Dados Gerais'!$D$5:$BW$133,98) -> 0
C38: D | D38: Outros (auxílio creche e auxílio vestuário especial, quando aplicável) | F38: =HLOOKUP($B$5,'Dados Gerais'!$D$5:$BW$133,128) -> 257.2305 | H38: * Nota 1 - O valor informado deverá ser o custo real do benefício (descontado o valor eventualmente pago pelo empregado).
H39: * Nota 2 - Observar a previsão dos benefícios contidos em Acordos, Convenções e Dissídios Coletivos de Trabalho e o disposto no art. 6º da IN 5/2017
D40: QUADRO-RESUMO DO MÓDULO 2
D41: 2.1 - 13º Salário, Férias e Adicional de Férias - 13º Destacado - Calculado no Módulo 7 | E41: =SUM(E20:E21) -> 0.1212 | F41: =F20+F21 -> 424.6
D42: 2.2 - Encargos Previdenciários (GPS), Fundo de Garantia por Tempo de Serviço (FGTS) e Contribuições | E42: =SUM(E24:E32) -> 0.148 | F42: =SUM(F24:F32) -> 591.71
D43: 2.3 - Benefícios Mensais e Diários | F43: =SUM(F35:F38) -> 1286.4605
D45: TOTAL DOS ENCARGOS E BENEFÍCIOS | F45: =SUM(F41:F43) -> 2302.7705
B47: MÓDULO 3 - PREVISÃO PARA RESCISÃO | E47: Percentuais | F47: Valor
C48: A | D48: Aviso Prévio Indenizado (Art. 7º, inciso XXI, da CF/1988 e arts. 477, 487, §1º, e 491 da CLT) | E48: ='Encargos Sociais'!E36 -> 0.0083 | F48: =ROUND(E48*$F$16,2) -> 29.08
C49: B | D49: Incidência do FGTS sobre o Aviso Prévio Indenizado (Súmula 305 TST) | E49: ='Encargos Sociais'!E37 -> 0.0007 | F49: 2.45 | H49: * Nota 1 - Adotou-se os parâmetros do estudo do STF (http://www.stf.jus.br/arquivo/cms/sobrestfestudosci/anexo/encargos_sociais_03102007.pdf), onde 5% do pessoal é demitido pelo empregador no decurso do contrato (para estes, considerou-se o aviso prévio indenizado). Desprezou-se as demissões por justa causa e os pedidos de demissão.
C50: C | D50: Multa do FGTS e Contribuição Social sobre o Aviso Prévio Indenizado (Art. 18, §1º, da Lei 8.036/1990 e art. 1º da LC nº 110/2001) | E50: ='Encargos Sociais'!E38 -> 0.0038 | F50: 13.31 | H50: * Nota 2 - No cálculo do percentual, considerou-se 36 dias, correspondendo à metade da duração média dos contratos (2 anos)
C51: D | D51: Aviso Prévio Trabalhado (Art. 488, parágrafo único, CLT) | E51: ='Encargos Sociais'!E39 -> 0.012 | F51: 42.04 | H51: * Nota 3 - Incide sobre a Remuneração + 13º salário (1/12) + Férias (1/12) + Adicional de Férias (1/36) x 50% multa (40% para o empregado e 10% de contribuição social) x 8% FGTS
C52: E | D52: Incidência de GPS, FGTS e outras contribuições sobre o Aviso Prévio Trabalhado | E52: ='Encargos Sociais'!E40 -> 0.0018 | F52: 6.31 | H52: * Nota 4 - Os 95% restantes do cálculo, a um prazo médio de contrato de 4 anos. Assim, calcula-se 7 dias para o 1º ano de contrato e mais 3 dias para os 3 anos seguintes.
C53: F | D53: Multa do FGTS e Contribuição Social sobre o Aviso Prévio Trabalhado | E53: ='Encargos Sociais'!E41 -> 0.0344 | F53: 120.51
D55: TOTAL DE PREVISÃO PARA RESCISÃO | F55: =SUM(F48:F53) -> 213.7
B57: MÓDULO 4 - CUSTO DO PROFISSIONAL AUSENTE | E57: Percentuais | F57: Valor
B58: Submódulo 4.1 - Ausências Legais
C59: A | D59: Férias (Arts. 129 e 130, inc. I, da CLT) - Calculado no Submódulo 2.1 | E59: 0 | F59: =ROUND(E59*$F$16,2) -> 0 | H59: * Nota 1 - As alíneas “A” a “F” referem-se somente ao custo que será pago ao repositor pelos dias trabalhados quando da necessidade de substituir a mão de obra alocada na prestação do serviço.
C60: B | D60: Ausências Legais (Arts. 131 e 473 da CLT) | E60: ='Encargos Sociais'!E26 -> 0.0079 | F60: 27.68 | H60: * Nota 2 - Adotou-se a estimativa do SINAPI de 2 dias por ano.
C61: C | D61: Licença-Paternidade (Art. 7º, XIX, e art. 10, §1º, do ADCT, CF/1988 e Art. 1º, II, da Lei 11.770/2008) | E61: ='Encargos Sociais'!E27 -> 0.0008 | F61: 2.8 | H61: * Nota 3 - Utilizada a proporção de 50% para homens, 5 dias de afastamento, e a probabilidade de um trabalhador requerer a Licença Paternidade em 5,22%, conforme SINAPI (citando dados da PNAD 2015)
C62: D | D62: Ausência por Acidente de Trabalho (Art. 131, III, da CLT) | E62: ='Encargos Sociais'!E28 -> 0.0009 | F62: 3.15 | H62: * Nota 4 - Utilzada a estatística de 1,96% dos contribuintes beneficiados com a emissão do auxílio, conforme Anuário Estatístico da Previdência Social. Afastamento de 15 dias a cargo da empresa.
C63: E | D63: Afastamento Maternidade (Art. 71 da Lei nº 8.213/1991) | E63: ='Encargos Sociais'!E29 -> 0.0033 | F63: 11.56 | H63: * Nota 5 - Utilizada a proporção de 50% para mulheres, 180 dias de afastamento, e a probabilidade de uma trabalhadora requerer a Licença Maternidade em 4,91%, conforme SINAPI (citando dados do IBGE 2016)
C64: F | D64: Auxílio Enfermidade - Doença (Art. 59 da Lei nº 8.213/1991) | E64: ='Encargos Sociais'!E30 -> 0.0071 | F64: 24.87 | H64: * Nota 6 - Utilizada a estatística de 3,37% dos contribuintes beneficiados com o auxílio, conforme Anuário Estatístico da Previdência Social de 2015 (acrescidos de 2 dias ao ano, para os quais o trabalhador nem requer o benefício da Previdência - conforme SINAPI)
B66: Submódulo 4.2 - Intrajornada
C67: A | D67: Intervalo para repouso ou alimentação | E67: ='Encargos Sociais'!E33 -> 0 | F67: =ROUND(E67*$F$16,2) -> 0
D69: QUADRO-RESUMO DO MÓDULO 4 | F69: Valor
D70: 4.1 - Ausências Legais | E70: =SUM(E59:E64) -> 0.02 | F70: =ROUND(E70*$F$16,2) -> 70.07
D71: 4.2 - Intrajornada | E71: =E67 -> 0 | F71: =ROUND(E71*$F$16,2) -> 0
D73: TOTAL DE PREVISÃO PARA RESCISÃO E INTERVALO INTRAJORNADA | F73: =SUM(F70:F71) -> 70.07
B75: MÓDULO 5 - INSUMOS DIVERSOS | F75: Valor
C76: A | D76: Uniformes - aquisição | F76: =ROUND(HLOOKUP($B$5,Uniformes!K7:EX40,3)/12,2) -> 0
C77: B | D77: Materiais de consumo relacionados ao posto - aquisição | F77: =ROUND(HLOOKUP(B5,'Mat Cons'!I11:DX13,3)/12,2) -> 0
C78: C | D78: Materiais permanentes relacionados ao posto - remuneração da sua depreciação / manutenção | F78: =HLOOKUP(B5,'Mat Perm'!Q11:EF13,3) -> 0
C79: D | D79: Equipamentos relacionados ao posto - remuneração da sua depreciação / manutenção | F79: =HLOOKUP(B5,'Equip Rel'!Q11:EF13,3) -> 0
C80: E | D80: Equipamentos de Proteção Individual - EPI - aquisição | F80: =ROUND(HLOOKUP(B5,EPI!I4:DX31,3)/12,2) -> 0
D82: TOTAL DE INSUMOS DIVERSOS | F82: =SUM(F76:F81) -> 0 | H82: * Nota - Valores mensais por empregado
B84: MÓDULO 6 - CUSTOS INDIRETOS, TRIBUTOS E LUCRO - BDI | E84: Percentuais | F84: Valor
C85: A | D85: Custos Indiretos | E85: =BDI!E7 -> 0.0227
C86: A.1 | D86: Administração Central | E86: =BDI!E8 -> 0.0173
C87: A.2 | D87: Seguros, Garantias e Riscos | E87: =BDI!E9 -> 0.0054
C88: B | D88: Lucro | E88: =BDI!E11 -> 0.0267
C89: C | D89: Tributos | E89: =SUM(E90:E91) -> 0.139
C90: C.1 | D90: Tributos Federais (COFINS, PIS e CPRB) | E90: =BDI!E19 -> 0.089
C91: C.2 | D91: Tributos Distritais (ISS) | E91: =BDI!E24 -> 0.05 | H91: * Nota - Utilizou-se o indicado pelo Sindicato da Arquitetura e da Engenharia (Sinaenco, 2008, p. 22), que adota um percentual redutor de 20% no cálculo dos custos tributários relativos às contribuições PIS e COFINS
C92: D | D92: Despesas Financeiras | E92: =BDI!E14 -> 0.005251960574
D94: TOTAL DE BDI | E94: =BDI!E27 -> 0.2259 | F94: =E94*E102 -> 1375.688192
D96: QUADRO-RESUMO DO CUSTO MENSAL POR EMPREGADO - SEM O 13º | E96: Valor
D97: Módulo 1 - Composição da Remuneração | E97: =F16 -> 3503.27
D98: Módulo 2 - Encargos e Benefícios Anuais, Mensais e Diários | E98: =F45 -> 2302.7705
D99: Módulo 3 - Provisão para Rescisão | E99: =F55 -> 213.7
D100: Módulo 4 - Custo de Reposição do Profissional Ausente | E100: =F73 -> 70.07
D101: Módulo 5 - Insumos Diversos | E101: =F82 -> 0
D102: SUBTOTAL (A+B+C+D+E) | E102: =SUM(E97:E101) -> 6089.8105
D103: Módulo 6 - Custos Indiretos, Tributos e Lucro | E103: =F94 -> 1375.688192
D105: TOTAL DO POSTO | E105: =SUM(E102:E103) -> 7465.498692
B107: MÓDULO 7 - DESTAQUE DO MÓDULO 2 - 13º SALÁRIO | E107: Percentuais | F107: Valor
